Workbook

Sheet Index
C1: nominal$
B2: Gulfcoast FO Curve/mmbtu | C2: Fundamentals | D2: Gulfcoast FO Curve/gal | G2: TCM | H2: Fundamentals
A3: 2019-01-01 | B3: =D3/0.138 -> 12.92753623 | C3: 14.62277187 | D3: 1.784 | E3: =YEAR(A3) -> 2019 | F3: 2019 | G3: =AVERAGEIF($E$3:$E$386,$F3,$B$3:$B$386) -> 13.52711353 | H3: =AVERAGEIF($E$3:$E$386,$F3,$C$3:$C$386) -> 14.62277187 | J3: Historical Gulf Coast FO
A4: 2019-02-01 | B4: =D4/0.138 -> 13.86956522 | C4: 14.62277187 | D4: 1.914 | E4: 2019 | F4: 2020 | G4: =AVERAGEIF($E$3:$E$386,$F4,$B$3:$B$386) -> 13.64816546 | H4: =AVERAGEIF($E$3:$E$386,$F4,$C$3:$C$386) -> 13.65684391 | J4: COB 10/16/2019
A5: 2019-03-01 | B5: 13.7826087 | C5: 14.62277187 | D5: 1.902 | E5: 2019 | F5: 2021 | G5: =AVERAGEIF($E$3:$E$386,$F5,$B$3:$B$386) -> 13.39432126 | H5: =AVERAGEIF($E$3:$E$386,$F5,$C$3:$C$386) -> 13.38006175 | J5: Grow at 1.5% of same month previous year
A6: 2019-04-01 | B6: 14.32608696 | C6: 14.62277187 | D6: 1.977 | E6: 2019 | F6: 2022 | G6: =AVERAGEIF($E$3:$E$386,$F6,$B$3:$B$386) -> 13.7238744 | H6: =AVERAGEIF($E$3:$E$386,$F6,$C$3:$C$386) -> 13.44302573 | J6: Fall 2019 IHS Fundamentals
A7: 2019-05-01 | B7: 14.28985507 | C7: 14.62277187 | D7: 1.972 | E7: 2019 | F7: 2023 | G7: =AVERAGEIF($E$3:$E$386,$F7,$B$3:$B$386) -> 14.02915688 | H7: =AVERAGEIF($E$3:$E$386,$F7,$C$3:$C$386) -> 13.74934477 | J7: NYMEX - Close 4/15/19
A8: 2019-06-01 | B8: 13.16666667 | C8: 14.62277187 | D8: 1.817 | E8: 2019 | F8: 2024 | G8: =AVERAGEIF($E$3:$E$386,$F8,$B$3:$B$386) -> 14.30974002 | H8: =AVERAGEIF($E$3:$E$386,$F8,$C$3:$C$386) -> 14.08433619
A9: 2019-07-01 | B9: 13.86231884 | C9: 14.62277187 | D9: 1.913 | E9: 2019 | F9: 2025 | G9: =AVERAGEIF($E$3:$E$386,$F9,$B$3:$B$386) -> 14.59593482 | H9: =AVERAGEIF($E$3:$E$386,$F9,$C$3:$C$386) -> 14.43460034
A10: 2019-08-01 | B10: 13.04347826 | C10: 14.62277187 | D10: 1.8 | E10: 2019 | F10: 2026 | G10: =AVERAGEIF($E$3:$E$386,$F10,$B$3:$B$386) -> 14.88785352 | H10: =AVERAGEIF($E$3:$E$386,$F10,$C$3:$C$386) -> 14.99536878
A11: 2019-09-01 | B11: 13.57971014 | C11: 14.62277187 | D11: 1.874 | E11: 2019 | F11: 2027 | G11: =AVERAGEIF($E$3:$E$386,$F11,$B$3:$B$386) -> 15.18561059 | H11: =AVERAGEIF($E$3:$E$386,$F11,$C$3:$C$386) -> 15.64193825
A12: 2019-10-01 | B12: 13.3115942 | C12: 14.62277187 | D12: 1.837 | E12: 2019 | F12: 2028 | G12: =AVERAGEIF($E$3:$E$386,$F12,$B$3:$B$386) -> 15.4893228 | H12: =AVERAGEIF($E$3:$E$386,$F12,$C$3:$C$386) -> 16.3885729
A13: 2019-11-01 | B13: 13.07681159 | C13: 14.62277187 | D13: 1.8046 | E13: 2019 | F13: 2029 | G13: =AVERAGEIF($E$3:$E$386,$F13,$B$3:$B$386) -> 15.79910926 | H13: =AVERAGEIF($E$3:$E$386,$F13,$C$3:$C$386) -> 17.07029846
A14: 2019-12-01 | B14: 13.08913043 | C14: 14.62277187 | D14: 1.8063 | E14: 2019 | F14: 2030 | G14: =AVERAGEIF($E$3:$E$386,$F14,$B$3:$B$386) -> 16.11509144 | H14: =AVERAGEIF($E$3:$E$386,$F14,$C$3:$C$386) -> 17.49606175
A15: 2020-01-01 | B15: 13.8037971 | C15: 13.65684391 | D15: 1.904924 | E15: 2020 | F15: 2031 | G15: =AVERAGEIF($E$3:$E$386,$F15,$B$3:$B$386) -> 16.43739327 | H15: =AVERAGEIF($E$3:$E$386,$F15,$C$3:$C$386) -> 17.89127959
A16: 2020-02-01 | B16: 14.0924058 | C16: 13.65684391 | D16: 1.944752 | E16: 2020 | F16: 2032 | G16: =AVERAGEIF($E$3:$E$386,$F16,$B$3:$B$386) -> 16.76614114 | H16: =AVERAGEIF($E$3:$E$386,$F16,$C$3:$C$386) -> 18.30191424
A17: 2020-03-01 | B17: 14.59535507 | C17: 13.65684391 | D17: 2.014159 | E17: =YEAR(A17) -> 2020 | F17: 2033 | G17: =AVERAGEIF($E$3:$E$386,$F17,$B$3:$B$386) -> 17.10146396 | H17: =AVERAGEIF($E$3:$E$386,$F17,$C$3:$C$386) -> 18.72659691
A18: 2020-04-01 | B18: 14.42354348 | C18: 13.65684391 | D18: 1.990449 | E18: 2020 | F18: 2034 | G18: =AVERAGEIF($E$3:$E$386,$F18,$B$3:$B$386) -> 17.44349324 | H18: =AVERAGEIF($E$3:$E$386,$F18,$C$3:$C$386) -> 19.15740309
A19: 2020-05-01 | B19: 13.10595652 | C19: 13.65684391 | D19: 1.808622 | E19: 2020 | F19: 2035 | G19: =AVERAGEIF($E$3:$E$386,$F19,$B$3:$B$386) -> 17.7923631 | H19: =AVERAGEIF($E$3:$E$386,$F19,$C$3:$C$386) -> 19.59851115
A20: 2020-06-01 | B20: =D20/0.138 -> 13.60171739 | C20: 13.65684391 | D20: 1.877037 | E20: 2020 | F20: 2036 | G20: =AVERAGEIF($E$3:$E$386,$F20,$B$3:$B$386) -> 18.14821036 | H20: =AVERAGEIF($E$3:$E$386,$F20,$C$3:$C$386) -> 20.05078559
A21: 2020-07-01 | B21: 12.98257246 | C21: 13.65684391 | D21: 1.791595 | E21: 2020 | F21: 2037 | G21: =AVERAGEIF($E$3:$E$386,$F21,$B$3:$B$386) -> 18.51117457 | H21: =AVERAGEIF($E$3:$E$386,$F21,$C$3:$C$386) -> 20.5208542
A22: 2020-08-01 | B22: 13.8187029 | C22: 13.65684391 | D22: 1.906981 | E22: 2020 | F22: 2038 | G22: =AVERAGEIF($E$3:$E$386,$F22,$B$3:$B$386) -> 18.88139806 | H22: =AVERAGEIF($E$3:$E$386,$F22,$C$3:$C$386) -> 20.90915609
A23: 2020-09-01 | B23: 13.63598551 | C23: 13.65684391 | D23: 1.881766 | E23: 2020 | F23: 2039 | G23: =AVERAGEIF($E$3:$E$386,$F23,$B$3:$B$386) -> 19.25902602 | H23: =AVERAGEIF($E$3:$E$386,$F23,$C$3:$C$386) -> 21.28600343
A24: 2020-10-01 | B24: 13.38081159 | C24: 13.65684391 | D24: 1.846552 | E24: 2020 | F24: 2040 | G24: =AVERAGEIF($E$3:$E$386,$F24,$B$3:$B$386) -> 19.64420655 | H24: =AVERAGEIF($E$3:$E$386,$F24,$C$3:$C$386) -> 21.42188291
A25: 2020-11-01 | B25: 13.15651449 | C25: 13.65684391 | D25: 1.815599 | E25: 2020 | F25: 2041 | G25: =AVERAGEIF($E$3:$E$386,$F25,$B$3:$B$386) -> 20.03709068 | H25: =AVERAGEIF($E$3:$E$386,$F25,$C$3:$C$386) -> 21.9772272
A26: 2020-12-01 | B26: 13.18062319 | C26: 13.65684391 | D26: 1.818926 | E26: 2020 | F26: 2042 | G26: =AVERAGEIF($E$3:$E$386,$F26,$B$3:$B$386) -> 20.43783249 | H26: =AVERAGEIF($E$3:$E$386,$F26,$C$3:$C$386) -> 22.5509129
A27: 2021-01-01 | B27: 13.24393478 | C27: 13.38006175 | D27: 1.827663 | E27: 2021 | F27: 2043 | G27: =AVERAGEIF($E$3:$E$386,$F27,$B$3:$B$386) -> 20.84658914 | H27: =AVERAGEIF($E$3:$E$386,$F27,$C$3:$C$386) -> 22.73846251
A28: 2021-02-01 | B28: 13.26150725 | C28: 13.38006175 | D28: 1.830088 | E28: 2021 | F28: 2044 | G28: =AVERAGEIF($E$3:$E$386,$F28,$B$3:$B$386) -> 21.26352092 | H28: =AVERAGEIF($E$3:$E$386,$F28,$C$3:$C$386) -> 23.3314213
A29: 2021-03-01 | B29: 13.27907246 | C29: 13.38006175 | D29: 1.832512 | E29: 2021 | F29: 2045 | G29: =AVERAGEIF($E$3:$E$386,$F29,$B$3:$B$386) -> 21.68879134 | H29: =AVERAGEIF($E$3:$E$386,$F29,$C$3:$C$386) -> 23.51693654
A30: 2021-04-01 | B30: 13.29664493 | C30: 13.38006175 | D30: 1.834937 | E30: 2021 | F30: 2046 | G30: =AVERAGEIF($E$3:$E$386,$F30,$B$3:$B$386) -> 22.12256717 | H30: =AVERAGEIF($E$3:$E$386,$F30,$C$3:$C$386) -> 24.11837654
A31: 2021-05-01 | B31: 13.31421739 | C31: 13.38006175 | D31: 1.837362 | E31: 2021 | F31: 2047 | G31: =AVERAGEIF($E$3:$E$386,$F31,$B$3:$B$386) -> 22.56501851 | H31: =AVERAGEIF($E$3:$E$386,$F31,$C$3:$C$386) -> 24.72861859
A32: 2021-06-01 | B32: 13.33178261 | C32: 13.38006175 | D32: 1.839786 | E32: 2021 | F32: 2048 | G32: =AVERAGEIF($E$3:$E$386,$F32,$B$3:$B$386) -> 23.01631888 | H32: =AVERAGEIF($E$3:$E$386,$F32,$C$3:$C$386) -> 24.90680481
A33: 2021-07-01 | B33: 13.33169565 | C33: 13.38006175 | D33: 1.839774 | E33: 2021 | F33: 2049 | G33: =AVERAGEIF($E$3:$E$386,$F33,$B$3:$B$386) -> 23.47664526 | H33: =AVERAGEIF($E$3:$E$386,$F33,$C$3:$C$386) -> 25.53392954
A34: 2021-08-01 | B34: 13.33160145 | C34: 13.38006175 | D34: 1.839761 | E34: 2021 | F34: 2050 | G34: =AVERAGEIF($E$3:$E$386,$F34,$B$3:$B$386) -> 23.94617816 | H34: =AVERAGEIF($E$3:$E$386,$F34,$C$3:$C$386) -> 25.53392954
A35: 2021-09-01 | B35: 13.8885 | C35: 13.38006175 | D35: 1.916613 | E35: 2021
A36: 2021-10-01 | B36: =D36/0.138 -> 13.62850725 | C36: 13.38006175 | D36: 1.880734 | E36: 2021
A37: 2021-11-01 | B37: 13.39996377 | C37: 13.38006175 | D37: 1.849195 | E37: 2021
A38: 2021-12-01 | B38: 13.42442754 | C38: 13.38006175 | D38: 1.852571 | E38: 2021
A39: 2022-01-01 | B39: 13.57044928 | C39: 13.44302573 | D39: 1.872722 | E39: 2022
A40: 2022-02-01 | B40: 13.58833333 | C40: 13.44302573 | D40: 1.87519 | E40: 2022
A41: 2022-03-01 | B41: 13.60621014 | C41: 13.44302573 | D41: 1.877657 | E41: 2022
A42: 2022-04-01 | B42: 13.6240942 | C42: 13.44302573 | D42: 1.880125 | E42: 2022
A43: 2022-05-01 | B43: 13.64197101 | C43: 13.44302573 | D43: 1.882592 | E43: 2022
A44: 2022-06-01 | B44: 13.65985507 | C44: 13.44302573 | D44: 1.88506 | E44: 2022
A45: 2022-07-01 | B45: 13.65964493 | C45: 13.44302573 | D45: 1.885031 | E45: 2022
A46: 2022-08-01 | B46: 13.65943478 | C46: 13.44302573 | D46: 1.885002 | E46: 2022
A47: 2022-09-01 | B47: 14.2299058 | C47: 13.44302573 | D47: 1.963727 | E47: 2022
A48: 2022-10-01 | B48: 13.96339855 | C48: 13.44302573 | D48: 1.926949 | E48: 2022
A49: 2022-11-01 | B49: 13.72912319 | C49: 13.44302573 | D49: 1.894619 | E49: 2022
A50: 2022-12-01 | B50: 13.75407246 | C50: 13.44302573 | D50: 1.898062 | E50: 2022
A51: 2023-01-01 | B51: 13.90356522 | C51: 13.74934477 | D51: 1.918692 | E51: 2023
A52: 2023-02-01 | B52: 13.92176087 | C52: 13.74934477 | D52: 1.921203 | E52: 2023
A53: 2023-03-01 | B53: 13.93996377 | C53: 13.74934477 | D53: 1.923715 | E53: 2023
A54: 2023-04-01 | B54: 13.95816667 | C54: 13.74934477 | D54: 1.926227 | E54: 2023
A55: 2023-05-01 | B55: 13.97636957 | C55: 13.74934477 | D55: 1.928739 | E55: 2023
A56: 2023-06-01 | B56: 13.99456522 | C56: 13.74934477 | D56: 1.93125 | E56: 2023
A57: 2023-07-01 | B57: =B45*1.02 -> 13.93283783 | C57: 13.74934477 | D57: 1.931221 | E57: 2023
A58: 2023-08-01 | B58: 13.93262348 | C58: 13.74934477 | D58: 1.931192 | E58: 2023
A59: 2023-09-01 | B59: 14.51450391 | C59: 13.74934477 | D59: 2.011847 | E59: 2023
A60: 2023-10-01 | B60: 14.24266652 | C60: 13.74934477 | D60: 1.974169 | E60: 2023
A61: 2023-11-01 | B61: 14.00370565 | C61: 13.74934477 | D61: 1.941047 | E61: 2023
A62: 2023-12-01 | B62: 14.02915391 | C62: 13.74934477 | D62: 1.944575 | E62: 2023
A63: 2024-01-01 | B63: 14.18163652 | C63: 14.08433619 | D63: 1.965711 | E63: 2024
A64: 2024-02-01 | B64: 14.20019609 | C64: 14.08433619 | D64: 1.968285 | E64: 2024
A65: 2024-03-01 | B65: 14.21876304 | C65: 14.08433619 | D65: 1.970859 | E65: 2024
A66: 2024-04-01 | B66: 14.23733 | C66: 14.08433619 | D66: 1.973433 | E66: 2024
A67: 2024-05-01 | B67: 14.25589696 | C67: 14.08433619 | D67: 1.976007 | E67: 2024
A68: 2024-06-01 | B68: 14.27445652 | C68: 14.08433619 | D68: 1.97858 | E68: 2024
A69: 2024-07-01 | B69: 14.21149458 | C69: 14.08433619 | D69: 1.978502 | E69: 2024
A70: 2024-08-01 | B70: 14.21127595 | C70: 14.08433619 | D70: 1.978424 | E70: 2024
A71: 2024-09-01 | B71: 14.80479399 | C71: 14.08433619 | D71: 2.061 | E71: 2024
A72: 2024-10-01 | B72: 14.52751985 | C72: 14.08433619 | D72: 2.022352 | E72: 2024
A73: 2024-11-01 | B73: 14.28377977 | C73: 14.08433619 | D73: 1.988372 | E73: 2024
A74: 2024-12-01 | B74: 14.30973699 | C74: 14.08433619 | D74: 1.991937 | E74: 2024
A75: 2025-01-01 | B75: 14.46526925 | C75: 14.43460034 | D75: 2.013538 | E75: 2025
A76: 2025-02-01 | B76: 14.48420001 | C76: 14.43460034 | D76: 2.016125 | E76: 2025
A77: 2025-03-01 | B77: 14.5031383 | C77: 14.43460034 | D77: 2.018712 | E77: 2025
A78: 2025-04-01 | B78: 14.5220766 | C78: 14.43460034 | D78: 2.021298 | E78: 2025
A79: 2025-05-01 | B79: 14.5410149 | C79: 14.43460034 | D79: 2.023884 | E79: 2025
A80: 2025-06-01 | B80: 14.55994565 | C80: 14.43460034 | D80: 2.02647 | E80: 2025
A81: 2025-07-01 | B81: 14.49572447 | C81: 14.43460034 | D81: 2.027147 | E81: =YEAR(A81) -> 2025
A82: 2025-08-01 | B82: 14.49550147 | C82: 14.43460034 | D82: 2.027823 | E82: 2025
A83: 2025-09-01 | B83: 15.10088987 | C83: 14.43460034 | D83: 2.11325 | E83: 2025
A84: 2025-10-01 | B84: 14.81807025 | C84: 14.43460034 | D84: 2.074395 | E84: 2025
A85: 2025-11-01 | B85: 14.56945536 | C85: 14.43460034 | D85: 2.040302 | E85: 2025
A86: 2025-12-01 | B86: 14.59593173 | C86: 14.43460034 | D86: 2.044722 | E86: 2025
A87: 2026-01-01 | B87: 14.75457464 | C87: 14.99536878 | D87: 2.067665 | E87: 2026
A88: 2026-02-01 | B88: 14.77388401 | C88: 14.99536878 | D88: 2.071093 | E88: 2026
A89: 2026-03-01 | B89: 14.79320107 | C89: 14.99536878 | D89: 2.074522 | E89: 2026
A90: 2026-04-01 | B90: 14.81251813 | C90: 14.99536878 | D90: 2.077954 | E90: 2026
A91: 2026-05-01 | B91: 14.83183519 | C91: 14.99536878 | D91: 2.081387 | E91: 2026
A92: 2026-06-01 | B92: 14.85114457 | C92: 14.99536878 | D92: =D80*1.015 -> 2.05686705 | E92: 2026
A93: 2026-07-01 | B93: 14.78563896 | C93: 14.99536878 | D93: =D81*1.015 -> 2.057554205 | E93: 2026
A94: 2026-08-01 | B94: 14.7854115 | C94: 14.99536878 | D94: 2.058240345 | E94: 2026
A95: 2026-09-01 | B95: 15.40290767 | C95: 14.99536878 | D95: 2.14494875 | E95: 2026
A96: 2026-10-01 | B96: 15.11443165 | C96: 14.99536878 | D96: 2.105510925 | E96: 2026
A97: 2026-11-01 | B97: 14.86084447 | C97: 14.99536878 | D97: 2.07090653 | E97: 2026
A98: 2026-12-01 | B98: 14.88785037 | C98: 14.99536878 | D98: 2.07539283 | E98: 2026
A99: 2027-01-01 | B99: 15.04966613 | C99: 15.64193825 | D99: 2.098679975 | E99: 2027
A100: 2027-02-01 | B100: 15.06936169 | C100: 15.64193825 | D100: 2.102159395 | E100: 2027
A101: 2027-03-01 | B101: 15.08906509 | C101: 15.64193825 | D101: 2.10563983 | E101: 2027
A102: 2027-04-01 | B102: 15.10876849 | C102: 15.64193825 | D102: 2.10912331 | E102: 2027
A103: 2027-05-01 | B103: 15.1284719 | C103: 15.64193825 | D103: 2.112607805 | E103: 2027
A104: 2027-06-01 | B104: 15.14816746 | C104: 15.64193825 | D104: 2.087720056 | E104: 2027
A105: 2027-07-01 | B105: 15.08135174 | C105: 15.64193825 | D105: 2.088417518 | E105: 2027
A106: 2027-08-01 | B106: 15.08111973 | C106: 15.64193825 | D106: 2.08911395 | E106: 2027
A107: 2027-09-01 | B107: 15.71096582 | C107: 15.64193825 | D107: 2.177122981 | E107: 2027
A108: 2027-10-01 | B108: 15.41672029 | C108: 15.64193825 | D108: 2.137093589 | E108: 2027
A109: 2027-11-01 | B109: 15.15806136 | C109: 15.64193825 | D109: 2.101970128 | E109: 2027
A110: 2027-12-01 | B110: 15.18560737 | C110: 15.64193825 | D110: 2.106523722 | E110: 2027
A111: 2028-01-01 | B111: 15.35065945 | C111: 16.3885729 | D111: 2.130160175 | E111: 2028
A112: 2028-02-01 | B112: 15.37074892 | C112: 16.3885729 | D112: 2.133691786 | E112: 2028
A113: 2028-03-01 | B113: 15.39084639 | C113: 16.3885729 | D113: 2.137224427 | E113: 2028
A114: 2028-04-01 | B114: 15.41094386 | C114: 16.3885729 | D114: 2.14076016 | E114: 2028
A115: 2028-05-01 | B115: =B103*1.02 -> 15.43104134 | C115: 16.3885729 | D115: 2.144296922 | E115: 2028
A116: 2028-06-01 | B116: 15.45113081 | C116: 16.3885729 | D116: 2.119035857 | E116: 2028
A117: 2028-07-01 | B117: 15.38297878 | C117: 16.3885729 | D117: 2.119743781 | E117: 2028
A118: 2028-08-01 | B118: 15.38274212 | C118: 16.3885729 | D118: 2.120450659 | E118: 2028
A119: 2028-09-01 | B119: 16.02518514 | C119: 16.3885729 | D119: 2.209779826 | E119: 2028
A120: 2028-10-01 | B120: 15.72505469 | C120: 16.3885729 | D120: 2.169149993 | E120: 2028
A121: 2028-11-01 | B121: 15.46122258 | C121: 16.3885729 | D121: 2.13349968 | E121: 2028
A122: 2028-12-01 | B122: 15.48931952 | C122: 16.3885729 | D122: 2.138121578 | E122: 2028
A123: 2029-01-01 | B123: 15.65767264 | C123: 17.07029846 | D123: 2.162112577 | E123: 2029
A124: 2029-02-01 | B124: 15.6781639 | C124: 17.07029846 | D124: 2.165697163 | E124: 2029
A125: 2029-03-01 | B125: 15.69866332 | C125: 17.07029846 | D125: 2.169282794 | E125: 2029
A126: 2029-04-01 | B126: 15.71916274 | C126: 17.07029846 | D126: 2.172871562 | E126: 2029
A127: 2029-05-01 | B127: 15.73966216 | C127: 17.07029846 | D127: 2.176461376 | E127: 2029
A128: 2029-06-01 | B128: 15.76015342 | C128: 17.07029846 | D128: 2.150821394 | E128: 2029
A129: 2029-07-01 | B129: 15.69063835 | C129: 17.07029846 | D129: 2.151539938 | E129: 2029
A130: 2029-08-01 | B130: 15.69039696 | C130: 17.07029846 | D130: 2.152257419 | E130: 2029
A131: 2029-09-01 | B131: 16.34568884 | C131: 17.07029846 | D131: 2.242926523 | E131: 2029
A132: 2029-10-01 | B132: 16.03955579 | C132: 17.07029846 | D132: 2.201687243 | E132: 2029
A133: 2029-11-01 | B133: 15.77044704 | C133: 17.07029846 | D133: 2.165502175 | E133: 2029
A134: 2029-12-01 | B134: 15.79910591 | C134: 17.07029846 | D134: 2.170193402 | E134: 2029
A135: 2030-01-01 | B135: 15.97082609 | C135: 17.49606175 | D135: 2.194544266 | E135: 2030
A136: 2030-02-01 | B136: 15.99172718 | C136: 17.49606175 | D136: 2.19818262 | E136: 2030
A137: 2030-03-01 | B137: 16.01263659 | C137: 17.49606175 | D137: 2.201822036 | E137: 2030
A138: 2030-04-01 | B138: 16.033546 | C138: 17.49606175 | D138: 2.205464635 | E138: 2030
A139: 2030-05-01 | B139: 16.05445541 | C139: 17.49606175 | D139: 2.209108297 | E139: 2030
A140: 2030-06-01 | B140: 16.07535649 | C140: 17.49606175 | D140: 2.183083715 | E140: 2030
A141: 2030-07-01 | B141: 16.00445112 | C141: 17.49606175 | D141: 2.183813037 | E141: 2030
A142: 2030-08-01 | B142: 16.0042049 | C142: 17.49606175 | D142: 2.184541281 | E142: 2030
A143: 2030-09-01 | B143: 16.67260262 | C143: 17.49606175 | D143: 2.276570421 | E143: 2030
A144: 2030-10-01 | B144: 16.3603469 | C144: 17.49606175 | D144: 2.234712551 | E144: 2030
A145: 2030-11-01 | B145: 16.08585598 | C145: 17.49606175 | D145: 2.197984708 | E145: =YEAR(A145) -> 2030
A146: 2030-12-01 | B146: 16.11508803 | C146: 17.49606175 | D146: 2.202746303 | E146: 2030
A147: 2031-01-01 | B147: 16.29024262 | C147: 17.89127959 | D147: 2.22746243 | E147: 2031
A148: 2031-02-01 | B148: 16.31156172 | C148: 17.89127959 | D148: 2.231155359 | E148: 2031
A149: 2031-03-01 | B149: 16.33288932 | C149: 17.89127959 | D149: 2.234849366 | E149: 2031
A150: 2031-04-01 | B150: 16.35421692 | C150: 17.89127959 | D150: 2.238546605 | E150: 2031
A151: 2031-05-01 | B151: 16.37554451 | C151: 17.89127959 | D151: 2.242244921 | E151: 2031
A152: 2031-06-01 | B152: 16.39686362 | C152: 17.89127959 | D152: 2.215829971 | E152: 2031
A153: 2031-07-01 | B153: 16.32454014 | C153: 17.89127959 | D153: 2.216570232 | E153: 2031
A154: 2031-08-01 | B154: 16.324289 | C154: 17.89127959 | D154: 2.2173094 | E154: 2031
A155: 2031-09-01 | B155: 17.00605467 | C155: 17.89127959 | D155: 2.310718978 | E155: 2031
A156: 2031-10-01 | B156: 16.68755384 | C156: 17.89127959 | D156: 2.26823324 | E156: 2031
A157: 2031-11-01 | B157: 16.4075731 | C157: 17.89127959 | D157: =D145*1.015 -> 2.230954478 | E157: 2031
A158: 2031-12-01 | B158: 16.43738979 | C158: 17.89127959 | D158: 2.235787498 | E158: 2031
A159: 2032-01-01 | B159: 16.61604747 | C159: 18.30191424 | D159: 2.260874366 | E159: 2032
A160: 2032-02-01 | B160: 16.63779296 | C160: 18.30191424 | D160: 2.26462269 | E160: 2032
A161: 2032-03-01 | B161: 16.65954711 | C161: 18.30191424 | D161: 2.268372107 | E161: 2032
A162: 2032-04-01 | B162: 16.68130125 | C162: 18.30191424 | D162: 2.272124804 | E162: 2032
A163: 2032-05-01 | B163: 16.7030554 | C163: 18.30191424 | D163: 2.275878595 | E163: 2032
A164: 2032-06-01 | B164: 16.72480089 | C164: 18.30191424 | D164: 2.249067421 | E164: 2032
A165: 2032-07-01 | B165: 16.65103095 | C165: 18.30191424 | D165: 2.249818786 | E165: 2032
A166: 2032-08-01 | B166: 16.65077478 | C166: 18.30191424 | D166: 2.250569041 | E166: 2032
A167: 2032-09-01 | B167: 17.34617576 | C167: 18.30191424 | D167: 2.345379762 | E167: 2032
A168: 2032-10-01 | B168: 17.02130492 | C168: 18.30191424 | D168: 2.302256738 | E168: 2032
A169: 2032-11-01 | B169: 16.73572456 | C169: 18.30191424 | D169: 2.264418795 | E169: 2032
A170: 2032-12-01 | B170: 16.76613759 | C170: 18.30191424 | D170: 2.26932431 | E170: 2032
A171: 2033-01-01 | B171: 16.94836842 | C171: 18.72659691 | D171: 2.294787482 | E171: 2033
A172: 2033-02-01 | B172: 16.97054882 | C172: 18.72659691 | D172: 2.29859203 | E172: 2033
A173: 2033-03-01 | B173: 16.99273805 | C173: 18.72659691 | D173: 2.302397688 | E173: 2033
A174: 2033-04-01 | B174: 17.01492728 | C174: 18.72659691 | D174: 2.306206676 | E174: 2033
A175: 2033-05-01 | B175: 17.03711651 | C175: 18.72659691 | D175: 2.310016774 | E175: 2033
A176: 2033-06-01 | B176: 17.05929691 | C176: 18.72659691 | D176: 2.282803432 | E176: 2033
A177: 2033-07-01 | B177: 16.98405156 | C177: 18.72659691 | D177: 2.283566067 | E177: 2033
A178: 2033-08-01 | B178: 16.98379028 | C178: 18.72659691 | D178: 2.284327576 | E178: 2033
A179: 2033-09-01 | B179: =B167*1.02 -> 17.69309928 | C179: 18.72659691 | D179: 2.380560459 | E179: 2033
A180: 2033-10-01 | B180: 17.36173102 | C180: 18.72659691 | D180: 2.336790589 | E180: 2033
A181: 2033-11-01 | B181: 17.07043905 | C181: 18.72659691 | D181: 2.298385077 | E181: 2033
A182: 2033-12-01 | B182: 17.10146034 | C182: 18.72659691 | D182: 2.303364175 | E182: 2033
A183: 2034-01-01 | B183: 17.28733579 | C183: 19.15740309 | D183: 2.329209294 | E183: 2034
A184: 2034-02-01 | B184: 17.30995979 | C184: 19.15740309 | D184: 2.333070911 | E184: 2034
A185: 2034-03-01 | B185: 17.33259281 | C185: 19.15740309 | D185: 2.336933654 | E185: 2034
A186: 2034-04-01 | B186: 17.35522583 | C186: 19.15740309 | D186: 2.340799776 | E186: 2034
A187: 2034-05-01 | B187: 17.37785884 | C187: 19.15740309 | D187: 2.344667025 | E187: 2034
A188: 2034-06-01 | B188: 17.40048285 | C188: 19.15740309 | D188: 2.317045483 | E188: 2034
A189: 2034-07-01 | B189: 17.3237326 | C189: 19.15740309 | D189: 2.317819558 | E189: 2034
A190: 2034-08-01 | B190: 17.32346608 | C190: 19.15740309 | D190: 2.31859249 | E190: 2034
A191: 2034-09-01 | B191: 18.04696126 | C191: 19.15740309 | D191: 2.416268866 | E191: 2034
A192: 2034-10-01 | B192: 17.70896564 | C192: 19.15740309 | D192: 2.371842448 | E192: 2034
A193: 2034-11-01 | B193: 17.41184783 | C193: 19.15740309 | D193: 2.332860854 | E193: 2034
A194: 2034-12-01 | B194: 17.44348954 | C194: 19.15740309 | D194: 2.337914637 | E194: 2034
A195: 2035-01-01 | B195: 17.6330825 | C195: 19.59851115 | D195: 2.364147433 | E195: 2035
A196: 2035-02-01 | B196: 17.65615899 | C196: 19.59851115 | D196: 2.368066974 | E196: 2035
A197: 2035-03-01 | B197: 17.67924467 | C197: 19.59851115 | D197: 2.371987659 | E197: 2035
A198: 2035-04-01 | B198: 17.70233034 | C198: 19.59851115 | D198: 2.375911773 | E198: 2035
A199: 2035-05-01 | B199: 17.72541602 | C199: 19.59851115 | D199: 2.379837031 | E199: 2035
A200: 2035-06-01 | B200: 17.74849251 | C200: 19.59851115 | D200: 2.351801166 | E200: 2035
... 186 more rows

Sheet Avon Park
A1: Avon Park | B1: PETROLEUM PRODUCT PRICE FORECAST DATA | G1: PROSYM INPUT | J1: ANNUAL AVERAGE
A2: Date | B2: Petroleum Product Price Forecast - Gulf Coast | C2: TCM | D2: Blend TCM/ Fundamental (%) | E2: Blend TCM/ Fundamental ($) | F2: Avon Park Transport ($/MMBtu) | G2: Date | H2: nomianl$/MMBtu | K2: =A1 -> Avon Park
A3: =Index!A3 -> 2019-01-01 | B3: =Index!C3 -> 14.62277187 | C3: =Index!B3 -> 12.92753623 | D3: 1 | E3: =(C3*D3+B3*(1-D3)) -> 12.92753623 | F3: 0.752 | G3: =A3 -> 2019-01-01 | H3: =SUM(E3:F3) -> 13.67953623 | I3: =YEAR(A3) -> 2019 | J3: 2019 | K3: =AVERAGEIF($I$3:$I$386,J3,$H$3:$H$386) -> 14.27911353
A4: =Index!A4 -> 2019-02-01 | B4: =Index!C4 -> 14.62277187 | C4: =Index!B4 -> 13.86956522 | D4: 1 | E4: 13.86956522 | F4: 0.752 | G4: 2019-02-01 | H4: 14.62156522 | I4: =YEAR(A4) -> 2019 | J4: 2020 | K4: =AVERAGEIF($I$3:$I$386,J4,$H$3:$H$386) -> 14.41116546
A5: =Index!A5 -> 2019-03-01 | B5: =Index!C5 -> 14.62277187 | C5: =Index!B5 -> 13.7826087 | D5: 1 | E5: 13.7826087 | F5: 0.752 | G5: 2019-03-01 | H5: 14.5346087 | I5: 2019 | J5: 2021 | K5: 14.16932126
A6: =Index!A6 -> 2019-04-01 | B6: =Index!C6 -> 14.62277187 | C6: =Index!B6 -> 14.32608696 | D6: 1 | E6: 14.32608696 | F6: 0.752 | G6: 2019-04-01 | H6: 15.07808696 | I6: 2019 | J6: 2022 | K6: 14.42307287
A7: =Index!A7 -> 2019-05-01 | B7: =Index!C7 -> 14.62277187 | C7: =Index!B7 -> 14.28985507 | D7: 1 | E7: 14.28985507 | F7: 0.752 | G7: 2019-05-01 | H7: 15.04185507 | I7: 2019 | J7: 2023 | K7: 14.60871822
A8: =Index!A8 -> 2019-06-01 | B8: =Index!C8 -> 14.62277187 | C8: =Index!B8 -> 13.16666667 | D8: 1 | E8: 13.16666667 | F8: 0.752 | G8: 2019-06-01 | H8: 13.91866667 | I8: 2019 | J8: 2024 | K8: 14.89433619
A9: =Index!A9 -> 2019-07-01 | B9: =Index!C9 -> 14.62277187 | C9: =Index!B9 -> 13.86231884 | D9: 1 | E9: 13.86231884 | F9: 0.752 | G9: 2019-07-01 | H9: 14.61431884 | I9: 2019 | J9: 2025 | K9: 15.25660034
A10: =Index!A10 -> 2019-08-01 | B10: =Index!C10 -> 14.62277187 | C10: =Index!B10 -> 13.04347826 | D10: 1 | E10: 13.04347826 | F10: 0.752 | G10: 2019-08-01 | H10: 13.79547826 | I10: 2019 | J10: 2026 | K10: 15.83036878
A11: =Index!A11 -> 2019-09-01 | B11: =Index!C11 -> 14.62277187 | C11: =Index!B11 -> 13.57971014 | D11: 1 | E11: 13.57971014 | F11: 0.752 | G11: 2019-09-01 | H11: 14.33171014 | I11: 2019 | J11: 2027 | K11: 16.48893825
A12: =Index!A12 -> 2019-10-01 | B12: =Index!C12 -> 14.62277187 | C12: =Index!B12 -> 13.3115942 | D12: 1 | E12: 13.3115942 | F12: 0.752 | G12: 2019-10-01 | H12: 14.0635942 | I12: 2019 | J12: 2028 | K12: 17.2485729
A13: =Index!A13 -> 2019-11-01 | B13: =Index!C13 -> 14.62277187 | C13: =Index!B13 -> 13.07681159 | D13: 1 | E13: 13.07681159 | F13: 0.752 | G13: 2019-11-01 | H13: 13.82881159 | I13: 2019 | J13: 2029 | K13: 17.94329846
A14: =Index!A14 -> 2019-12-01 | B14: =Index!C14 -> 14.62277187 | C14: =Index!B14 -> 13.08913043 | D14: 1 | E14: 13.08913043 | F14: 0.752 | G14: 2019-12-01 | H14: 13.84113043 | I14: 2019 | J14: 2030 | K14: 18.38206175
A15: =Index!A15 -> 2020-01-01 | B15: =Index!C15 -> 13.65684391 | C15: =Index!B15 -> 13.8037971 | D15: 1 | E15: 13.8037971 | F15: 0.763 | G15: 2020-01-01 | H15: 14.5667971 | I15: 2020 | J15: 2031 | K15: 18.79027959
A16: =Index!A16 -> 2020-02-01 | B16: =Index!C16 -> 13.65684391 | C16: =Index!B16 -> 14.0924058 | D16: 1 | E16: 14.0924058 | F16: 0.763 | G16: 2020-02-01 | H16: 14.8554058 | I16: 2020 | J16: 2032 | K16: 19.21491424
A17: =Index!A17 -> 2020-03-01 | B17: =Index!C17 -> 13.65684391 | C17: =Index!B17 -> 14.59535507 | D17: 1 | E17: 14.59535507 | F17: 0.763 | G17: =A17 -> 2020-03-01 | H17: 15.35835507 | I17: 2020 | J17: 2033 | K17: 19.65259691
A18: =Index!A18 -> 2020-04-01 | B18: =Index!C18 -> 13.65684391 | C18: =Index!B18 -> 14.42354348 | D18: 1 | E18: 14.42354348 | F18: 0.763 | G18: 2020-04-01 | H18: 15.18654348 | I18: 2020 | J18: 2034 | K18: 20.09740309
A19: =Index!A19 -> 2020-05-01 | B19: =Index!C19 -> 13.65684391 | C19: =Index!B19 -> 13.10595652 | D19: 1 | E19: 13.10595652 | F19: 0.763 | G19: 2020-05-01 | H19: 13.86895652 | I19: 2020 | J19: 2035 | K19: 20.55251115
A20: =Index!A20 -> 2020-06-01 | B20: =Index!C20 -> 13.65684391 | C20: =Index!B20 -> 13.60171739 | D20: 1 | E20: 13.60171739 | F20: 0.763 | G20: 2020-06-01 | H20: 14.36471739 | I20: 2020 | J20: 2036 | K20: 21.01671059
A21: =Index!A21 -> 2020-07-01 | B21: =Index!C21 -> 13.65684391 | C21: =Index!B21 -> 12.98257246 | D21: 1 | E21: 12.98257246 | F21: 0.763 | G21: 2020-07-01 | H21: 13.74557246 | I21: 2020 | J21: 2037 | K21: 21.50126808
A22: =Index!A22 -> 2020-08-01 | B22: =Index!C22 -> 13.65684391 | C22: =Index!B22 -> 13.8187029 | D22: 1 | E22: 13.8187029 | F22: 0.763 | G22: 2020-08-01 | H22: 14.5817029 | I22: 2020 | J22: 2038 | K22: 21.90427617
A23: =Index!A23 -> 2020-09-01 | B23: =Index!C23 -> 13.65684391 | C23: =Index!B23 -> 13.63598551 | D23: 1 | E23: 13.63598551 | F23: 0.763 | G23: 2020-09-01 | H23: 14.39898551 | I23: 2020 | J23: 2039 | K23: 22.29605031
A24: =Index!A24 -> 2020-10-01 | B24: =Index!C24 -> 13.65684391 | C24: =Index!B24 -> 13.38081159 | D24: 1 | E24: 13.38081159 | F24: 0.763 | G24: 2020-10-01 | H24: 14.14381159 | I24: 2020 | J24: 2040 | K24: 22.4470805
A25: =Index!A25 -> 2020-11-01 | B25: =Index!C25 -> 13.65684391 | C25: =Index!B25 -> 13.15651449 | D25: 1 | E25: 13.15651449 | F25: 0.763 | G25: 2020-11-01 | H25: 13.91951449 | I25: 2020 | J25: 2041 | K25: 23.01780275
A26: =Index!A26 -> 2020-12-01 | B26: =Index!C26 -> 13.65684391 | C26: =Index!B26 -> 13.18062319 | D26: 1 | E26: 13.18062319 | F26: 0.763 | G26: 2020-12-01 | H26: 13.94362319 | I26: 2020 | J26: 2042 | K26: 23.60709708
A27: =Index!A27 -> 2021-01-01 | B27: =Index!C27 -> 13.38006175 | C27: =Index!B27 -> 13.24393478 | D27: 1 | E27: 13.24393478 | F27: 0.775 | G27: 2021-01-01 | H27: 14.01893478 | I27: 2021 | J27: 2043 | K27: 23.81048945
A28: =Index!A28 -> 2021-02-01 | B28: =Index!C28 -> 13.38006175 | C28: =Index!B28 -> 13.26150725 | D28: 1 | E28: 13.26150725 | F28: 0.775 | G28: 2021-02-01 | H28: 14.03650725 | I28: 2021 | J28: 2044 | K28: 24.41952865
A29: =Index!A29 -> 2021-03-01 | B29: =Index!C29 -> 13.38006175 | C29: =Index!B29 -> 13.27907246 | D29: 1 | E29: 13.27907246 | F29: 0.775 | G29: 2021-03-01 | H29: 14.05407246 | I29: 2021 | J29: 2045 | K29: 24.6213655
A30: =Index!A30 -> 2021-04-01 | B30: =Index!C30 -> 13.38006175 | C30: =Index!B30 -> 13.29664493 | D30: 1 | E30: 13.29664493 | F30: 0.775 | G30: 2021-04-01 | H30: 14.07164493 | I30: 2021 | J30: 2046 | K30: 25.23937193
A31: =Index!A31 -> 2021-05-01 | B31: =Index!C31 -> 13.38006175 | C31: =Index!B31 -> 13.31421739 | D31: 1 | E31: 13.31421739 | F31: 0.775 | G31: 2021-05-01 | H31: 14.08921739 | I31: 2021 | J31: 2047 | K31: 25.86642892
A32: =Index!A32 -> 2021-06-01 | B32: =Index!C32 -> 13.38006175 | C32: =Index!B32 -> 13.33178261 | D32: 1 | E32: 13.33178261 | F32: 0.775 | G32: 2021-06-01 | H32: 14.10678261 | I32: 2021 | J32: 2048 | K32: 26.06168229
A33: =Index!A33 -> 2021-07-01 | B33: =Index!C33 -> 13.38006175 | C33: =Index!B33 -> 13.33169565 | D33: 1 | E33: 13.33169565 | F33: 0.775 | G33: 2021-07-01 | H33: 14.10669565 | I33: 2021 | J33: 2049 | K33: 26.70613018
A34: =Index!A34 -> 2021-08-01 | B34: =Index!C34 -> 13.38006175 | C34: =Index!B34 -> 13.33160145 | D34: 1 | E34: 13.33160145 | F34: 0.775 | G34: 2021-08-01 | H34: 14.10660145 | I34: 2021 | J34: 2050 | K34: 26.72371319
A35: =Index!A35 -> 2021-09-01 | B35: =Index!C35 -> 13.38006175 | C35: =Index!B35 -> 13.8885 | D35: 1 | E35: 13.8885 | F35: 0.775 | G35: 2021-09-01 | H35: 14.6635 | I35: 2021
A36: =Index!A36 -> 2021-10-01 | B36: =Index!C36 -> 13.38006175 | C36: =Index!B36 -> 13.62850725 | D36: 1 | E36: 13.62850725 | F36: 0.775 | G36: 2021-10-01 | H36: =SUM(E36:F36) -> 14.40350725 | I36: 2021
A37: =Index!A37 -> 2021-11-01 | B37: =Index!C37 -> 13.38006175 | C37: =Index!B37 -> 13.39996377 | D37: 1 | E37: 13.39996377 | F37: 0.775 | G37: 2021-11-01 | H37: 14.17496377 | I37: 2021
A38: =Index!A38 -> 2021-12-01 | B38: =Index!C38 -> 13.38006175 | C38: =Index!B38 -> 13.42442754 | D38: 1 | E38: 13.42442754 | F38: 0.775 | G38: 2021-12-01 | H38: 14.19942754 | I38: 2021
A39: =Index!A39 -> 2022-01-01 | B39: =Index!C39 -> 13.44302573 | C39: =Index!B39 -> 13.57044928 | D39: 0.96 | E39: 13.56535233 | F39: 0.787 | G39: 2022-01-01 | H39: 14.35235233 | I39: 2022
A40: =Index!A40 -> 2022-02-01 | B40: =Index!C40 -> 13.44302573 | C40: =Index!B40 -> 13.58833333 | D40: 0.92 | E40: 13.57670872 | F40: 0.787 | G40: 2022-02-01 | H40: 14.36370872 | I40: 2022
A41: =Index!A41 -> 2022-03-01 | B41: =Index!C41 -> 13.44302573 | C41: =Index!B41 -> 13.60621014 | D41: 0.88 | E41: 13.58662802 | F41: 0.787 | G41: 2022-03-01 | H41: 14.37362802 | I41: 2022
A42: =Index!A42 -> 2022-04-01 | B42: =Index!C42 -> 13.44302573 | C42: =Index!B42 -> 13.6240942 | D42: 0.84 | E42: 13.59512325 | F42: 0.787 | G42: 2022-04-01 | H42: 14.38212325 | I42: 2022
A43: =Index!A43 -> 2022-05-01 | B43: =Index!C43 -> 13.44302573 | C43: =Index!B43 -> 13.64197101 | D43: 0.8 | E43: 13.60218196 | F43: 0.787 | G43: 2022-05-01 | H43: 14.38918196 | I43: 2022
A44: =Index!A44 -> 2022-06-01 | B44: =Index!C44 -> 13.44302573 | C44: =Index!B44 -> 13.65985507 | D44: 0.76 | E44: 13.60781603 | F44: 0.787 | G44: 2022-06-01 | H44: 14.39481603 | I44: 2022
A45: =Index!A45 -> 2022-07-01 | B45: =Index!C45 -> 13.44302573 | C45: =Index!B45 -> 13.65964493 | D45: 0.72 | E45: 13.59899155 | F45: 0.787 | G45: 2022-07-01 | H45: 14.38599155 | I45: 2022
A46: =Index!A46 -> 2022-08-01 | B46: =Index!C46 -> 13.44302573 | C46: =Index!B46 -> 13.65943478 | D46: 0.68 | E46: 13.59018389 | F46: 0.787 | G46: 2022-08-01 | H46: 14.37718389 | I46: 2022
A47: =Index!A47 -> 2022-09-01 | B47: =Index!C47 -> 13.44302573 | C47: =Index!B47 -> 14.2299058 | D47: 0.64 | E47: 13.94662897 | F47: 0.787 | G47: 2022-09-01 | H47: 14.73362897 | I47: 2022
A48: =Index!A48 -> 2022-10-01 | B48: =Index!C48 -> 13.44302573 | C48: =Index!B48 -> 13.96339855 | D48: 0.6 | E48: 13.75524942 | F48: 0.787 | G48: 2022-10-01 | H48: 14.54224942 | I48: 2022
A49: =Index!A49 -> 2022-11-01 | B49: =Index!C49 -> 13.44302573 | C49: =Index!B49 -> 13.72912319 | D49: 0.56 | E49: 13.60324031 | F49: 0.787 | G49: 2022-11-01 | H49: 14.39024031 | I49: 2022
A50: =Index!A50 -> 2022-12-01 | B50: =Index!C50 -> 13.44302573 | C50: =Index!B50 -> 13.75407246 | D50: 0.52 | E50: 13.60477003 | F50: 0.787 | G50: 2022-12-01 | H50: 14.39177003 | I50: 2022
A51: =Index!A51 -> 2023-01-01 | B51: =Index!C51 -> 13.74934477 | C51: =Index!B51 -> 13.90356522 | D51: 0.48 | E51: 13.82337058 | F51: 0.798 | G51: 2023-01-01 | H51: 14.62137058 | I51: 2023
A52: =Index!A52 -> 2023-02-01 | B52: =Index!C52 -> 13.74934477 | C52: =Index!B52 -> 13.92176087 | D52: 0.44 | E52: 13.82520785 | F52: 0.798 | G52: 2023-02-01 | H52: 14.62320785 | I52: 2023
A53: =Index!A53 -> 2023-03-01 | B53: =Index!C53 -> 13.74934477 | C53: =Index!B53 -> 13.93996377 | D53: 0.4 | E53: 13.82559237 | F53: 0.798 | G53: 2023-03-01 | H53: 14.62359237 | I53: 2023
A54: =Index!A54 -> 2023-04-01 | B54: =Index!C54 -> 13.74934477 | C54: =Index!B54 -> 13.95816667 | D54: 0.36 | E54: 13.82452065 | F54: 0.798 | G54: 2023-04-01 | H54: 14.62252065 | I54: 2023
A55: =Index!A55 -> 2023-05-01 | B55: =Index!C55 -> 13.74934477 | C55: =Index!B55 -> 13.97636957 | D55: 0.32 | E55: 13.8219927 | F55: 0.798 | G55: 2023-05-01 | H55: 14.6199927 | I55: 2023
A56: =Index!A56 -> 2023-06-01 | B56: =Index!C56 -> 13.74934477 | C56: =Index!B56 -> 13.99456522 | D56: 0.28 | E56: 13.81800649 | F56: 0.798 | G56: 2023-06-01 | H56: 14.61600649 | I56: 2023
A57: =Index!A57 -> 2023-07-01 | B57: =Index!C57 -> 13.74934477 | C57: =Index!B57 -> 13.93283783 | D57: 0.24 | E57: 13.7933831 | F57: 0.798 | G57: 2023-07-01 | H57: 14.5913831 | I57: 2023
A58: =Index!A58 -> 2023-08-01 | B58: =Index!C58 -> 13.74934477 | C58: =Index!B58 -> 13.93262348 | D58: 0.2 | E58: 13.78600051 | F58: 0.798 | G58: 2023-08-01 | H58: 14.58400051 | I58: 2023
A59: =Index!A59 -> 2023-09-01 | B59: =Index!C59 -> 13.74934477 | C59: =Index!B59 -> 14.51450391 | D59: 0.16 | E59: 13.87177023 | F59: 0.798 | G59: 2023-09-01 | H59: 14.66977023 | I59: 2023
A60: =Index!A60 -> 2023-10-01 | B60: =Index!C60 -> 13.74934477 | C60: =Index!B60 -> 14.24266652 | D60: 0.12 | E60: 13.80854338 | F60: 0.798 | G60: 2023-10-01 | H60: 14.60654338 | I60: 2023
A61: =Index!A61 -> 2023-11-01 | B61: =Index!C61 -> 13.74934477 | C61: =Index!B61 -> 14.00370565 | D61: 0.08 | E61: 13.76969364 | F61: 0.798 | G61: 2023-11-01 | H61: 14.56769364 | I61: 2023
A62: =Index!A62 -> 2023-12-01 | B62: =Index!C62 -> 13.74934477 | C62: =Index!B62 -> 14.02915391 | D62: 0.04 | E62: 13.76053713 | F62: 0.798 | G62: 2023-12-01 | H62: 14.55853713 | I62: 2023
A63: =Index!A63 -> 2024-01-01 | B63: =Index!C63 -> 14.08433619 | C63: =Index!B63 -> 14.18163652 | D63: 0 | E63: =(C63*D63+B63*(1-D63)) -> 14.08433619 | F63: 0.81 | G63: 2024-01-01 | H63: 14.89433619 | I63: 2024
A64: =Index!A64 -> 2024-02-01 | B64: =Index!C64 -> 14.08433619 | C64: =Index!B64 -> 14.20019609 | D64: 0 | E64: 14.08433619 | F64: 0.81 | G64: 2024-02-01 | H64: 14.89433619 | I64: 2024
A65: =Index!A65 -> 2024-03-01 | B65: =Index!C65 -> 14.08433619 | C65: =Index!B65 -> 14.21876304 | D65: 0 | E65: 14.08433619 | F65: 0.81 | G65: 2024-03-01 | H65: 14.89433619 | I65: 2024
A66: =Index!A66 -> 2024-04-01 | B66: =Index!C66 -> 14.08433619 | C66: =Index!B66 -> 14.23733 | D66: 0 | E66: 14.08433619 | F66: 0.81 | G66: 2024-04-01 | H66: 14.89433619 | I66: 2024
A67: =Index!A67 -> 2024-05-01 | B67: =Index!C67 -> 14.08433619 | C67: =Index!B67 -> 14.25589696 | D67: 0 | E67: 14.08433619 | F67: 0.81 | G67: 2024-05-01 | H67: 14.89433619 | I67: 2024
A68: =Index!A68 -> 2024-06-01 | B68: =Index!C68 -> 14.08433619 | C68: =Index!B68 -> 14.27445652 | D68: 0 | E68: 14.08433619 | F68: 0.81 | G68: 2024-06-01 | H68: 14.89433619 | I68: =YEAR(A68) -> 2024
A69: =Index!A69 -> 2024-07-01 | B69: =Index!C69 -> 14.08433619 | C69: =Index!B69 -> 14.21149458 | D69: 0 | E69: 14.08433619 | F69: 0.81 | G69: 2024-07-01 | H69: 14.89433619 | I69: 2024
A70: =Index!A70 -> 2024-08-01 | B70: =Index!C70 -> 14.08433619 | C70: =Index!B70 -> 14.21127595 | D70: 0 | E70: 14.08433619 | F70: 0.81 | G70: 2024-08-01 | H70: 14.89433619 | I70: 2024
A71: =Index!A71 -> 2024-09-01 | B71: =Index!C71 -> 14.08433619 | C71: =Index!B71 -> 14.80479399 | D71: 0 | E71: 14.08433619 | F71: 0.81 | G71: 2024-09-01 | H71: 14.89433619 | I71: 2024
A72: =Index!A72 -> 2024-10-01 | B72: =Index!C72 -> 14.08433619 | C72: =Index!B72 -> 14.52751985 | D72: 0 | E72: 14.08433619 | F72: 0.81 | G72: 2024-10-01 | H72: 14.89433619 | I72: 2024
A73: =Index!A73 -> 2024-11-01 | B73: =Index!C73 -> 14.08433619 | C73: =Index!B73 -> 14.28377977 | D73: 0 | E73: 14.08433619 | F73: 0.81 | G73: 2024-11-01 | H73: 14.89433619 | I73: 2024
A74: =Index!A74 -> 2024-12-01 | B74: =Index!C74 -> 14.08433619 | C74: =Index!B74 -> 14.30973699 | D74: 0 | E74: 14.08433619 | F74: 0.81 | G74: 2024-12-01 | H74: 14.89433619 | I74: 2024
A75: =Index!A75 -> 2025-01-01 | B75: =Index!C75 -> 14.43460034 | C75: =Index!B75 -> 14.46526925 | D75: 0 | E75: 14.43460034 | F75: 0.822 | G75: 2025-01-01 | H75: 15.25660034 | I75: 2025
A76: =Index!A76 -> 2025-02-01 | B76: =Index!C76 -> 14.43460034 | C76: =Index!B76 -> 14.48420001 | D76: 0 | E76: 14.43460034 | F76: 0.822 | G76: 2025-02-01 | H76: 15.25660034 | I76: 2025
A77: =Index!A77 -> 2025-03-01 | B77: =Index!C77 -> 14.43460034 | C77: =Index!B77 -> 14.5031383 | D77: 0 | E77: 14.43460034 | F77: 0.822 | G77: 2025-03-01 | H77: 15.25660034 | I77: 2025
A78: =Index!A78 -> 2025-04-01 | B78: =Index!C78 -> 14.43460034 | C78: =Index!B78 -> 14.5220766 | D78: 0 | E78: 14.43460034 | F78: 0.822 | G78: 2025-04-01 | H78: 15.25660034 | I78: 2025
A79: =Index!A79 -> 2025-05-01 | B79: =Index!C79 -> 14.43460034 | C79: =Index!B79 -> 14.5410149 | D79: 0 | E79: 14.43460034 | F79: 0.822 | G79: 2025-05-01 | H79: 15.25660034 | I79: 2025
A80: =Index!A80 -> 2025-06-01 | B80: =Index!C80 -> 14.43460034 | C80: =Index!B80 -> 14.55994565 | D80: 0 | E80: 14.43460034 | F80: 0.822 | G80: 2025-06-01 | H80: 15.25660034 | I80: 2025
A81: =Index!A81 -> 2025-07-01 | B81: =Index!C81 -> 14.43460034 | C81: =Index!B81 -> 14.49572447 | D81: 0 | E81: 14.43460034 | F81: 0.822 | G81: =A81 -> 2025-07-01 | H81: 15.25660034 | I81: 2025
A82: =Index!A82 -> 2025-08-01 | B82: =Index!C82 -> 14.43460034 | C82: =Index!B82 -> 14.49550147 | D82: 0 | E82: 14.43460034 | F82: 0.822 | G82: 2025-08-01 | H82: 15.25660034 | I82: 2025
A83: =Index!A83 -> 2025-09-01 | B83: =Index!C83 -> 14.43460034 | C83: =Index!B83 -> 15.10088987 | D83: 0 | E83: 14.43460034 | F83: 0.822 | G83: 2025-09-01 | H83: 15.25660034 | I83: 2025
A84: =Index!A84 -> 2025-10-01 | B84: =Index!C84 -> 14.43460034 | C84: =Index!B84 -> 14.81807025 | D84: 0 | E84: 14.43460034 | F84: 0.822 | G84: 2025-10-01 | H84: 15.25660034 | I84: 2025
A85: =Index!A85 -> 2025-11-01 | B85: =Index!C85 -> 14.43460034 | C85: =Index!B85 -> 14.56945536 | D85: 0 | E85: 14.43460034 | F85: 0.822 | G85: 2025-11-01 | H85: 15.25660034 | I85: 2025
A86: =Index!A86 -> 2025-12-01 | B86: =Index!C86 -> 14.43460034 | C86: =Index!B86 -> 14.59593173 | D86: 0 | E86: 14.43460034 | F86: 0.822 | G86: 2025-12-01 | H86: 15.25660034 | I86: 2025
A87: =Index!A87 -> 2026-01-01 | B87: =Index!C87 -> 14.99536878 | C87: =Index!B87 -> 14.75457464 | D87: 0 | E87: 14.99536878 | F87: 0.835 | G87: 2026-01-01 | H87: 15.83036878 | I87: 2026
A88: =Index!A88 -> 2026-02-01 | B88: =Index!C88 -> 14.99536878 | C88: =Index!B88 -> 14.77388401 | D88: 0 | E88: 14.99536878 | F88: 0.835 | G88: 2026-02-01 | H88: 15.83036878 | I88: 2026
A89: =Index!A89 -> 2026-03-01 | B89: =Index!C89 -> 14.99536878 | C89: =Index!B89 -> 14.79320107 | D89: 0 | E89: 14.99536878 | F89: 0.835 | G89: 2026-03-01 | H89: 15.83036878 | I89: 2026
A90: =Index!A90 -> 2026-04-01 | B90: =Index!C90 -> 14.99536878 | C90: =Index!B90 -> 14.81251813 | D90: 0 | E90: 14.99536878 | F90: 0.835 | G90: 2026-04-01 | H90: 15.83036878 | I90: 2026
A91: =Index!A91 -> 2026-05-01 | B91: =Index!C91 -> 14.99536878 | C91: =Index!B91 -> 14.83183519 | D91: 0 | E91: 14.99536878 | F91: 0.835 | G91: 2026-05-01 | H91: 15.83036878 | I91: 2026
A92: =Index!A92 -> 2026-06-01 | B92: =Index!C92 -> 14.99536878 | C92: =Index!B92 -> 14.85114457 | D92: 0 | E92: 14.99536878 | F92: 0.835 | G92: 2026-06-01 | H92: 15.83036878 | I92: 2026
A93: =Index!A93 -> 2026-07-01 | B93: =Index!C93 -> 14.99536878 | C93: =Index!B93 -> 14.78563896 | D93: 0 | E93: 14.99536878 | F93: 0.835 | G93: 2026-07-01 | H93: 15.83036878 | I93: 2026
A94: =Index!A94 -> 2026-08-01 | B94: =Index!C94 -> 14.99536878 | C94: =Index!B94 -> 14.7854115 | D94: 0 | E94: 14.99536878 | F94: 0.835 | G94: 2026-08-01 | H94: 15.83036878 | I94: 2026
A95: =Index!A95 -> 2026-09-01 | B95: =Index!C95 -> 14.99536878 | C95: =Index!B95 -> 15.40290767 | D95: 0 | E95: 14.99536878 | F95: 0.835 | G95: 2026-09-01 | H95: 15.83036878 | I95: 2026
A96: =Index!A96 -> 2026-10-01 | B96: =Index!C96 -> 14.99536878 | C96: =Index!B96 -> 15.11443165 | D96: 0 | E96: 14.99536878 | F96: 0.835 | G96: 2026-10-01 | H96: 15.83036878 | I96: 2026
A97: =Index!A97 -> 2026-11-01 | B97: =Index!C97 -> 14.99536878 | C97: =Index!B97 -> 14.86084447 | D97: 0 | E97: 14.99536878 | F97: 0.835 | G97: 2026-11-01 | H97: 15.83036878 | I97: 2026
A98: =Index!A98 -> 2026-12-01 | B98: =Index!C98 -> 14.99536878 | C98: =Index!B98 -> 14.88785037 | D98: 0 | E98: 14.99536878 | F98: 0.835 | G98: 2026-12-01 | H98: 15.83036878 | I98: 2026
A99: =Index!A99 -> 2027-01-01 | B99: =Index!C99 -> 15.64193825 | C99: =Index!B99 -> 15.04966613 | D99: 0 | E99: 15.64193825 | F99: 0.847 | G99: 2027-01-01 | H99: 16.48893825 | I99: 2027
A100: =Index!A100 -> 2027-02-01 | B100: =Index!C100 -> 15.64193825 | C100: =Index!B100 -> 15.06936169 | D100: 0 | E100: 15.64193825 | F100: 0.847 | G100: 2027-02-01 | H100: =SUM(E100:F100) -> 16.48893825 | I100: 2027
A101: =Index!A101 -> 2027-03-01 | B101: =Index!C101 -> 15.64193825 | C101: =Index!B101 -> 15.08906509 | D101: 0 | E101: 15.64193825 | F101: 0.847 | G101: 2027-03-01 | H101: 16.48893825 | I101: 2027
A102: =Index!A102 -> 2027-04-01 | B102: =Index!C102 -> 15.64193825 | C102: =Index!B102 -> 15.10876849 | D102: 0 | E102: 15.64193825 | F102: 0.847 | G102: 2027-04-01 | H102: 16.48893825 | I102: 2027
A103: =Index!A103 -> 2027-05-01 | B103: =Index!C103 -> 15.64193825 | C103: =Index!B103 -> 15.1284719 | D103: 0 | E103: 15.64193825 | F103: 0.847 | G103: 2027-05-01 | H103: 16.48893825 | I103: 2027
A104: =Index!A104 -> 2027-06-01 | B104: =Index!C104 -> 15.64193825 | C104: =Index!B104 -> 15.14816746 | D104: 0 | E104: 15.64193825 | F104: 0.847 | G104: 2027-06-01 | H104: 16.48893825 | I104: 2027
A105: =Index!A105 -> 2027-07-01 | B105: =Index!C105 -> 15.64193825 | C105: =Index!B105 -> 15.08135174 | D105: 0 | E105: 15.64193825 | F105: 0.847 | G105: 2027-07-01 | H105: 16.48893825 | I105: 2027
A106: =Index!A106 -> 2027-08-01 | B106: =Index!C106 -> 15.64193825 | C106: =Index!B106 -> 15.08111973 | D106: 0 | E106: 15.64193825 | F106: 0.847 | G106: 2027-08-01 | H106: 16.48893825 | I106: 2027
A107: =Index!A107 -> 2027-09-01 | B107: =Index!C107 -> 15.64193825 | C107: =Index!B107 -> 15.71096582 | D107: 0 | E107: 15.64193825 | F107: 0.847 | G107: 2027-09-01 | H107: 16.48893825 | I107: 2027
A108: =Index!A108 -> 2027-10-01 | B108: =Index!C108 -> 15.64193825 | C108: =Index!B108 -> 15.41672029 | D108: 0 | E108: 15.64193825 | F108: 0.847 | G108: 2027-10-01 | H108: 16.48893825 | I108: 2027
A109: =Index!A109 -> 2027-11-01 | B109: =Index!C109 -> 15.64193825 | C109: =Index!B109 -> 15.15806136 | D109: 0 | E109: 15.64193825 | F109: 0.847 | G109: 2027-11-01 | H109: 16.48893825 | I109: 2027
A110: =Index!A110 -> 2027-12-01 | B110: =Index!C110 -> 15.64193825 | C110: =Index!B110 -> 15.18560737 | D110: 0 | E110: 15.64193825 | F110: 0.847 | G110: 2027-12-01 | H110: 16.48893825 | I110: 2027
A111: =Index!A111 -> 2028-01-01 | B111: =Index!C111 -> 16.3885729 | C111: =Index!B111 -> 15.35065945 | D111: 0 | E111: 16.3885729 | F111: 0.86 | G111: 2028-01-01 | H111: 17.2485729 | I111: 2028
A112: =Index!A112 -> 2028-02-01 | B112: =Index!C112 -> 16.3885729 | C112: =Index!B112 -> 15.37074892 | D112: 0 | E112: 16.3885729 | F112: 0.86 | G112: 2028-02-01 | H112: 17.2485729 | I112: 2028
A113: =Index!A113 -> 2028-03-01 | B113: =Index!C113 -> 16.3885729 | C113: =Index!B113 -> 15.39084639 | D113: 0 | E113: 16.3885729 | F113: 0.86 | G113: 2028-03-01 | H113: 17.2485729 | I113: 2028
A114: =Index!A114 -> 2028-04-01 | B114: =Index!C114 -> 16.3885729 | C114: =Index!B114 -> 15.41094386 | D114: 0 | E114: 16.3885729 | F114: 0.86 | G114: 2028-04-01 | H114: 17.2485729 | I114: 2028
A115: =Index!A115 -> 2028-05-01 | B115: =Index!C115 -> 16.3885729 | C115: =Index!B115 -> 15.43104134 | D115: 0 | E115: 16.3885729 | F115: 0.86 | G115: 2028-05-01 | H115: 17.2485729 | I115: 2028
A116: =Index!A116 -> 2028-06-01 | B116: =Index!C116 -> 16.3885729 | C116: =Index!B116 -> 15.45113081 | D116: 0 | E116: 16.3885729 | F116: 0.86 | G116: 2028-06-01 | H116: 17.2485729 | I116: 2028
A117: =Index!A117 -> 2028-07-01 | B117: =Index!C117 -> 16.3885729 | C117: =Index!B117 -> 15.38297878 | D117: 0 | E117: 16.3885729 | F117: 0.86 | G117: 2028-07-01 | H117: 17.2485729 | I117: 2028
A118: =Index!A118 -> 2028-08-01 | B118: =Index!C118 -> 16.3885729 | C118: =Index!B118 -> 15.38274212 | D118: 0 | E118: =(C118*D118+B118*(1-D118)) -> 16.3885729 | F118: 0.86 | G118: 2028-08-01 | H118: 17.2485729 | I118: 2028
A119: =Index!A119 -> 2028-09-01 | B119: =Index!C119 -> 16.3885729 | C119: =Index!B119 -> 16.02518514 | D119: 0 | E119: 16.3885729 | F119: 0.86 | G119: 2028-09-01 | H119: 17.2485729 | I119: 2028
A120: =Index!A120 -> 2028-10-01 | B120: =Index!C120 -> 16.3885729 | C120: =Index!B120 -> 15.72505469 | D120: 0 | E120: 16.3885729 | F120: 0.86 | G120: 2028-10-01 | H120: 17.2485729 | I120: 2028
A121: =Index!A121 -> 2028-11-01 | B121: =Index!C121 -> 16.3885729 | C121: =Index!B121 -> 15.46122258 | D121: 0 | E121: 16.3885729 | F121: 0.86 | G121: 2028-11-01 | H121: 17.2485729 | I121: 2028
A122: =Index!A122 -> 2028-12-01 | B122: =Index!C122 -> 16.3885729 | C122: =Index!B122 -> 15.48931952 | D122: 0 | E122: 16.3885729 | F122: 0.86 | G122: 2028-12-01 | H122: 17.2485729 | I122: 2028
A123: =Index!A123 -> 2029-01-01 | B123: =Index!C123 -> 17.07029846 | C123: =Index!B123 -> 15.65767264 | D123: 0 | E123: 17.07029846 | F123: 0.873 | G123: 2029-01-01 | H123: 17.94329846 | I123: 2029
A124: =Index!A124 -> 2029-02-01 | B124: =Index!C124 -> 17.07029846 | C124: =Index!B124 -> 15.6781639 | D124: 0 | E124: 17.07029846 | F124: 0.873 | G124: 2029-02-01 | H124: 17.94329846 | I124: 2029
A125: =Index!A125 -> 2029-03-01 | B125: =Index!C125 -> 17.07029846 | C125: =Index!B125 -> 15.69866332 | D125: 0 | E125: 17.07029846 | F125: 0.873 | G125: 2029-03-01 | H125: 17.94329846 | I125: 2029
A126: =Index!A126 -> 2029-04-01 | B126: =Index!C126 -> 17.07029846 | C126: =Index!B126 -> 15.71916274 | D126: 0 | E126: 17.07029846 | F126: 0.873 | G126: 2029-04-01 | H126: 17.94329846 | I126: 2029
A127: =Index!A127 -> 2029-05-01 | B127: =Index!C127 -> 17.07029846 | C127: =Index!B127 -> 15.73966216 | D127: 0 | E127: 17.07029846 | F127: 0.873 | G127: 2029-05-01 | H127: 17.94329846 | I127: 2029
A128: =Index!A128 -> 2029-06-01 | B128: =Index!C128 -> 17.07029846 | C128: =Index!B128 -> 15.76015342 | D128: 0 | E128: 17.07029846 | F128: 0.873 | G128: 2029-06-01 | H128: 17.94329846 | I128: 2029
A129: =Index!A129 -> 2029-07-01 | B129: =Index!C129 -> 17.07029846 | C129: =Index!B129 -> 15.69063835 | D129: 0 | E129: 17.07029846 | F129: 0.873 | G129: 2029-07-01 | H129: 17.94329846 | I129: 2029
A130: =Index!A130 -> 2029-08-01 | B130: =Index!C130 -> 17.07029846 | C130: =Index!B130 -> 15.69039696 | D130: 0 | E130: 17.07029846 | F130: 0.873 | G130: 2029-08-01 | H130: 17.94329846 | I130: 2029
A131: =Index!A131 -> 2029-09-01 | B131: =Index!C131 -> 17.07029846 | C131: =Index!B131 -> 16.34568884 | D131: 0 | E131: 17.07029846 | F131: 0.873 | G131: 2029-09-01 | H131: 17.94329846 | I131: 2029
A132: =Index!A132 -> 2029-10-01 | B132: =Index!C132 -> 17.07029846 | C132: =Index!B132 -> 16.03955579 | D132: 0 | E132: 17.07029846 | F132: 0.873 | G132: 2029-10-01 | H132: 17.94329846 | I132: =YEAR(A132) -> 2029
A133: =Index!A133 -> 2029-11-01 | B133: =Index!C133 -> 17.07029846 | C133: =Index!B133 -> 15.77044704 | D133: 0 | E133: 17.07029846 | F133: 0.873 | G133: 2029-11-01 | H133: 17.94329846 | I133: 2029
A134: =Index!A134 -> 2029-12-01 | B134: =Index!C134 -> 17.07029846 | C134: =Index!B134 -> 15.79910591 | D134: 0 | E134: 17.07029846 | F134: 0.873 | G134: 2029-12-01 | H134: 17.94329846 | I134: 2029
A135: =Index!A135 -> 2030-01-01 | B135: =Index!C135 -> 17.49606175 | C135: =Index!B135 -> 15.97082609 | D135: 0 | E135: 17.49606175 | F135: 0.886 | G135: 2030-01-01 | H135: 18.38206175 | I135: 2030
A136: =Index!A136 -> 2030-02-01 | B136: =Index!C136 -> 17.49606175 | C136: =Index!B136 -> 15.99172718 | D136: 0 | E136: 17.49606175 | F136: 0.886 | G136: 2030-02-01 | H136: 18.38206175 | I136: 2030
A137: =Index!A137 -> 2030-03-01 | B137: =Index!C137 -> 17.49606175 | C137: =Index!B137 -> 16.01263659 | D137: 0 | E137: 17.49606175 | F137: 0.886 | G137: 2030-03-01 | H137: 18.38206175 | I137: 2030
A138: =Index!A138 -> 2030-04-01 | B138: =Index!C138 -> 17.49606175 | C138: =Index!B138 -> 16.033546 | D138: 0 | E138: 17.49606175 | F138: 0.886 | G138: 2030-04-01 | H138: 18.38206175 | I138: 2030
A139: =Index!A139 -> 2030-05-01 | B139: =Index!C139 -> 17.49606175 | C139: =Index!B139 -> 16.05445541 | D139: 0 | E139: 17.49606175 | F139: 0.886 | G139: 2030-05-01 | H139: 18.38206175 | I139: 2030
A140: =Index!A140 -> 2030-06-01 | B140: =Index!C140 -> 17.49606175 | C140: =Index!B140 -> 16.07535649 | D140: 0 | E140: 17.49606175 | F140: 0.886 | G140: 2030-06-01 | H140: 18.38206175 | I140: 2030
A141: =Index!A141 -> 2030-07-01 | B141: =Index!C141 -> 17.49606175 | C141: =Index!B141 -> 16.00445112 | D141: 0 | E141: 17.49606175 | F141: 0.886 | G141: 2030-07-01 | H141: 18.38206175 | I141: 2030
A142: =Index!A142 -> 2030-08-01 | B142: =Index!C142 -> 17.49606175 | C142: =Index!B142 -> 16.0042049 | D142: 0 | E142: 17.49606175 | F142: 0.886 | G142: 2030-08-01 | H142: 18.38206175 | I142: 2030
A143: =Index!A143 -> 2030-09-01 | B143: =Index!C143 -> 17.49606175 | C143: =Index!B143 -> 16.67260262 | D143: 0 | E143: 17.49606175 | F143: 0.886 | G143: 2030-09-01 | H143: 18.38206175 | I143: 2030
A144: =Index!A144 -> 2030-10-01 | B144: =Index!C144 -> 17.49606175 | C144: =Index!B144 -> 16.3603469 | D144: 0 | E144: 17.49606175 | F144: 0.886 | G144: 2030-10-01 | H144: 18.38206175 | I144: 2030
A145: =Index!A145 -> 2030-11-01 | B145: =Index!C145 -> 17.49606175 | C145: =Index!B145 -> 16.08585598 | D145: 0 | E145: 17.49606175 | F145: 0.886 | G145: =A145 -> 2030-11-01 | H145: 18.38206175 | I145: 2030
A146: =Index!A146 -> 2030-12-01 | B146: =Index!C146 -> 17.49606175 | C146: =Index!B146 -> 16.11508803 | D146: 0 | E146: 17.49606175 | F146: 0.886 | G146: 2030-12-01 | H146: 18.38206175 | I146: 2030
A147: =Index!A147 -> 2031-01-01 | B147: =Index!C147 -> 17.89127959 | C147: =Index!B147 -> 16.29024262 | D147: 0 | E147: 17.89127959 | F147: 0.899 | G147: 2031-01-01 | H147: 18.79027959 | I147: 2031
A148: =Index!A148 -> 2031-02-01 | B148: =Index!C148 -> 17.89127959 | C148: =Index!B148 -> 16.31156172 | D148: 0 | E148: 17.89127959 | F148: 0.899 | G148: 2031-02-01 | H148: 18.79027959 | I148: 2031
A149: =Index!A149 -> 2031-03-01 | B149: =Index!C149 -> 17.89127959 | C149: =Index!B149 -> 16.33288932 | D149: 0 | E149: 17.89127959 | F149: 0.899 | G149: 2031-03-01 | H149: 18.79027959 | I149: 2031
A150: =Index!A150 -> 2031-04-01 | B150: =Index!C150 -> 17.89127959 | C150: =Index!B150 -> 16.35421692 | D150: 0 | E150: 17.89127959 | F150: 0.899 | G150: 2031-04-01 | H150: 18.79027959 | I150: 2031
A151: =Index!A151 -> 2031-05-01 | B151: =Index!C151 -> 17.89127959 | C151: =Index!B151 -> 16.37554451 | D151: 0 | E151: 17.89127959 | F151: 0.899 | G151: 2031-05-01 | H151: 18.79027959 | I151: 2031
A152: =Index!A152 -> 2031-06-01 | B152: =Index!C152 -> 17.89127959 | C152: =Index!B152 -> 16.39686362 | D152: 0 | E152: 17.89127959 | F152: 0.899 | G152: 2031-06-01 | H152: 18.79027959 | I152: 2031
A153: =Index!A153 -> 2031-07-01 | B153: =Index!C153 -> 17.89127959 | C153: =Index!B153 -> 16.32454014 | D153: 0 | E153: 17.89127959 | F153: 0.899 | G153: 2031-07-01 | H153: 18.79027959 | I153: 2031
A154: =Index!A154 -> 2031-08-01 | B154: =Index!C154 -> 17.89127959 | C154: =Index!B154 -> 16.324289 | D154: 0 | E154: 17.89127959 | F154: 0.899 | G154: 2031-08-01 | H154: 18.79027959 | I154: 2031
A155: =Index!A155 -> 2031-09-01 | B155: =Index!C155 -> 17.89127959 | C155: =Index!B155 -> 17.00605467 | D155: 0 | E155: 17.89127959 | F155: 0.899 | G155: 2031-09-01 | H155: 18.79027959 | I155: 2031
A156: =Index!A156 -> 2031-10-01 | B156: =Index!C156 -> 17.89127959 | C156: =Index!B156 -> 16.68755384 | D156: 0 | E156: 17.89127959 | F156: 0.899 | G156: 2031-10-01 | H156: 18.79027959 | I156: 2031
A157: =Index!A157 -> 2031-11-01 | B157: =Index!C157 -> 17.89127959 | C157: =Index!B157 -> 16.4075731 | D157: 0 | E157: 17.89127959 | F157: 0.899 | G157: 2031-11-01 | H157: 18.79027959 | I157: 2031
A158: =Index!A158 -> 2031-12-01 | B158: =Index!C158 -> 17.89127959 | C158: =Index!B158 -> 16.43738979 | D158: 0 | E158: 17.89127959 | F158: 0.899 | G158: 2031-12-01 | H158: 18.79027959 | I158: 2031
A159: =Index!A159 -> 2032-01-01 | B159: =Index!C159 -> 18.30191424 | C159: =Index!B159 -> 16.61604747 | D159: 0 | E159: 18.30191424 | F159: 0.913 | G159: 2032-01-01 | H159: 19.21491424 | I159: 2032
A160: =Index!A160 -> 2032-02-01 | B160: =Index!C160 -> 18.30191424 | C160: =Index!B160 -> 16.63779296 | D160: 0 | E160: 18.30191424 | F160: 0.913 | G160: 2032-02-01 | H160: 19.21491424 | I160: 2032
A161: =Index!A161 -> 2032-03-01 | B161: =Index!C161 -> 18.30191424 | C161: =Index!B161 -> 16.65954711 | D161: 0 | E161: 18.30191424 | F161: 0.913 | G161: 2032-03-01 | H161: 19.21491424 | I161: 2032
A162: =Index!A162 -> 2032-04-01 | B162: =Index!C162 -> 18.30191424 | C162: =Index!B162 -> 16.68130125 | D162: 0 | E162: 18.30191424 | F162: 0.913 | G162: 2032-04-01 | H162: 19.21491424 | I162: 2032
A163: =Index!A163 -> 2032-05-01 | B163: =Index!C163 -> 18.30191424 | C163: =Index!B163 -> 16.7030554 | D163: 0 | E163: 18.30191424 | F163: 0.913 | G163: 2032-05-01 | H163: 19.21491424 | I163: 2032
A164: =Index!A164 -> 2032-06-01 | B164: =Index!C164 -> 18.30191424 | C164: =Index!B164 -> 16.72480089 | D164: 0 | E164: 18.30191424 | F164: 0.913 | G164: 2032-06-01 | H164: =SUM(E164:F164) -> 19.21491424 | I164: 2032
A165: =Index!A165 -> 2032-07-01 | B165: =Index!C165 -> 18.30191424 | C165: =Index!B165 -> 16.65103095 | D165: 0 | E165: 18.30191424 | F165: 0.913 | G165: 2032-07-01 | H165: 19.21491424 | I165: 2032
A166: =Index!A166 -> 2032-08-01 | B166: =Index!C166 -> 18.30191424 | C166: =Index!B166 -> 16.65077478 | D166: 0 | E166: 18.30191424 | F166: 0.913 | G166: 2032-08-01 | H166: 19.21491424 | I166: 2032
A167: =Index!A167 -> 2032-09-01 | B167: =Index!C167 -> 18.30191424 | C167: =Index!B167 -> 17.34617576 | D167: 0 | E167: 18.30191424 | F167: 0.913 | G167: 2032-09-01 | H167: 19.21491424 | I167: 2032
A168: =Index!A168 -> 2032-10-01 | B168: =Index!C168 -> 18.30191424 | C168: =Index!B168 -> 17.02130492 | D168: 0 | E168: 18.30191424 | F168: 0.913 | G168: 2032-10-01 | H168: 19.21491424 | I168: 2032
A169: =Index!A169 -> 2032-11-01 | B169: =Index!C169 -> 18.30191424 | C169: =Index!B169 -> 16.73572456 | D169: 0 | E169: 18.30191424 | F169: 0.913 | G169: 2032-11-01 | H169: 19.21491424 | I169: 2032
A170: =Index!A170 -> 2032-12-01 | B170: =Index!C170 -> 18.30191424 | C170: =Index!B170 -> 16.76613759 | D170: 0 | E170: 18.30191424 | F170: 0.913 | G170: 2032-12-01 | H170: 19.21491424 | I170: 2032
A171: =Index!A171 -> 2033-01-01 | B171: =Index!C171 -> 18.72659691 | C171: =Index!B171 -> 16.94836842 | D171: 0 | E171: 18.72659691 | F171: 0.926 | G171: 2033-01-01 | H171: 19.65259691 | I171: 2033
A172: =Index!A172 -> 2033-02-01 | B172: =Index!C172 -> 18.72659691 | C172: =Index!B172 -> 16.97054882 | D172: 0 | E172: 18.72659691 | F172: 0.926 | G172: 2033-02-01 | H172: 19.65259691 | I172: 2033
A173: =Index!A173 -> 2033-03-01 | B173: =Index!C173 -> 18.72659691 | C173: =Index!B173 -> 16.99273805 | D173: 0 | E173: 18.72659691 | F173: 0.926 | G173: 2033-03-01 | H173: 19.65259691 | I173: 2033
A174: =Index!A174 -> 2033-04-01 | B174: =Index!C174 -> 18.72659691 | C174: =Index!B174 -> 17.01492728 | D174: 0 | E174: 18.72659691 | F174: 0.926 | G174: 2033-04-01 | H174: 19.65259691 | I174: 2033
A175: =Index!A175 -> 2033-05-01 | B175: =Index!C175 -> 18.72659691 | C175: =Index!B175 -> 17.03711651 | D175: 0 | E175: 18.72659691 | F175: 0.926 | G175: 2033-05-01 | H175: 19.65259691 | I175: 2033
A176: =Index!A176 -> 2033-06-01 | B176: =Index!C176 -> 18.72659691 | C176: =Index!B176 -> 17.05929691 | D176: 0 | E176: 18.72659691 | F176: 0.926 | G176: 2033-06-01 | H176: 19.65259691 | I176: 2033
A177: =Index!A177 -> 2033-07-01 | B177: =Index!C177 -> 18.72659691 | C177: =Index!B177 -> 16.98405156 | D177: 0 | E177: 18.72659691 | F177: 0.926 | G177: 2033-07-01 | H177: 19.65259691 | I177: 2033
A178: =Index!A178 -> 2033-08-01 | B178: =Index!C178 -> 18.72659691 | C178: =Index!B178 -> 16.98379028 | D178: 0 | E178: 18.72659691 | F178: 0.926 | G178: 2033-08-01 | H178: 19.65259691 | I178: 2033
A179: =Index!A179 -> 2033-09-01 | B179: =Index!C179 -> 18.72659691 | C179: =Index!B179 -> 17.69309928 | D179: 0 | E179: 18.72659691 | F179: 0.926 | G179: 2033-09-01 | H179: 19.65259691 | I179: 2033
A180: =Index!A180 -> 2033-10-01 | B180: =Index!C180 -> 18.72659691 | C180: =Index!B180 -> 17.36173102 | D180: 0 | E180: 18.72659691 | F180: 0.926 | G180: 2033-10-01 | H180: 19.65259691 | I180: 2033
A181: =Index!A181 -> 2033-11-01 | B181: =Index!C181 -> 18.72659691 | C181: =Index!B181 -> 17.07043905 | D181: 0 | E181: 18.72659691 | F181: 0.926 | G181: 2033-11-01 | H181: 19.65259691 | I181: 2033
A182: =Index!A182 -> 2033-12-01 | B182: =Index!C182 -> 18.72659691 | C182: =Index!B182 -> 17.10146034 | D182: 0 | E182: =(C182*D182+B182*(1-D182)) -> 18.72659691 | F182: 0.926 | G182: 2033-12-01 | H182: 19.65259691 | I182: 2033
A183: =Index!A183 -> 2034-01-01 | B183: =Index!C183 -> 19.15740309 | C183: =Index!B183 -> 17.28733579 | D183: 0 | E183: 19.15740309 | F183: 0.94 | G183: 2034-01-01 | H183: 20.09740309 | I183: 2034
A184: =Index!A184 -> 2034-02-01 | B184: =Index!C184 -> 19.15740309 | C184: =Index!B184 -> 17.30995979 | D184: 0 | E184: 19.15740309 | F184: 0.94 | G184: 2034-02-01 | H184: 20.09740309 | I184: 2034
A185: =Index!A185 -> 2034-03-01 | B185: =Index!C185 -> 19.15740309 | C185: =Index!B185 -> 17.33259281 | D185: 0 | E185: 19.15740309 | F185: 0.94 | G185: 2034-03-01 | H185: 20.09740309 | I185: 2034
A186: =Index!A186 -> 2034-04-01 | B186: =Index!C186 -> 19.15740309 | C186: =Index!B186 -> 17.35522583 | D186: 0 | E186: 19.15740309 | F186: 0.94 | G186: 2034-04-01 | H186: 20.09740309 | I186: 2034
A187: =Index!A187 -> 2034-05-01 | B187: =Index!C187 -> 19.15740309 | C187: =Index!B187 -> 17.37785884 | D187: 0 | E187: 19.15740309 | F187: 0.94 | G187: 2034-05-01 | H187: 20.09740309 | I187: 2034
A188: =Index!A188 -> 2034-06-01 | B188: =Index!C188 -> 19.15740309 | C188: =Index!B188 -> 17.40048285 | D188: 0 | E188: 19.15740309 | F188: 0.94 | G188: 2034-06-01 | H188: 20.09740309 | I188: 2034
A189: =Index!A189 -> 2034-07-01 | B189: =Index!C189 -> 19.15740309 | C189: =Index!B189 -> 17.3237326 | D189: 0 | E189: 19.15740309 | F189: 0.94 | G189: 2034-07-01 | H189: 20.09740309 | I189: 2034
A190: =Index!A190 -> 2034-08-01 | B190: =Index!C190 -> 19.15740309 | C190: =Index!B190 -> 17.32346608 | D190: 0 | E190: 19.15740309 | F190: 0.94 | G190: 2034-08-01 | H190: 20.09740309 | I190: 2034
A191: =Index!A191 -> 2034-09-01 | B191: =Index!C191 -> 19.15740309 | C191: =Index!B191 -> 18.04696126 | D191: 0 | E191: 19.15740309 | F191: 0.94 | G191: 2034-09-01 | H191: 20.09740309 | I191: 2034
A192: =Index!A192 -> 2034-10-01 | B192: =Index!C192 -> 19.15740309 | C192: =Index!B192 -> 17.70896564 | D192: 0 | E192: 19.15740309 | F192: 0.94 | G192: 2034-10-01 | H192: 20.09740309 | I192: 2034
A193: =Index!A193 -> 2034-11-01 | B193: =Index!C193 -> 19.15740309 | C193: =Index!B193 -> 17.41184783 | D193: 0 | E193: 19.15740309 | F193: 0.94 | G193: 2034-11-01 | H193: 20.09740309 | I193: 2034
A194: =Index!A194 -> 2034-12-01 | B194: =Index!C194 -> 19.15740309 | C194: =Index!B194 -> 17.44348954 | D194: 0 | E194: 19.15740309 | F194: 0.94 | G194: 2034-12-01 | H194: 20.09740309 | I194: 2034
A195: =Index!A195 -> 2035-01-01 | B195: =Index!C195 -> 19.59851115 | C195: =Index!B195 -> 17.6330825 | D195: 0 | E195: 19.59851115 | F195: 0.954 | G195: 2035-01-01 | H195: 20.55251115 | I195: 2035
A196: =Index!A196 -> 2035-02-01 | B196: =Index!C196 -> 19.59851115 | C196: =Index!B196 -> 17.65615899 | D196: 0 | E196: 19.59851115 | F196: 0.954 | G196: 2035-02-01 | H196: 20.55251115 | I196: =YEAR(A196) -> 2035
A197: =Index!A197 -> 2035-03-01 | B197: =Index!C197 -> 19.59851115 | C197: =Index!B197 -> 17.67924467 | D197: 0 | E197: 19.59851115 | F197: 0.954 | G197: 2035-03-01 | H197: 20.55251115 | I197: 2035
A198: =Index!A198 -> 2035-04-01 | B198: =Index!C198 -> 19.59851115 | C198: =Index!B198 -> 17.70233034 | D198: 0 | E198: 19.59851115 | F198: 0.954 | G198: 2035-04-01 | H198: 20.55251115 | I198: 2035
A199: =Index!A199 -> 2035-05-01 | B199: =Index!C199 -> 19.59851115 | C199: =Index!B199 -> 17.72541602 | D199: 0 | E199: 19.59851115 | F199: 0.954 | G199: 2035-05-01 | H199: 20.55251115 | I199: 2035
A200: =Index!A200 -> 2035-06-01 | B200: =Index!C200 -> 19.59851115 | C200: =Index!B200 -> 17.74849251 | D200: 0 | E200: 19.59851115 | F200: 0.954 | G200: 2035-06-01 | H200: 20.55251115 | I200: 2035
... 186 more rows

Sheet Bartow_Bayboro
A1: Bartow / Bayboro | B1: PETROLEUM PRODUCT PRICE FORECAST DATA | G1: PROSYM INPUT | J1: ANNUAL AVERAGE
A2: Date | B2: Petroleum Product Price Forecast - Gulf Coast | C2: TCM | D2: Blend TCM/ Fundamental (%) | E2: Blend TCM/ Fundamental ($) | F2: Bartow / Bayboro Transport ($/MMBtu) | G2: Date | H2: nomianl$/MMBtu | K2: =A1 -> Bartow / Bayboro
A3: =Index!A3 -> 2019-01-01 | B3: =Index!C3 -> 14.62277187 | C3: =Index!B3 -> 12.92753623 | D3: 1 | E3: =(C3*D3+B3*(1-D3)) -> 12.92753623 | F3: 0.461 | G3: =A3 -> 2019-01-01 | H3: =SUM(E3:F3) -> 13.38853623 | I3: =YEAR(A3) -> 2019 | J3: 2019 | K3: =AVERAGEIF($I$3:$I$386,J3,$H$3:$H$386) -> 13.98811353
A4: =Index!A4 -> 2019-02-01 | B4: =Index!C4 -> 14.62277187 | C4: =Index!B4 -> 13.86956522 | D4: 1 | E4: 13.86956522 | F4: 0.461 | G4: 2019-02-01 | H4: 14.33056522 | I4: =YEAR(A4) -> 2019 | J4: 2020 | K4: =AVERAGEIF($I$3:$I$386,J4,$H$3:$H$386) -> 14.11616546
A5: =Index!A5 -> 2019-03-01 | B5: =Index!C5 -> 14.62277187 | C5: =Index!B5 -> 13.7826087 | D5: 1 | E5: 13.7826087 | F5: 0.461 | G5: 2019-03-01 | H5: 14.2436087 | I5: 2019 | J5: 2021 | K5: 13.86932126
A6: =Index!A6 -> 2019-04-01 | B6: =Index!C6 -> 14.62277187 | C6: =Index!B6 -> 14.32608696 | D6: 1 | E6: 14.32608696 | F6: 0.461 | G6: 2019-04-01 | H6: 14.78708696 | I6: 2019 | J6: 2022 | K6: 14.11807287
A7: =Index!A7 -> 2019-05-01 | B7: =Index!C7 -> 14.62277187 | C7: =Index!B7 -> 14.28985507 | D7: 1 | E7: 14.28985507 | F7: 0.461 | G7: 2019-05-01 | H7: 14.75085507 | I7: 2019 | J7: 2023 | K7: 14.29971822
A8: =Index!A8 -> 2019-06-01 | B8: =Index!C8 -> 14.62277187 | C8: =Index!B8 -> 13.16666667 | D8: 1 | E8: 13.16666667 | F8: 0.461 | G8: 2019-06-01 | H8: 13.62766667 | I8: 2019 | J8: 2024 | K8: 14.58033619
A9: =Index!A9 -> 2019-07-01 | B9: =Index!C9 -> 14.62277187 | C9: =Index!B9 -> 13.86231884 | D9: 1 | E9: 13.86231884 | F9: 0.461 | G9: 2019-07-01 | H9: 14.32331884 | I9: 2019 | J9: 2025 | K9: 14.93860034
A10: =Index!A10 -> 2019-08-01 | B10: =Index!C10 -> 14.62277187 | C10: =Index!B10 -> 13.04347826 | D10: 1 | E10: 13.04347826 | F10: 0.461 | G10: 2019-08-01 | H10: 13.50447826 | I10: 2019 | J10: 2026 | K10: 15.50636878
A11: =Index!A11 -> 2019-09-01 | B11: =Index!C11 -> 14.62277187 | C11: =Index!B11 -> 13.57971014 | D11: 1 | E11: 13.57971014 | F11: 0.461 | G11: 2019-09-01 | H11: 14.04071014 | I11: 2019 | J11: 2027 | K11: 16.16093825
A12: =Index!A12 -> 2019-10-01 | B12: =Index!C12 -> 14.62277187 | C12: =Index!B12 -> 13.3115942 | D12: 1 | E12: 13.3115942 | F12: 0.461 | G12: 2019-10-01 | H12: 13.7725942 | I12: 2019 | J12: 2028 | K12: 16.9155729
A13: =Index!A13 -> 2019-11-01 | B13: =Index!C13 -> 14.62277187 | C13: =Index!B13 -> 13.07681159 | D13: 1 | E13: 13.07681159 | F13: 0.461 | G13: 2019-11-01 | H13: 13.53781159 | I13: 2019 | J13: 2029 | K13: 17.60529846
A14: =Index!A14 -> 2019-12-01 | B14: =Index!C14 -> 14.62277187 | C14: =Index!B14 -> 13.08913043 | D14: 1 | E14: 13.08913043 | F14: 0.461 | G14: 2019-12-01 | H14: 13.55013043 | I14: 2019 | J14: 2030 | K14: 18.03906175
A15: =Index!A15 -> 2020-01-01 | B15: =Index!C15 -> 13.65684391 | C15: =Index!B15 -> 13.8037971 | D15: 1 | E15: 13.8037971 | F15: 0.468 | G15: 2020-01-01 | H15: 14.2717971 | I15: 2020 | J15: 2031 | K15: 18.44227959
A16: =Index!A16 -> 2020-02-01 | B16: =Index!C16 -> 13.65684391 | C16: =Index!B16 -> 14.0924058 | D16: 1 | E16: 14.0924058 | F16: 0.468 | G16: 2020-02-01 | H16: 14.5604058 | I16: 2020 | J16: 2032 | K16: 18.86091424
A17: =Index!A17 -> 2020-03-01 | B17: =Index!C17 -> 13.65684391 | C17: =Index!B17 -> 14.59535507 | D17: 1 | E17: 14.59535507 | F17: 0.468 | G17: =A17 -> 2020-03-01 | H17: 15.06335507 | I17: 2020 | J17: 2033 | K17: 19.29459691
A18: =Index!A18 -> 2020-04-01 | B18: =Index!C18 -> 13.65684391 | C18: =Index!B18 -> 14.42354348 | D18: 1 | E18: 14.42354348 | F18: 0.468 | G18: 2020-04-01 | H18: 14.89154348 | I18: 2020 | J18: 2034 | K18: 19.73340309
A19: =Index!A19 -> 2020-05-01 | B19: =Index!C19 -> 13.65684391 | C19: =Index!B19 -> 13.10595652 | D19: 1 | E19: 13.10595652 | F19: 0.468 | G19: 2020-05-01 | H19: 13.57395652 | I19: 2020 | J19: 2035 | K19: 20.18351115
A20: =Index!A20 -> 2020-06-01 | B20: =Index!C20 -> 13.65684391 | C20: =Index!B20 -> 13.60171739 | D20: 1 | E20: 13.60171739 | F20: 0.468 | G20: 2020-06-01 | H20: 14.06971739 | I20: 2020 | J20: 2036 | K20: 20.64309809
A21: =Index!A21 -> 2020-07-01 | B21: =Index!C21 -> 13.65684391 | C21: =Index!B21 -> 12.98257246 | D21: 1 | E21: 12.98257246 | F21: 0.468 | G21: 2020-07-01 | H21: 13.45057246 | I21: 2020 | J21: 2037 | K21: 21.12205139
A22: =Index!A22 -> 2020-08-01 | B22: =Index!C22 -> 13.65684391 | C22: =Index!B22 -> 13.8187029 | D22: 1 | E22: 13.8187029 | F22: 0.468 | G22: 2020-08-01 | H22: 14.2867029 | I22: 2020 | J22: 2038 | K22: 21.51937123
A23: =Index!A23 -> 2020-09-01 | B23: =Index!C23 -> 13.65684391 | C23: =Index!B23 -> 13.63598551 | D23: 1 | E23: 13.63598551 | F23: 0.468 | G23: 2020-09-01 | H23: 14.10398551 | I23: 2020 | J23: 2039 | K23: 21.9053718
A24: =Index!A24 -> 2020-10-01 | B24: =Index!C24 -> 13.65684391 | C24: =Index!B24 -> 13.38081159 | D24: 1 | E24: 13.38081159 | F24: 0.468 | G24: 2020-10-01 | H24: 13.84881159 | I24: 2020 | J24: 2040 | K24: 22.05054181
A25: =Index!A25 -> 2020-11-01 | B25: =Index!C25 -> 13.65684391 | C25: =Index!B25 -> 13.15651449 | D25: 1 | E25: 13.15651449 | F25: 0.468 | G25: 2020-11-01 | H25: 13.62451449 | I25: 2020 | J25: 2041 | K25: 22.61531598
A26: =Index!A26 -> 2020-12-01 | B26: =Index!C26 -> 13.65684391 | C26: =Index!B26 -> 13.18062319 | D26: 1 | E26: 13.18062319 | F26: 0.468 | G26: 2020-12-01 | H26: 13.64862319 | I26: 2020 | J26: 2042 | K26: 23.19857301
A27: =Index!A27 -> 2021-01-01 | B27: =Index!C27 -> 13.38006175 | C27: =Index!B27 -> 13.24393478 | D27: 1 | E27: 13.24393478 | F27: 0.475 | G27: 2021-01-01 | H27: 13.71893478 | I27: 2021 | J27: 2043 | K27: 23.39583752
A28: =Index!A28 -> 2021-02-01 | B28: =Index!C28 -> 13.38006175 | C28: =Index!B28 -> 13.26150725 | D28: 1 | E28: 13.26150725 | F28: 0.475 | G28: 2021-02-01 | H28: 13.73650725 | I28: 2021 | J28: 2044 | K28: 23.99865694
A29: =Index!A29 -> 2021-03-01 | B29: =Index!C29 -> 13.38006175 | C29: =Index!B29 -> 13.27907246 | D29: 1 | E29: 13.27907246 | F29: 0.475 | G29: 2021-03-01 | H29: 13.75407246 | I29: 2021 | J29: 2045 | K29: 24.19418072
A30: =Index!A30 -> 2021-04-01 | B30: =Index!C30 -> 13.38006175 | C30: =Index!B30 -> 13.29664493 | D30: 1 | E30: 13.29664493 | F30: 0.475 | G30: 2021-04-01 | H30: 13.77164493 | I30: 2021 | J30: 2046 | K30: 24.80577937
A31: =Index!A31 -> 2021-05-01 | B31: =Index!C31 -> 13.38006175 | C31: =Index!B31 -> 13.31421739 | D31: 1 | E31: 13.31421739 | F31: 0.475 | G31: 2021-05-01 | H31: 13.78921739 | I31: 2021 | J31: 2047 | K31: 25.42633247
A32: =Index!A32 -> 2021-06-01 | B32: =Index!C32 -> 13.38006175 | C32: =Index!B32 -> 13.33178261 | D32: 1 | E32: 13.33178261 | F32: 0.475 | G32: 2021-06-01 | H32: 13.80678261 | I32: 2021 | J32: 2048 | K32: 25.6149844
A33: =Index!A33 -> 2021-07-01 | B33: =Index!C33 -> 13.38006175 | C33: =Index!B33 -> 13.33169565 | D33: 1 | E33: 13.33169565 | F33: 0.475 | G33: 2021-07-01 | H33: 13.80669565 | I33: 2021 | J33: 2049 | K33: 26.25273182
A34: =Index!A34 -> 2021-08-01 | B34: =Index!C34 -> 13.38006175 | C34: =Index!B34 -> 13.33160145 | D34: 1 | E34: 13.33160145 | F34: 0.475 | G34: 2021-08-01 | H34: 13.80660145 | I34: 2021 | J34: 2050 | K34: 26.26351385
A35: =Index!A35 -> 2021-09-01 | B35: =Index!C35 -> 13.38006175 | C35: =Index!B35 -> 13.8885 | D35: 1 | E35: 13.8885 | F35: 0.475 | G35: 2021-09-01 | H35: 14.3635 | I35: 2021
A36: =Index!A36 -> 2021-10-01 | B36: =Index!C36 -> 13.38006175 | C36: =Index!B36 -> 13.62850725 | D36: 1 | E36: 13.62850725 | F36: 0.475 | G36: 2021-10-01 | H36: =SUM(E36:F36) -> 14.10350725 | I36: 2021
A37: =Index!A37 -> 2021-11-01 | B37: =Index!C37 -> 13.38006175 | C37: =Index!B37 -> 13.39996377 | D37: 1 | E37: 13.39996377 | F37: 0.475 | G37: 2021-11-01 | H37: 13.87496377 | I37: 2021
A38: =Index!A38 -> 2021-12-01 | B38: =Index!C38 -> 13.38006175 | C38: =Index!B38 -> 13.42442754 | D38: 1 | E38: 13.42442754 | F38: 0.475 | G38: 2021-12-01 | H38: 13.89942754 | I38: 2021
A39: =Index!A39 -> 2022-01-01 | B39: =Index!C39 -> 13.44302573 | C39: =Index!B39 -> 13.57044928 | D39: 0.96 | E39: 13.56535233 | F39: 0.482 | G39: 2022-01-01 | H39: 14.04735233 | I39: 2022
A40: =Index!A40 -> 2022-02-01 | B40: =Index!C40 -> 13.44302573 | C40: =Index!B40 -> 13.58833333 | D40: 0.92 | E40: 13.57670872 | F40: 0.482 | G40: 2022-02-01 | H40: 14.05870872 | I40: 2022
A41: =Index!A41 -> 2022-03-01 | B41: =Index!C41 -> 13.44302573 | C41: =Index!B41 -> 13.60621014 | D41: 0.88 | E41: 13.58662802 | F41: 0.482 | G41: 2022-03-01 | H41: 14.06862802 | I41: 2022
A42: =Index!A42 -> 2022-04-01 | B42: =Index!C42 -> 13.44302573 | C42: =Index!B42 -> 13.6240942 | D42: 0.84 | E42: 13.59512325 | F42: 0.482 | G42: 2022-04-01 | H42: 14.07712325 | I42: 2022
A43: =Index!A43 -> 2022-05-01 | B43: =Index!C43 -> 13.44302573 | C43: =Index!B43 -> 13.64197101 | D43: 0.8 | E43: 13.60218196 | F43: 0.482 | G43: 2022-05-01 | H43: 14.08418196 | I43: 2022
A44: =Index!A44 -> 2022-06-01 | B44: =Index!C44 -> 13.44302573 | C44: =Index!B44 -> 13.65985507 | D44: 0.76 | E44: 13.60781603 | F44: 0.482 | G44: 2022-06-01 | H44: 14.08981603 | I44: 2022
A45: =Index!A45 -> 2022-07-01 | B45: =Index!C45 -> 13.44302573 | C45: =Index!B45 -> 13.65964493 | D45: 0.72 | E45: 13.59899155 | F45: 0.482 | G45: 2022-07-01 | H45: 14.08099155 | I45: 2022
A46: =Index!A46 -> 2022-08-01 | B46: =Index!C46 -> 13.44302573 | C46: =Index!B46 -> 13.65943478 | D46: 0.68 | E46: 13.59018389 | F46: 0.482 | G46: 2022-08-01 | H46: 14.07218389 | I46: 2022
A47: =Index!A47 -> 2022-09-01 | B47: =Index!C47 -> 13.44302573 | C47: =Index!B47 -> 14.2299058 | D47: 0.64 | E47: 13.94662897 | F47: 0.482 | G47: 2022-09-01 | H47: 14.42862897 | I47: 2022
A48: =Index!A48 -> 2022-10-01 | B48: =Index!C48 -> 13.44302573 | C48: =Index!B48 -> 13.96339855 | D48: 0.6 | E48: 13.75524942 | F48: 0.482 | G48: 2022-10-01 | H48: 14.23724942 | I48: 2022
A49: =Index!A49 -> 2022-11-01 | B49: =Index!C49 -> 13.44302573 | C49: =Index!B49 -> 13.72912319 | D49: 0.56 | E49: 13.60324031 | F49: 0.482 | G49: 2022-11-01 | H49: 14.08524031 | I49: 2022
A50: =Index!A50 -> 2022-12-01 | B50: =Index!C50 -> 13.44302573 | C50: =Index!B50 -> 13.75407246 | D50: 0.52 | E50: 13.60477003 | F50: 0.482 | G50: 2022-12-01 | H50: 14.08677003 | I50: 2022
A51: =Index!A51 -> 2023-01-01 | B51: =Index!C51 -> 13.74934477 | C51: =Index!B51 -> 13.90356522 | D51: 0.48 | E51: 13.82337058 | F51: 0.489 | G51: 2023-01-01 | H51: 14.31237058 | I51: 2023
A52: =Index!A52 -> 2023-02-01 | B52: =Index!C52 -> 13.74934477 | C52: =Index!B52 -> 13.92176087 | D52: 0.44 | E52: 13.82520785 | F52: 0.489 | G52: 2023-02-01 | H52: 14.31420785 | I52: 2023
A53: =Index!A53 -> 2023-03-01 | B53: =Index!C53 -> 13.74934477 | C53: =Index!B53 -> 13.93996377 | D53: 0.4 | E53: 13.82559237 | F53: 0.489 | G53: 2023-03-01 | H53: 14.31459237 | I53: 2023
A54: =Index!A54 -> 2023-04-01 | B54: =Index!C54 -> 13.74934477 | C54: =Index!B54 -> 13.95816667 | D54: 0.36 | E54: =(C54*D54+B54*(1-D54)) -> 13.82452065 | F54: 0.489 | G54: 2023-04-01 | H54: 14.31352065 | I54: 2023
A55: =Index!A55 -> 2023-05-01 | B55: =Index!C55 -> 13.74934477 | C55: =Index!B55 -> 13.97636957 | D55: 0.32 | E55: 13.8219927 | F55: 0.489 | G55: 2023-05-01 | H55: 14.3109927 | I55: 2023
A56: =Index!A56 -> 2023-06-01 | B56: =Index!C56 -> 13.74934477 | C56: =Index!B56 -> 13.99456522 | D56: 0.28 | E56: 13.81800649 | F56: 0.489 | G56: 2023-06-01 | H56: 14.30700649 | I56: 2023
A57: =Index!A57 -> 2023-07-01 | B57: =Index!C57 -> 13.74934477 | C57: =Index!B57 -> 13.93283783 | D57: 0.24 | E57: 13.7933831 | F57: 0.489 | G57: 2023-07-01 | H57: 14.2823831 | I57: 2023
A58: =Index!A58 -> 2023-08-01 | B58: =Index!C58 -> 13.74934477 | C58: =Index!B58 -> 13.93262348 | D58: 0.2 | E58: 13.78600051 | F58: 0.489 | G58: 2023-08-01 | H58: 14.27500051 | I58: 2023
A59: =Index!A59 -> 2023-09-01 | B59: =Index!C59 -> 13.74934477 | C59: =Index!B59 -> 14.51450391 | D59: 0.16 | E59: 13.87177023 | F59: 0.489 | G59: 2023-09-01 | H59: 14.36077023 | I59: 2023
A60: =Index!A60 -> 2023-10-01 | B60: =Index!C60 -> 13.74934477 | C60: =Index!B60 -> 14.24266652 | D60: 0.12 | E60: 13.80854338 | F60: 0.489 | G60: 2023-10-01 | H60: 14.29754338 | I60: 2023
A61: =Index!A61 -> 2023-11-01 | B61: =Index!C61 -> 13.74934477 | C61: =Index!B61 -> 14.00370565 | D61: 0.08 | E61: 13.76969364 | F61: 0.489 | G61: 2023-11-01 | H61: 14.25869364 | I61: 2023
A62: =Index!A62 -> 2023-12-01 | B62: =Index!C62 -> 13.74934477 | C62: =Index!B62 -> 14.02915391 | D62: 0.04 | E62: 13.76053713 | F62: 0.489 | G62: 2023-12-01 | H62: 14.24953713 | I62: 2023
A63: =Index!A63 -> 2024-01-01 | B63: =Index!C63 -> 14.08433619 | C63: =Index!B63 -> 14.18163652 | D63: 0 | E63: 14.08433619 | F63: 0.496 | G63: 2024-01-01 | H63: 14.58033619 | I63: 2024
A64: =Index!A64 -> 2024-02-01 | B64: =Index!C64 -> 14.08433619 | C64: =Index!B64 -> 14.20019609 | D64: 0 | E64: 14.08433619 | F64: 0.496 | G64: 2024-02-01 | H64: 14.58033619 | I64: 2024
A65: =Index!A65 -> 2024-03-01 | B65: =Index!C65 -> 14.08433619 | C65: =Index!B65 -> 14.21876304 | D65: 0 | E65: 14.08433619 | F65: 0.496 | G65: 2024-03-01 | H65: 14.58033619 | I65: 2024
A66: =Index!A66 -> 2024-04-01 | B66: =Index!C66 -> 14.08433619 | C66: =Index!B66 -> 14.23733 | D66: 0 | E66: 14.08433619 | F66: 0.496 | G66: 2024-04-01 | H66: 14.58033619 | I66: 2024
A67: =Index!A67 -> 2024-05-01 | B67: =Index!C67 -> 14.08433619 | C67: =Index!B67 -> 14.25589696 | D67: 0 | E67: 14.08433619 | F67: 0.496 | G67: 2024-05-01 | H67: 14.58033619 | I67: 2024
A68: =Index!A68 -> 2024-06-01 | B68: =Index!C68 -> 14.08433619 | C68: =Index!B68 -> 14.27445652 | D68: 0 | E68: 14.08433619 | F68: 0.496 | G68: 2024-06-01 | H68: 14.58033619 | I68: =YEAR(A68) -> 2024
A69: =Index!A69 -> 2024-07-01 | B69: =Index!C69 -> 14.08433619 | C69: =Index!B69 -> 14.21149458 | D69: 0 | E69: 14.08433619 | F69: 0.496 | G69: 2024-07-01 | H69: 14.58033619 | I69: 2024
A70: =Index!A70 -> 2024-08-01 | B70: =Index!C70 -> 14.08433619 | C70: =Index!B70 -> 14.21127595 | D70: 0 | E70: 14.08433619 | F70: 0.496 | G70: 2024-08-01 | H70: 14.58033619 | I70: 2024
A71: =Index!A71 -> 2024-09-01 | B71: =Index!C71 -> 14.08433619 | C71: =Index!B71 -> 14.80479399 | D71: 0 | E71: 14.08433619 | F71: 0.496 | G71: 2024-09-01 | H71: 14.58033619 | I71: 2024
A72: =Index!A72 -> 2024-10-01 | B72: =Index!C72 -> 14.08433619 | C72: =Index!B72 -> 14.52751985 | D72: 0 | E72: 14.08433619 | F72: 0.496 | G72: 2024-10-01 | H72: 14.58033619 | I72: 2024
A73: =Index!A73 -> 2024-11-01 | B73: =Index!C73 -> 14.08433619 | C73: =Index!B73 -> 14.28377977 | D73: 0 | E73: 14.08433619 | F73: 0.496 | G73: 2024-11-01 | H73: 14.58033619 | I73: 2024
A74: =Index!A74 -> 2024-12-01 | B74: =Index!C74 -> 14.08433619 | C74: =Index!B74 -> 14.30973699 | D74: 0 | E74: 14.08433619 | F74: 0.496 | G74: 2024-12-01 | H74: 14.58033619 | I74: 2024
A75: =Index!A75 -> 2025-01-01 | B75: =Index!C75 -> 14.43460034 | C75: =Index!B75 -> 14.46526925 | D75: 0 | E75: 14.43460034 | F75: 0.504 | G75: 2025-01-01 | H75: 14.93860034 | I75: 2025
A76: =Index!A76 -> 2025-02-01 | B76: =Index!C76 -> 14.43460034 | C76: =Index!B76 -> 14.48420001 | D76: 0 | E76: 14.43460034 | F76: 0.504 | G76: 2025-02-01 | H76: 14.93860034 | I76: 2025
A77: =Index!A77 -> 2025-03-01 | B77: =Index!C77 -> 14.43460034 | C77: =Index!B77 -> 14.5031383 | D77: 0 | E77: 14.43460034 | F77: 0.504 | G77: 2025-03-01 | H77: 14.93860034 | I77: 2025
A78: =Index!A78 -> 2025-04-01 | B78: =Index!C78 -> 14.43460034 | C78: =Index!B78 -> 14.5220766 | D78: 0 | E78: 14.43460034 | F78: 0.504 | G78: 2025-04-01 | H78: 14.93860034 | I78: 2025
A79: =Index!A79 -> 2025-05-01 | B79: =Index!C79 -> 14.43460034 | C79: =Index!B79 -> 14.5410149 | D79: 0 | E79: 14.43460034 | F79: 0.504 | G79: 2025-05-01 | H79: 14.93860034 | I79: 2025
A80: =Index!A80 -> 2025-06-01 | B80: =Index!C80 -> 14.43460034 | C80: =Index!B80 -> 14.55994565 | D80: 0 | E80: 14.43460034 | F80: 0.504 | G80: 2025-06-01 | H80: 14.93860034 | I80: 2025
A81: =Index!A81 -> 2025-07-01 | B81: =Index!C81 -> 14.43460034 | C81: =Index!B81 -> 14.49572447 | D81: 0 | E81: 14.43460034 | F81: 0.504 | G81: =A81 -> 2025-07-01 | H81: 14.93860034 | I81: 2025
A82: =Index!A82 -> 2025-08-01 | B82: =Index!C82 -> 14.43460034 | C82: =Index!B82 -> 14.49550147 | D82: 0 | E82: 14.43460034 | F82: 0.504 | G82: 2025-08-01 | H82: 14.93860034 | I82: 2025
A83: =Index!A83 -> 2025-09-01 | B83: =Index!C83 -> 14.43460034 | C83: =Index!B83 -> 15.10088987 | D83: 0 | E83: 14.43460034 | F83: 0.504 | G83: 2025-09-01 | H83: 14.93860034 | I83: 2025
A84: =Index!A84 -> 2025-10-01 | B84: =Index!C84 -> 14.43460034 | C84: =Index!B84 -> 14.81807025 | D84: 0 | E84: 14.43460034 | F84: 0.504 | G84: 2025-10-01 | H84: 14.93860034 | I84: 2025
A85: =Index!A85 -> 2025-11-01 | B85: =Index!C85 -> 14.43460034 | C85: =Index!B85 -> 14.56945536 | D85: 0 | E85: 14.43460034 | F85: 0.504 | G85: 2025-11-01 | H85: 14.93860034 | I85: 2025
A86: =Index!A86 -> 2025-12-01 | B86: =Index!C86 -> 14.43460034 | C86: =Index!B86 -> 14.59593173 | D86: 0 | E86: 14.43460034 | F86: 0.504 | G86: 2025-12-01 | H86: 14.93860034 | I86: 2025
A87: =Index!A87 -> 2026-01-01 | B87: =Index!C87 -> 14.99536878 | C87: =Index!B87 -> 14.75457464 | D87: 0 | E87: 14.99536878 | F87: 0.511 | G87: 2026-01-01 | H87: 15.50636878 | I87: 2026
A88: =Index!A88 -> 2026-02-01 | B88: =Index!C88 -> 14.99536878 | C88: =Index!B88 -> 14.77388401 | D88: 0 | E88: 14.99536878 | F88: 0.511 | G88: 2026-02-01 | H88: 15.50636878 | I88: 2026
A89: =Index!A89 -> 2026-03-01 | B89: =Index!C89 -> 14.99536878 | C89: =Index!B89 -> 14.79320107 | D89: 0 | E89: 14.99536878 | F89: 0.511 | G89: 2026-03-01 | H89: 15.50636878 | I89: 2026
A90: =Index!A90 -> 2026-04-01 | B90: =Index!C90 -> 14.99536878 | C90: =Index!B90 -> 14.81251813 | D90: 0 | E90: 14.99536878 | F90: 0.511 | G90: 2026-04-01 | H90: 15.50636878 | I90: 2026
A91: =Index!A91 -> 2026-05-01 | B91: =Index!C91 -> 14.99536878 | C91: =Index!B91 -> 14.83183519 | D91: 0 | E91: 14.99536878 | F91: 0.511 | G91: 2026-05-01 | H91: 15.50636878 | I91: 2026
A92: =Index!A92 -> 2026-06-01 | B92: =Index!C92 -> 14.99536878 | C92: =Index!B92 -> 14.85114457 | D92: 0 | E92: 14.99536878 | F92: 0.511 | G92: 2026-06-01 | H92: 15.50636878 | I92: 2026
A93: =Index!A93 -> 2026-07-01 | B93: =Index!C93 -> 14.99536878 | C93: =Index!B93 -> 14.78563896 | D93: 0 | E93: 14.99536878 | F93: 0.511 | G93: 2026-07-01 | H93: 15.50636878 | I93: 2026
A94: =Index!A94 -> 2026-08-01 | B94: =Index!C94 -> 14.99536878 | C94: =Index!B94 -> 14.7854115 | D94: 0 | E94: 14.99536878 | F94: 0.511 | G94: 2026-08-01 | H94: 15.50636878 | I94: 2026
A95: =Index!A95 -> 2026-09-01 | B95: =Index!C95 -> 14.99536878 | C95: =Index!B95 -> 15.40290767 | D95: 0 | E95: 14.99536878 | F95: 0.511 | G95: 2026-09-01 | H95: 15.50636878 | I95: 2026
A96: =Index!A96 -> 2026-10-01 | B96: =Index!C96 -> 14.99536878 | C96: =Index!B96 -> 15.11443165 | D96: 0 | E96: 14.99536878 | F96: 0.511 | G96: 2026-10-01 | H96: 15.50636878 | I96: 2026
A97: =Index!A97 -> 2026-11-01 | B97: =Index!C97 -> 14.99536878 | C97: =Index!B97 -> 14.86084447 | D97: 0 | E97: 14.99536878 | F97: 0.511 | G97: 2026-11-01 | H97: 15.50636878 | I97: 2026
A98: =Index!A98 -> 2026-12-01 | B98: =Index!C98 -> 14.99536878 | C98: =Index!B98 -> 14.88785037 | D98: 0 | E98: 14.99536878 | F98: 0.511 | G98: 2026-12-01 | H98: 15.50636878 | I98: 2026
A99: =Index!A99 -> 2027-01-01 | B99: =Index!C99 -> 15.64193825 | C99: =Index!B99 -> 15.04966613 | D99: 0 | E99: 15.64193825 | F99: 0.519 | G99: 2027-01-01 | H99: 16.16093825 | I99: 2027
A100: =Index!A100 -> 2027-02-01 | B100: =Index!C100 -> 15.64193825 | C100: =Index!B100 -> 15.06936169 | D100: 0 | E100: 15.64193825 | F100: 0.519 | G100: 2027-02-01 | H100: =SUM(E100:F100) -> 16.16093825 | I100: 2027
A101: =Index!A101 -> 2027-03-01 | B101: =Index!C101 -> 15.64193825 | C101: =Index!B101 -> 15.08906509 | D101: 0 | E101: 15.64193825 | F101: 0.519 | G101: 2027-03-01 | H101: 16.16093825 | I101: 2027
A102: =Index!A102 -> 2027-04-01 | B102: =Index!C102 -> 15.64193825 | C102: =Index!B102 -> 15.10876849 | D102: 0 | E102: 15.64193825 | F102: 0.519 | G102: 2027-04-01 | H102: 16.16093825 | I102: 2027
A103: =Index!A103 -> 2027-05-01 | B103: =Index!C103 -> 15.64193825 | C103: =Index!B103 -> 15.1284719 | D103: 0 | E103: 15.64193825 | F103: 0.519 | G103: 2027-05-01 | H103: 16.16093825 | I103: 2027
A104: =Index!A104 -> 2027-06-01 | B104: =Index!C104 -> 15.64193825 | C104: =Index!B104 -> 15.14816746 | D104: 0 | E104: 15.64193825 | F104: 0.519 | G104: 2027-06-01 | H104: 16.16093825 | I104: 2027
A105: =Index!A105 -> 2027-07-01 | B105: =Index!C105 -> 15.64193825 | C105: =Index!B105 -> 15.08135174 | D105: 0 | E105: 15.64193825 | F105: 0.519 | G105: 2027-07-01 | H105: 16.16093825 | I105: 2027
A106: =Index!A106 -> 2027-08-01 | B106: =Index!C106 -> 15.64193825 | C106: =Index!B106 -> 15.08111973 | D106: 0 | E106: 15.64193825 | F106: 0.519 | G106: 2027-08-01 | H106: 16.16093825 | I106: 2027
A107: =Index!A107 -> 2027-09-01 | B107: =Index!C107 -> 15.64193825 | C107: =Index!B107 -> 15.71096582 | D107: 0 | E107: 15.64193825 | F107: 0.519 | G107: 2027-09-01 | H107: 16.16093825 | I107: 2027
A108: =Index!A108 -> 2027-10-01 | B108: =Index!C108 -> 15.64193825 | C108: =Index!B108 -> 15.41672029 | D108: 0 | E108: 15.64193825 | F108: 0.519 | G108: 2027-10-01 | H108: 16.16093825 | I108: 2027
A109: =Index!A109 -> 2027-11-01 | B109: =Index!C109 -> 15.64193825 | C109: =Index!B109 -> 15.15806136 | D109: 0 | E109: 15.64193825 | F109: 0.519 | G109: 2027-11-01 | H109: 16.16093825 | I109: 2027
A110: =Index!A110 -> 2027-12-01 | B110: =Index!C110 -> 15.64193825 | C110: =Index!B110 -> 15.18560737 | D110: 0 | E110: 15.64193825 | F110: 0.519 | G110: 2027-12-01 | H110: 16.16093825 | I110: 2027
A111: =Index!A111 -> 2028-01-01 | B111: =Index!C111 -> 16.3885729 | C111: =Index!B111 -> 15.35065945 | D111: 0 | E111: 16.3885729 | F111: 0.527 | G111: 2028-01-01 | H111: 16.9155729 | I111: 2028
A112: =Index!A112 -> 2028-02-01 | B112: =Index!C112 -> 16.3885729 | C112: =Index!B112 -> 15.37074892 | D112: 0 | E112: 16.3885729 | F112: 0.527 | G112: 2028-02-01 | H112: 16.9155729 | I112: 2028
A113: =Index!A113 -> 2028-03-01 | B113: =Index!C113 -> 16.3885729 | C113: =Index!B113 -> 15.39084639 | D113: 0 | E113: 16.3885729 | F113: 0.527 | G113: 2028-03-01 | H113: 16.9155729 | I113: 2028
A114: =Index!A114 -> 2028-04-01 | B114: =Index!C114 -> 16.3885729 | C114: =Index!B114 -> 15.41094386 | D114: 0 | E114: 16.3885729 | F114: 0.527 | G114: 2028-04-01 | H114: 16.9155729 | I114: 2028
A115: =Index!A115 -> 2028-05-01 | B115: =Index!C115 -> 16.3885729 | C115: =Index!B115 -> 15.43104134 | D115: 0 | E115: 16.3885729 | F115: 0.527 | G115: 2028-05-01 | H115: 16.9155729 | I115: 2028
A116: =Index!A116 -> 2028-06-01 | B116: =Index!C116 -> 16.3885729 | C116: =Index!B116 -> 15.45113081 | D116: 0 | E116: 16.3885729 | F116: 0.527 | G116: 2028-06-01 | H116: 16.9155729 | I116: 2028
A117: =Index!A117 -> 2028-07-01 | B117: =Index!C117 -> 16.3885729 | C117: =Index!B117 -> 15.38297878 | D117: 0 | E117: 16.3885729 | F117: 0.527 | G117: 2028-07-01 | H117: 16.9155729 | I117: 2028
A118: =Index!A118 -> 2028-08-01 | B118: =Index!C118 -> 16.3885729 | C118: =Index!B118 -> 15.38274212 | D118: 0 | E118: =(C118*D118+B118*(1-D118)) -> 16.3885729 | F118: 0.527 | G118: 2028-08-01 | H118: 16.9155729 | I118: 2028
A119: =Index!A119 -> 2028-09-01 | B119: =Index!C119 -> 16.3885729 | C119: =Index!B119 -> 16.02518514 | D119: 0 | E119: 16.3885729 | F119: 0.527 | G119: 2028-09-01 | H119: 16.9155729 | I119: 2028
A120: =Index!A120 -> 2028-10-01 | B120: =Index!C120 -> 16.3885729 | C120: =Index!B120 -> 15.72505469 | D120: 0 | E120: 16.3885729 | F120: 0.527 | G120: 2028-10-01 | H120: 16.9155729 | I120: 2028
A121: =Index!A121 -> 2028-11-01 | B121: =Index!C121 -> 16.3885729 | C121: =Index!B121 -> 15.46122258 | D121: 0 | E121: 16.3885729 | F121: 0.527 | G121: 2028-11-01 | H121: 16.9155729 | I121: 2028
A122: =Index!A122 -> 2028-12-01 | B122: =Index!C122 -> 16.3885729 | C122: =Index!B122 -> 15.48931952 | D122: 0 | E122: 16.3885729 | F122: 0.527 | G122: 2028-12-01 | H122: 16.9155729 | I122: 2028
A123: =Index!A123 -> 2029-01-01 | B123: =Index!C123 -> 17.07029846 | C123: =Index!B123 -> 15.65767264 | D123: 0 | E123: 17.07029846 | F123: 0.535 | G123: 2029-01-01 | H123: 17.60529846 | I123: 2029
A124: =Index!A124 -> 2029-02-01 | B124: =Index!C124 -> 17.07029846 | C124: =Index!B124 -> 15.6781639 | D124: 0 | E124: 17.07029846 | F124: 0.535 | G124: 2029-02-01 | H124: 17.60529846 | I124: 2029
A125: =Index!A125 -> 2029-03-01 | B125: =Index!C125 -> 17.07029846 | C125: =Index!B125 -> 15.69866332 | D125: 0 | E125: 17.07029846 | F125: 0.535 | G125: 2029-03-01 | H125: 17.60529846 | I125: 2029
A126: =Index!A126 -> 2029-04-01 | B126: =Index!C126 -> 17.07029846 | C126: =Index!B126 -> 15.71916274 | D126: 0 | E126: 17.07029846 | F126: 0.535 | G126: 2029-04-01 | H126: 17.60529846 | I126: 2029
A127: =Index!A127 -> 2029-05-01 | B127: =Index!C127 -> 17.07029846 | C127: =Index!B127 -> 15.73966216 | D127: 0 | E127: 17.07029846 | F127: 0.535 | G127: 2029-05-01 | H127: 17.60529846 | I127: 2029
A128: =Index!A128 -> 2029-06-01 | B128: =Index!C128 -> 17.07029846 | C128: =Index!B128 -> 15.76015342 | D128: 0 | E128: 17.07029846 | F128: 0.535 | G128: 2029-06-01 | H128: 17.60529846 | I128: 2029
A129: =Index!A129 -> 2029-07-01 | B129: =Index!C129 -> 17.07029846 | C129: =Index!B129 -> 15.69063835 | D129: 0 | E129: 17.07029846 | F129: 0.535 | G129: 2029-07-01 | H129: 17.60529846 | I129: 2029
A130: =Index!A130 -> 2029-08-01 | B130: =Index!C130 -> 17.07029846 | C130: =Index!B130 -> 15.69039696 | D130: 0 | E130: 17.07029846 | F130: 0.535 | G130: 2029-08-01 | H130: 17.60529846 | I130: 2029
A131: =Index!A131 -> 2029-09-01 | B131: =Index!C131 -> 17.07029846 | C131: =Index!B131 -> 16.34568884 | D131: 0 | E131: 17.07029846 | F131: 0.535 | G131: 2029-09-01 | H131: 17.60529846 | I131: 2029
A132: =Index!A132 -> 2029-10-01 | B132: =Index!C132 -> 17.07029846 | C132: =Index!B132 -> 16.03955579 | D132: 0 | E132: 17.07029846 | F132: 0.535 | G132: 2029-10-01 | H132: 17.60529846 | I132: =YEAR(A132) -> 2029
A133: =Index!A133 -> 2029-11-01 | B133: =Index!C133 -> 17.07029846 | C133: =Index!B133 -> 15.77044704 | D133: 0 | E133: 17.07029846 | F133: 0.535 | G133: 2029-11-01 | H133: 17.60529846 | I133: 2029
A134: =Index!A134 -> 2029-12-01 | B134: =Index!C134 -> 17.07029846 | C134: =Index!B134 -> 15.79910591 | D134: 0 | E134: 17.07029846 | F134: 0.535 | G134: 2029-12-01 | H134: 17.60529846 | I134: 2029
A135: =Index!A135 -> 2030-01-01 | B135: =Index!C135 -> 17.49606175 | C135: =Index!B135 -> 15.97082609 | D135: 0 | E135: 17.49606175 | F135: 0.543 | G135: 2030-01-01 | H135: 18.03906175 | I135: 2030
A136: =Index!A136 -> 2030-02-01 | B136: =Index!C136 -> 17.49606175 | C136: =Index!B136 -> 15.99172718 | D136: 0 | E136: 17.49606175 | F136: 0.543 | G136: 2030-02-01 | H136: 18.03906175 | I136: 2030
A137: =Index!A137 -> 2030-03-01 | B137: =Index!C137 -> 17.49606175 | C137: =Index!B137 -> 16.01263659 | D137: 0 | E137: 17.49606175 | F137: 0.543 | G137: 2030-03-01 | H137: 18.03906175 | I137: 2030
A138: =Index!A138 -> 2030-04-01 | B138: =Index!C138 -> 17.49606175 | C138: =Index!B138 -> 16.033546 | D138: 0 | E138: 17.49606175 | F138: 0.543 | G138: 2030-04-01 | H138: 18.03906175 | I138: 2030
A139: =Index!A139 -> 2030-05-01 | B139: =Index!C139 -> 17.49606175 | C139: =Index!B139 -> 16.05445541 | D139: 0 | E139: 17.49606175 | F139: 0.543 | G139: 2030-05-01 | H139: 18.03906175 | I139: 2030
A140: =Index!A140 -> 2030-06-01 | B140: =Index!C140 -> 17.49606175 | C140: =Index!B140 -> 16.07535649 | D140: 0 | E140: 17.49606175 | F140: 0.543 | G140: 2030-06-01 | H140: 18.03906175 | I140: 2030
A141: =Index!A141 -> 2030-07-01 | B141: =Index!C141 -> 17.49606175 | C141: =Index!B141 -> 16.00445112 | D141: 0 | E141: 17.49606175 | F141: 0.543 | G141: 2030-07-01 | H141: 18.03906175 | I141: 2030
A142: =Index!A142 -> 2030-08-01 | B142: =Index!C142 -> 17.49606175 | C142: =Index!B142 -> 16.0042049 | D142: 0 | E142: 17.49606175 | F142: 0.543 | G142: 2030-08-01 | H142: 18.03906175 | I142: 2030
A143: =Index!A143 -> 2030-09-01 | B143: =Index!C143 -> 17.49606175 | C143: =Index!B143 -> 16.67260262 | D143: 0 | E143: 17.49606175 | F143: 0.543 | G143: 2030-09-01 | H143: 18.03906175 | I143: 2030
A144: =Index!A144 -> 2030-10-01 | B144: =Index!C144 -> 17.49606175 | C144: =Index!B144 -> 16.3603469 | D144: 0 | E144: 17.49606175 | F144: 0.543 | G144: 2030-10-01 | H144: 18.03906175 | I144: 2030
A145: =Index!A145 -> 2030-11-01 | B145: =Index!C145 -> 17.49606175 | C145: =Index!B145 -> 16.08585598 | D145: 0 | E145: 17.49606175 | F145: 0.543 | G145: =A145 -> 2030-11-01 | H145: 18.03906175 | I145: 2030
A146: =Index!A146 -> 2030-12-01 | B146: =Index!C146 -> 17.49606175 | C146: =Index!B146 -> 16.11508803 | D146: 0 | E146: 17.49606175 | F146: 0.543 | G146: 2030-12-01 | H146: 18.03906175 | I146: 2030
A147: =Index!A147 -> 2031-01-01 | B147: =Index!C147 -> 17.89127959 | C147: =Index!B147 -> 16.29024262 | D147: 0 | E147: 17.89127959 | F147: 0.551 | G147: 2031-01-01 | H147: 18.44227959 | I147: 2031
A148: =Index!A148 -> 2031-02-01 | B148: =Index!C148 -> 17.89127959 | C148: =Index!B148 -> 16.31156172 | D148: 0 | E148: 17.89127959 | F148: 0.551 | G148: 2031-02-01 | H148: 18.44227959 | I148: 2031
A149: =Index!A149 -> 2031-03-01 | B149: =Index!C149 -> 17.89127959 | C149: =Index!B149 -> 16.33288932 | D149: 0 | E149: 17.89127959 | F149: 0.551 | G149: 2031-03-01 | H149: 18.44227959 | I149: 2031
A150: =Index!A150 -> 2031-04-01 | B150: =Index!C150 -> 17.89127959 | C150: =Index!B150 -> 16.35421692 | D150: 0 | E150: 17.89127959 | F150: 0.551 | G150: 2031-04-01 | H150: 18.44227959 | I150: 2031
A151: =Index!A151 -> 2031-05-01 | B151: =Index!C151 -> 17.89127959 | C151: =Index!B151 -> 16.37554451 | D151: 0 | E151: 17.89127959 | F151: 0.551 | G151: 2031-05-01 | H151: 18.44227959 | I151: 2031
A152: =Index!A152 -> 2031-06-01 | B152: =Index!C152 -> 17.89127959 | C152: =Index!B152 -> 16.39686362 | D152: 0 | E152: 17.89127959 | F152: 0.551 | G152: 2031-06-01 | H152: 18.44227959 | I152: 2031
A153: =Index!A153 -> 2031-07-01 | B153: =Index!C153 -> 17.89127959 | C153: =Index!B153 -> 16.32454014 | D153: 0 | E153: 17.89127959 | F153: 0.551 | G153: 2031-07-01 | H153: 18.44227959 | I153: 2031
A154: =Index!A154 -> 2031-08-01 | B154: =Index!C154 -> 17.89127959 | C154: =Index!B154 -> 16.324289 | D154: 0 | E154: 17.89127959 | F154: 0.551 | G154: 2031-08-01 | H154: 18.44227959 | I154: 2031
A155: =Index!A155 -> 2031-09-01 | B155: =Index!C155 -> 17.89127959 | C155: =Index!B155 -> 17.00605467 | D155: 0 | E155: 17.89127959 | F155: 0.551 | G155: 2031-09-01 | H155: 18.44227959 | I155: 2031
A156: =Index!A156 -> 2031-10-01 | B156: =Index!C156 -> 17.89127959 | C156: =Index!B156 -> 16.68755384 | D156: 0 | E156: 17.89127959 | F156: 0.551 | G156: 2031-10-01 | H156: 18.44227959 | I156: 2031
A157: =Index!A157 -> 2031-11-01 | B157: =Index!C157 -> 17.89127959 | C157: =Index!B157 -> 16.4075731 | D157: 0 | E157: 17.89127959 | F157: 0.551 | G157: 2031-11-01 | H157: 18.44227959 | I157: 2031
A158: =Index!A158 -> 2031-12-01 | B158: =Index!C158 -> 17.89127959 | C158: =Index!B158 -> 16.43738979 | D158: 0 | E158: 17.89127959 | F158: 0.551 | G158: 2031-12-01 | H158: 18.44227959 | I158: 2031
A159: =Index!A159 -> 2032-01-01 | B159: =Index!C159 -> 18.30191424 | C159: =Index!B159 -> 16.61604747 | D159: 0 | E159: 18.30191424 | F159: 0.559 | G159: 2032-01-01 | H159: 18.86091424 | I159: 2032
A160: =Index!A160 -> 2032-02-01 | B160: =Index!C160 -> 18.30191424 | C160: =Index!B160 -> 16.63779296 | D160: 0 | E160: 18.30191424 | F160: 0.559 | G160: 2032-02-01 | H160: 18.86091424 | I160: 2032
A161: =Index!A161 -> 2032-03-01 | B161: =Index!C161 -> 18.30191424 | C161: =Index!B161 -> 16.65954711 | D161: 0 | E161: 18.30191424 | F161: 0.559 | G161: 2032-03-01 | H161: 18.86091424 | I161: 2032
A162: =Index!A162 -> 2032-04-01 | B162: =Index!C162 -> 18.30191424 | C162: =Index!B162 -> 16.68130125 | D162: 0 | E162: 18.30191424 | F162: 0.559 | G162: 2032-04-01 | H162: 18.86091424 | I162: 2032
A163: =Index!A163 -> 2032-05-01 | B163: =Index!C163 -> 18.30191424 | C163: =Index!B163 -> 16.7030554 | D163: 0 | E163: 18.30191424 | F163: 0.559 | G163: 2032-05-01 | H163: 18.86091424 | I163: 2032
A164: =Index!A164 -> 2032-06-01 | B164: =Index!C164 -> 18.30191424 | C164: =Index!B164 -> 16.72480089 | D164: 0 | E164: 18.30191424 | F164: 0.559 | G164: 2032-06-01 | H164: =SUM(E164:F164) -> 18.86091424 | I164: 2032
A165: =Index!A165 -> 2032-07-01 | B165: =Index!C165 -> 18.30191424 | C165: =Index!B165 -> 16.65103095 | D165: 0 | E165: 18.30191424 | F165: 0.559 | G165: 2032-07-01 | H165: 18.86091424 | I165: 2032
A166: =Index!A166 -> 2032-08-01 | B166: =Index!C166 -> 18.30191424 | C166: =Index!B166 -> 16.65077478 | D166: 0 | E166: 18.30191424 | F166: 0.559 | G166: 2032-08-01 | H166: 18.86091424 | I166: 2032
A167: =Index!A167 -> 2032-09-01 | B167: =Index!C167 -> 18.30191424 | C167: =Index!B167 -> 17.34617576 | D167: 0 | E167: 18.30191424 | F167: 0.559 | G167: 2032-09-01 | H167: 18.86091424 | I167: 2032
A168: =Index!A168 -> 2032-10-01 | B168: =Index!C168 -> 18.30191424 | C168: =Index!B168 -> 17.02130492 | D168: 0 | E168: 18.30191424 | F168: 0.559 | G168: 2032-10-01 | H168: 18.86091424 | I168: 2032
A169: =Index!A169 -> 2032-11-01 | B169: =Index!C169 -> 18.30191424 | C169: =Index!B169 -> 16.73572456 | D169: 0 | E169: 18.30191424 | F169: 0.559 | G169: 2032-11-01 | H169: 18.86091424 | I169: 2032
A170: =Index!A170 -> 2032-12-01 | B170: =Index!C170 -> 18.30191424 | C170: =Index!B170 -> 16.76613759 | D170: 0 | E170: 18.30191424 | F170: 0.559 | G170: 2032-12-01 | H170: 18.86091424 | I170: 2032
A171: =Index!A171 -> 2033-01-01 | B171: =Index!C171 -> 18.72659691 | C171: =Index!B171 -> 16.94836842 | D171: 0 | E171: 18.72659691 | F171: 0.568 | G171: 2033-01-01 | H171: 19.29459691 | I171: 2033
A172: =Index!A172 -> 2033-02-01 | B172: =Index!C172 -> 18.72659691 | C172: =Index!B172 -> 16.97054882 | D172: 0 | E172: 18.72659691 | F172: 0.568 | G172: 2033-02-01 | H172: 19.29459691 | I172: 2033
A173: =Index!A173 -> 2033-03-01 | B173: =Index!C173 -> 18.72659691 | C173: =Index!B173 -> 16.99273805 | D173: 0 | E173: 18.72659691 | F173: 0.568 | G173: 2033-03-01 | H173: 19.29459691 | I173: 2033
A174: =Index!A174 -> 2033-04-01 | B174: =Index!C174 -> 18.72659691 | C174: =Index!B174 -> 17.01492728 | D174: 0 | E174: 18.72659691 | F174: 0.568 | G174: 2033-04-01 | H174: 19.29459691 | I174: 2033
A175: =Index!A175 -> 2033-05-01 | B175: =Index!C175 -> 18.72659691 | C175: =Index!B175 -> 17.03711651 | D175: 0 | E175: 18.72659691 | F175: 0.568 | G175: 2033-05-01 | H175: 19.29459691 | I175: 2033
A176: =Index!A176 -> 2033-06-01 | B176: =Index!C176 -> 18.72659691 | C176: =Index!B176 -> 17.05929691 | D176: 0 | E176: 18.72659691 | F176: 0.568 | G176: 2033-06-01 | H176: 19.29459691 | I176: 2033
A177: =Index!A177 -> 2033-07-01 | B177: =Index!C177 -> 18.72659691 | C177: =Index!B177 -> 16.98405156 | D177: 0 | E177: 18.72659691 | F177: 0.568 | G177: 2033-07-01 | H177: 19.29459691 | I177: 2033
A178: =Index!A178 -> 2033-08-01 | B178: =Index!C178 -> 18.72659691 | C178: =Index!B178 -> 16.98379028 | D178: 0 | E178: 18.72659691 | F178: 0.568 | G178: 2033-08-01 | H178: 19.29459691 | I178: 2033
A179: =Index!A179 -> 2033-09-01 | B179: =Index!C179 -> 18.72659691 | C179: =Index!B179 -> 17.69309928 | D179: 0 | E179: 18.72659691 | F179: 0.568 | G179: 2033-09-01 | H179: 19.29459691 | I179: 2033
A180: =Index!A180 -> 2033-10-01 | B180: =Index!C180 -> 18.72659691 | C180: =Index!B180 -> 17.36173102 | D180: 0 | E180: 18.72659691 | F180: 0.568 | G180: 2033-10-01 | H180: 19.29459691 | I180: 2033
A181: =Index!A181 -> 2033-11-01 | B181: =Index!C181 -> 18.72659691 | C181: =Index!B181 -> 17.07043905 | D181: 0 | E181: 18.72659691 | F181: 0.568 | G181: 2033-11-01 | H181: 19.29459691 | I181: 2033
A182: =Index!A182 -> 2033-12-01 | B182: =Index!C182 -> 18.72659691 | C182: =Index!B182 -> 17.10146034 | D182: 0 | E182: =(C182*D182+B182*(1-D182)) -> 18.72659691 | F182: 0.568 | G182: 2033-12-01 | H182: 19.29459691 | I182: 2033
A183: =Index!A183 -> 2034-01-01 | B183: =Index!C183 -> 19.15740309 | C183: =Index!B183 -> 17.28733579 | D183: 0 | E183: 19.15740309 | F183: 0.576 | G183: 2034-01-01 | H183: 19.73340309 | I183: 2034
A184: =Index!A184 -> 2034-02-01 | B184: =Index!C184 -> 19.15740309 | C184: =Index!B184 -> 17.30995979 | D184: 0 | E184: 19.15740309 | F184: 0.576 | G184: 2034-02-01 | H184: 19.73340309 | I184: 2034
A185: =Index!A185 -> 2034-03-01 | B185: =Index!C185 -> 19.15740309 | C185: =Index!B185 -> 17.33259281 | D185: 0 | E185: 19.15740309 | F185: 0.576 | G185: 2034-03-01 | H185: 19.73340309 | I185: 2034
A186: =Index!A186 -> 2034-04-01 | B186: =Index!C186 -> 19.15740309 | C186: =Index!B186 -> 17.35522583 | D186: 0 | E186: 19.15740309 | F186: 0.576 | G186: 2034-04-01 | H186: 19.73340309 | I186: 2034
A187: =Index!A187 -> 2034-05-01 | B187: =Index!C187 -> 19.15740309 | C187: =Index!B187 -> 17.37785884 | D187: 0 | E187: 19.15740309 | F187: 0.576 | G187: 2034-05-01 | H187: 19.73340309 | I187: 2034
A188: =Index!A188 -> 2034-06-01 | B188: =Index!C188 -> 19.15740309 | C188: =Index!B188 -> 17.40048285 | D188: 0 | E188: 19.15740309 | F188: 0.576 | G188: 2034-06-01 | H188: 19.73340309 | I188: 2034
A189: =Index!A189 -> 2034-07-01 | B189: =Index!C189 -> 19.15740309 | C189: =Index!B189 -> 17.3237326 | D189: 0 | E189: 19.15740309 | F189: 0.576 | G189: 2034-07-01 | H189: 19.73340309 | I189: 2034
A190: =Index!A190 -> 2034-08-01 | B190: =Index!C190 -> 19.15740309 | C190: =Index!B190 -> 17.32346608 | D190: 0 | E190: 19.15740309 | F190: 0.576 | G190: 2034-08-01 | H190: 19.73340309 | I190: 2034
A191: =Index!A191 -> 2034-09-01 | B191: =Index!C191 -> 19.15740309 | C191: =Index!B191 -> 18.04696126 | D191: 0 | E191: 19.15740309 | F191: 0.576 | G191: 2034-09-01 | H191: 19.73340309 | I191: 2034
A192: =Index!A192 -> 2034-10-01 | B192: =Index!C192 -> 19.15740309 | C192: =Index!B192 -> 17.70896564 | D192: 0 | E192: 19.15740309 | F192: 0.576 | G192: 2034-10-01 | H192: 19.73340309 | I192: 2034
A193: =Index!A193 -> 2034-11-01 | B193: =Index!C193 -> 19.15740309 | C193: =Index!B193 -> 17.41184783 | D193: 0 | E193: 19.15740309 | F193: 0.576 | G193: 2034-11-01 | H193: 19.73340309 | I193: 2034
A194: =Index!A194 -> 2034-12-01 | B194: =Index!C194 -> 19.15740309 | C194: =Index!B194 -> 17.44348954 | D194: 0 | E194: 19.15740309 | F194: 0.576 | G194: 2034-12-01 | H194: 19.73340309 | I194: 2034
A195: =Index!A195 -> 2035-01-01 | B195: =Index!C195 -> 19.59851115 | C195: =Index!B195 -> 17.6330825 | D195: 0 | E195: 19.59851115 | F195: 0.585 | G195: 2035-01-01 | H195: 20.18351115 | I195: 2035
A196: =Index!A196 -> 2035-02-01 | B196: =Index!C196 -> 19.59851115 | C196: =Index!B196 -> 17.65615899 | D196: 0 | E196: 19.59851115 | F196: 0.585 | G196: 2035-02-01 | H196: 20.18351115 | I196: =YEAR(A196) -> 2035
A197: =Index!A197 -> 2035-03-01 | B197: =Index!C197 -> 19.59851115 | C197: =Index!B197 -> 17.67924467 | D197: 0 | E197: 19.59851115 | F197: 0.585 | G197: 2035-03-01 | H197: 20.18351115 | I197: 2035
A198: =Index!A198 -> 2035-04-01 | B198: =Index!C198 -> 19.59851115 | C198: =Index!B198 -> 17.70233034 | D198: 0 | E198: 19.59851115 | F198: 0.585 | G198: 2035-04-01 | H198: 20.18351115 | I198: 2035
A199: =Index!A199 -> 2035-05-01 | B199: =Index!C199 -> 19.59851115 | C199: =Index!B199 -> 17.72541602 | D199: 0 | E199: 19.59851115 | F199: 0.585 | G199: 2035-05-01 | H199: 20.18351115 | I199: 2035
A200: =Index!A200 -> 2035-06-01 | B200: =Index!C200 -> 19.59851115 | C200: =Index!B200 -> 17.74849251 | D200: 0 | E200: 19.59851115 | F200: 0.585 | G200: 2035-06-01 | H200: 20.18351115 | I200: 2035
... 186 more rows

Sheet Bartow_CC
A1: Bartow CC | B1: PETROLEUM PRODUCT PRICE FORECAST DATA | G1: PROSYM INPUT | J1: ANNUAL AVERAGE
A2: Date | B2: Petroleum Product Price Forecast - Gulf Coast | C2: TCM | D2: Blend TCM/ Fundamental (%) | E2: Blend TCM/ Fundamental ($) | F2: Bartow CC Transport ($/MMBtu) | G2: Date | H2: nomianl$/MMBtu | K2: =A1 -> Bartow CC
A3: =Index!A3 -> 2019-01-01 | B3: =Index!C3 -> 14.62277187 | C3: =Index!B3 -> 12.92753623 | D3: 1 | E3: =(C3*D3+B3*(1-D3)) -> 12.92753623 | F3: 0.414 | G3: =A3 -> 2019-01-01 | H3: =SUM(E3:F3) -> 13.34153623 | I3: =YEAR(A3) -> 2019 | J3: 2019 | K3: =AVERAGEIF($I$3:$I$386,J3,$H$3:$H$386) -> 13.94111353
A4: =Index!A4 -> 2019-02-01 | B4: =Index!C4 -> 14.62277187 | C4: =Index!B4 -> 13.86956522 | D4: 1 | E4: 13.86956522 | F4: 0.414 | G4: 2019-02-01 | H4: 14.28356522 | I4: =YEAR(A4) -> 2019 | J4: 2020 | K4: =AVERAGEIF($I$3:$I$386,J4,$H$3:$H$386) -> 14.06816546
A5: =Index!A5 -> 2019-03-01 | B5: =Index!C5 -> 14.62277187 | C5: =Index!B5 -> 13.7826087 | D5: 1 | E5: 13.7826087 | F5: 0.414 | G5: 2019-03-01 | H5: 14.1966087 | I5: 2019 | J5: 2021 | K5: 13.82017337
A6: =Index!A6 -> 2019-04-01 | B6: =Index!C6 -> 14.62277187 | C6: =Index!B6 -> 14.32608696 | D6: 1 | E6: 14.32608696 | F6: 0.414 | G6: 2019-04-01 | H6: 14.74008696 | I6: 2019 | J6: 2022 | K6: 14.05783893
A7: =Index!A7 -> 2019-05-01 | B7: =Index!C7 -> 14.62277187 | C7: =Index!B7 -> 14.28985507 | D7: 1 | E7: 14.28985507 | F7: 0.414 | G7: 2019-05-01 | H7: 14.70385507 | I7: 2019 | J7: 2023 | K7: 14.23852574
A8: =Index!A8 -> 2019-06-01 | B8: =Index!C8 -> 14.62277187 | C8: =Index!B8 -> 13.16666667 | D8: 1 | E8: 13.16666667 | F8: 0.414 | G8: 2019-06-01 | H8: 13.58066667 | I8: 2019 | J8: 2024 | K8: 14.53033619
A9: =Index!A9 -> 2019-07-01 | B9: =Index!C9 -> 14.62277187 | C9: =Index!B9 -> 13.86231884 | D9: 1 | E9: 13.86231884 | F9: 0.414 | G9: 2019-07-01 | H9: 14.27631884 | I9: 2019 | J9: 2025 | K9: 14.88660034
A10: =Index!A10 -> 2019-08-01 | B10: =Index!C10 -> 14.62277187 | C10: =Index!B10 -> 13.04347826 | D10: 1 | E10: 13.04347826 | F10: 0.414 | G10: 2019-08-01 | H10: 13.45747826 | I10: 2019 | J10: 2026 | K10: 15.45436878
A11: =Index!A11 -> 2019-09-01 | B11: =Index!C11 -> 14.62277187 | C11: =Index!B11 -> 13.57971014 | D11: 1 | E11: 13.57971014 | F11: 0.414 | G11: 2019-09-01 | H11: 13.99371014 | I11: 2019 | J11: 2027 | K11: 16.10793825
A12: =Index!A12 -> 2019-10-01 | B12: =Index!C12 -> 14.62277187 | C12: =Index!B12 -> 13.3115942 | D12: 1 | E12: 13.3115942 | F12: 0.414 | G12: 2019-10-01 | H12: 13.7255942 | I12: 2019 | J12: 2028 | K12: 16.8615729
A13: =Index!A13 -> 2019-11-01 | B13: =Index!C13 -> 14.62277187 | C13: =Index!B13 -> 13.07681159 | D13: 1 | E13: 13.07681159 | F13: 0.414 | G13: 2019-11-01 | H13: 13.49081159 | I13: 2019 | J13: 2029 | K13: 17.55029846
A14: =Index!A14 -> 2019-12-01 | B14: =Index!C14 -> 14.62277187 | C14: =Index!B14 -> 13.08913043 | D14: 1 | E14: 13.08913043 | F14: 0.414 | G14: 2019-12-01 | H14: 13.50313043 | I14: 2019 | J14: 2030 | K14: 17.98306175
A15: =Index!A15 -> 2020-01-01 | B15: =Index!C15 -> 13.65684391 | C15: =Index!B15 -> 13.8037971 | D15: 1 | E15: 13.8037971 | F15: 0.42 | G15: 2020-01-01 | H15: 14.2237971 | I15: 2020 | J15: 2031 | K15: 18.38627959
A16: =Index!A16 -> 2020-02-01 | B16: =Index!C16 -> 13.65684391 | C16: =Index!B16 -> 14.0924058 | D16: 1 | E16: 14.0924058 | F16: 0.42 | G16: 2020-02-01 | H16: 14.5124058 | I16: 2020 | J16: 2032 | K16: 18.80391424
A17: =Index!A17 -> 2020-03-01 | B17: =Index!C17 -> 13.65684391 | C17: =Index!B17 -> 14.59535507 | D17: 1 | E17: 14.59535507 | F17: 0.42 | G17: =A17 -> 2020-03-01 | H17: 15.01535507 | I17: 2020 | J17: 2033 | K17: 19.23659691
A18: =Index!A18 -> 2020-04-01 | B18: =Index!C18 -> 13.65684391 | C18: =Index!B18 -> 14.42354348 | D18: 1 | E18: 14.42354348 | F18: 0.42 | G18: 2020-04-01 | H18: 14.84354348 | I18: 2020 | J18: 2034 | K18: 19.67440309
A19: =Index!A19 -> 2020-05-01 | B19: =Index!C19 -> 13.65684391 | C19: =Index!B19 -> 13.10595652 | D19: 1 | E19: 13.10595652 | F19: 0.42 | G19: 2020-05-01 | H19: 13.52595652 | I19: 2020 | J19: 2035 | K19: 20.12351115
A20: =Index!A20 -> 2020-06-01 | B20: =Index!C20 -> 13.65684391 | C20: =Index!B20 -> 13.60171739 | D20: 1 | E20: 13.60171739 | F20: 0.42 | G20: 2020-06-01 | H20: 14.02171739 | I20: 2020 | J20: 2036 | K20: 20.58234809
A21: =Index!A21 -> 2020-07-01 | B21: =Index!C21 -> 13.65684391 | C21: =Index!B21 -> 12.98257246 | D21: 1 | E21: 12.98257246 | F21: 0.42 | G21: 2020-07-01 | H21: 13.40257246 | I21: 2020 | J21: 2037 | K21: 21.06039014
A22: =Index!A22 -> 2020-08-01 | B22: =Index!C22 -> 13.65684391 | C22: =Index!B22 -> 13.8187029 | D22: 1 | E22: 13.8187029 | F22: 0.42 | G22: 2020-08-01 | H22: 14.2387029 | I22: 2020 | J22: 2038 | K22: 21.45678507
A23: =Index!A23 -> 2020-09-01 | B23: =Index!C23 -> 13.65684391 | C23: =Index!B23 -> 13.63598551 | D23: 1 | E23: 13.63598551 | F23: 0.42 | G23: 2020-09-01 | H23: 14.05598551 | I23: 2020 | J23: 2039 | K23: 21.84184684
A24: =Index!A24 -> 2020-10-01 | B24: =Index!C24 -> 13.65684391 | C24: =Index!B24 -> 13.38081159 | D24: 1 | E24: 13.38081159 | F24: 0.42 | G24: 2020-10-01 | H24: 13.80081159 | I24: 2020 | J24: 2040 | K24: 21.98606397
A25: =Index!A25 -> 2020-11-01 | B25: =Index!C25 -> 13.65684391 | C25: =Index!B25 -> 13.15651449 | D25: 1 | E25: 13.15651449 | F25: 0.42 | G25: 2020-11-01 | H25: 13.57651449 | I25: 2020 | J25: 2041 | K25: 22.54987098
A26: =Index!A26 -> 2020-12-01 | B26: =Index!C26 -> 13.65684391 | C26: =Index!B26 -> 13.18062319 | D26: 1 | E26: 13.18062319 | F26: 0.42 | G26: 2020-12-01 | H26: 13.60062319 | I26: 2020 | J26: 2042 | K26: 23.13214633
A27: =Index!A27 -> 2021-01-01 | B27: =Index!C27 -> 13.38006175 | C27: =Index!B27 -> 13.24393478 | D27: 1 | E27: 13.24393478 | F27: 0.426 | G27: 2021-01-01 | H27: 13.66993478 | I27: 2021 | J27: 2043 | K27: 23.32841444
A28: =Index!A28 -> 2021-02-01 | B28: =Index!C28 -> 13.38006175 | C28: =Index!B28 -> 13.26150725 | D28: 1 | E28: 13.26150725 | F28: 0.426 | G28: 2021-02-01 | H28: 13.68750725 | I28: 2021 | J28: 2044 | K28: 23.93022251
A29: =Index!A29 -> 2021-03-01 | B29: =Index!C29 -> 13.38006175 | C29: =Index!B29 -> 13.27907246 | D29: 1 | E29: 13.27907246 | F29: 0.426 | G29: 2021-03-01 | H29: 13.70507246 | I29: 2021 | J29: 2045 | K29: 24.12471978
A30: =Index!A30 -> 2021-04-01 | B30: =Index!C30 -> 13.38006175 | C30: =Index!B30 -> 13.29664493 | D30: 1 | E30: 13.29664493 | F30: 0.426 | G30: 2021-04-01 | H30: 13.72264493 | I30: 2021 | J30: 2046 | K30: 24.73527652
A31: =Index!A31 -> 2021-05-01 | B31: =Index!C31 -> 13.38006175 | C31: =Index!B31 -> 13.31421739 | D31: 1 | E31: 13.31421739 | F31: 0.426 | G31: 2021-05-01 | H31: 13.74021739 | I31: 2021 | J31: 2047 | K31: 25.35477208
A32: =Index!A32 -> 2021-06-01 | B32: =Index!C32 -> 13.38006175 | C32: =Index!B32 -> 13.33178261 | D32: 1 | E32: 13.33178261 | F32: 0.426 | G32: 2021-06-01 | H32: 13.75778261 | I32: 2021 | J32: 2048 | K32: 25.54235059
A33: =Index!A33 -> 2021-07-01 | B33: =Index!C33 -> 13.38006175 | C33: =Index!B33 -> 13.33169565 | D33: 1 | E33: 13.33169565 | F33: 0.426 | G33: 2021-07-01 | H33: 13.75769565 | I33: 2021 | J33: 2049 | K33: 26.17900851
A34: =Index!A34 -> 2021-08-01 | B34: =Index!C34 -> 13.38006175 | C34: =Index!B34 -> 13.33160145 | D34: 1 | E34: 13.33160145 | F34: 0.426 | G34: 2021-08-01 | H34: 13.75760145 | I34: 2021 | J34: 2050 | K34: 26.18868469
A35: =Index!A35 -> 2021-09-01 | B35: =Index!C35 -> 13.38006175 | C35: =Index!B35 -> 13.8885 | D35: 1 | E35: 13.8885 | F35: 0.426 | G35: 2021-09-01 | H35: 14.3145 | I35: 2021
A36: =Index!A36 -> 2021-10-01 | B36: =Index!C36 -> 13.38006175 | C36: =Index!B36 -> 13.62850725 | D36: 1 | E36: 13.62850725 | F36: 0.426 | G36: 2021-10-01 | H36: =SUM(E36:F36) -> 14.05450725 | I36: 2021
A37: =Index!A37 -> 2021-11-01 | B37: =Index!C37 -> 13.38006175 | C37: =Index!B37 -> 13.39996377 | D37: 1 | E37: 13.39996377 | F37: 0.426 | G37: 2021-11-01 | H37: 13.82596377 | I37: 2021
A38: =Index!A38 -> 2021-12-01 | B38: =Index!C38 -> 13.38006175 | C38: =Index!B38 -> 13.42442754 | D38: 0.96 | E38: 13.4226529 | F38: 0.426 | G38: 2021-12-01 | H38: 13.8486529 | I38: 2021
A39: =Index!A39 -> 2022-01-01 | B39: =Index!C39 -> 13.44302573 | C39: =Index!B39 -> 13.57044928 | D39: 0.92 | E39: 13.56025539 | F39: 0.433 | G39: 2022-01-01 | H39: 13.99325539 | I39: 2022
A40: =Index!A40 -> 2022-02-01 | B40: =Index!C40 -> 13.44302573 | C40: =Index!B40 -> 13.58833333 | D40: 0.88 | E40: 13.57089642 | F40: 0.433 | G40: 2022-02-01 | H40: 14.00389642 | I40: 2022
A41: =Index!A41 -> 2022-03-01 | B41: =Index!C41 -> 13.44302573 | C41: =Index!B41 -> 13.60621014 | D41: 0.84 | E41: 13.58010064 | F41: 0.433 | G41: 2022-03-01 | H41: 14.01310064 | I41: 2022
A42: =Index!A42 -> 2022-04-01 | B42: =Index!C42 -> 13.44302573 | C42: =Index!B42 -> 13.6240942 | D42: 0.8 | E42: 13.58788051 | F42: 0.433 | G42: 2022-04-01 | H42: 14.02088051 | I42: 2022
A43: =Index!A43 -> 2022-05-01 | B43: =Index!C43 -> 13.44302573 | C43: =Index!B43 -> 13.64197101 | D43: 0.76 | E43: 13.59422415 | F43: 0.433 | G43: 2022-05-01 | H43: 14.02722415 | I43: 2022
A44: =Index!A44 -> 2022-06-01 | B44: =Index!C44 -> 13.44302573 | C44: =Index!B44 -> 13.65985507 | D44: 0.72 | E44: 13.59914286 | F44: 0.433 | G44: 2022-06-01 | H44: 14.03214286 | I44: 2022
A45: =Index!A45 -> 2022-07-01 | B45: =Index!C45 -> 13.44302573 | C45: =Index!B45 -> 13.65964493 | D45: 0.68 | E45: 13.59032678 | F45: 0.433 | G45: 2022-07-01 | H45: 14.02332678 | I45: 2022
A46: =Index!A46 -> 2022-08-01 | B46: =Index!C46 -> 13.44302573 | C46: =Index!B46 -> 13.65943478 | D46: 0.64 | E46: 13.58152752 | F46: 0.433 | G46: 2022-08-01 | H46: 14.01452752 | I46: 2022
A47: =Index!A47 -> 2022-09-01 | B47: =Index!C47 -> 13.44302573 | C47: =Index!B47 -> 14.2299058 | D47: 0.6 | E47: 13.91515377 | F47: 0.433 | G47: 2022-09-01 | H47: 14.34815377 | I47: 2022
A48: =Index!A48 -> 2022-10-01 | B48: =Index!C48 -> 13.44302573 | C48: =Index!B48 -> 13.96339855 | D48: 0.56 | E48: 13.73443451 | F48: 0.433 | G48: 2022-10-01 | H48: 14.16743451 | I48: 2022
A49: =Index!A49 -> 2022-11-01 | B49: =Index!C49 -> 13.44302573 | C49: =Index!B49 -> 13.72912319 | D49: 0.52 | E49: 13.59179641 | F49: 0.433 | G49: 2022-11-01 | H49: 14.02479641 | I49: 2022
A50: =Index!A50 -> 2022-12-01 | B50: =Index!C50 -> 13.44302573 | C50: =Index!B50 -> 13.75407246 | D50: 0.48 | E50: 13.59232816 | F50: 0.433 | G50: 2022-12-01 | H50: 14.02532816 | I50: 2022
A51: =Index!A51 -> 2023-01-01 | B51: =Index!C51 -> 13.74934477 | C51: =Index!B51 -> 13.90356522 | D51: 0.44 | E51: 13.81720177 | F51: 0.439 | G51: 2023-01-01 | H51: 14.25620177 | I51: 2023
A52: =Index!A52 -> 2023-02-01 | B52: =Index!C52 -> 13.74934477 | C52: =Index!B52 -> 13.92176087 | D52: 0.4 | E52: 13.81831121 | F52: 0.439 | G52: 2023-02-01 | H52: 14.25731121 | I52: 2023
A53: =Index!A53 -> 2023-03-01 | B53: =Index!C53 -> 13.74934477 | C53: =Index!B53 -> 13.93996377 | D53: 0.36 | E53: 13.81796761 | F53: 0.439 | G53: 2023-03-01 | H53: 14.25696761 | I53: 2023
A54: =Index!A54 -> 2023-04-01 | B54: =Index!C54 -> 13.74934477 | C54: =Index!B54 -> 13.95816667 | D54: 0.32 | E54: =(C54*D54+B54*(1-D54)) -> 13.81616778 | F54: 0.439 | G54: 2023-04-01 | H54: 14.25516778 | I54: 2023
A55: =Index!A55 -> 2023-05-01 | B55: =Index!C55 -> 13.74934477 | C55: =Index!B55 -> 13.97636957 | D55: 0.28 | E55: 13.81291171 | F55: 0.439 | G55: 2023-05-01 | H55: 14.25191171 | I55: 2023
A56: =Index!A56 -> 2023-06-01 | B56: =Index!C56 -> 13.74934477 | C56: =Index!B56 -> 13.99456522 | D56: 0.24 | E56: 13.80819768 | F56: 0.439 | G56: 2023-06-01 | H56: 14.24719768 | I56: 2023
A57: =Index!A57 -> 2023-07-01 | B57: =Index!C57 -> 13.74934477 | C57: =Index!B57 -> 13.93283783 | D57: 0.2 | E57: 13.78604338 | F57: 0.439 | G57: 2023-07-01 | H57: 14.22504338 | I57: 2023
A58: =Index!A58 -> 2023-08-01 | B58: =Index!C58 -> 13.74934477 | C58: =Index!B58 -> 13.93262348 | D58: 0.16 | E58: 13.77866936 | F58: 0.439 | G58: 2023-08-01 | H58: 14.21766936 | I58: 2023
A59: =Index!A59 -> 2023-09-01 | B59: =Index!C59 -> 13.74934477 | C59: =Index!B59 -> 14.51450391 | D59: 0.12 | E59: 13.84116387 | F59: 0.439 | G59: 2023-09-01 | H59: 14.28016387 | I59: 2023
A60: =Index!A60 -> 2023-10-01 | B60: =Index!C60 -> 13.74934477 | C60: =Index!B60 -> 14.24266652 | D60: 0.08 | E60: 13.78881051 | F60: 0.439 | G60: 2023-10-01 | H60: 14.22781051 | I60: 2023
A61: =Index!A61 -> 2023-11-01 | B61: =Index!C61 -> 13.74934477 | C61: =Index!B61 -> 14.00370565 | D61: 0.04 | E61: 13.7595192 | F61: 0.439 | G61: 2023-11-01 | H61: 14.1985192 | I61: 2023
A62: =Index!A62 -> 2023-12-01 | B62: =Index!C62 -> 13.74934477 | C62: =Index!B62 -> 14.02915391 | D62: 0 | E62: 13.74934477 | F62: 0.439 | G62: 2023-12-01 | H62: 14.18834477 | I62: 2023
A63: =Index!A63 -> 2024-01-01 | B63: =Index!C63 -> 14.08433619 | C63: =Index!B63 -> 14.18163652 | D63: 0 | E63: 14.08433619 | F63: 0.446 | G63: 2024-01-01 | H63: 14.53033619 | I63: 2024
A64: =Index!A64 -> 2024-02-01 | B64: =Index!C64 -> 14.08433619 | C64: =Index!B64 -> 14.20019609 | D64: 0 | E64: 14.08433619 | F64: 0.446 | G64: 2024-02-01 | H64: 14.53033619 | I64: 2024
A65: =Index!A65 -> 2024-03-01 | B65: =Index!C65 -> 14.08433619 | C65: =Index!B65 -> 14.21876304 | D65: 0 | E65: 14.08433619 | F65: 0.446 | G65: 2024-03-01 | H65: 14.53033619 | I65: 2024
A66: =Index!A66 -> 2024-04-01 | B66: =Index!C66 -> 14.08433619 | C66: =Index!B66 -> 14.23733 | D66: 0 | E66: 14.08433619 | F66: 0.446 | G66: 2024-04-01 | H66: 14.53033619 | I66: 2024
A67: =Index!A67 -> 2024-05-01 | B67: =Index!C67 -> 14.08433619 | C67: =Index!B67 -> 14.25589696 | D67: 0 | E67: 14.08433619 | F67: 0.446 | G67: 2024-05-01 | H67: 14.53033619 | I67: 2024
A68: =Index!A68 -> 2024-06-01 | B68: =Index!C68 -> 14.08433619 | C68: =Index!B68 -> 14.27445652 | D68: 0 | E68: 14.08433619 | F68: 0.446 | G68: 2024-06-01 | H68: 14.53033619 | I68: =YEAR(A68) -> 2024
A69: =Index!A69 -> 2024-07-01 | B69: =Index!C69 -> 14.08433619 | C69: =Index!B69 -> 14.21149458 | D69: 0 | E69: 14.08433619 | F69: 0.446 | G69: 2024-07-01 | H69: 14.53033619 | I69: 2024
A70: =Index!A70 -> 2024-08-01 | B70: =Index!C70 -> 14.08433619 | C70: =Index!B70 -> 14.21127595 | D70: 0 | E70: 14.08433619 | F70: 0.446 | G70: 2024-08-01 | H70: 14.53033619 | I70: 2024
A71: =Index!A71 -> 2024-09-01 | B71: =Index!C71 -> 14.08433619 | C71: =Index!B71 -> 14.80479399 | D71: 0 | E71: 14.08433619 | F71: 0.446 | G71: 2024-09-01 | H71: 14.53033619 | I71: 2024
A72: =Index!A72 -> 2024-10-01 | B72: =Index!C72 -> 14.08433619 | C72: =Index!B72 -> 14.52751985 | D72: 0 | E72: 14.08433619 | F72: 0.446 | G72: 2024-10-01 | H72: 14.53033619 | I72: 2024
A73: =Index!A73 -> 2024-11-01 | B73: =Index!C73 -> 14.08433619 | C73: =Index!B73 -> 14.28377977 | D73: 0 | E73: 14.08433619 | F73: 0.446 | G73: 2024-11-01 | H73: 14.53033619 | I73: 2024
A74: =Index!A74 -> 2024-12-01 | B74: =Index!C74 -> 14.08433619 | C74: =Index!B74 -> 14.30973699 | D74: 0 | E74: 14.08433619 | F74: 0.446 | G74: 2024-12-01 | H74: 14.53033619 | I74: 2024
A75: =Index!A75 -> 2025-01-01 | B75: =Index!C75 -> 14.43460034 | C75: =Index!B75 -> 14.46526925 | D75: 0 | E75: 14.43460034 | F75: 0.452 | G75: 2025-01-01 | H75: 14.88660034 | I75: 2025
A76: =Index!A76 -> 2025-02-01 | B76: =Index!C76 -> 14.43460034 | C76: =Index!B76 -> 14.48420001 | D76: 0 | E76: 14.43460034 | F76: 0.452 | G76: 2025-02-01 | H76: 14.88660034 | I76: 2025
A77: =Index!A77 -> 2025-03-01 | B77: =Index!C77 -> 14.43460034 | C77: =Index!B77 -> 14.5031383 | D77: 0 | E77: 14.43460034 | F77: 0.452 | G77: 2025-03-01 | H77: 14.88660034 | I77: 2025
A78: =Index!A78 -> 2025-04-01 | B78: =Index!C78 -> 14.43460034 | C78: =Index!B78 -> 14.5220766 | D78: 0 | E78: 14.43460034 | F78: 0.452 | G78: 2025-04-01 | H78: 14.88660034 | I78: 2025
A79: =Index!A79 -> 2025-05-01 | B79: =Index!C79 -> 14.43460034 | C79: =Index!B79 -> 14.5410149 | D79: 0 | E79: 14.43460034 | F79: 0.452 | G79: 2025-05-01 | H79: 14.88660034 | I79: 2025
A80: =Index!A80 -> 2025-06-01 | B80: =Index!C80 -> 14.43460034 | C80: =Index!B80 -> 14.55994565 | D80: 0 | E80: 14.43460034 | F80: 0.452 | G80: 2025-06-01 | H80: 14.88660034 | I80: 2025
A81: =Index!A81 -> 2025-07-01 | B81: =Index!C81 -> 14.43460034 | C81: =Index!B81 -> 14.49572447 | D81: 0 | E81: 14.43460034 | F81: 0.452 | G81: =A81 -> 2025-07-01 | H81: 14.88660034 | I81: 2025
A82: =Index!A82 -> 2025-08-01 | B82: =Index!C82 -> 14.43460034 | C82: =Index!B82 -> 14.49550147 | D82: 0 | E82: 14.43460034 | F82: 0.452 | G82: 2025-08-01 | H82: 14.88660034 | I82: 2025
A83: =Index!A83 -> 2025-09-01 | B83: =Index!C83 -> 14.43460034 | C83: =Index!B83 -> 15.10088987 | D83: 0 | E83: 14.43460034 | F83: 0.452 | G83: 2025-09-01 | H83: 14.88660034 | I83: 2025
A84: =Index!A84 -> 2025-10-01 | B84: =Index!C84 -> 14.43460034 | C84: =Index!B84 -> 14.81807025 | D84: 0 | E84: 14.43460034 | F84: 0.452 | G84: 2025-10-01 | H84: 14.88660034 | I84: 2025
A85: =Index!A85 -> 2025-11-01 | B85: =Index!C85 -> 14.43460034 | C85: =Index!B85 -> 14.56945536 | D85: 0 | E85: 14.43460034 | F85: 0.452 | G85: 2025-11-01 | H85: 14.88660034 | I85: 2025
A86: =Index!A86 -> 2025-12-01 | B86: =Index!C86 -> 14.43460034 | C86: =Index!B86 -> 14.59593173 | D86: 0 | E86: 14.43460034 | F86: 0.452 | G86: 2025-12-01 | H86: 14.88660034 | I86: 2025
A87: =Index!A87 -> 2026-01-01 | B87: =Index!C87 -> 14.99536878 | C87: =Index!B87 -> 14.75457464 | D87: 0 | E87: 14.99536878 | F87: 0.459 | G87: 2026-01-01 | H87: 15.45436878 | I87: 2026
A88: =Index!A88 -> 2026-02-01 | B88: =Index!C88 -> 14.99536878 | C88: =Index!B88 -> 14.77388401 | D88: 0 | E88: 14.99536878 | F88: 0.459 | G88: 2026-02-01 | H88: 15.45436878 | I88: 2026
A89: =Index!A89 -> 2026-03-01 | B89: =Index!C89 -> 14.99536878 | C89: =Index!B89 -> 14.79320107 | D89: 0 | E89: 14.99536878 | F89: 0.459 | G89: 2026-03-01 | H89: 15.45436878 | I89: 2026
A90: =Index!A90 -> 2026-04-01 | B90: =Index!C90 -> 14.99536878 | C90: =Index!B90 -> 14.81251813 | D90: 0 | E90: 14.99536878 | F90: 0.459 | G90: 2026-04-01 | H90: 15.45436878 | I90: 2026
A91: =Index!A91 -> 2026-05-01 | B91: =Index!C91 -> 14.99536878 | C91: =Index!B91 -> 14.83183519 | D91: 0 | E91: 14.99536878 | F91: 0.459 | G91: 2026-05-01 | H91: 15.45436878 | I91: 2026
A92: =Index!A92 -> 2026-06-01 | B92: =Index!C92 -> 14.99536878 | C92: =Index!B92 -> 14.85114457 | D92: 0 | E92: 14.99536878 | F92: 0.459 | G92: 2026-06-01 | H92: 15.45436878 | I92: 2026
A93: =Index!A93 -> 2026-07-01 | B93: =Index!C93 -> 14.99536878 | C93: =Index!B93 -> 14.78563896 | D93: 0 | E93: 14.99536878 | F93: 0.459 | G93: 2026-07-01 | H93: 15.45436878 | I93: 2026
A94: =Index!A94 -> 2026-08-01 | B94: =Index!C94 -> 14.99536878 | C94: =Index!B94 -> 14.7854115 | D94: 0 | E94: 14.99536878 | F94: 0.459 | G94: 2026-08-01 | H94: 15.45436878 | I94: 2026
A95: =Index!A95 -> 2026-09-01 | B95: =Index!C95 -> 14.99536878 | C95: =Index!B95 -> 15.40290767 | D95: 0 | E95: 14.99536878 | F95: 0.459 | G95: 2026-09-01 | H95: 15.45436878 | I95: 2026
A96: =Index!A96 -> 2026-10-01 | B96: =Index!C96 -> 14.99536878 | C96: =Index!B96 -> 15.11443165 | D96: 0 | E96: 14.99536878 | F96: 0.459 | G96: 2026-10-01 | H96: 15.45436878 | I96: 2026
A97: =Index!A97 -> 2026-11-01 | B97: =Index!C97 -> 14.99536878 | C97: =Index!B97 -> 14.86084447 | D97: 0 | E97: 14.99536878 | F97: 0.459 | G97: 2026-11-01 | H97: 15.45436878 | I97: 2026
A98: =Index!A98 -> 2026-12-01 | B98: =Index!C98 -> 14.99536878 | C98: =Index!B98 -> 14.88785037 | D98: 0 | E98: 14.99536878 | F98: 0.459 | G98: 2026-12-01 | H98: 15.45436878 | I98: 2026
A99: =Index!A99 -> 2027-01-01 | B99: =Index!C99 -> 15.64193825 | C99: =Index!B99 -> 15.04966613 | D99: 0 | E99: 15.64193825 | F99: 0.466 | G99: 2027-01-01 | H99: 16.10793825 | I99: 2027
A100: =Index!A100 -> 2027-02-01 | B100: =Index!C100 -> 15.64193825 | C100: =Index!B100 -> 15.06936169 | D100: 0 | E100: 15.64193825 | F100: 0.466 | G100: 2027-02-01 | H100: =SUM(E100:F100) -> 16.10793825 | I100: 2027
A101: =Index!A101 -> 2027-03-01 | B101: =Index!C101 -> 15.64193825 | C101: =Index!B101 -> 15.08906509 | D101: 0 | E101: 15.64193825 | F101: 0.466 | G101: 2027-03-01 | H101: 16.10793825 | I101: 2027
A102: =Index!A102 -> 2027-04-01 | B102: =Index!C102 -> 15.64193825 | C102: =Index!B102 -> 15.10876849 | D102: 0 | E102: 15.64193825 | F102: 0.466 | G102: 2027-04-01 | H102: 16.10793825 | I102: 2027
A103: =Index!A103 -> 2027-05-01 | B103: =Index!C103 -> 15.64193825 | C103: =Index!B103 -> 15.1284719 | D103: 0 | E103: 15.64193825 | F103: 0.466 | G103: 2027-05-01 | H103: 16.10793825 | I103: 2027
A104: =Index!A104 -> 2027-06-01 | B104: =Index!C104 -> 15.64193825 | C104: =Index!B104 -> 15.14816746 | D104: 0 | E104: 15.64193825 | F104: 0.466 | G104: 2027-06-01 | H104: 16.10793825 | I104: 2027
A105: =Index!A105 -> 2027-07-01 | B105: =Index!C105 -> 15.64193825 | C105: =Index!B105 -> 15.08135174 | D105: 0 | E105: 15.64193825 | F105: 0.466 | G105: 2027-07-01 | H105: 16.10793825 | I105: 2027
A106: =Index!A106 -> 2027-08-01 | B106: =Index!C106 -> 15.64193825 | C106: =Index!B106 -> 15.08111973 | D106: 0 | E106: 15.64193825 | F106: 0.466 | G106: 2027-08-01 | H106: 16.10793825 | I106: 2027
A107: =Index!A107 -> 2027-09-01 | B107: =Index!C107 -> 15.64193825 | C107: =Index!B107 -> 15.71096582 | D107: 0 | E107: 15.64193825 | F107: 0.466 | G107: 2027-09-01 | H107: 16.10793825 | I107: 2027
A108: =Index!A108 -> 2027-10-01 | B108: =Index!C108 -> 15.64193825 | C108: =Index!B108 -> 15.41672029 | D108: 0 | E108: 15.64193825 | F108: 0.466 | G108: 2027-10-01 | H108: 16.10793825 | I108: 2027
A109: =Index!A109 -> 2027-11-01 | B109: =Index!C109 -> 15.64193825 | C109: =Index!B109 -> 15.15806136 | D109: 0 | E109: 15.64193825 | F109: 0.466 | G109: 2027-11-01 | H109: 16.10793825 | I109: 2027
A110: =Index!A110 -> 2027-12-01 | B110: =Index!C110 -> 15.64193825 | C110: =Index!B110 -> 15.18560737 | D110: 0 | E110: 15.64193825 | F110: 0.466 | G110: 2027-12-01 | H110: 16.10793825 | I110: 2027
A111: =Index!A111 -> 2028-01-01 | B111: =Index!C111 -> 16.3885729 | C111: =Index!B111 -> 15.35065945 | D111: 0 | E111: 16.3885729 | F111: 0.473 | G111: 2028-01-01 | H111: 16.8615729 | I111: 2028
A112: =Index!A112 -> 2028-02-01 | B112: =Index!C112 -> 16.3885729 | C112: =Index!B112 -> 15.37074892 | D112: 0 | E112: 16.3885729 | F112: 0.473 | G112: 2028-02-01 | H112: 16.8615729 | I112: 2028
A113: =Index!A113 -> 2028-03-01 | B113: =Index!C113 -> 16.3885729 | C113: =Index!B113 -> 15.39084639 | D113: 0 | E113: 16.3885729 | F113: 0.473 | G113: 2028-03-01 | H113: 16.8615729 | I113: 2028
A114: =Index!A114 -> 2028-04-01 | B114: =Index!C114 -> 16.3885729 | C114: =Index!B114 -> 15.41094386 | D114: 0 | E114: 16.3885729 | F114: 0.473 | G114: 2028-04-01 | H114: 16.8615729 | I114: 2028
A115: =Index!A115 -> 2028-05-01 | B115: =Index!C115 -> 16.3885729 | C115: =Index!B115 -> 15.43104134 | D115: 0 | E115: 16.3885729 | F115: 0.473 | G115: 2028-05-01 | H115: 16.8615729 | I115: 2028
A116: =Index!A116 -> 2028-06-01 | B116: =Index!C116 -> 16.3885729 | C116: =Index!B116 -> 15.45113081 | D116: 0 | E116: 16.3885729 | F116: 0.473 | G116: 2028-06-01 | H116: 16.8615729 | I116: 2028
A117: =Index!A117 -> 2028-07-01 | B117: =Index!C117 -> 16.3885729 | C117: =Index!B117 -> 15.38297878 | D117: 0 | E117: 16.3885729 | F117: 0.473 | G117: 2028-07-01 | H117: 16.8615729 | I117: 2028
A118: =Index!A118 -> 2028-08-01 | B118: =Index!C118 -> 16.3885729 | C118: =Index!B118 -> 15.38274212 | D118: 0 | E118: =(C118*D118+B118*(1-D118)) -> 16.3885729 | F118: 0.473 | G118: 2028-08-01 | H118: 16.8615729 | I118: 2028
A119: =Index!A119 -> 2028-09-01 | B119: =Index!C119 -> 16.3885729 | C119: =Index!B119 -> 16.02518514 | D119: 0 | E119: 16.3885729 | F119: 0.473 | G119: 2028-09-01 | H119: 16.8615729 | I119: 2028
A120: =Index!A120 -> 2028-10-01 | B120: =Index!C120 -> 16.3885729 | C120: =Index!B120 -> 15.72505469 | D120: 0 | E120: 16.3885729 | F120: 0.473 | G120: 2028-10-01 | H120: 16.8615729 | I120: 2028
A121: =Index!A121 -> 2028-11-01 | B121: =Index!C121 -> 16.3885729 | C121: =Index!B121 -> 15.46122258 | D121: 0 | E121: 16.3885729 | F121: 0.473 | G121: 2028-11-01 | H121: 16.8615729 | I121: 2028
A122: =Index!A122 -> 2028-12-01 | B122: =Index!C122 -> 16.3885729 | C122: =Index!B122 -> 15.48931952 | D122: 0 | E122: 16.3885729 | F122: 0.473 | G122: 2028-12-01 | H122: 16.8615729 | I122: 2028
A123: =Index!A123 -> 2029-01-01 | B123: =Index!C123 -> 17.07029846 | C123: =Index!B123 -> 15.65767264 | D123: 0 | E123: 17.07029846 | F123: 0.48 | G123: 2029-01-01 | H123: 17.55029846 | I123: 2029
A124: =Index!A124 -> 2029-02-01 | B124: =Index!C124 -> 17.07029846 | C124: =Index!B124 -> 15.6781639 | D124: 0 | E124: 17.07029846 | F124: 0.48 | G124: 2029-02-01 | H124: 17.55029846 | I124: 2029
A125: =Index!A125 -> 2029-03-01 | B125: =Index!C125 -> 17.07029846 | C125: =Index!B125 -> 15.69866332 | D125: 0 | E125: 17.07029846 | F125: 0.48 | G125: 2029-03-01 | H125: 17.55029846 | I125: 2029
A126: =Index!A126 -> 2029-04-01 | B126: =Index!C126 -> 17.07029846 | C126: =Index!B126 -> 15.71916274 | D126: 0 | E126: 17.07029846 | F126: 0.48 | G126: 2029-04-01 | H126: 17.55029846 | I126: 2029
A127: =Index!A127 -> 2029-05-01 | B127: =Index!C127 -> 17.07029846 | C127: =Index!B127 -> 15.73966216 | D127: 0 | E127: 17.07029846 | F127: 0.48 | G127: 2029-05-01 | H127: 17.55029846 | I127: 2029
A128: =Index!A128 -> 2029-06-01 | B128: =Index!C128 -> 17.07029846 | C128: =Index!B128 -> 15.76015342 | D128: 0 | E128: 17.07029846 | F128: 0.48 | G128: 2029-06-01 | H128: 17.55029846 | I128: 2029
A129: =Index!A129 -> 2029-07-01 | B129: =Index!C129 -> 17.07029846 | C129: =Index!B129 -> 15.69063835 | D129: 0 | E129: 17.07029846 | F129: 0.48 | G129: 2029-07-01 | H129: 17.55029846 | I129: 2029
A130: =Index!A130 -> 2029-08-01 | B130: =Index!C130 -> 17.07029846 | C130: =Index!B130 -> 15.69039696 | D130: 0 | E130: 17.07029846 | F130: 0.48 | G130: 2029-08-01 | H130: 17.55029846 | I130: 2029
A131: =Index!A131 -> 2029-09-01 | B131: =Index!C131 -> 17.07029846 | C131: =Index!B131 -> 16.34568884 | D131: 0 | E131: 17.07029846 | F131: 0.48 | G131: 2029-09-01 | H131: 17.55029846 | I131: 2029
A132: =Index!A132 -> 2029-10-01 | B132: =Index!C132 -> 17.07029846 | C132: =Index!B132 -> 16.03955579 | D132: 0 | E132: 17.07029846 | F132: 0.48 | G132: 2029-10-01 | H132: 17.55029846 | I132: =YEAR(A132) -> 2029
A133: =Index!A133 -> 2029-11-01 | B133: =Index!C133 -> 17.07029846 | C133: =Index!B133 -> 15.77044704 | D133: 0 | E133: 17.07029846 | F133: 0.48 | G133: 2029-11-01 | H133: 17.55029846 | I133: 2029
A134: =Index!A134 -> 2029-12-01 | B134: =Index!C134 -> 17.07029846 | C134: =Index!B134 -> 15.79910591 | D134: 0 | E134: 17.07029846 | F134: 0.48 | G134: 2029-12-01 | H134: 17.55029846 | I134: 2029
A135: =Index!A135 -> 2030-01-01 | B135: =Index!C135 -> 17.49606175 | C135: =Index!B135 -> 15.97082609 | D135: 0 | E135: 17.49606175 | F135: 0.487 | G135: 2030-01-01 | H135: 17.98306175 | I135: 2030
A136: =Index!A136 -> 2030-02-01 | B136: =Index!C136 -> 17.49606175 | C136: =Index!B136 -> 15.99172718 | D136: 0 | E136: 17.49606175 | F136: 0.487 | G136: 2030-02-01 | H136: 17.98306175 | I136: 2030
A137: =Index!A137 -> 2030-03-01 | B137: =Index!C137 -> 17.49606175 | C137: =Index!B137 -> 16.01263659 | D137: 0 | E137: 17.49606175 | F137: 0.487 | G137: 2030-03-01 | H137: 17.98306175 | I137: 2030
A138: =Index!A138 -> 2030-04-01 | B138: =Index!C138 -> 17.49606175 | C138: =Index!B138 -> 16.033546 | D138: 0 | E138: 17.49606175 | F138: 0.487 | G138: 2030-04-01 | H138: 17.98306175 | I138: 2030
A139: =Index!A139 -> 2030-05-01 | B139: =Index!C139 -> 17.49606175 | C139: =Index!B139 -> 16.05445541 | D139: 0 | E139: 17.49606175 | F139: 0.487 | G139: 2030-05-01 | H139: 17.98306175 | I139: 2030
A140: =Index!A140 -> 2030-06-01 | B140: =Index!C140 -> 17.49606175 | C140: =Index!B140 -> 16.07535649 | D140: 0 | E140: 17.49606175 | F140: 0.487 | G140: 2030-06-01 | H140: 17.98306175 | I140: 2030
A141: =Index!A141 -> 2030-07-01 | B141: =Index!C141 -> 17.49606175 | C141: =Index!B141 -> 16.00445112 | D141: 0 | E141: 17.49606175 | F141: 0.487 | G141: 2030-07-01 | H141: 17.98306175 | I141: 2030
A142: =Index!A142 -> 2030-08-01 | B142: =Index!C142 -> 17.49606175 | C142: =Index!B142 -> 16.0042049 | D142: 0 | E142: 17.49606175 | F142: 0.487 | G142: 2030-08-01 | H142: 17.98306175 | I142: 2030
A143: =Index!A143 -> 2030-09-01 | B143: =Index!C143 -> 17.49606175 | C143: =Index!B143 -> 16.67260262 | D143: 0 | E143: 17.49606175 | F143: 0.487 | G143: 2030-09-01 | H143: 17.98306175 | I143: 2030
A144: =Index!A144 -> 2030-10-01 | B144: =Index!C144 -> 17.49606175 | C144: =Index!B144 -> 16.3603469 | D144: 0 | E144: 17.49606175 | F144: 0.487 | G144: 2030-10-01 | H144: 17.98306175 | I144: 2030
A145: =Index!A145 -> 2030-11-01 | B145: =Index!C145 -> 17.49606175 | C145: =Index!B145 -> 16.08585598 | D145: 0 | E145: 17.49606175 | F145: 0.487 | G145: =A145 -> 2030-11-01 | H145: 17.98306175 | I145: 2030
A146: =Index!A146 -> 2030-12-01 | B146: =Index!C146 -> 17.49606175 | C146: =Index!B146 -> 16.11508803 | D146: 0 | E146: 17.49606175 | F146: 0.487 | G146: 2030-12-01 | H146: 17.98306175 | I146: 2030
A147: =Index!A147 -> 2031-01-01 | B147: =Index!C147 -> 17.89127959 | C147: =Index!B147 -> 16.29024262 | D147: 0 | E147: 17.89127959 | F147: 0.495 | G147: 2031-01-01 | H147: 18.38627959 | I147: 2031
A148: =Index!A148 -> 2031-02-01 | B148: =Index!C148 -> 17.89127959 | C148: =Index!B148 -> 16.31156172 | D148: 0 | E148: 17.89127959 | F148: 0.495 | G148: 2031-02-01 | H148: 18.38627959 | I148: 2031
A149: =Index!A149 -> 2031-03-01 | B149: =Index!C149 -> 17.89127959 | C149: =Index!B149 -> 16.33288932 | D149: 0 | E149: 17.89127959 | F149: 0.495 | G149: 2031-03-01 | H149: 18.38627959 | I149: 2031
A150: =Index!A150 -> 2031-04-01 | B150: =Index!C150 -> 17.89127959 | C150: =Index!B150 -> 16.35421692 | D150: 0 | E150: 17.89127959 | F150: 0.495 | G150: 2031-04-01 | H150: 18.38627959 | I150: 2031
A151: =Index!A151 -> 2031-05-01 | B151: =Index!C151 -> 17.89127959 | C151: =Index!B151 -> 16.37554451 | D151: 0 | E151: 17.89127959 | F151: 0.495 | G151: 2031-05-01 | H151: 18.38627959 | I151: 2031
A152: =Index!A152 -> 2031-06-01 | B152: =Index!C152 -> 17.89127959 | C152: =Index!B152 -> 16.39686362 | D152: 0 | E152: 17.89127959 | F152: 0.495 | G152: 2031-06-01 | H152: 18.38627959 | I152: 2031
A153: =Index!A153 -> 2031-07-01 | B153: =Index!C153 -> 17.89127959 | C153: =Index!B153 -> 16.32454014 | D153: 0 | E153: 17.89127959 | F153: 0.495 | G153: 2031-07-01 | H153: 18.38627959 | I153: 2031
A154: =Index!A154 -> 2031-08-01 | B154: =Index!C154 -> 17.89127959 | C154: =Index!B154 -> 16.324289 | D154: 0 | E154: 17.89127959 | F154: 0.495 | G154: 2031-08-01 | H154: 18.38627959 | I154: 2031
A155: =Index!A155 -> 2031-09-01 | B155: =Index!C155 -> 17.89127959 | C155: =Index!B155 -> 17.00605467 | D155: 0 | E155: 17.89127959 | F155: 0.495 | G155: 2031-09-01 | H155: 18.38627959 | I155: 2031
A156: =Index!A156 -> 2031-10-01 | B156: =Index!C156 -> 17.89127959 | C156: =Index!B156 -> 16.68755384 | D156: 0 | E156: 17.89127959 | F156: 0.495 | G156: 2031-10-01 | H156: 18.38627959 | I156: 2031
A157: =Index!A157 -> 2031-11-01 | B157: =Index!C157 -> 17.89127959 | C157: =Index!B157 -> 16.4075731 | D157: 0 | E157: 17.89127959 | F157: 0.495 | G157: 2031-11-01 | H157: 18.38627959 | I157: 2031
A158: =Index!A158 -> 2031-12-01 | B158: =Index!C158 -> 17.89127959 | C158: =Index!B158 -> 16.43738979 | D158: 0 | E158: 17.89127959 | F158: 0.495 | G158: 2031-12-01 | H158: 18.38627959 | I158: 2031
A159: =Index!A159 -> 2032-01-01 | B159: =Index!C159 -> 18.30191424 | C159: =Index!B159 -> 16.61604747 | D159: 0 | E159: 18.30191424 | F159: 0.502 | G159: 2032-01-01 | H159: 18.80391424 | I159: 2032
A160: =Index!A160 -> 2032-02-01 | B160: =Index!C160 -> 18.30191424 | C160: =Index!B160 -> 16.63779296 | D160: 0 | E160: 18.30191424 | F160: 0.502 | G160: 2032-02-01 | H160: 18.80391424 | I160: 2032
A161: =Index!A161 -> 2032-03-01 | B161: =Index!C161 -> 18.30191424 | C161: =Index!B161 -> 16.65954711 | D161: 0 | E161: 18.30191424 | F161: 0.502 | G161: 2032-03-01 | H161: 18.80391424 | I161: 2032
A162: =Index!A162 -> 2032-04-01 | B162: =Index!C162 -> 18.30191424 | C162: =Index!B162 -> 16.68130125 | D162: 0 | E162: 18.30191424 | F162: 0.502 | G162: 2032-04-01 | H162: 18.80391424 | I162: 2032
A163: =Index!A163 -> 2032-05-01 | B163: =Index!C163 -> 18.30191424 | C163: =Index!B163 -> 16.7030554 | D163: 0 | E163: 18.30191424 | F163: 0.502 | G163: 2032-05-01 | H163: 18.80391424 | I163: 2032
A164: =Index!A164 -> 2032-06-01 | B164: =Index!C164 -> 18.30191424 | C164: =Index!B164 -> 16.72480089 | D164: 0 | E164: 18.30191424 | F164: 0.502 | G164: 2032-06-01 | H164: =SUM(E164:F164) -> 18.80391424 | I164: 2032
A165: =Index!A165 -> 2032-07-01 | B165: =Index!C165 -> 18.30191424 | C165: =Index!B165 -> 16.65103095 | D165: 0 | E165: 18.30191424 | F165: 0.502 | G165: 2032-07-01 | H165: 18.80391424 | I165: 2032
A166: =Index!A166 -> 2032-08-01 | B166: =Index!C166 -> 18.30191424 | C166: =Index!B166 -> 16.65077478 | D166: 0 | E166: 18.30191424 | F166: 0.502 | G166: 2032-08-01 | H166: 18.80391424 | I166: 2032
A167: =Index!A167 -> 2032-09-01 | B167: =Index!C167 -> 18.30191424 | C167: =Index!B167 -> 17.34617576 | D167: 0 | E167: 18.30191424 | F167: 0.502 | G167: 2032-09-01 | H167: 18.80391424 | I167: 2032
A168: =Index!A168 -> 2032-10-01 | B168: =Index!C168 -> 18.30191424 | C168: =Index!B168 -> 17.02130492 | D168: 0 | E168: 18.30191424 | F168: 0.502 | G168: 2032-10-01 | H168: 18.80391424 | I168: 2032
A169: =Index!A169 -> 2032-11-01 | B169: =Index!C169 -> 18.30191424 | C169: =Index!B169 -> 16.73572456 | D169: 0 | E169: 18.30191424 | F169: 0.502 | G169: 2032-11-01 | H169: 18.80391424 | I169: 2032
A170: =Index!A170 -> 2032-12-01 | B170: =Index!C170 -> 18.30191424 | C170: =Index!B170 -> 16.76613759 | D170: 0 | E170: 18.30191424 | F170: 0.502 | G170: 2032-12-01 | H170: 18.80391424 | I170: 2032
A171: =Index!A171 -> 2033-01-01 | B171: =Index!C171 -> 18.72659691 | C171: =Index!B171 -> 16.94836842 | D171: 0 | E171: 18.72659691 | F171: 0.51 | G171: 2033-01-01 | H171: 19.23659691 | I171: 2033
A172: =Index!A172 -> 2033-02-01 | B172: =Index!C172 -> 18.72659691 | C172: =Index!B172 -> 16.97054882 | D172: 0 | E172: 18.72659691 | F172: 0.51 | G172: 2033-02-01 | H172: 19.23659691 | I172: 2033
A173: =Index!A173 -> 2033-03-01 | B173: =Index!C173 -> 18.72659691 | C173: =Index!B173 -> 16.99273805 | D173: 0 | E173: 18.72659691 | F173: 0.51 | G173: 2033-03-01 | H173: 19.23659691 | I173: 2033
A174: =Index!A174 -> 2033-04-01 | B174: =Index!C174 -> 18.72659691 | C174: =Index!B174 -> 17.01492728 | D174: 0 | E174: 18.72659691 | F174: 0.51 | G174: 2033-04-01 | H174: 19.23659691 | I174: 2033
A175: =Index!A175 -> 2033-05-01 | B175: =Index!C175 -> 18.72659691 | C175: =Index!B175 -> 17.03711651 | D175: 0 | E175: 18.72659691 | F175: 0.51 | G175: 2033-05-01 | H175: 19.23659691 | I175: 2033
A176: =Index!A176 -> 2033-06-01 | B176: =Index!C176 -> 18.72659691 | C176: =Index!B176 -> 17.05929691 | D176: 0 | E176: 18.72659691 | F176: 0.51 | G176: 2033-06-01 | H176: 19.23659691 | I176: 2033
A177: =Index!A177 -> 2033-07-01 | B177: =Index!C177 -> 18.72659691 | C177: =Index!B177 -> 16.98405156 | D177: 0 | E177: 18.72659691 | F177: 0.51 | G177: 2033-07-01 | H177: 19.23659691 | I177: 2033
A178: =Index!A178 -> 2033-08-01 | B178: =Index!C178 -> 18.72659691 | C178: =Index!B178 -> 16.98379028 | D178: 0 | E178: 18.72659691 | F178: 0.51 | G178: 2033-08-01 | H178: 19.23659691 | I178: 2033
A179: =Index!A179 -> 2033-09-01 | B179: =Index!C179 -> 18.72659691 | C179: =Index!B179 -> 17.69309928 | D179: 0 | E179: 18.72659691 | F179: 0.51 | G179: 2033-09-01 | H179: 19.23659691 | I179: 2033
A180: =Index!A180 -> 2033-10-01 | B180: =Index!C180 -> 18.72659691 | C180: =Index!B180 -> 17.36173102 | D180: 0 | E180: 18.72659691 | F180: 0.51 | G180: 2033-10-01 | H180: 19.23659691 | I180: 2033
A181: =Index!A181 -> 2033-11-01 | B181: =Index!C181 -> 18.72659691 | C181: =Index!B181 -> 17.07043905 | D181: 0 | E181: 18.72659691 | F181: 0.51 | G181: 2033-11-01 | H181: 19.23659691 | I181: 2033
A182: =Index!A182 -> 2033-12-01 | B182: =Index!C182 -> 18.72659691 | C182: =Index!B182 -> 17.10146034 | D182: 0 | E182: =(C182*D182+B182*(1-D182)) -> 18.72659691 | F182: 0.51 | G182: 2033-12-01 | H182: 19.23659691 | I182: 2033
A183: =Index!A183 -> 2034-01-01 | B183: =Index!C183 -> 19.15740309 | C183: =Index!B183 -> 17.28733579 | D183: 0 | E183: 19.15740309 | F183: 0.517 | G183: 2034-01-01 | H183: 19.67440309 | I183: 2034
A184: =Index!A184 -> 2034-02-01 | B184: =Index!C184 -> 19.15740309 | C184: =Index!B184 -> 17.30995979 | D184: 0 | E184: 19.15740309 | F184: 0.517 | G184: 2034-02-01 | H184: 19.67440309 | I184: 2034
A185: =Index!A185 -> 2034-03-01 | B185: =Index!C185 -> 19.15740309 | C185: =Index!B185 -> 17.33259281 | D185: 0 | E185: 19.15740309 | F185: 0.517 | G185: 2034-03-01 | H185: 19.67440309 | I185: 2034
A186: =Index!A186 -> 2034-04-01 | B186: =Index!C186 -> 19.15740309 | C186: =Index!B186 -> 17.35522583 | D186: 0 | E186: 19.15740309 | F186: 0.517 | G186: 2034-04-01 | H186: 19.67440309 | I186: 2034
A187: =Index!A187 -> 2034-05-01 | B187: =Index!C187 -> 19.15740309 | C187: =Index!B187 -> 17.37785884 | D187: 0 | E187: 19.15740309 | F187: 0.517 | G187: 2034-05-01 | H187: 19.67440309 | I187: 2034
A188: =Index!A188 -> 2034-06-01 | B188: =Index!C188 -> 19.15740309 | C188: =Index!B188 -> 17.40048285 | D188: 0 | E188: 19.15740309 | F188: 0.517 | G188: 2034-06-01 | H188: 19.67440309 | I188: 2034
A189: =Index!A189 -> 2034-07-01 | B189: =Index!C189 -> 19.15740309 | C189: =Index!B189 -> 17.3237326 | D189: 0 | E189: 19.15740309 | F189: 0.517 | G189: 2034-07-01 | H189: 19.67440309 | I189: 2034
A190: =Index!A190 -> 2034-08-01 | B190: =Index!C190 -> 19.15740309 | C190: =Index!B190 -> 17.32346608 | D190: 0 | E190: 19.15740309 | F190: 0.517 | G190: 2034-08-01 | H190: 19.67440309 | I190: 2034
A191: =Index!A191 -> 2034-09-01 | B191: =Index!C191 -> 19.15740309 | C191: =Index!B191 -> 18.04696126 | D191: 0 | E191: 19.15740309 | F191: 0.517 | G191: 2034-09-01 | H191: 19.67440309 | I191: 2034
A192: =Index!A192 -> 2034-10-01 | B192: =Index!C192 -> 19.15740309 | C192: =Index!B192 -> 17.70896564 | D192: 0 | E192: 19.15740309 | F192: 0.517 | G192: 2034-10-01 | H192: 19.67440309 | I192: 2034
A193: =Index!A193 -> 2034-11-01 | B193: =Index!C193 -> 19.15740309 | C193: =Index!B193 -> 17.41184783 | D193: 0 | E193: 19.15740309 | F193: 0.517 | G193: 2034-11-01 | H193: 19.67440309 | I193: 2034
A194: =Index!A194 -> 2034-12-01 | B194: =Index!C194 -> 19.15740309 | C194: =Index!B194 -> 17.44348954 | D194: 0 | E194: 19.15740309 | F194: 0.517 | G194: 2034-12-01 | H194: 19.67440309 | I194: 2034
A195: =Index!A195 -> 2035-01-01 | B195: =Index!C195 -> 19.59851115 | C195: =Index!B195 -> 17.6330825 | D195: 0 | E195: 19.59851115 | F195: 0.525 | G195: 2035-01-01 | H195: 20.12351115 | I195: 2035
A196: =Index!A196 -> 2035-02-01 | B196: =Index!C196 -> 19.59851115 | C196: =Index!B196 -> 17.65615899 | D196: 0 | E196: 19.59851115 | F196: 0.525 | G196: 2035-02-01 | H196: 20.12351115 | I196: =YEAR(A196) -> 2035
A197: =Index!A197 -> 2035-03-01 | B197: =Index!C197 -> 19.59851115 | C197: =Index!B197 -> 17.67924467 | D197: 0 | E197: 19.59851115 | F197: 0.525 | G197: 2035-03-01 | H197: 20.12351115 | I197: 2035
A198: =Index!A198 -> 2035-04-01 | B198: =Index!C198 -> 19.59851115 | C198: =Index!B198 -> 17.70233034 | D198: 0 | E198: 19.59851115 | F198: 0.525 | G198: 2035-04-01 | H198: 20.12351115 | I198: 2035
A199: =Index!A199 -> 2035-05-01 | B199: =Index!C199 -> 19.59851115 | C199: =Index!B199 -> 17.72541602 | D199: 0 | E199: 19.59851115 | F199: 0.525 | G199: 2035-05-01 | H199: 20.12351115 | I199: 2035
A200: =Index!A200 -> 2035-06-01 | B200: =Index!C200 -> 19.59851115 | C200: =Index!B200 -> 17.74849251 | D200: 0 | E200: 19.59851115 | F200: 0.525 | G200: 2035-06-01 | H200: 20.12351115 | I200: 2035
... 186 more rows

Sheet Crystal River
A1: Crystal River | B1: PETROLEUM PRODUCT PRICE FORECAST DATA | G1: PROSYM INPUT | J1: ANNUAL AVERAGE
A2: Date | B2: Petroleum Product Price Forecast - Gulf Coast | C2: TCM | D2: Blend TCM/ Fundamental (%) | E2: Blend TCM/ Fundamental ($) | F2: Crystal River Transport ($/MMBtu) | G2: Date | H2: nomianl$/MMBtu | K2: =A1 -> Crystal River
A3: =Index!A3 -> 2019-01-01 | B3: =Index!C3 -> 14.62277187 | C3: =Index!B3 -> 12.92753623 | D3: 1 | E3: =(C3*D3+B3*(1-D3)) -> 12.92753623 | F3: 0.63 | G3: =A3 -> 2019-01-01 | H3: =SUM(E3:F3) -> 13.55753623 | I3: =YEAR(A3) -> 2019 | J3: 2019 | K3: =AVERAGEIF($I$3:$I$386,J3,$H$3:$H$386) -> 14.15711353
A4: =Index!A4 -> 2019-02-01 | B4: =Index!C4 -> 14.62277187 | C4: =Index!B4 -> 13.86956522 | D4: 1 | E4: 13.86956522 | F4: 0.63 | G4: 2019-02-01 | H4: 14.49956522 | I4: =YEAR(A4) -> 2019 | J4: 2020 | K4: =AVERAGEIF($I$3:$I$386,J4,$H$3:$H$386) -> 14.28816546
A5: =Index!A5 -> 2019-03-01 | B5: =Index!C5 -> 14.62277187 | C5: =Index!B5 -> 13.7826087 | D5: 1 | E5: 13.7826087 | F5: 0.63 | G5: 2019-03-01 | H5: 14.4126087 | I5: 2019 | J5: 2021 | K5: 14.04332126
A6: =Index!A6 -> 2019-04-01 | B6: =Index!C6 -> 14.62277187 | C6: =Index!B6 -> 14.32608696 | D6: 1 | E6: 14.32608696 | F6: 0.63 | G6: 2019-04-01 | H6: 14.95608696 | I6: 2019 | J6: 2022 | K6: 14.29507287
A7: =Index!A7 -> 2019-05-01 | B7: =Index!C7 -> 14.62277187 | C7: =Index!B7 -> 14.28985507 | D7: 1 | E7: 14.28985507 | F7: 0.63 | G7: 2019-05-01 | H7: 14.91985507 | I7: 2019 | J7: 2023 | K7: 14.47971822
A8: =Index!A8 -> 2019-06-01 | B8: =Index!C8 -> 14.62277187 | C8: =Index!B8 -> 13.16666667 | D8: 1 | E8: 13.16666667 | F8: 0.63 | G8: 2019-06-01 | H8: 13.79666667 | I8: 2019 | J8: 2024 | K8: 14.76333619
A9: =Index!A9 -> 2019-07-01 | B9: =Index!C9 -> 14.62277187 | C9: =Index!B9 -> 13.86231884 | D9: 1 | E9: 13.86231884 | F9: 0.63 | G9: 2019-07-01 | H9: 14.49231884 | I9: 2019 | J9: 2025 | K9: 15.12360034
A10: =Index!A10 -> 2019-08-01 | B10: =Index!C10 -> 14.62277187 | C10: =Index!B10 -> 13.04347826 | D10: 1 | E10: 13.04347826 | F10: 0.63 | G10: 2019-08-01 | H10: 13.67347826 | I10: 2019 | J10: 2026 | K10: 15.69536878
A11: =Index!A11 -> 2019-09-01 | B11: =Index!C11 -> 14.62277187 | C11: =Index!B11 -> 13.57971014 | D11: 1 | E11: 13.57971014 | F11: 0.63 | G11: 2019-09-01 | H11: 14.20971014 | I11: 2019 | J11: 2027 | K11: 16.35193825
A12: =Index!A12 -> 2019-10-01 | B12: =Index!C12 -> 14.62277187 | C12: =Index!B12 -> 13.3115942 | D12: 1 | E12: 13.3115942 | F12: 0.63 | G12: 2019-10-01 | H12: 13.9415942 | I12: 2019 | J12: 2028 | K12: 17.1095729
A13: =Index!A13 -> 2019-11-01 | B13: =Index!C13 -> 14.62277187 | C13: =Index!B13 -> 13.07681159 | D13: 1 | E13: 13.07681159 | F13: 0.63 | G13: 2019-11-01 | H13: 13.70681159 | I13: 2019 | J13: 2029 | K13: 17.80229846
A14: =Index!A14 -> 2019-12-01 | B14: =Index!C14 -> 14.62277187 | C14: =Index!B14 -> 13.08913043 | D14: 1 | E14: 13.08913043 | F14: 0.63 | G14: 2019-12-01 | H14: 13.71913043 | I14: 2019 | J14: 2030 | K14: 18.23906175
A15: =Index!A15 -> 2020-01-01 | B15: =Index!C15 -> 13.65684391 | C15: =Index!B15 -> 13.8037971 | D15: 1 | E15: 13.8037971 | F15: 0.64 | G15: 2020-01-01 | H15: 14.4437971 | I15: 2020 | J15: 2031 | K15: 18.64527959
A16: =Index!A16 -> 2020-02-01 | B16: =Index!C16 -> 13.65684391 | C16: =Index!B16 -> 14.0924058 | D16: 1 | E16: 14.0924058 | F16: 0.64 | G16: 2020-02-01 | H16: 14.7324058 | I16: 2020 | J16: 2032 | K16: 19.06691424
A17: =Index!A17 -> 2020-03-01 | B17: =Index!C17 -> 13.65684391 | C17: =Index!B17 -> 14.59535507 | D17: 1 | E17: 14.59535507 | F17: 0.64 | G17: =A17 -> 2020-03-01 | H17: 15.23535507 | I17: 2020 | J17: 2033 | K17: 19.50359691
A18: =Index!A18 -> 2020-04-01 | B18: =Index!C18 -> 13.65684391 | C18: =Index!B18 -> 14.42354348 | D18: 1 | E18: 14.42354348 | F18: 0.64 | G18: 2020-04-01 | H18: 15.06354348 | I18: 2020 | J18: 2034 | K18: 19.94540309
A19: =Index!A19 -> 2020-05-01 | B19: =Index!C19 -> 13.65684391 | C19: =Index!B19 -> 13.10595652 | D19: 1 | E19: 13.10595652 | F19: 0.64 | G19: 2020-05-01 | H19: 13.74595652 | I19: 2020 | J19: 2035 | K19: 20.39851115
A20: =Index!A20 -> 2020-06-01 | B20: =Index!C20 -> 13.65684391 | C20: =Index!B20 -> 13.60171739 | D20: 1 | E20: 13.60171739 | F20: 0.64 | G20: 2020-06-01 | H20: 14.24171739 | I20: 2020 | J20: 2036 | K20: 20.86078559
A21: =Index!A21 -> 2020-07-01 | B21: =Index!C21 -> 13.65684391 | C21: =Index!B21 -> 12.98257246 | D21: 1 | E21: 12.98257246 | F21: 0.64 | G21: 2020-07-01 | H21: 13.62257246 | I21: 2020 | J21: 2037 | K21: 21.3430042
A22: =Index!A22 -> 2020-08-01 | B22: =Index!C22 -> 13.65684391 | C22: =Index!B22 -> 13.8187029 | D22: 1 | E22: 13.8187029 | F22: 0.64 | G22: 2020-08-01 | H22: 14.4587029 | I22: 2020 | J22: 2038 | K22: 21.74363834
A23: =Index!A23 -> 2020-09-01 | B23: =Index!C23 -> 13.65684391 | C23: =Index!B23 -> 13.63598551 | D23: 1 | E23: 13.63598551 | F23: 0.64 | G23: 2020-09-01 | H23: 14.27598551 | I23: 2020 | J23: 2039 | K23: 22.13300291
A24: =Index!A24 -> 2020-10-01 | B24: =Index!C24 -> 13.65684391 | C24: =Index!B24 -> 13.38081159 | D24: 1 | E24: 13.38081159 | F24: 0.64 | G24: 2020-10-01 | H24: 14.02081159 | I24: 2020 | J24: 2040 | K24: 22.28158738
A25: =Index!A25 -> 2020-11-01 | B25: =Index!C25 -> 13.65684391 | C25: =Index!B25 -> 13.15651449 | D25: 1 | E25: 13.15651449 | F25: 0.64 | G25: 2020-11-01 | H25: 13.79651449 | I25: 2020 | J25: 2041 | K25: 22.84982724
A26: =Index!A26 -> 2020-12-01 | B26: =Index!C26 -> 13.65684391 | C26: =Index!B26 -> 13.18062319 | D26: 1 | E26: 13.18062319 | F26: 0.64 | G26: 2020-12-01 | H26: 13.82062319 | I26: 2020 | J26: 2042 | K26: 23.43660194
A27: =Index!A27 -> 2021-01-01 | B27: =Index!C27 -> 13.38006175 | C27: =Index!B27 -> 13.24393478 | D27: 1 | E27: 13.24393478 | F27: 0.649 | G27: 2021-01-01 | H27: 13.89293478 | I27: 2021 | J27: 2043 | K27: 23.63743689
A28: =Index!A28 -> 2021-02-01 | B28: =Index!C28 -> 13.38006175 | C28: =Index!B28 -> 13.26150725 | D28: 1 | E28: 13.26150725 | F28: 0.649 | G28: 2021-02-01 | H28: 13.91050725 | I28: 2021 | J28: 2044 | K28: 24.24388029
A29: =Index!A29 -> 2021-03-01 | B29: =Index!C29 -> 13.38006175 | C29: =Index!B29 -> 13.27907246 | D29: 1 | E29: 13.27907246 | F29: 0.649 | G29: 2021-03-01 | H29: 13.92807246 | I29: 2021 | J29: 2045 | K29: 24.44308242
A30: =Index!A30 -> 2021-04-01 | B30: =Index!C30 -> 13.38006175 | C30: =Index!B30 -> 13.29664493 | D30: 1 | E30: 13.29664493 | F30: 0.649 | G30: 2021-04-01 | H30: 13.94564493 | I30: 2021 | J30: 2046 | K30: 25.05841461
A31: =Index!A31 -> 2021-05-01 | B31: =Index!C31 -> 13.38006175 | C31: =Index!B31 -> 13.31421739 | D31: 1 | E31: 13.31421739 | F31: 0.649 | G31: 2021-05-01 | H31: 13.96321739 | I31: 2021 | J31: 2047 | K31: 25.68275723
A32: =Index!A32 -> 2021-06-01 | B32: =Index!C32 -> 13.38006175 | C32: =Index!B32 -> 13.33178261 | D32: 1 | E32: 13.33178261 | F32: 0.649 | G32: 2021-06-01 | H32: 13.98078261 | I32: 2021 | J32: 2048 | K32: 25.87525553
A33: =Index!A33 -> 2021-07-01 | B33: =Index!C33 -> 13.38006175 | C33: =Index!B33 -> 13.33169565 | D33: 1 | E33: 13.33169565 | F33: 0.649 | G33: 2021-07-01 | H33: 13.98069565 | I33: 2021 | J33: 2049 | K33: 26.51690702
A34: =Index!A34 -> 2021-08-01 | B34: =Index!C34 -> 13.38006175 | C34: =Index!B34 -> 13.33160145 | D34: 1 | E34: 13.33160145 | F34: 0.649 | G34: 2021-08-01 | H34: 13.98060145 | I34: 2021 | J34: 2050 | K34: 26.53165168
A35: =Index!A35 -> 2021-09-01 | B35: =Index!C35 -> 13.38006175 | C35: =Index!B35 -> 13.8885 | D35: 1 | E35: 13.8885 | F35: 0.649 | G35: 2021-09-01 | H35: 14.5375 | I35: 2021
A36: =Index!A36 -> 2021-10-01 | B36: =Index!C36 -> 13.38006175 | C36: =Index!B36 -> 13.62850725 | D36: 1 | E36: 13.62850725 | F36: 0.649 | G36: 2021-10-01 | H36: =SUM(E36:F36) -> 14.27750725 | I36: 2021
A37: =Index!A37 -> 2021-11-01 | B37: =Index!C37 -> 13.38006175 | C37: =Index!B37 -> 13.39996377 | D37: 1 | E37: 13.39996377 | F37: 0.649 | G37: 2021-11-01 | H37: 14.04896377 | I37: 2021
A38: =Index!A38 -> 2021-12-01 | B38: =Index!C38 -> 13.38006175 | C38: =Index!B38 -> 13.42442754 | D38: 1 | E38: 13.42442754 | F38: 0.649 | G38: 2021-12-01 | H38: 14.07342754 | I38: 2021
A39: =Index!A39 -> 2022-01-01 | B39: =Index!C39 -> 13.44302573 | C39: =Index!B39 -> 13.57044928 | D39: 0.96 | E39: 13.56535233 | F39: 0.659 | G39: 2022-01-01 | H39: 14.22435233 | I39: 2022
A40: =Index!A40 -> 2022-02-01 | B40: =Index!C40 -> 13.44302573 | C40: =Index!B40 -> 13.58833333 | D40: 0.92 | E40: 13.57670872 | F40: 0.659 | G40: 2022-02-01 | H40: 14.23570872 | I40: 2022
A41: =Index!A41 -> 2022-03-01 | B41: =Index!C41 -> 13.44302573 | C41: =Index!B41 -> 13.60621014 | D41: 0.88 | E41: 13.58662802 | F41: 0.659 | G41: 2022-03-01 | H41: 14.24562802 | I41: 2022
A42: =Index!A42 -> 2022-04-01 | B42: =Index!C42 -> 13.44302573 | C42: =Index!B42 -> 13.6240942 | D42: 0.84 | E42: 13.59512325 | F42: 0.659 | G42: 2022-04-01 | H42: 14.25412325 | I42: 2022
A43: =Index!A43 -> 2022-05-01 | B43: =Index!C43 -> 13.44302573 | C43: =Index!B43 -> 13.64197101 | D43: 0.8 | E43: 13.60218196 | F43: 0.659 | G43: 2022-05-01 | H43: 14.26118196 | I43: 2022
A44: =Index!A44 -> 2022-06-01 | B44: =Index!C44 -> 13.44302573 | C44: =Index!B44 -> 13.65985507 | D44: 0.76 | E44: 13.60781603 | F44: 0.659 | G44: 2022-06-01 | H44: 14.26681603 | I44: 2022
A45: =Index!A45 -> 2022-07-01 | B45: =Index!C45 -> 13.44302573 | C45: =Index!B45 -> 13.65964493 | D45: 0.72 | E45: 13.59899155 | F45: 0.659 | G45: 2022-07-01 | H45: 14.25799155 | I45: 2022
A46: =Index!A46 -> 2022-08-01 | B46: =Index!C46 -> 13.44302573 | C46: =Index!B46 -> 13.65943478 | D46: 0.68 | E46: 13.59018389 | F46: 0.659 | G46: 2022-08-01 | H46: 14.24918389 | I46: 2022
A47: =Index!A47 -> 2022-09-01 | B47: =Index!C47 -> 13.44302573 | C47: =Index!B47 -> 14.2299058 | D47: 0.64 | E47: 13.94662897 | F47: 0.659 | G47: 2022-09-01 | H47: 14.60562897 | I47: 2022
A48: =Index!A48 -> 2022-10-01 | B48: =Index!C48 -> 13.44302573 | C48: =Index!B48 -> 13.96339855 | D48: 0.6 | E48: 13.75524942 | F48: 0.659 | G48: 2022-10-01 | H48: 14.41424942 | I48: 2022
A49: =Index!A49 -> 2022-11-01 | B49: =Index!C49 -> 13.44302573 | C49: =Index!B49 -> 13.72912319 | D49: 0.56 | E49: 13.60324031 | F49: 0.659 | G49: 2022-11-01 | H49: 14.26224031 | I49: 2022
A50: =Index!A50 -> 2022-12-01 | B50: =Index!C50 -> 13.44302573 | C50: =Index!B50 -> 13.75407246 | D50: 0.52 | E50: 13.60477003 | F50: 0.659 | G50: 2022-12-01 | H50: 14.26377003 | I50: 2022
A51: =Index!A51 -> 2023-01-01 | B51: =Index!C51 -> 13.74934477 | C51: =Index!B51 -> 13.90356522 | D51: 0.48 | E51: 13.82337058 | F51: 0.669 | G51: 2023-01-01 | H51: 14.49237058 | I51: 2023
A52: =Index!A52 -> 2023-02-01 | B52: =Index!C52 -> 13.74934477 | C52: =Index!B52 -> 13.92176087 | D52: 0.44 | E52: 13.82520785 | F52: 0.669 | G52: 2023-02-01 | H52: 14.49420785 | I52: 2023
A53: =Index!A53 -> 2023-03-01 | B53: =Index!C53 -> 13.74934477 | C53: =Index!B53 -> 13.93996377 | D53: 0.4 | E53: 13.82559237 | F53: 0.669 | G53: 2023-03-01 | H53: 14.49459237 | I53: 2023
A54: =Index!A54 -> 2023-04-01 | B54: =Index!C54 -> 13.74934477 | C54: =Index!B54 -> 13.95816667 | D54: 0.36 | E54: =(C54*D54+B54*(1-D54)) -> 13.82452065 | F54: 0.669 | G54: 2023-04-01 | H54: 14.49352065 | I54: 2023
A55: =Index!A55 -> 2023-05-01 | B55: =Index!C55 -> 13.74934477 | C55: =Index!B55 -> 13.97636957 | D55: 0.32 | E55: 13.8219927 | F55: 0.669 | G55: 2023-05-01 | H55: 14.4909927 | I55: 2023
A56: =Index!A56 -> 2023-06-01 | B56: =Index!C56 -> 13.74934477 | C56: =Index!B56 -> 13.99456522 | D56: 0.28 | E56: 13.81800649 | F56: 0.669 | G56: 2023-06-01 | H56: 14.48700649 | I56: 2023
A57: =Index!A57 -> 2023-07-01 | B57: =Index!C57 -> 13.74934477 | C57: =Index!B57 -> 13.93283783 | D57: 0.24 | E57: 13.7933831 | F57: 0.669 | G57: 2023-07-01 | H57: 14.4623831 | I57: 2023
A58: =Index!A58 -> 2023-08-01 | B58: =Index!C58 -> 13.74934477 | C58: =Index!B58 -> 13.93262348 | D58: 0.2 | E58: 13.78600051 | F58: 0.669 | G58: 2023-08-01 | H58: 14.45500051 | I58: 2023
A59: =Index!A59 -> 2023-09-01 | B59: =Index!C59 -> 13.74934477 | C59: =Index!B59 -> 14.51450391 | D59: 0.16 | E59: 13.87177023 | F59: 0.669 | G59: 2023-09-01 | H59: 14.54077023 | I59: 2023
A60: =Index!A60 -> 2023-10-01 | B60: =Index!C60 -> 13.74934477 | C60: =Index!B60 -> 14.24266652 | D60: 0.12 | E60: 13.80854338 | F60: 0.669 | G60: 2023-10-01 | H60: 14.47754338 | I60: 2023
A61: =Index!A61 -> 2023-11-01 | B61: =Index!C61 -> 13.74934477 | C61: =Index!B61 -> 14.00370565 | D61: 0.08 | E61: 13.76969364 | F61: 0.669 | G61: 2023-11-01 | H61: 14.43869364 | I61: 2023
A62: =Index!A62 -> 2023-12-01 | B62: =Index!C62 -> 13.74934477 | C62: =Index!B62 -> 14.02915391 | D62: 0.04 | E62: 13.76053713 | F62: 0.669 | G62: 2023-12-01 | H62: 14.42953713 | I62: 2023
A63: =Index!A63 -> 2024-01-01 | B63: =Index!C63 -> 14.08433619 | C63: =Index!B63 -> 14.18163652 | D63: 0 | E63: 14.08433619 | F63: 0.679 | G63: 2024-01-01 | H63: 14.76333619 | I63: 2024
A64: =Index!A64 -> 2024-02-01 | B64: =Index!C64 -> 14.08433619 | C64: =Index!B64 -> 14.20019609 | D64: 0 | E64: 14.08433619 | F64: 0.679 | G64: 2024-02-01 | H64: 14.76333619 | I64: 2024
A65: =Index!A65 -> 2024-03-01 | B65: =Index!C65 -> 14.08433619 | C65: =Index!B65 -> 14.21876304 | D65: 0 | E65: 14.08433619 | F65: 0.679 | G65: 2024-03-01 | H65: 14.76333619 | I65: 2024
A66: =Index!A66 -> 2024-04-01 | B66: =Index!C66 -> 14.08433619 | C66: =Index!B66 -> 14.23733 | D66: 0 | E66: 14.08433619 | F66: 0.679 | G66: 2024-04-01 | H66: 14.76333619 | I66: 2024
A67: =Index!A67 -> 2024-05-01 | B67: =Index!C67 -> 14.08433619 | C67: =Index!B67 -> 14.25589696 | D67: 0 | E67: 14.08433619 | F67: 0.679 | G67: 2024-05-01 | H67: 14.76333619 | I67: 2024
A68: =Index!A68 -> 2024-06-01 | B68: =Index!C68 -> 14.08433619 | C68: =Index!B68 -> 14.27445652 | D68: 0 | E68: 14.08433619 | F68: 0.679 | G68: 2024-06-01 | H68: 14.76333619 | I68: =YEAR(A68) -> 2024
A69: =Index!A69 -> 2024-07-01 | B69: =Index!C69 -> 14.08433619 | C69: =Index!B69 -> 14.21149458 | D69: 0 | E69: 14.08433619 | F69: 0.679 | G69: 2024-07-01 | H69: 14.76333619 | I69: 2024
A70: =Index!A70 -> 2024-08-01 | B70: =Index!C70 -> 14.08433619 | C70: =Index!B70 -> 14.21127595 | D70: 0 | E70: 14.08433619 | F70: 0.679 | G70: 2024-08-01 | H70: 14.76333619 | I70: 2024
A71: =Index!A71 -> 2024-09-01 | B71: =Index!C71 -> 14.08433619 | C71: =Index!B71 -> 14.80479399 | D71: 0 | E71: 14.08433619 | F71: 0.679 | G71: 2024-09-01 | H71: 14.76333619 | I71: 2024
A72: =Index!A72 -> 2024-10-01 | B72: =Index!C72 -> 14.08433619 | C72: =Index!B72 -> 14.52751985 | D72: 0 | E72: 14.08433619 | F72: 0.679 | G72: 2024-10-01 | H72: 14.76333619 | I72: 2024
A73: =Index!A73 -> 2024-11-01 | B73: =Index!C73 -> 14.08433619 | C73: =Index!B73 -> 14.28377977 | D73: 0 | E73: 14.08433619 | F73: 0.679 | G73: 2024-11-01 | H73: 14.76333619 | I73: 2024
A74: =Index!A74 -> 2024-12-01 | B74: =Index!C74 -> 14.08433619 | C74: =Index!B74 -> 14.30973699 | D74: 0 | E74: 14.08433619 | F74: 0.679 | G74: 2024-12-01 | H74: 14.76333619 | I74: 2024
A75: =Index!A75 -> 2025-01-01 | B75: =Index!C75 -> 14.43460034 | C75: =Index!B75 -> 14.46526925 | D75: 0 | E75: 14.43460034 | F75: 0.689 | G75: 2025-01-01 | H75: 15.12360034 | I75: 2025
A76: =Index!A76 -> 2025-02-01 | B76: =Index!C76 -> 14.43460034 | C76: =Index!B76 -> 14.48420001 | D76: 0 | E76: 14.43460034 | F76: 0.689 | G76: 2025-02-01 | H76: 15.12360034 | I76: 2025
A77: =Index!A77 -> 2025-03-01 | B77: =Index!C77 -> 14.43460034 | C77: =Index!B77 -> 14.5031383 | D77: 0 | E77: 14.43460034 | F77: 0.689 | G77: 2025-03-01 | H77: 15.12360034 | I77: 2025
A78: =Index!A78 -> 2025-04-01 | B78: =Index!C78 -> 14.43460034 | C78: =Index!B78 -> 14.5220766 | D78: 0 | E78: 14.43460034 | F78: 0.689 | G78: 2025-04-01 | H78: 15.12360034 | I78: 2025
A79: =Index!A79 -> 2025-05-01 | B79: =Index!C79 -> 14.43460034 | C79: =Index!B79 -> 14.5410149 | D79: 0 | E79: 14.43460034 | F79: 0.689 | G79: 2025-05-01 | H79: 15.12360034 | I79: 2025
A80: =Index!A80 -> 2025-06-01 | B80: =Index!C80 -> 14.43460034 | C80: =Index!B80 -> 14.55994565 | D80: 0 | E80: 14.43460034 | F80: 0.689 | G80: 2025-06-01 | H80: 15.12360034 | I80: 2025
A81: =Index!A81 -> 2025-07-01 | B81: =Index!C81 -> 14.43460034 | C81: =Index!B81 -> 14.49572447 | D81: 0 | E81: 14.43460034 | F81: 0.689 | G81: =A81 -> 2025-07-01 | H81: 15.12360034 | I81: 2025
A82: =Index!A82 -> 2025-08-01 | B82: =Index!C82 -> 14.43460034 | C82: =Index!B82 -> 14.49550147 | D82: 0 | E82: 14.43460034 | F82: 0.689 | G82: 2025-08-01 | H82: 15.12360034 | I82: 2025
A83: =Index!A83 -> 2025-09-01 | B83: =Index!C83 -> 14.43460034 | C83: =Index!B83 -> 15.10088987 | D83: 0 | E83: 14.43460034 | F83: 0.689 | G83: 2025-09-01 | H83: 15.12360034 | I83: 2025
A84: =Index!A84 -> 2025-10-01 | B84: =Index!C84 -> 14.43460034 | C84: =Index!B84 -> 14.81807025 | D84: 0 | E84: 14.43460034 | F84: 0.689 | G84: 2025-10-01 | H84: 15.12360034 | I84: 2025
A85: =Index!A85 -> 2025-11-01 | B85: =Index!C85 -> 14.43460034 | C85: =Index!B85 -> 14.56945536 | D85: 0 | E85: 14.43460034 | F85: 0.689 | G85: 2025-11-01 | H85: 15.12360034 | I85: 2025
A86: =Index!A86 -> 2025-12-01 | B86: =Index!C86 -> 14.43460034 | C86: =Index!B86 -> 14.59593173 | D86: 0 | E86: 14.43460034 | F86: 0.689 | G86: 2025-12-01 | H86: 15.12360034 | I86: 2025
A87: =Index!A87 -> 2026-01-01 | B87: =Index!C87 -> 14.99536878 | C87: =Index!B87 -> 14.75457464 | D87: 0 | E87: 14.99536878 | F87: 0.7 | G87: 2026-01-01 | H87: 15.69536878 | I87: 2026
A88: =Index!A88 -> 2026-02-01 | B88: =Index!C88 -> 14.99536878 | C88: =Index!B88 -> 14.77388401 | D88: 0 | E88: 14.99536878 | F88: 0.7 | G88: 2026-02-01 | H88: 15.69536878 | I88: 2026
A89: =Index!A89 -> 2026-03-01 | B89: =Index!C89 -> 14.99536878 | C89: =Index!B89 -> 14.79320107 | D89: 0 | E89: 14.99536878 | F89: 0.7 | G89: 2026-03-01 | H89: 15.69536878 | I89: 2026
A90: =Index!A90 -> 2026-04-01 | B90: =Index!C90 -> 14.99536878 | C90: =Index!B90 -> 14.81251813 | D90: 0 | E90: 14.99536878 | F90: 0.7 | G90: 2026-04-01 | H90: 15.69536878 | I90: 2026
A91: =Index!A91 -> 2026-05-01 | B91: =Index!C91 -> 14.99536878 | C91: =Index!B91 -> 14.83183519 | D91: 0 | E91: 14.99536878 | F91: 0.7 | G91: 2026-05-01 | H91: 15.69536878 | I91: 2026
A92: =Index!A92 -> 2026-06-01 | B92: =Index!C92 -> 14.99536878 | C92: =Index!B92 -> 14.85114457 | D92: 0 | E92: 14.99536878 | F92: 0.7 | G92: 2026-06-01 | H92: 15.69536878 | I92: 2026
A93: =Index!A93 -> 2026-07-01 | B93: =Index!C93 -> 14.99536878 | C93: =Index!B93 -> 14.78563896 | D93: 0 | E93: 14.99536878 | F93: 0.7 | G93: 2026-07-01 | H93: 15.69536878 | I93: 2026
A94: =Index!A94 -> 2026-08-01 | B94: =Index!C94 -> 14.99536878 | C94: =Index!B94 -> 14.7854115 | D94: 0 | E94: 14.99536878 | F94: 0.7 | G94: 2026-08-01 | H94: 15.69536878 | I94: 2026
A95: =Index!A95 -> 2026-09-01 | B95: =Index!C95 -> 14.99536878 | C95: =Index!B95 -> 15.40290767 | D95: 0 | E95: 14.99536878 | F95: 0.7 | G95: 2026-09-01 | H95: 15.69536878 | I95: 2026
A96: =Index!A96 -> 2026-10-01 | B96: =Index!C96 -> 14.99536878 | C96: =Index!B96 -> 15.11443165 | D96: 0 | E96: 14.99536878 | F96: 0.7 | G96: 2026-10-01 | H96: 15.69536878 | I96: 2026
A97: =Index!A97 -> 2026-11-01 | B97: =Index!C97 -> 14.99536878 | C97: =Index!B97 -> 14.86084447 | D97: 0 | E97: 14.99536878 | F97: 0.7 | G97: 2026-11-01 | H97: 15.69536878 | I97: 2026
A98: =Index!A98 -> 2026-12-01 | B98: =Index!C98 -> 14.99536878 | C98: =Index!B98 -> 14.88785037 | D98: 0 | E98: 14.99536878 | F98: 0.7 | G98: 2026-12-01 | H98: 15.69536878 | I98: 2026
A99: =Index!A99 -> 2027-01-01 | B99: =Index!C99 -> 15.64193825 | C99: =Index!B99 -> 15.04966613 | D99: 0 | E99: 15.64193825 | F99: 0.71 | G99: 2027-01-01 | H99: 16.35193825 | I99: 2027
A100: =Index!A100 -> 2027-02-01 | B100: =Index!C100 -> 15.64193825 | C100: =Index!B100 -> 15.06936169 | D100: 0 | E100: 15.64193825 | F100: 0.71 | G100: 2027-02-01 | H100: =SUM(E100:F100) -> 16.35193825 | I100: 2027
A101: =Index!A101 -> 2027-03-01 | B101: =Index!C101 -> 15.64193825 | C101: =Index!B101 -> 15.08906509 | D101: 0 | E101: 15.64193825 | F101: 0.71 | G101: 2027-03-01 | H101: 16.35193825 | I101: 2027
A102: =Index!A102 -> 2027-04-01 | B102: =Index!C102 -> 15.64193825 | C102: =Index!B102 -> 15.10876849 | D102: 0 | E102: 15.64193825 | F102: 0.71 | G102: 2027-04-01 | H102: 16.35193825 | I102: 2027
A103: =Index!A103 -> 2027-05-01 | B103: =Index!C103 -> 15.64193825 | C103: =Index!B103 -> 15.1284719 | D103: 0 | E103: 15.64193825 | F103: 0.71 | G103: 2027-05-01 | H103: 16.35193825 | I103: 2027
A104: =Index!A104 -> 2027-06-01 | B104: =Index!C104 -> 15.64193825 | C104: =Index!B104 -> 15.14816746 | D104: 0 | E104: 15.64193825 | F104: 0.71 | G104: 2027-06-01 | H104: 16.35193825 | I104: 2027
A105: =Index!A105 -> 2027-07-01 | B105: =Index!C105 -> 15.64193825 | C105: =Index!B105 -> 15.08135174 | D105: 0 | E105: 15.64193825 | F105: 0.71 | G105: 2027-07-01 | H105: 16.35193825 | I105: 2027
A106: =Index!A106 -> 2027-08-01 | B106: =Index!C106 -> 15.64193825 | C106: =Index!B106 -> 15.08111973 | D106: 0 | E106: 15.64193825 | F106: 0.71 | G106: 2027-08-01 | H106: 16.35193825 | I106: 2027
A107: =Index!A107 -> 2027-09-01 | B107: =Index!C107 -> 15.64193825 | C107: =Index!B107 -> 15.71096582 | D107: 0 | E107: 15.64193825 | F107: 0.71 | G107: 2027-09-01 | H107: 16.35193825 | I107: 2027
A108: =Index!A108 -> 2027-10-01 | B108: =Index!C108 -> 15.64193825 | C108: =Index!B108 -> 15.41672029 | D108: 0 | E108: 15.64193825 | F108: 0.71 | G108: 2027-10-01 | H108: 16.35193825 | I108: 2027
A109: =Index!A109 -> 2027-11-01 | B109: =Index!C109 -> 15.64193825 | C109: =Index!B109 -> 15.15806136 | D109: 0 | E109: 15.64193825 | F109: 0.71 | G109: 2027-11-01 | H109: 16.35193825 | I109: 2027
A110: =Index!A110 -> 2027-12-01 | B110: =Index!C110 -> 15.64193825 | C110: =Index!B110 -> 15.18560737 | D110: 0 | E110: 15.64193825 | F110: 0.71 | G110: 2027-12-01 | H110: 16.35193825 | I110: 2027
A111: =Index!A111 -> 2028-01-01 | B111: =Index!C111 -> 16.3885729 | C111: =Index!B111 -> 15.35065945 | D111: 0 | E111: 16.3885729 | F111: 0.721 | G111: 2028-01-01 | H111: 17.1095729 | I111: 2028
A112: =Index!A112 -> 2028-02-01 | B112: =Index!C112 -> 16.3885729 | C112: =Index!B112 -> 15.37074892 | D112: 0 | E112: 16.3885729 | F112: 0.721 | G112: 2028-02-01 | H112: 17.1095729 | I112: 2028
A113: =Index!A113 -> 2028-03-01 | B113: =Index!C113 -> 16.3885729 | C113: =Index!B113 -> 15.39084639 | D113: 0 | E113: 16.3885729 | F113: 0.721 | G113: 2028-03-01 | H113: 17.1095729 | I113: 2028
A114: =Index!A114 -> 2028-04-01 | B114: =Index!C114 -> 16.3885729 | C114: =Index!B114 -> 15.41094386 | D114: 0 | E114: 16.3885729 | F114: 0.721 | G114: 2028-04-01 | H114: 17.1095729 | I114: 2028
A115: =Index!A115 -> 2028-05-01 | B115: =Index!C115 -> 16.3885729 | C115: =Index!B115 -> 15.43104134 | D115: 0 | E115: 16.3885729 | F115: 0.721 | G115: 2028-05-01 | H115: 17.1095729 | I115: 2028
A116: =Index!A116 -> 2028-06-01 | B116: =Index!C116 -> 16.3885729 | C116: =Index!B116 -> 15.45113081 | D116: 0 | E116: 16.3885729 | F116: 0.721 | G116: 2028-06-01 | H116: 17.1095729 | I116: 2028
A117: =Index!A117 -> 2028-07-01 | B117: =Index!C117 -> 16.3885729 | C117: =Index!B117 -> 15.38297878 | D117: 0 | E117: 16.3885729 | F117: 0.721 | G117: 2028-07-01 | H117: 17.1095729 | I117: 2028
A118: =Index!A118 -> 2028-08-01 | B118: =Index!C118 -> 16.3885729 | C118: =Index!B118 -> 15.38274212 | D118: 0 | E118: =(C118*D118+B118*(1-D118)) -> 16.3885729 | F118: 0.721 | G118: 2028-08-01 | H118: 17.1095729 | I118: 2028
A119: =Index!A119 -> 2028-09-01 | B119: =Index!C119 -> 16.3885729 | C119: =Index!B119 -> 16.02518514 | D119: 0 | E119: 16.3885729 | F119: 0.721 | G119: 2028-09-01 | H119: 17.1095729 | I119: 2028
A120: =Index!A120 -> 2028-10-01 | B120: =Index!C120 -> 16.3885729 | C120: =Index!B120 -> 15.72505469 | D120: 0 | E120: 16.3885729 | F120: 0.721 | G120: 2028-10-01 | H120: 17.1095729 | I120: 2028
A121: =Index!A121 -> 2028-11-01 | B121: =Index!C121 -> 16.3885729 | C121: =Index!B121 -> 15.46122258 | D121: 0 | E121: 16.3885729 | F121: 0.721 | G121: 2028-11-01 | H121: 17.1095729 | I121: 2028
A122: =Index!A122 -> 2028-12-01 | B122: =Index!C122 -> 16.3885729 | C122: =Index!B122 -> 15.48931952 | D122: 0 | E122: 16.3885729 | F122: 0.721 | G122: 2028-12-01 | H122: 17.1095729 | I122: 2028
A123: =Index!A123 -> 2029-01-01 | B123: =Index!C123 -> 17.07029846 | C123: =Index!B123 -> 15.65767264 | D123: 0 | E123: 17.07029846 | F123: 0.732 | G123: 2029-01-01 | H123: 17.80229846 | I123: 2029
A124: =Index!A124 -> 2029-02-01 | B124: =Index!C124 -> 17.07029846 | C124: =Index!B124 -> 15.6781639 | D124: 0 | E124: 17.07029846 | F124: 0.732 | G124: 2029-02-01 | H124: 17.80229846 | I124: 2029
A125: =Index!A125 -> 2029-03-01 | B125: =Index!C125 -> 17.07029846 | C125: =Index!B125 -> 15.69866332 | D125: 0 | E125: 17.07029846 | F125: 0.732 | G125: 2029-03-01 | H125: 17.80229846 | I125: 2029
A126: =Index!A126 -> 2029-04-01 | B126: =Index!C126 -> 17.07029846 | C126: =Index!B126 -> 15.71916274 | D126: 0 | E126: 17.07029846 | F126: 0.732 | G126: 2029-04-01 | H126: 17.80229846 | I126: 2029
A127: =Index!A127 -> 2029-05-01 | B127: =Index!C127 -> 17.07029846 | C127: =Index!B127 -> 15.73966216 | D127: 0 | E127: 17.07029846 | F127: 0.732 | G127: 2029-05-01 | H127: 17.80229846 | I127: 2029
A128: =Index!A128 -> 2029-06-01 | B128: =Index!C128 -> 17.07029846 | C128: =Index!B128 -> 15.76015342 | D128: 0 | E128: 17.07029846 | F128: 0.732 | G128: 2029-06-01 | H128: 17.80229846 | I128: 2029
A129: =Index!A129 -> 2029-07-01 | B129: =Index!C129 -> 17.07029846 | C129: =Index!B129 -> 15.69063835 | D129: 0 | E129: 17.07029846 | F129: 0.732 | G129: 2029-07-01 | H129: 17.80229846 | I129: 2029
A130: =Index!A130 -> 2029-08-01 | B130: =Index!C130 -> 17.07029846 | C130: =Index!B130 -> 15.69039696 | D130: 0 | E130: 17.07029846 | F130: 0.732 | G130: 2029-08-01 | H130: 17.80229846 | I130: 2029
A131: =Index!A131 -> 2029-09-01 | B131: =Index!C131 -> 17.07029846 | C131: =Index!B131 -> 16.34568884 | D131: 0 | E131: 17.07029846 | F131: 0.732 | G131: 2029-09-01 | H131: 17.80229846 | I131: 2029
A132: =Index!A132 -> 2029-10-01 | B132: =Index!C132 -> 17.07029846 | C132: =Index!B132 -> 16.03955579 | D132: 0 | E132: 17.07029846 | F132: 0.732 | G132: 2029-10-01 | H132: 17.80229846 | I132: =YEAR(A132) -> 2029
A133: =Index!A133 -> 2029-11-01 | B133: =Index!C133 -> 17.07029846 | C133: =Index!B133 -> 15.77044704 | D133: 0 | E133: 17.07029846 | F133: 0.732 | G133: 2029-11-01 | H133: 17.80229846 | I133: 2029
A134: =Index!A134 -> 2029-12-01 | B134: =Index!C134 -> 17.07029846 | C134: =Index!B134 -> 15.79910591 | D134: 0 | E134: 17.07029846 | F134: 0.732 | G134: 2029-12-01 | H134: 17.80229846 | I134: 2029
A135: =Index!A135 -> 2030-01-01 | B135: =Index!C135 -> 17.49606175 | C135: =Index!B135 -> 15.97082609 | D135: 0 | E135: 17.49606175 | F135: 0.743 | G135: 2030-01-01 | H135: 18.23906175 | I135: 2030
A136: =Index!A136 -> 2030-02-01 | B136: =Index!C136 -> 17.49606175 | C136: =Index!B136 -> 15.99172718 | D136: 0 | E136: 17.49606175 | F136: 0.743 | G136: 2030-02-01 | H136: 18.23906175 | I136: 2030
A137: =Index!A137 -> 2030-03-01 | B137: =Index!C137 -> 17.49606175 | C137: =Index!B137 -> 16.01263659 | D137: 0 | E137: 17.49606175 | F137: 0.743 | G137: 2030-03-01 | H137: 18.23906175 | I137: 2030
A138: =Index!A138 -> 2030-04-01 | B138: =Index!C138 -> 17.49606175 | C138: =Index!B138 -> 16.033546 | D138: 0 | E138: 17.49606175 | F138: 0.743 | G138: 2030-04-01 | H138: 18.23906175 | I138: 2030
A139: =Index!A139 -> 2030-05-01 | B139: =Index!C139 -> 17.49606175 | C139: =Index!B139 -> 16.05445541 | D139: 0 | E139: 17.49606175 | F139: 0.743 | G139: 2030-05-01 | H139: 18.23906175 | I139: 2030
A140: =Index!A140 -> 2030-06-01 | B140: =Index!C140 -> 17.49606175 | C140: =Index!B140 -> 16.07535649 | D140: 0 | E140: 17.49606175 | F140: 0.743 | G140: 2030-06-01 | H140: 18.23906175 | I140: 2030
A141: =Index!A141 -> 2030-07-01 | B141: =Index!C141 -> 17.49606175 | C141: =Index!B141 -> 16.00445112 | D141: 0 | E141: 17.49606175 | F141: 0.743 | G141: 2030-07-01 | H141: 18.23906175 | I141: 2030
A142: =Index!A142 -> 2030-08-01 | B142: =Index!C142 -> 17.49606175 | C142: =Index!B142 -> 16.0042049 | D142: 0 | E142: 17.49606175 | F142: 0.743 | G142: 2030-08-01 | H142: 18.23906175 | I142: 2030
A143: =Index!A143 -> 2030-09-01 | B143: =Index!C143 -> 17.49606175 | C143: =Index!B143 -> 16.67260262 | D143: 0 | E143: 17.49606175 | F143: 0.743 | G143: 2030-09-01 | H143: 18.23906175 | I143: 2030
A144: =Index!A144 -> 2030-10-01 | B144: =Index!C144 -> 17.49606175 | C144: =Index!B144 -> 16.3603469 | D144: 0 | E144: 17.49606175 | F144: 0.743 | G144: 2030-10-01 | H144: 18.23906175 | I144: 2030
A145: =Index!A145 -> 2030-11-01 | B145: =Index!C145 -> 17.49606175 | C145: =Index!B145 -> 16.08585598 | D145: 0 | E145: 17.49606175 | F145: 0.743 | G145: =A145 -> 2030-11-01 | H145: 18.23906175 | I145: 2030
A146: =Index!A146 -> 2030-12-01 | B146: =Index!C146 -> 17.49606175 | C146: =Index!B146 -> 16.11508803 | D146: 0 | E146: 17.49606175 | F146: 0.743 | G146: 2030-12-01 | H146: 18.23906175 | I146: 2030
A147: =Index!A147 -> 2031-01-01 | B147: =Index!C147 -> 17.89127959 | C147: =Index!B147 -> 16.29024262 | D147: 0 | E147: 17.89127959 | F147: 0.754 | G147: 2031-01-01 | H147: 18.64527959 | I147: 2031
A148: =Index!A148 -> 2031-02-01 | B148: =Index!C148 -> 17.89127959 | C148: =Index!B148 -> 16.31156172 | D148: 0 | E148: 17.89127959 | F148: 0.754 | G148: 2031-02-01 | H148: 18.64527959 | I148: 2031
A149: =Index!A149 -> 2031-03-01 | B149: =Index!C149 -> 17.89127959 | C149: =Index!B149 -> 16.33288932 | D149: 0 | E149: 17.89127959 | F149: 0.754 | G149: 2031-03-01 | H149: 18.64527959 | I149: 2031
A150: =Index!A150 -> 2031-04-01 | B150: =Index!C150 -> 17.89127959 | C150: =Index!B150 -> 16.35421692 | D150: 0 | E150: 17.89127959 | F150: 0.754 | G150: 2031-04-01 | H150: 18.64527959 | I150: 2031
A151: =Index!A151 -> 2031-05-01 | B151: =Index!C151 -> 17.89127959 | C151: =Index!B151 -> 16.37554451 | D151: 0 | E151: 17.89127959 | F151: 0.754 | G151: 2031-05-01 | H151: 18.64527959 | I151: 2031
A152: =Index!A152 -> 2031-06-01 | B152: =Index!C152 -> 17.89127959 | C152: =Index!B152 -> 16.39686362 | D152: 0 | E152: 17.89127959 | F152: 0.754 | G152: 2031-06-01 | H152: 18.64527959 | I152: 2031
A153: =Index!A153 -> 2031-07-01 | B153: =Index!C153 -> 17.89127959 | C153: =Index!B153 -> 16.32454014 | D153: 0 | E153: 17.89127959 | F153: 0.754 | G153: 2031-07-01 | H153: 18.64527959 | I153: 2031
A154: =Index!A154 -> 2031-08-01 | B154: =Index!C154 -> 17.89127959 | C154: =Index!B154 -> 16.324289 | D154: 0 | E154: 17.89127959 | F154: 0.754 | G154: 2031-08-01 | H154: 18.64527959 | I154: 2031
A155: =Index!A155 -> 2031-09-01 | B155: =Index!C155 -> 17.89127959 | C155: =Index!B155 -> 17.00605467 | D155: 0 | E155: 17.89127959 | F155: 0.754 | G155: 2031-09-01 | H155: 18.64527959 | I155: 2031
A156: =Index!A156 -> 2031-10-01 | B156: =Index!C156 -> 17.89127959 | C156: =Index!B156 -> 16.68755384 | D156: 0 | E156: 17.89127959 | F156: 0.754 | G156: 2031-10-01 | H156: 18.64527959 | I156: 2031
A157: =Index!A157 -> 2031-11-01 | B157: =Index!C157 -> 17.89127959 | C157: =Index!B157 -> 16.4075731 | D157: 0 | E157: 17.89127959 | F157: 0.754 | G157: 2031-11-01 | H157: 18.64527959 | I157: 2031
A158: =Index!A158 -> 2031-12-01 | B158: =Index!C158 -> 17.89127959 | C158: =Index!B158 -> 16.43738979 | D158: 0 | E158: 17.89127959 | F158: 0.754 | G158: 2031-12-01 | H158: 18.64527959 | I158: 2031
A159: =Index!A159 -> 2032-01-01 | B159: =Index!C159 -> 18.30191424 | C159: =Index!B159 -> 16.61604747 | D159: 0 | E159: 18.30191424 | F159: 0.765 | G159: 2032-01-01 | H159: 19.06691424 | I159: 2032
A160: =Index!A160 -> 2032-02-01 | B160: =Index!C160 -> 18.30191424 | C160: =Index!B160 -> 16.63779296 | D160: 0 | E160: 18.30191424 | F160: 0.765 | G160: 2032-02-01 | H160: 19.06691424 | I160: 2032
A161: =Index!A161 -> 2032-03-01 | B161: =Index!C161 -> 18.30191424 | C161: =Index!B161 -> 16.65954711 | D161: 0 | E161: 18.30191424 | F161: 0.765 | G161: 2032-03-01 | H161: 19.06691424 | I161: 2032
A162: =Index!A162 -> 2032-04-01 | B162: =Index!C162 -> 18.30191424 | C162: =Index!B162 -> 16.68130125 | D162: 0 | E162: 18.30191424 | F162: 0.765 | G162: 2032-04-01 | H162: 19.06691424 | I162: 2032
A163: =Index!A163 -> 2032-05-01 | B163: =Index!C163 -> 18.30191424 | C163: =Index!B163 -> 16.7030554 | D163: 0 | E163: 18.30191424 | F163: 0.765 | G163: 2032-05-01 | H163: 19.06691424 | I163: 2032
A164: =Index!A164 -> 2032-06-01 | B164: =Index!C164 -> 18.30191424 | C164: =Index!B164 -> 16.72480089 | D164: 0 | E164: 18.30191424 | F164: 0.765 | G164: 2032-06-01 | H164: =SUM(E164:F164) -> 19.06691424 | I164: 2032
A165: =Index!A165 -> 2032-07-01 | B165: =Index!C165 -> 18.30191424 | C165: =Index!B165 -> 16.65103095 | D165: 0 | E165: 18.30191424 | F165: 0.765 | G165: 2032-07-01 | H165: 19.06691424 | I165: 2032
A166: =Index!A166 -> 2032-08-01 | B166: =Index!C166 -> 18.30191424 | C166: =Index!B166 -> 16.65077478 | D166: 0 | E166: 18.30191424 | F166: 0.765 | G166: 2032-08-01 | H166: 19.06691424 | I166: 2032
A167: =Index!A167 -> 2032-09-01 | B167: =Index!C167 -> 18.30191424 | C167: =Index!B167 -> 17.34617576 | D167: 0 | E167: 18.30191424 | F167: 0.765 | G167: 2032-09-01 | H167: 19.06691424 | I167: 2032
A168: =Index!A168 -> 2032-10-01 | B168: =Index!C168 -> 18.30191424 | C168: =Index!B168 -> 17.02130492 | D168: 0 | E168: 18.30191424 | F168: 0.765 | G168: 2032-10-01 | H168: 19.06691424 | I168: 2032
A169: =Index!A169 -> 2032-11-01 | B169: =Index!C169 -> 18.30191424 | C169: =Index!B169 -> 16.73572456 | D169: 0 | E169: 18.30191424 | F169: 0.765 | G169: 2032-11-01 | H169: 19.06691424 | I169: 2032
A170: =Index!A170 -> 2032-12-01 | B170: =Index!C170 -> 18.30191424 | C170: =Index!B170 -> 16.76613759 | D170: 0 | E170: 18.30191424 | F170: 0.765 | G170: 2032-12-01 | H170: 19.06691424 | I170: 2032
A171: =Index!A171 -> 2033-01-01 | B171: =Index!C171 -> 18.72659691 | C171: =Index!B171 -> 16.94836842 | D171: 0 | E171: 18.72659691 | F171: 0.777 | G171: 2033-01-01 | H171: 19.50359691 | I171: 2033
A172: =Index!A172 -> 2033-02-01 | B172: =Index!C172 -> 18.72659691 | C172: =Index!B172 -> 16.97054882 | D172: 0 | E172: 18.72659691 | F172: 0.777 | G172: 2033-02-01 | H172: 19.50359691 | I172: 2033
A173: =Index!A173 -> 2033-03-01 | B173: =Index!C173 -> 18.72659691 | C173: =Index!B173 -> 16.99273805 | D173: 0 | E173: 18.72659691 | F173: 0.777 | G173: 2033-03-01 | H173: 19.50359691 | I173: 2033
A174: =Index!A174 -> 2033-04-01 | B174: =Index!C174 -> 18.72659691 | C174: =Index!B174 -> 17.01492728 | D174: 0 | E174: 18.72659691 | F174: 0.777 | G174: 2033-04-01 | H174: 19.50359691 | I174: 2033
A175: =Index!A175 -> 2033-05-01 | B175: =Index!C175 -> 18.72659691 | C175: =Index!B175 -> 17.03711651 | D175: 0 | E175: 18.72659691 | F175: 0.777 | G175: 2033-05-01 | H175: 19.50359691 | I175: 2033
A176: =Index!A176 -> 2033-06-01 | B176: =Index!C176 -> 18.72659691 | C176: =Index!B176 -> 17.05929691 | D176: 0 | E176: 18.72659691 | F176: 0.777 | G176: 2033-06-01 | H176: 19.50359691 | I176: 2033
A177: =Index!A177 -> 2033-07-01 | B177: =Index!C177 -> 18.72659691 | C177: =Index!B177 -> 16.98405156 | D177: 0 | E177: 18.72659691 | F177: 0.777 | G177: 2033-07-01 | H177: 19.50359691 | I177: 2033
A178: =Index!A178 -> 2033-08-01 | B178: =Index!C178 -> 18.72659691 | C178: =Index!B178 -> 16.98379028 | D178: 0 | E178: 18.72659691 | F178: 0.777 | G178: 2033-08-01 | H178: 19.50359691 | I178: 2033
A179: =Index!A179 -> 2033-09-01 | B179: =Index!C179 -> 18.72659691 | C179: =Index!B179 -> 17.69309928 | D179: 0 | E179: 18.72659691 | F179: 0.777 | G179: 2033-09-01 | H179: 19.50359691 | I179: 2033
A180: =Index!A180 -> 2033-10-01 | B180: =Index!C180 -> 18.72659691 | C180: =Index!B180 -> 17.36173102 | D180: 0 | E180: 18.72659691 | F180: 0.777 | G180: 2033-10-01 | H180: 19.50359691 | I180: 2033
A181: =Index!A181 -> 2033-11-01 | B181: =Index!C181 -> 18.72659691 | C181: =Index!B181 -> 17.07043905 | D181: 0 | E181: 18.72659691 | F181: 0.777 | G181: 2033-11-01 | H181: 19.50359691 | I181: 2033
A182: =Index!A182 -> 2033-12-01 | B182: =Index!C182 -> 18.72659691 | C182: =Index!B182 -> 17.10146034 | D182: 0 | E182: =(C182*D182+B182*(1-D182)) -> 18.72659691 | F182: 0.777 | G182: 2033-12-01 | H182: 19.50359691 | I182: 2033
A183: =Index!A183 -> 2034-01-01 | B183: =Index!C183 -> 19.15740309 | C183: =Index!B183 -> 17.28733579 | D183: 0 | E183: 19.15740309 | F183: 0.788 | G183: 2034-01-01 | H183: 19.94540309 | I183: 2034
A184: =Index!A184 -> 2034-02-01 | B184: =Index!C184 -> 19.15740309 | C184: =Index!B184 -> 17.30995979 | D184: 0 | E184: 19.15740309 | F184: 0.788 | G184: 2034-02-01 | H184: 19.94540309 | I184: 2034
A185: =Index!A185 -> 2034-03-01 | B185: =Index!C185 -> 19.15740309 | C185: =Index!B185 -> 17.33259281 | D185: 0 | E185: 19.15740309 | F185: 0.788 | G185: 2034-03-01 | H185: 19.94540309 | I185: 2034
A186: =Index!A186 -> 2034-04-01 | B186: =Index!C186 -> 19.15740309 | C186: =Index!B186 -> 17.35522583 | D186: 0 | E186: 19.15740309 | F186: 0.788 | G186: 2034-04-01 | H186: 19.94540309 | I186: 2034
A187: =Index!A187 -> 2034-05-01 | B187: =Index!C187 -> 19.15740309 | C187: =Index!B187 -> 17.37785884 | D187: 0 | E187: 19.15740309 | F187: 0.788 | G187: 2034-05-01 | H187: 19.94540309 | I187: 2034
A188: =Index!A188 -> 2034-06-01 | B188: =Index!C188 -> 19.15740309 | C188: =Index!B188 -> 17.40048285 | D188: 0 | E188: 19.15740309 | F188: 0.788 | G188: 2034-06-01 | H188: 19.94540309 | I188: 2034
A189: =Index!A189 -> 2034-07-01 | B189: =Index!C189 -> 19.15740309 | C189: =Index!B189 -> 17.3237326 | D189: 0 | E189: 19.15740309 | F189: 0.788 | G189: 2034-07-01 | H189: 19.94540309 | I189: 2034
A190: =Index!A190 -> 2034-08-01 | B190: =Index!C190 -> 19.15740309 | C190: =Index!B190 -> 17.32346608 | D190: 0 | E190: 19.15740309 | F190: 0.788 | G190: 2034-08-01 | H190: 19.94540309 | I190: 2034
A191: =Index!A191 -> 2034-09-01 | B191: =Index!C191 -> 19.15740309 | C191: =Index!B191 -> 18.04696126 | D191: 0 | E191: 19.15740309 | F191: 0.788 | G191: 2034-09-01 | H191: 19.94540309 | I191: 2034
A192: =Index!A192 -> 2034-10-01 | B192: =Index!C192 -> 19.15740309 | C192: =Index!B192 -> 17.70896564 | D192: 0 | E192: 19.15740309 | F192: 0.788 | G192: 2034-10-01 | H192: 19.94540309 | I192: 2034
A193: =Index!A193 -> 2034-11-01 | B193: =Index!C193 -> 19.15740309 | C193: =Index!B193 -> 17.41184783 | D193: 0 | E193: 19.15740309 | F193: 0.788 | G193: 2034-11-01 | H193: 19.94540309 | I193: 2034
A194: =Index!A194 -> 2034-12-01 | B194: =Index!C194 -> 19.15740309 | C194: =Index!B194 -> 17.44348954 | D194: 0 | E194: 19.15740309 | F194: 0.788 | G194: 2034-12-01 | H194: 19.94540309 | I194: 2034
A195: =Index!A195 -> 2035-01-01 | B195: =Index!C195 -> 19.59851115 | C195: =Index!B195 -> 17.6330825 | D195: 0 | E195: 19.59851115 | F195: 0.8 | G195: 2035-01-01 | H195: 20.39851115 | I195: 2035
A196: =Index!A196 -> 2035-02-01 | B196: =Index!C196 -> 19.59851115 | C196: =Index!B196 -> 17.65615899 | D196: 0 | E196: 19.59851115 | F196: 0.8 | G196: 2035-02-01 | H196: 20.39851115 | I196: =YEAR(A196) -> 2035
A197: =Index!A197 -> 2035-03-01 | B197: =Index!C197 -> 19.59851115 | C197: =Index!B197 -> 17.67924467 | D197: 0 | E197: 19.59851115 | F197: 0.8 | G197: 2035-03-01 | H197: 20.39851115 | I197: 2035
A198: =Index!A198 -> 2035-04-01 | B198: =Index!C198 -> 19.59851115 | C198: =Index!B198 -> 17.70233034 | D198: 0 | E198: 19.59851115 | F198: 0.8 | G198: 2035-04-01 | H198: 20.39851115 | I198: 2035
A199: =Index!A199 -> 2035-05-01 | B199: =Index!C199 -> 19.59851115 | C199: =Index!B199 -> 17.72541602 | D199: 0 | E199: 19.59851115 | F199: 0.8 | G199: 2035-05-01 | H199: 20.39851115 | I199: 2035
A200: =Index!A200 -> 2035-06-01 | B200: =Index!C200 -> 19.59851115 | C200: =Index!B200 -> 17.74849251 | D200: 0 | E200: 19.59851115 | F200: 0.8 | G200: 2035-06-01 | H200: 20.39851115 | I200: 2035
... 186 more rows

Sheet Debary
A1: Debary | B1: PETROLEUM PRODUCT PRICE FORECAST DATA | G1: PROSYM INPUT | J1: ANNUAL AVERAGE
A2: Date | B2: Petroleum Product Price Forecast - Gulf Coast | C2: TCM | D2: Blend TCM/ Fundamental (%) | E2: Blend TCM/ Fundamental ($) | F2: Debary Transport ($/MMBtu) | G2: Date | H2: nomianl$/MMBtu | K2: =A1 -> Debary
A3: =Index!A3 -> 2019-01-01 | B3: =Index!C3 -> 14.62277187 | C3: =Index!B3 -> 12.92753623 | D3: 1 | E3: =(C3*D3+B3*(1-D3)) -> 12.92753623 | F3: . | G3: =A3 -> 2019-01-01 | H3: =SUM(E3:F3) -> 12.92753623 | I3: =YEAR(A3) -> 2019 | J3: 2019 | K3: =AVERAGEIF($I$3:$I$386,J3,$H$3:$H$386) -> 14.10461353
A4: =Index!A4 -> 2019-02-01 | B4: =Index!C4 -> 14.62277187 | C4: =Index!B4 -> 13.86956522 | D4: 1 | E4: 13.86956522 | F4: 0.693 | G4: 2019-02-01 | H4: 14.56256522 | I4: =YEAR(A4) -> 2019 | J4: 2020 | K4: =AVERAGEIF($I$3:$I$386,J4,$H$3:$H$386) -> 14.35116546
A5: =Index!A5 -> 2019-03-01 | B5: =Index!C5 -> 14.62277187 | C5: =Index!B5 -> 13.7826087 | D5: 1 | E5: 13.7826087 | F5: 0.693 | G5: 2019-03-01 | H5: 14.4756087 | I5: 2019 | J5: 2021 | K5: 14.10832126
A6: =Index!A6 -> 2019-04-01 | B6: =Index!C6 -> 14.62277187 | C6: =Index!B6 -> 14.32608696 | D6: 1 | E6: 14.32608696 | F6: . | G6: 2019-04-01 | H6: 14.32608696 | I6: 2019 | J6: 2022 | K6: 14.36007287
A7: =Index!A7 -> 2019-05-01 | B7: =Index!C7 -> 14.62277187 | C7: =Index!B7 -> 14.28985507 | D7: 1 | E7: 14.28985507 | F7: 0.693 | G7: 2019-05-01 | H7: 14.98285507 | I7: 2019 | J7: 2023 | K7: 14.54571822
A8: =Index!A8 -> 2019-06-01 | B8: =Index!C8 -> 14.62277187 | C8: =Index!B8 -> 13.16666667 | D8: 1 | E8: 13.16666667 | F8: 0.693 | G8: 2019-06-01 | H8: 13.85966667 | I8: 2019 | J8: 2024 | K8: 14.83033619
A9: =Index!A9 -> 2019-07-01 | B9: =Index!C9 -> 14.62277187 | C9: =Index!B9 -> 13.86231884 | D9: 1 | E9: 13.86231884 | F9: 0.693 | G9: 2019-07-01 | H9: 14.55531884 | I9: 2019 | J9: 2025 | K9: 15.19160034
A10: =Index!A10 -> 2019-08-01 | B10: =Index!C10 -> 14.62277187 | C10: =Index!B10 -> 13.04347826 | D10: 1 | E10: 13.04347826 | F10: 0.693 | G10: 2019-08-01 | H10: 13.73647826 | I10: 2019 | J10: 2026 | K10: 15.76436878
A11: =Index!A11 -> 2019-09-01 | B11: =Index!C11 -> 14.62277187 | C11: =Index!B11 -> 13.57971014 | D11: 1 | E11: 13.57971014 | F11: 0.693 | G11: 2019-09-01 | H11: 14.27271014 | I11: 2019 | J11: 2027 | K11: 16.42193825
A12: =Index!A12 -> 2019-10-01 | B12: =Index!C12 -> 14.62277187 | C12: =Index!B12 -> 13.3115942 | D12: 1 | E12: 13.3115942 | F12: 0.693 | G12: 2019-10-01 | H12: 14.0045942 | I12: 2019 | J12: 2028 | K12: 17.1805729
A13: =Index!A13 -> 2019-11-01 | B13: =Index!C13 -> 14.62277187 | C13: =Index!B13 -> 13.07681159 | D13: 1 | E13: 13.07681159 | F13: 0.693 | G13: 2019-11-01 | H13: 13.76981159 | I13: 2019 | J13: 2029 | K13: 17.87429846
A14: =Index!A14 -> 2019-12-01 | B14: =Index!C14 -> 14.62277187 | C14: =Index!B14 -> 13.08913043 | D14: 1 | E14: 13.08913043 | F14: 0.693 | G14: 2019-12-01 | H14: 13.78213043 | I14: 2019 | J14: 2030 | K14: 18.31206175
A15: =Index!A15 -> 2020-01-01 | B15: =Index!C15 -> 13.65684391 | C15: =Index!B15 -> 13.8037971 | D15: 1 | E15: 13.8037971 | F15: 0.703 | G15: 2020-01-01 | H15: 14.5067971 | I15: 2020 | J15: 2031 | K15: 18.71927959
A16: =Index!A16 -> 2020-02-01 | B16: =Index!C16 -> 13.65684391 | C16: =Index!B16 -> 14.0924058 | D16: 1 | E16: 14.0924058 | F16: 0.703 | G16: 2020-02-01 | H16: 14.7954058 | I16: 2020 | J16: 2032 | K16: 19.14291424
A17: =Index!A17 -> 2020-03-01 | B17: =Index!C17 -> 13.65684391 | C17: =Index!B17 -> 14.59535507 | D17: 1 | E17: 14.59535507 | F17: 0.703 | G17: =A17 -> 2020-03-01 | H17: 15.29835507 | I17: 2020 | J17: 2033 | K17: 19.57959691
A18: =Index!A18 -> 2020-04-01 | B18: =Index!C18 -> 13.65684391 | C18: =Index!B18 -> 14.42354348 | D18: 1 | E18: 14.42354348 | F18: 0.703 | G18: 2020-04-01 | H18: 15.12654348 | I18: 2020 | J18: 2034 | K18: 20.02340309
A19: =Index!A19 -> 2020-05-01 | B19: =Index!C19 -> 13.65684391 | C19: =Index!B19 -> 13.10595652 | D19: 1 | E19: 13.10595652 | F19: 0.703 | G19: 2020-05-01 | H19: 13.80895652 | I19: 2020 | J19: 2035 | K19: 20.47751115
A20: =Index!A20 -> 2020-06-01 | B20: =Index!C20 -> 13.65684391 | C20: =Index!B20 -> 13.60171739 | D20: 1 | E20: 13.60171739 | F20: 0.703 | G20: 2020-06-01 | H20: 14.30471739 | I20: 2020 | J20: 2036 | K20: 20.94077309
A21: =Index!A21 -> 2020-07-01 | B21: =Index!C21 -> 13.65684391 | C21: =Index!B21 -> 12.98257246 | D21: 1 | E21: 12.98257246 | F21: 0.703 | G21: 2020-07-01 | H21: 13.68557246 | I21: 2020 | J21: 2037 | K21: 21.42419151
A22: =Index!A22 -> 2020-08-01 | B22: =Index!C22 -> 13.65684391 | C22: =Index!B22 -> 13.8187029 | D22: 1 | E22: 13.8187029 | F22: 0.703 | G22: 2020-08-01 | H22: 14.5217029 | I22: 2020 | J22: 2038 | K22: 21.82604346
A23: =Index!A23 -> 2020-09-01 | B23: =Index!C23 -> 13.65684391 | C23: =Index!B23 -> 13.63598551 | D23: 1 | E23: 13.63598551 | F23: 0.703 | G23: 2020-09-01 | H23: 14.33898551 | I23: 2020 | J23: 2039 | K23: 22.21664411
A24: =Index!A24 -> 2020-10-01 | B24: =Index!C24 -> 13.65684391 | C24: =Index!B24 -> 13.38081159 | D24: 1 | E24: 13.38081159 | F24: 0.703 | G24: 2020-10-01 | H24: 14.08381159 | I24: 2020 | J24: 2040 | K24: 22.3664832
A25: =Index!A25 -> 2020-11-01 | B25: =Index!C25 -> 13.65684391 | C25: =Index!B25 -> 13.15651449 | D25: 1 | E25: 13.15651449 | F25: 0.703 | G25: 2020-11-01 | H25: 13.85951449 | I25: 2020 | J25: 2041 | K25: 22.9359965
A26: =Index!A26 -> 2020-12-01 | B26: =Index!C26 -> 13.65684391 | C26: =Index!B26 -> 13.18062319 | D26: 1 | E26: 13.18062319 | F26: 0.703 | G26: 2020-12-01 | H26: 13.88362319 | I26: 2020 | J26: 2042 | K26: 23.52406374
A27: =Index!A27 -> 2021-01-01 | B27: =Index!C27 -> 13.38006175 | C27: =Index!B27 -> 13.24393478 | D27: 1 | E27: 13.24393478 | F27: 0.714 | G27: 2021-01-01 | H27: 13.95793478 | I27: 2021 | J27: 2043 | K27: 23.72621061
A28: =Index!A28 -> 2021-02-01 | B28: =Index!C28 -> 13.38006175 | C28: =Index!B28 -> 13.26150725 | D28: 1 | E28: 13.26150725 | F28: 0.714 | G28: 2021-02-01 | H28: 13.97550725 | I28: 2021 | J28: 2044 | K28: 24.33398562
A29: =Index!A29 -> 2021-03-01 | B29: =Index!C29 -> 13.38006175 | C29: =Index!B29 -> 13.27907246 | D29: 1 | E29: 13.27907246 | F29: 0.714 | G29: 2021-03-01 | H29: 13.99307246 | I29: 2021 | J29: 2045 | K29: 24.53453933
A30: =Index!A30 -> 2021-04-01 | B30: =Index!C30 -> 13.38006175 | C30: =Index!B30 -> 13.29664493 | D30: 1 | E30: 13.29664493 | F30: 0.714 | G30: 2021-04-01 | H30: 14.01064493 | I30: 2021 | J30: 2046 | K30: 25.15124336
A31: =Index!A31 -> 2021-05-01 | B31: =Index!C31 -> 13.38006175 | C31: =Index!B31 -> 13.31421739 | D31: 1 | E31: 13.31421739 | F31: 0.714 | G31: 2021-05-01 | H31: 14.02821739 | I31: 2021 | J31: 2047 | K31: 25.77697842
A32: =Index!A32 -> 2021-06-01 | B32: =Index!C32 -> 13.38006175 | C32: =Index!B32 -> 13.33178261 | D32: 1 | E32: 13.33178261 | F32: 0.714 | G32: 2021-06-01 | H32: 14.04578261 | I32: 2021 | J32: 2048 | K32: 25.97089004
A33: =Index!A33 -> 2021-07-01 | B33: =Index!C33 -> 13.38006175 | C33: =Index!B33 -> 13.33169565 | D33: 1 | E33: 13.33169565 | F33: 0.714 | G33: 2021-07-01 | H33: 14.04569565 | I33: 2021 | J33: 2049 | K33: 26.61397604
A34: =Index!A34 -> 2021-08-01 | B34: =Index!C34 -> 13.38006175 | C34: =Index!B34 -> 13.33160145 | D34: 1 | E34: 13.33160145 | F34: 0.714 | G34: 2021-08-01 | H34: 14.04560145 | I34: 2021 | J34: 2050 | K34: 26.63017674
A35: =Index!A35 -> 2021-09-01 | B35: =Index!C35 -> 13.38006175 | C35: =Index!B35 -> 13.8885 | D35: 1 | E35: 13.8885 | F35: 0.714 | G35: 2021-09-01 | H35: 14.6025 | I35: 2021
A36: =Index!A36 -> 2021-10-01 | B36: =Index!C36 -> 13.38006175 | C36: =Index!B36 -> 13.62850725 | D36: 1 | E36: 13.62850725 | F36: 0.714 | G36: 2021-10-01 | H36: =SUM(E36:F36) -> 14.34250725 | I36: 2021
A37: =Index!A37 -> 2021-11-01 | B37: =Index!C37 -> 13.38006175 | C37: =Index!B37 -> 13.39996377 | D37: 1 | E37: 13.39996377 | F37: 0.714 | G37: 2021-11-01 | H37: 14.11396377 | I37: 2021
A38: =Index!A38 -> 2021-12-01 | B38: =Index!C38 -> 13.38006175 | C38: =Index!B38 -> 13.42442754 | D38: 1 | E38: 13.42442754 | F38: 0.714 | G38: 2021-12-01 | H38: 14.13842754 | I38: 2021
A39: =Index!A39 -> 2022-01-01 | B39: =Index!C39 -> 13.44302573 | C39: =Index!B39 -> 13.57044928 | D39: 0.96 | E39: 13.56535233 | F39: 0.724 | G39: 2022-01-01 | H39: 14.28935233 | I39: 2022
A40: =Index!A40 -> 2022-02-01 | B40: =Index!C40 -> 13.44302573 | C40: =Index!B40 -> 13.58833333 | D40: 0.92 | E40: 13.57670872 | F40: 0.724 | G40: 2022-02-01 | H40: 14.30070872 | I40: 2022
A41: =Index!A41 -> 2022-03-01 | B41: =Index!C41 -> 13.44302573 | C41: =Index!B41 -> 13.60621014 | D41: 0.88 | E41: 13.58662802 | F41: 0.724 | G41: 2022-03-01 | H41: 14.31062802 | I41: 2022
A42: =Index!A42 -> 2022-04-01 | B42: =Index!C42 -> 13.44302573 | C42: =Index!B42 -> 13.6240942 | D42: 0.84 | E42: 13.59512325 | F42: 0.724 | G42: 2022-04-01 | H42: 14.31912325 | I42: 2022
A43: =Index!A43 -> 2022-05-01 | B43: =Index!C43 -> 13.44302573 | C43: =Index!B43 -> 13.64197101 | D43: 0.8 | E43: 13.60218196 | F43: 0.724 | G43: 2022-05-01 | H43: 14.32618196 | I43: 2022
A44: =Index!A44 -> 2022-06-01 | B44: =Index!C44 -> 13.44302573 | C44: =Index!B44 -> 13.65985507 | D44: 0.76 | E44: 13.60781603 | F44: 0.724 | G44: 2022-06-01 | H44: 14.33181603 | I44: 2022
A45: =Index!A45 -> 2022-07-01 | B45: =Index!C45 -> 13.44302573 | C45: =Index!B45 -> 13.65964493 | D45: 0.72 | E45: 13.59899155 | F45: 0.724 | G45: 2022-07-01 | H45: 14.32299155 | I45: 2022
A46: =Index!A46 -> 2022-08-01 | B46: =Index!C46 -> 13.44302573 | C46: =Index!B46 -> 13.65943478 | D46: 0.68 | E46: 13.59018389 | F46: 0.724 | G46: 2022-08-01 | H46: 14.31418389 | I46: 2022
A47: =Index!A47 -> 2022-09-01 | B47: =Index!C47 -> 13.44302573 | C47: =Index!B47 -> 14.2299058 | D47: 0.64 | E47: 13.94662897 | F47: 0.724 | G47: 2022-09-01 | H47: 14.67062897 | I47: 2022
A48: =Index!A48 -> 2022-10-01 | B48: =Index!C48 -> 13.44302573 | C48: =Index!B48 -> 13.96339855 | D48: 0.6 | E48: 13.75524942 | F48: 0.724 | G48: 2022-10-01 | H48: 14.47924942 | I48: 2022
A49: =Index!A49 -> 2022-11-01 | B49: =Index!C49 -> 13.44302573 | C49: =Index!B49 -> 13.72912319 | D49: 0.56 | E49: 13.60324031 | F49: 0.724 | G49: 2022-11-01 | H49: 14.32724031 | I49: 2022
A50: =Index!A50 -> 2022-12-01 | B50: =Index!C50 -> 13.44302573 | C50: =Index!B50 -> 13.75407246 | D50: 0.52 | E50: 13.60477003 | F50: 0.724 | G50: 2022-12-01 | H50: 14.32877003 | I50: 2022
A51: =Index!A51 -> 2023-01-01 | B51: =Index!C51 -> 13.74934477 | C51: =Index!B51 -> 13.90356522 | D51: 0.48 | E51: 13.82337058 | F51: 0.735 | G51: 2023-01-01 | H51: 14.55837058 | I51: 2023
A52: =Index!A52 -> 2023-02-01 | B52: =Index!C52 -> 13.74934477 | C52: =Index!B52 -> 13.92176087 | D52: 0.44 | E52: 13.82520785 | F52: 0.735 | G52: 2023-02-01 | H52: 14.56020785 | I52: 2023
A53: =Index!A53 -> 2023-03-01 | B53: =Index!C53 -> 13.74934477 | C53: =Index!B53 -> 13.93996377 | D53: 0.4 | E53: 13.82559237 | F53: 0.735 | G53: 2023-03-01 | H53: 14.56059237 | I53: 2023
A54: =Index!A54 -> 2023-04-01 | B54: =Index!C54 -> 13.74934477 | C54: =Index!B54 -> 13.95816667 | D54: 0.36 | E54: =(C54*D54+B54*(1-D54)) -> 13.82452065 | F54: 0.735 | G54: 2023-04-01 | H54: 14.55952065 | I54: 2023
A55: =Index!A55 -> 2023-05-01 | B55: =Index!C55 -> 13.74934477 | C55: =Index!B55 -> 13.97636957 | D55: 0.32 | E55: 13.8219927 | F55: 0.735 | G55: 2023-05-01 | H55: 14.5569927 | I55: 2023
A56: =Index!A56 -> 2023-06-01 | B56: =Index!C56 -> 13.74934477 | C56: =Index!B56 -> 13.99456522 | D56: 0.28 | E56: 13.81800649 | F56: 0.735 | G56: 2023-06-01 | H56: 14.55300649 | I56: 2023
A57: =Index!A57 -> 2023-07-01 | B57: =Index!C57 -> 13.74934477 | C57: =Index!B57 -> 13.93283783 | D57: 0.24 | E57: 13.7933831 | F57: 0.735 | G57: 2023-07-01 | H57: 14.5283831 | I57: 2023
A58: =Index!A58 -> 2023-08-01 | B58: =Index!C58 -> 13.74934477 | C58: =Index!B58 -> 13.93262348 | D58: 0.2 | E58: 13.78600051 | F58: 0.735 | G58: 2023-08-01 | H58: 14.52100051 | I58: 2023
A59: =Index!A59 -> 2023-09-01 | B59: =Index!C59 -> 13.74934477 | C59: =Index!B59 -> 14.51450391 | D59: 0.16 | E59: 13.87177023 | F59: 0.735 | G59: 2023-09-01 | H59: 14.60677023 | I59: 2023
A60: =Index!A60 -> 2023-10-01 | B60: =Index!C60 -> 13.74934477 | C60: =Index!B60 -> 14.24266652 | D60: 0.12 | E60: 13.80854338 | F60: 0.735 | G60: 2023-10-01 | H60: 14.54354338 | I60: 2023
A61: =Index!A61 -> 2023-11-01 | B61: =Index!C61 -> 13.74934477 | C61: =Index!B61 -> 14.00370565 | D61: 0.08 | E61: 13.76969364 | F61: 0.735 | G61: 2023-11-01 | H61: 14.50469364 | I61: 2023
A62: =Index!A62 -> 2023-12-01 | B62: =Index!C62 -> 13.74934477 | C62: =Index!B62 -> 14.02915391 | D62: 0.04 | E62: 13.76053713 | F62: 0.735 | G62: 2023-12-01 | H62: 14.49553713 | I62: 2023
A63: =Index!A63 -> 2024-01-01 | B63: =Index!C63 -> 14.08433619 | C63: =Index!B63 -> 14.18163652 | D63: 0 | E63: 14.08433619 | F63: 0.746 | G63: 2024-01-01 | H63: 14.83033619 | I63: 2024
A64: =Index!A64 -> 2024-02-01 | B64: =Index!C64 -> 14.08433619 | C64: =Index!B64 -> 14.20019609 | D64: 0 | E64: 14.08433619 | F64: 0.746 | G64: 2024-02-01 | H64: 14.83033619 | I64: 2024
A65: =Index!A65 -> 2024-03-01 | B65: =Index!C65 -> 14.08433619 | C65: =Index!B65 -> 14.21876304 | D65: 0 | E65: 14.08433619 | F65: 0.746 | G65: 2024-03-01 | H65: 14.83033619 | I65: 2024
A66: =Index!A66 -> 2024-04-01 | B66: =Index!C66 -> 14.08433619 | C66: =Index!B66 -> 14.23733 | D66: 0 | E66: 14.08433619 | F66: 0.746 | G66: 2024-04-01 | H66: 14.83033619 | I66: 2024
A67: =Index!A67 -> 2024-05-01 | B67: =Index!C67 -> 14.08433619 | C67: =Index!B67 -> 14.25589696 | D67: 0 | E67: 14.08433619 | F67: 0.746 | G67: 2024-05-01 | H67: 14.83033619 | I67: 2024
A68: =Index!A68 -> 2024-06-01 | B68: =Index!C68 -> 14.08433619 | C68: =Index!B68 -> 14.27445652 | D68: 0 | E68: 14.08433619 | F68: 0.746 | G68: 2024-06-01 | H68: 14.83033619 | I68: =YEAR(A68) -> 2024
A69: =Index!A69 -> 2024-07-01 | B69: =Index!C69 -> 14.08433619 | C69: =Index!B69 -> 14.21149458 | D69: 0 | E69: 14.08433619 | F69: 0.746 | G69: 2024-07-01 | H69: 14.83033619 | I69: 2024
A70: =Index!A70 -> 2024-08-01 | B70: =Index!C70 -> 14.08433619 | C70: =Index!B70 -> 14.21127595 | D70: 0 | E70: 14.08433619 | F70: 0.746 | G70: 2024-08-01 | H70: 14.83033619 | I70: 2024
A71: =Index!A71 -> 2024-09-01 | B71: =Index!C71 -> 14.08433619 | C71: =Index!B71 -> 14.80479399 | D71: 0 | E71: 14.08433619 | F71: 0.746 | G71: 2024-09-01 | H71: 14.83033619 | I71: 2024
A72: =Index!A72 -> 2024-10-01 | B72: =Index!C72 -> 14.08433619 | C72: =Index!B72 -> 14.52751985 | D72: 0 | E72: 14.08433619 | F72: 0.746 | G72: 2024-10-01 | H72: 14.83033619 | I72: 2024
A73: =Index!A73 -> 2024-11-01 | B73: =Index!C73 -> 14.08433619 | C73: =Index!B73 -> 14.28377977 | D73: 0 | E73: 14.08433619 | F73: 0.746 | G73: 2024-11-01 | H73: 14.83033619 | I73: 2024
A74: =Index!A74 -> 2024-12-01 | B74: =Index!C74 -> 14.08433619 | C74: =Index!B74 -> 14.30973699 | D74: 0 | E74: 14.08433619 | F74: 0.746 | G74: 2024-12-01 | H74: 14.83033619 | I74: 2024
A75: =Index!A75 -> 2025-01-01 | B75: =Index!C75 -> 14.43460034 | C75: =Index!B75 -> 14.46526925 | D75: 0 | E75: 14.43460034 | F75: 0.757 | G75: 2025-01-01 | H75: 15.19160034 | I75: 2025
A76: =Index!A76 -> 2025-02-01 | B76: =Index!C76 -> 14.43460034 | C76: =Index!B76 -> 14.48420001 | D76: 0 | E76: 14.43460034 | F76: 0.757 | G76: 2025-02-01 | H76: 15.19160034 | I76: 2025
A77: =Index!A77 -> 2025-03-01 | B77: =Index!C77 -> 14.43460034 | C77: =Index!B77 -> 14.5031383 | D77: 0 | E77: 14.43460034 | F77: 0.757 | G77: 2025-03-01 | H77: 15.19160034 | I77: 2025
A78: =Index!A78 -> 2025-04-01 | B78: =Index!C78 -> 14.43460034 | C78: =Index!B78 -> 14.5220766 | D78: 0 | E78: 14.43460034 | F78: 0.757 | G78: 2025-04-01 | H78: 15.19160034 | I78: 2025
A79: =Index!A79 -> 2025-05-01 | B79: =Index!C79 -> 14.43460034 | C79: =Index!B79 -> 14.5410149 | D79: 0 | E79: 14.43460034 | F79: 0.757 | G79: 2025-05-01 | H79: 15.19160034 | I79: 2025
A80: =Index!A80 -> 2025-06-01 | B80: =Index!C80 -> 14.43460034 | C80: =Index!B80 -> 14.55994565 | D80: 0 | E80: 14.43460034 | F80: 0.757 | G80: 2025-06-01 | H80: 15.19160034 | I80: 2025
A81: =Index!A81 -> 2025-07-01 | B81: =Index!C81 -> 14.43460034 | C81: =Index!B81 -> 14.49572447 | D81: 0 | E81: 14.43460034 | F81: 0.757 | G81: =A81 -> 2025-07-01 | H81: 15.19160034 | I81: 2025
A82: =Index!A82 -> 2025-08-01 | B82: =Index!C82 -> 14.43460034 | C82: =Index!B82 -> 14.49550147 | D82: 0 | E82: 14.43460034 | F82: 0.757 | G82: 2025-08-01 | H82: 15.19160034 | I82: 2025
A83: =Index!A83 -> 2025-09-01 | B83: =Index!C83 -> 14.43460034 | C83: =Index!B83 -> 15.10088987 | D83: 0 | E83: 14.43460034 | F83: 0.757 | G83: 2025-09-01 | H83: 15.19160034 | I83: 2025
A84: =Index!A84 -> 2025-10-01 | B84: =Index!C84 -> 14.43460034 | C84: =Index!B84 -> 14.81807025 | D84: 0 | E84: 14.43460034 | F84: 0.757 | G84: 2025-10-01 | H84: 15.19160034 | I84: 2025
A85: =Index!A85 -> 2025-11-01 | B85: =Index!C85 -> 14.43460034 | C85: =Index!B85 -> 14.56945536 | D85: 0 | E85: 14.43460034 | F85: 0.757 | G85: 2025-11-01 | H85: 15.19160034 | I85: 2025
A86: =Index!A86 -> 2025-12-01 | B86: =Index!C86 -> 14.43460034 | C86: =Index!B86 -> 14.59593173 | D86: 0 | E86: 14.43460034 | F86: 0.757 | G86: 2025-12-01 | H86: 15.19160034 | I86: 2025
A87: =Index!A87 -> 2026-01-01 | B87: =Index!C87 -> 14.99536878 | C87: =Index!B87 -> 14.75457464 | D87: 0 | E87: 14.99536878 | F87: 0.769 | G87: 2026-01-01 | H87: 15.76436878 | I87: 2026
A88: =Index!A88 -> 2026-02-01 | B88: =Index!C88 -> 14.99536878 | C88: =Index!B88 -> 14.77388401 | D88: 0 | E88: 14.99536878 | F88: 0.769 | G88: 2026-02-01 | H88: 15.76436878 | I88: 2026
A89: =Index!A89 -> 2026-03-01 | B89: =Index!C89 -> 14.99536878 | C89: =Index!B89 -> 14.79320107 | D89: 0 | E89: 14.99536878 | F89: 0.769 | G89: 2026-03-01 | H89: 15.76436878 | I89: 2026
A90: =Index!A90 -> 2026-04-01 | B90: =Index!C90 -> 14.99536878 | C90: =Index!B90 -> 14.81251813 | D90: 0 | E90: 14.99536878 | F90: 0.769 | G90: 2026-04-01 | H90: 15.76436878 | I90: 2026
A91: =Index!A91 -> 2026-05-01 | B91: =Index!C91 -> 14.99536878 | C91: =Index!B91 -> 14.83183519 | D91: 0 | E91: 14.99536878 | F91: 0.769 | G91: 2026-05-01 | H91: 15.76436878 | I91: 2026
A92: =Index!A92 -> 2026-06-01 | B92: =Index!C92 -> 14.99536878 | C92: =Index!B92 -> 14.85114457 | D92: 0 | E92: 14.99536878 | F92: 0.769 | G92: 2026-06-01 | H92: 15.76436878 | I92: 2026
A93: =Index!A93 -> 2026-07-01 | B93: =Index!C93 -> 14.99536878 | C93: =Index!B93 -> 14.78563896 | D93: 0 | E93: 14.99536878 | F93: 0.769 | G93: 2026-07-01 | H93: 15.76436878 | I93: 2026
A94: =Index!A94 -> 2026-08-01 | B94: =Index!C94 -> 14.99536878 | C94: =Index!B94 -> 14.7854115 | D94: 0 | E94: 14.99536878 | F94: 0.769 | G94: 2026-08-01 | H94: 15.76436878 | I94: 2026
A95: =Index!A95 -> 2026-09-01 | B95: =Index!C95 -> 14.99536878 | C95: =Index!B95 -> 15.40290767 | D95: 0 | E95: 14.99536878 | F95: 0.769 | G95: 2026-09-01 | H95: 15.76436878 | I95: 2026
A96: =Index!A96 -> 2026-10-01 | B96: =Index!C96 -> 14.99536878 | C96: =Index!B96 -> 15.11443165 | D96: 0 | E96: 14.99536878 | F96: 0.769 | G96: 2026-10-01 | H96: 15.76436878 | I96: 2026
A97: =Index!A97 -> 2026-11-01 | B97: =Index!C97 -> 14.99536878 | C97: =Index!B97 -> 14.86084447 | D97: 0 | E97: 14.99536878 | F97: 0.769 | G97: 2026-11-01 | H97: 15.76436878 | I97: 2026
A98: =Index!A98 -> 2026-12-01 | B98: =Index!C98 -> 14.99536878 | C98: =Index!B98 -> 14.88785037 | D98: 0 | E98: 14.99536878 | F98: 0.769 | G98: 2026-12-01 | H98: 15.76436878 | I98: 2026
A99: =Index!A99 -> 2027-01-01 | B99: =Index!C99 -> 15.64193825 | C99: =Index!B99 -> 15.04966613 | D99: 0 | E99: 15.64193825 | F99: 0.78 | G99: 2027-01-01 | H99: 16.42193825 | I99: 2027
A100: =Index!A100 -> 2027-02-01 | B100: =Index!C100 -> 15.64193825 | C100: =Index!B100 -> 15.06936169 | D100: 0 | E100: 15.64193825 | F100: 0.78 | G100: 2027-02-01 | H100: =SUM(E100:F100) -> 16.42193825 | I100: 2027
A101: =Index!A101 -> 2027-03-01 | B101: =Index!C101 -> 15.64193825 | C101: =Index!B101 -> 15.08906509 | D101: 0 | E101: 15.64193825 | F101: 0.78 | G101: 2027-03-01 | H101: 16.42193825 | I101: 2027
A102: =Index!A102 -> 2027-04-01 | B102: =Index!C102 -> 15.64193825 | C102: =Index!B102 -> 15.10876849 | D102: 0 | E102: 15.64193825 | F102: 0.78 | G102: 2027-04-01 | H102: 16.42193825 | I102: 2027
A103: =Index!A103 -> 2027-05-01 | B103: =Index!C103 -> 15.64193825 | C103: =Index!B103 -> 15.1284719 | D103: 0 | E103: 15.64193825 | F103: 0.78 | G103: 2027-05-01 | H103: 16.42193825 | I103: 2027
A104: =Index!A104 -> 2027-06-01 | B104: =Index!C104 -> 15.64193825 | C104: =Index!B104 -> 15.14816746 | D104: 0 | E104: 15.64193825 | F104: 0.78 | G104: 2027-06-01 | H104: 16.42193825 | I104: 2027
A105: =Index!A105 -> 2027-07-01 | B105: =Index!C105 -> 15.64193825 | C105: =Index!B105 -> 15.08135174 | D105: 0 | E105: 15.64193825 | F105: 0.78 | G105: 2027-07-01 | H105: 16.42193825 | I105: 2027
A106: =Index!A106 -> 2027-08-01 | B106: =Index!C106 -> 15.64193825 | C106: =Index!B106 -> 15.08111973 | D106: 0 | E106: 15.64193825 | F106: 0.78 | G106: 2027-08-01 | H106: 16.42193825 | I106: 2027
A107: =Index!A107 -> 2027-09-01 | B107: =Index!C107 -> 15.64193825 | C107: =Index!B107 -> 15.71096582 | D107: 0 | E107: 15.64193825 | F107: 0.78 | G107: 2027-09-01 | H107: 16.42193825 | I107: 2027
A108: =Index!A108 -> 2027-10-01 | B108: =Index!C108 -> 15.64193825 | C108: =Index!B108 -> 15.41672029 | D108: 0 | E108: 15.64193825 | F108: 0.78 | G108: 2027-10-01 | H108: 16.42193825 | I108: 2027
A109: =Index!A109 -> 2027-11-01 | B109: =Index!C109 -> 15.64193825 | C109: =Index!B109 -> 15.15806136 | D109: 0 | E109: 15.64193825 | F109: 0.78 | G109: 2027-11-01 | H109: 16.42193825 | I109: 2027
A110: =Index!A110 -> 2027-12-01 | B110: =Index!C110 -> 15.64193825 | C110: =Index!B110 -> 15.18560737 | D110: 0 | E110: 15.64193825 | F110: 0.78 | G110: 2027-12-01 | H110: 16.42193825 | I110: 2027
A111: =Index!A111 -> 2028-01-01 | B111: =Index!C111 -> 16.3885729 | C111: =Index!B111 -> 15.35065945 | D111: 0 | E111: 16.3885729 | F111: 0.792 | G111: 2028-01-01 | H111: 17.1805729 | I111: 2028
A112: =Index!A112 -> 2028-02-01 | B112: =Index!C112 -> 16.3885729 | C112: =Index!B112 -> 15.37074892 | D112: 0 | E112: 16.3885729 | F112: 0.792 | G112: 2028-02-01 | H112: 17.1805729 | I112: 2028
A113: =Index!A113 -> 2028-03-01 | B113: =Index!C113 -> 16.3885729 | C113: =Index!B113 -> 15.39084639 | D113: 0 | E113: 16.3885729 | F113: 0.792 | G113: 2028-03-01 | H113: 17.1805729 | I113: 2028
A114: =Index!A114 -> 2028-04-01 | B114: =Index!C114 -> 16.3885729 | C114: =Index!B114 -> 15.41094386 | D114: 0 | E114: 16.3885729 | F114: 0.792 | G114: 2028-04-01 | H114: 17.1805729 | I114: 2028
A115: =Index!A115 -> 2028-05-01 | B115: =Index!C115 -> 16.3885729 | C115: =Index!B115 -> 15.43104134 | D115: 0 | E115: 16.3885729 | F115: 0.792 | G115: 2028-05-01 | H115: 17.1805729 | I115: 2028
A116: =Index!A116 -> 2028-06-01 | B116: =Index!C116 -> 16.3885729 | C116: =Index!B116 -> 15.45113081 | D116: 0 | E116: 16.3885729 | F116: 0.792 | G116: 2028-06-01 | H116: 17.1805729 | I116: 2028
A117: =Index!A117 -> 2028-07-01 | B117: =Index!C117 -> 16.3885729 | C117: =Index!B117 -> 15.38297878 | D117: 0 | E117: 16.3885729 | F117: 0.792 | G117: 2028-07-01 | H117: 17.1805729 | I117: 2028
A118: =Index!A118 -> 2028-08-01 | B118: =Index!C118 -> 16.3885729 | C118: =Index!B118 -> 15.38274212 | D118: 0 | E118: =(C118*D118+B118*(1-D118)) -> 16.3885729 | F118: 0.792 | G118: 2028-08-01 | H118: 17.1805729 | I118: 2028
A119: =Index!A119 -> 2028-09-01 | B119: =Index!C119 -> 16.3885729 | C119: =Index!B119 -> 16.02518514 | D119: 0 | E119: 16.3885729 | F119: 0.792 | G119: 2028-09-01 | H119: 17.1805729 | I119: 2028
A120: =Index!A120 -> 2028-10-01 | B120: =Index!C120 -> 16.3885729 | C120: =Index!B120 -> 15.72505469 | D120: 0 | E120: 16.3885729 | F120: 0.792 | G120: 2028-10-01 | H120: 17.1805729 | I120: 2028
A121: =Index!A121 -> 2028-11-01 | B121: =Index!C121 -> 16.3885729 | C121: =Index!B121 -> 15.46122258 | D121: 0 | E121: 16.3885729 | F121: 0.792 | G121: 2028-11-01 | H121: 17.1805729 | I121: 2028
A122: =Index!A122 -> 2028-12-01 | B122: =Index!C122 -> 16.3885729 | C122: =Index!B122 -> 15.48931952 | D122: 0 | E122: 16.3885729 | F122: 0.792 | G122: 2028-12-01 | H122: 17.1805729 | I122: 2028
A123: =Index!A123 -> 2029-01-01 | B123: =Index!C123 -> 17.07029846 | C123: =Index!B123 -> 15.65767264 | D123: 0 | E123: 17.07029846 | F123: 0.804 | G123: 2029-01-01 | H123: 17.87429846 | I123: 2029
A124: =Index!A124 -> 2029-02-01 | B124: =Index!C124 -> 17.07029846 | C124: =Index!B124 -> 15.6781639 | D124: 0 | E124: 17.07029846 | F124: 0.804 | G124: 2029-02-01 | H124: 17.87429846 | I124: 2029
A125: =Index!A125 -> 2029-03-01 | B125: =Index!C125 -> 17.07029846 | C125: =Index!B125 -> 15.69866332 | D125: 0 | E125: 17.07029846 | F125: 0.804 | G125: 2029-03-01 | H125: 17.87429846 | I125: 2029
A126: =Index!A126 -> 2029-04-01 | B126: =Index!C126 -> 17.07029846 | C126: =Index!B126 -> 15.71916274 | D126: 0 | E126: 17.07029846 | F126: 0.804 | G126: 2029-04-01 | H126: 17.87429846 | I126: 2029
A127: =Index!A127 -> 2029-05-01 | B127: =Index!C127 -> 17.07029846 | C127: =Index!B127 -> 15.73966216 | D127: 0 | E127: 17.07029846 | F127: 0.804 | G127: 2029-05-01 | H127: 17.87429846 | I127: 2029
A128: =Index!A128 -> 2029-06-01 | B128: =Index!C128 -> 17.07029846 | C128: =Index!B128 -> 15.76015342 | D128: 0 | E128: 17.07029846 | F128: 0.804 | G128: 2029-06-01 | H128: 17.87429846 | I128: 2029
A129: =Index!A129 -> 2029-07-01 | B129: =Index!C129 -> 17.07029846 | C129: =Index!B129 -> 15.69063835 | D129: 0 | E129: 17.07029846 | F129: 0.804 | G129: 2029-07-01 | H129: 17.87429846 | I129: 2029
A130: =Index!A130 -> 2029-08-01 | B130: =Index!C130 -> 17.07029846 | C130: =Index!B130 -> 15.69039696 | D130: 0 | E130: 17.07029846 | F130: 0.804 | G130: 2029-08-01 | H130: 17.87429846 | I130: 2029
A131: =Index!A131 -> 2029-09-01 | B131: =Index!C131 -> 17.07029846 | C131: =Index!B131 -> 16.34568884 | D131: 0 | E131: 17.07029846 | F131: 0.804 | G131: 2029-09-01 | H131: 17.87429846 | I131: 2029
A132: =Index!A132 -> 2029-10-01 | B132: =Index!C132 -> 17.07029846 | C132: =Index!B132 -> 16.03955579 | D132: 0 | E132: 17.07029846 | F132: 0.804 | G132: 2029-10-01 | H132: 17.87429846 | I132: =YEAR(A132) -> 2029
A133: =Index!A133 -> 2029-11-01 | B133: =Index!C133 -> 17.07029846 | C133: =Index!B133 -> 15.77044704 | D133: 0 | E133: 17.07029846 | F133: 0.804 | G133: 2029-11-01 | H133: 17.87429846 | I133: 2029
A134: =Index!A134 -> 2029-12-01 | B134: =Index!C134 -> 17.07029846 | C134: =Index!B134 -> 15.79910591 | D134: 0 | E134: 17.07029846 | F134: 0.804 | G134: 2029-12-01 | H134: 17.87429846 | I134: 2029
A135: =Index!A135 -> 2030-01-01 | B135: =Index!C135 -> 17.49606175 | C135: =Index!B135 -> 15.97082609 | D135: 0 | E135: 17.49606175 | F135: 0.816 | G135: 2030-01-01 | H135: 18.31206175 | I135: 2030
A136: =Index!A136 -> 2030-02-01 | B136: =Index!C136 -> 17.49606175 | C136: =Index!B136 -> 15.99172718 | D136: 0 | E136: 17.49606175 | F136: 0.816 | G136: 2030-02-01 | H136: 18.31206175 | I136: 2030
A137: =Index!A137 -> 2030-03-01 | B137: =Index!C137 -> 17.49606175 | C137: =Index!B137 -> 16.01263659 | D137: 0 | E137: 17.49606175 | F137: 0.816 | G137: 2030-03-01 | H137: 18.31206175 | I137: 2030
A138: =Index!A138 -> 2030-04-01 | B138: =Index!C138 -> 17.49606175 | C138: =Index!B138 -> 16.033546 | D138: 0 | E138: 17.49606175 | F138: 0.816 | G138: 2030-04-01 | H138: 18.31206175 | I138: 2030
A139: =Index!A139 -> 2030-05-01 | B139: =Index!C139 -> 17.49606175 | C139: =Index!B139 -> 16.05445541 | D139: 0 | E139: 17.49606175 | F139: 0.816 | G139: 2030-05-01 | H139: 18.31206175 | I139: 2030
A140: =Index!A140 -> 2030-06-01 | B140: =Index!C140 -> 17.49606175 | C140: =Index!B140 -> 16.07535649 | D140: 0 | E140: 17.49606175 | F140: 0.816 | G140: 2030-06-01 | H140: 18.31206175 | I140: 2030
A141: =Index!A141 -> 2030-07-01 | B141: =Index!C141 -> 17.49606175 | C141: =Index!B141 -> 16.00445112 | D141: 0 | E141: 17.49606175 | F141: 0.816 | G141: 2030-07-01 | H141: 18.31206175 | I141: 2030
A142: =Index!A142 -> 2030-08-01 | B142: =Index!C142 -> 17.49606175 | C142: =Index!B142 -> 16.0042049 | D142: 0 | E142: 17.49606175 | F142: 0.816 | G142: 2030-08-01 | H142: 18.31206175 | I142: 2030
A143: =Index!A143 -> 2030-09-01 | B143: =Index!C143 -> 17.49606175 | C143: =Index!B143 -> 16.67260262 | D143: 0 | E143: 17.49606175 | F143: 0.816 | G143: 2030-09-01 | H143: 18.31206175 | I143: 2030
A144: =Index!A144 -> 2030-10-01 | B144: =Index!C144 -> 17.49606175 | C144: =Index!B144 -> 16.3603469 | D144: 0 | E144: 17.49606175 | F144: 0.816 | G144: 2030-10-01 | H144: 18.31206175 | I144: 2030
A145: =Index!A145 -> 2030-11-01 | B145: =Index!C145 -> 17.49606175 | C145: =Index!B145 -> 16.08585598 | D145: 0 | E145: 17.49606175 | F145: 0.816 | G145: =A145 -> 2030-11-01 | H145: 18.31206175 | I145: 2030
A146: =Index!A146 -> 2030-12-01 | B146: =Index!C146 -> 17.49606175 | C146: =Index!B146 -> 16.11508803 | D146: 0 | E146: 17.49606175 | F146: 0.816 | G146: 2030-12-01 | H146: 18.31206175 | I146: 2030
A147: =Index!A147 -> 2031-01-01 | B147: =Index!C147 -> 17.89127959 | C147: =Index!B147 -> 16.29024262 | D147: 0 | E147: 17.89127959 | F147: 0.828 | G147: 2031-01-01 | H147: 18.71927959 | I147: 2031
A148: =Index!A148 -> 2031-02-01 | B148: =Index!C148 -> 17.89127959 | C148: =Index!B148 -> 16.31156172 | D148: 0 | E148: 17.89127959 | F148: 0.828 | G148: 2031-02-01 | H148: 18.71927959 | I148: 2031
A149: =Index!A149 -> 2031-03-01 | B149: =Index!C149 -> 17.89127959 | C149: =Index!B149 -> 16.33288932 | D149: 0 | E149: 17.89127959 | F149: 0.828 | G149: 2031-03-01 | H149: 18.71927959 | I149: 2031
A150: =Index!A150 -> 2031-04-01 | B150: =Index!C150 -> 17.89127959 | C150: =Index!B150 -> 16.35421692 | D150: 0 | E150: 17.89127959 | F150: 0.828 | G150: 2031-04-01 | H150: 18.71927959 | I150: 2031
A151: =Index!A151 -> 2031-05-01 | B151: =Index!C151 -> 17.89127959 | C151: =Index!B151 -> 16.37554451 | D151: 0 | E151: 17.89127959 | F151: 0.828 | G151: 2031-05-01 | H151: 18.71927959 | I151: 2031
A152: =Index!A152 -> 2031-06-01 | B152: =Index!C152 -> 17.89127959 | C152: =Index!B152 -> 16.39686362 | D152: 0 | E152: 17.89127959 | F152: 0.828 | G152: 2031-06-01 | H152: 18.71927959 | I152: 2031
A153: =Index!A153 -> 2031-07-01 | B153: =Index!C153 -> 17.89127959 | C153: =Index!B153 -> 16.32454014 | D153: 0 | E153: 17.89127959 | F153: 0.828 | G153: 2031-07-01 | H153: 18.71927959 | I153: 2031
A154: =Index!A154 -> 2031-08-01 | B154: =Index!C154 -> 17.89127959 | C154: =Index!B154 -> 16.324289 | D154: 0 | E154: 17.89127959 | F154: 0.828 | G154: 2031-08-01 | H154: 18.71927959 | I154: 2031
A155: =Index!A155 -> 2031-09-01 | B155: =Index!C155 -> 17.89127959 | C155: =Index!B155 -> 17.00605467 | D155: 0 | E155: 17.89127959 | F155: 0.828 | G155: 2031-09-01 | H155: 18.71927959 | I155: 2031
A156: =Index!A156 -> 2031-10-01 | B156: =Index!C156 -> 17.89127959 | C156: =Index!B156 -> 16.68755384 | D156: 0 | E156: 17.89127959 | F156: 0.828 | G156: 2031-10-01 | H156: 18.71927959 | I156: 2031
A157: =Index!A157 -> 2031-11-01 | B157: =Index!C157 -> 17.89127959 | C157: =Index!B157 -> 16.4075731 | D157: 0 | E157: 17.89127959 | F157: 0.828 | G157: 2031-11-01 | H157: 18.71927959 | I157: 2031
A158: =Index!A158 -> 2031-12-01 | B158: =Index!C158 -> 17.89127959 | C158: =Index!B158 -> 16.43738979 | D158: 0 | E158: 17.89127959 | F158: 0.828 | G158: 2031-12-01 | H158: 18.71927959 | I158: 2031
A159: =Index!A159 -> 2032-01-01 | B159: =Index!C159 -> 18.30191424 | C159: =Index!B159 -> 16.61604747 | D159: 0 | E159: 18.30191424 | F159: 0.841 | G159: 2032-01-01 | H159: 19.14291424 | I159: 2032
A160: =Index!A160 -> 2032-02-01 | B160: =Index!C160 -> 18.30191424 | C160: =Index!B160 -> 16.63779296 | D160: 0 | E160: 18.30191424 | F160: 0.841 | G160: 2032-02-01 | H160: 19.14291424 | I160: 2032
A161: =Index!A161 -> 2032-03-01 | B161: =Index!C161 -> 18.30191424 | C161: =Index!B161 -> 16.65954711 | D161: 0 | E161: 18.30191424 | F161: 0.841 | G161: 2032-03-01 | H161: 19.14291424 | I161: 2032
A162: =Index!A162 -> 2032-04-01 | B162: =Index!C162 -> 18.30191424 | C162: =Index!B162 -> 16.68130125 | D162: 0 | E162: 18.30191424 | F162: 0.841 | G162: 2032-04-01 | H162: 19.14291424 | I162: 2032
A163: =Index!A163 -> 2032-05-01 | B163: =Index!C163 -> 18.30191424 | C163: =Index!B163 -> 16.7030554 | D163: 0 | E163: 18.30191424 | F163: 0.841 | G163: 2032-05-01 | H163: 19.14291424 | I163: 2032
A164: =Index!A164 -> 2032-06-01 | B164: =Index!C164 -> 18.30191424 | C164: =Index!B164 -> 16.72480089 | D164: 0 | E164: 18.30191424 | F164: 0.841 | G164: 2032-06-01 | H164: =SUM(E164:F164) -> 19.14291424 | I164: 2032
A165: =Index!A165 -> 2032-07-01 | B165: =Index!C165 -> 18.30191424 | C165: =Index!B165 -> 16.65103095 | D165: 0 | E165: 18.30191424 | F165: 0.841 | G165: 2032-07-01 | H165: 19.14291424 | I165: 2032
A166: =Index!A166 -> 2032-08-01 | B166: =Index!C166 -> 18.30191424 | C166: =Index!B166 -> 16.65077478 | D166: 0 | E166: 18.30191424 | F166: 0.841 | G166: 2032-08-01 | H166: 19.14291424 | I166: 2032
A167: =Index!A167 -> 2032-09-01 | B167: =Index!C167 -> 18.30191424 | C167: =Index!B167 -> 17.34617576 | D167: 0 | E167: 18.30191424 | F167: 0.841 | G167: 2032-09-01 | H167: 19.14291424 | I167: 2032
A168: =Index!A168 -> 2032-10-01 | B168: =Index!C168 -> 18.30191424 | C168: =Index!B168 -> 17.02130492 | D168: 0 | E168: 18.30191424 | F168: 0.841 | G168: 2032-10-01 | H168: 19.14291424 | I168: 2032
A169: =Index!A169 -> 2032-11-01 | B169: =Index!C169 -> 18.30191424 | C169: =Index!B169 -> 16.73572456 | D169: 0 | E169: 18.30191424 | F169: 0.841 | G169: 2032-11-01 | H169: 19.14291424 | I169: 2032
A170: =Index!A170 -> 2032-12-01 | B170: =Index!C170 -> 18.30191424 | C170: =Index!B170 -> 16.76613759 | D170: 0 | E170: 18.30191424 | F170: 0.841 | G170: 2032-12-01 | H170: 19.14291424 | I170: 2032
A171: =Index!A171 -> 2033-01-01 | B171: =Index!C171 -> 18.72659691 | C171: =Index!B171 -> 16.94836842 | D171: 0 | E171: 18.72659691 | F171: 0.853 | G171: 2033-01-01 | H171: 19.57959691 | I171: 2033
A172: =Index!A172 -> 2033-02-01 | B172: =Index!C172 -> 18.72659691 | C172: =Index!B172 -> 16.97054882 | D172: 0 | E172: 18.72659691 | F172: 0.853 | G172: 2033-02-01 | H172: 19.57959691 | I172: 2033
A173: =Index!A173 -> 2033-03-01 | B173: =Index!C173 -> 18.72659691 | C173: =Index!B173 -> 16.99273805 | D173: 0 | E173: 18.72659691 | F173: 0.853 | G173: 2033-03-01 | H173: 19.57959691 | I173: 2033
A174: =Index!A174 -> 2033-04-01 | B174: =Index!C174 -> 18.72659691 | C174: =Index!B174 -> 17.01492728 | D174: 0 | E174: 18.72659691 | F174: 0.853 | G174: 2033-04-01 | H174: 19.57959691 | I174: 2033
A175: =Index!A175 -> 2033-05-01 | B175: =Index!C175 -> 18.72659691 | C175: =Index!B175 -> 17.03711651 | D175: 0 | E175: 18.72659691 | F175: 0.853 | G175: 2033-05-01 | H175: 19.57959691 | I175: 2033
A176: =Index!A176 -> 2033-06-01 | B176: =Index!C176 -> 18.72659691 | C176: =Index!B176 -> 17.05929691 | D176: 0 | E176: 18.72659691 | F176: 0.853 | G176: 2033-06-01 | H176: 19.57959691 | I176: 2033
A177: =Index!A177 -> 2033-07-01 | B177: =Index!C177 -> 18.72659691 | C177: =Index!B177 -> 16.98405156 | D177: 0 | E177: 18.72659691 | F177: 0.853 | G177: 2033-07-01 | H177: 19.57959691 | I177: 2033
A178: =Index!A178 -> 2033-08-01 | B178: =Index!C178 -> 18.72659691 | C178: =Index!B178 -> 16.98379028 | D178: 0 | E178: 18.72659691 | F178: 0.853 | G178: 2033-08-01 | H178: 19.57959691 | I178: 2033
A179: =Index!A179 -> 2033-09-01 | B179: =Index!C179 -> 18.72659691 | C179: =Index!B179 -> 17.69309928 | D179: 0 | E179: 18.72659691 | F179: 0.853 | G179: 2033-09-01 | H179: 19.57959691 | I179: 2033
A180: =Index!A180 -> 2033-10-01 | B180: =Index!C180 -> 18.72659691 | C180: =Index!B180 -> 17.36173102 | D180: 0 | E180: 18.72659691 | F180: 0.853 | G180: 2033-10-01 | H180: 19.57959691 | I180: 2033
A181: =Index!A181 -> 2033-11-01 | B181: =Index!C181 -> 18.72659691 | C181: =Index!B181 -> 17.07043905 | D181: 0 | E181: 18.72659691 | F181: 0.853 | G181: 2033-11-01 | H181: 19.57959691 | I181: 2033
A182: =Index!A182 -> 2033-12-01 | B182: =Index!C182 -> 18.72659691 | C182: =Index!B182 -> 17.10146034 | D182: 0 | E182: =(C182*D182+B182*(1-D182)) -> 18.72659691 | F182: 0.853 | G182: 2033-12-01 | H182: 19.57959691 | I182: 2033
A183: =Index!A183 -> 2034-01-01 | B183: =Index!C183 -> 19.15740309 | C183: =Index!B183 -> 17.28733579 | D183: 0 | E183: 19.15740309 | F183: 0.866 | G183: 2034-01-01 | H183: 20.02340309 | I183: 2034
A184: =Index!A184 -> 2034-02-01 | B184: =Index!C184 -> 19.15740309 | C184: =Index!B184 -> 17.30995979 | D184: 0 | E184: 19.15740309 | F184: 0.866 | G184: 2034-02-01 | H184: 20.02340309 | I184: 2034
A185: =Index!A185 -> 2034-03-01 | B185: =Index!C185 -> 19.15740309 | C185: =Index!B185 -> 17.33259281 | D185: 0 | E185: 19.15740309 | F185: 0.866 | G185: 2034-03-01 | H185: 20.02340309 | I185: 2034
A186: =Index!A186 -> 2034-04-01 | B186: =Index!C186 -> 19.15740309 | C186: =Index!B186 -> 17.35522583 | D186: 0 | E186: 19.15740309 | F186: 0.866 | G186: 2034-04-01 | H186: 20.02340309 | I186: 2034
A187: =Index!A187 -> 2034-05-01 | B187: =Index!C187 -> 19.15740309 | C187: =Index!B187 -> 17.37785884 | D187: 0 | E187: 19.15740309 | F187: 0.866 | G187: 2034-05-01 | H187: 20.02340309 | I187: 2034
A188: =Index!A188 -> 2034-06-01 | B188: =Index!C188 -> 19.15740309 | C188: =Index!B188 -> 17.40048285 | D188: 0 | E188: 19.15740309 | F188: 0.866 | G188: 2034-06-01 | H188: 20.02340309 | I188: 2034
A189: =Index!A189 -> 2034-07-01 | B189: =Index!C189 -> 19.15740309 | C189: =Index!B189 -> 17.3237326 | D189: 0 | E189: 19.15740309 | F189: 0.866 | G189: 2034-07-01 | H189: 20.02340309 | I189: 2034
A190: =Index!A190 -> 2034-08-01 | B190: =Index!C190 -> 19.15740309 | C190: =Index!B190 -> 17.32346608 | D190: 0 | E190: 19.15740309 | F190: 0.866 | G190: 2034-08-01 | H190: 20.02340309 | I190: 2034
A191: =Index!A191 -> 2034-09-01 | B191: =Index!C191 -> 19.15740309 | C191: =Index!B191 -> 18.04696126 | D191: 0 | E191: 19.15740309 | F191: 0.866 | G191: 2034-09-01 | H191: 20.02340309 | I191: 2034
A192: =Index!A192 -> 2034-10-01 | B192: =Index!C192 -> 19.15740309 | C192: =Index!B192 -> 17.70896564 | D192: 0 | E192: 19.15740309 | F192: 0.866 | G192: 2034-10-01 | H192: 20.02340309 | I192: 2034
A193: =Index!A193 -> 2034-11-01 | B193: =Index!C193 -> 19.15740309 | C193: =Index!B193 -> 17.41184783 | D193: 0 | E193: 19.15740309 | F193: 0.866 | G193: 2034-11-01 | H193: 20.02340309 | I193: 2034
A194: =Index!A194 -> 2034-12-01 | B194: =Index!C194 -> 19.15740309 | C194: =Index!B194 -> 17.44348954 | D194: 0 | E194: 19.15740309 | F194: 0.866 | G194: 2034-12-01 | H194: 20.02340309 | I194: 2034
A195: =Index!A195 -> 2035-01-01 | B195: =Index!C195 -> 19.59851115 | C195: =Index!B195 -> 17.6330825 | D195: 0 | E195: 19.59851115 | F195: 0.879 | G195: 2035-01-01 | H195: 20.47751115 | I195: 2035
A196: =Index!A196 -> 2035-02-01 | B196: =Index!C196 -> 19.59851115 | C196: =Index!B196 -> 17.65615899 | D196: 0 | E196: 19.59851115 | F196: 0.879 | G196: 2035-02-01 | H196: 20.47751115 | I196: =YEAR(A196) -> 2035
A197: =Index!A197 -> 2035-03-01 | B197: =Index!C197 -> 19.59851115 | C197: =Index!B197 -> 17.67924467 | D197: 0 | E197: 19.59851115 | F197: 0.879 | G197: 2035-03-01 | H197: 20.47751115 | I197: 2035
A198: =Index!A198 -> 2035-04-01 | B198: =Index!C198 -> 19.59851115 | C198: =Index!B198 -> 17.70233034 | D198: 0 | E198: 19.59851115 | F198: 0.879 | G198: 2035-04-01 | H198: 20.47751115 | I198: 2035
A199: =Index!A199 -> 2035-05-01 | B199: =Index!C199 -> 19.59851115 | C199: =Index!B199 -> 17.72541602 | D199: 0 | E199: 19.59851115 | F199: 0.879 | G199: 2035-05-01 | H199: 20.47751115 | I199: 2035
A200: =Index!A200 -> 2035-06-01 | B200: =Index!C200 -> 19.59851115 | C200: =Index!B200 -> 17.74849251 | D200: 0 | E200: 19.59851115 | F200: 0.879 | G200: 2035-06-01 | H200: 20.47751115 | I200: 2035
... 186 more rows

Sheet Hines
A1: Hines | B1: PETROLEUM PRODUCT PRICE FORECAST DATA | G1: PROSYM INPUT | J1: ANNUAL AVERAGE
A2: Date | B2: Petroleum Product Price Forecast - Gulf Coast | C2: TCM | D2: Blend TCM/ Fundamental (%) | E2: Blend TCM/ Fundamental ($) | F2: Hines Transport ($/MMBtu) | G2: Date | H2: nomianl$/MMBtu | K2: =A1 -> Hines
A3: =Index!A3 -> 2019-01-01 | B3: =Index!C3 -> 14.62277187 | C3: =Index!B3 -> 12.92753623 | D3: 1 | E3: =(C3*D3+B3*(1-D3)) -> 12.92753623 | F3: 0.505 | G3: =A3 -> 2019-01-01 | H3: =SUM(E3:F3) -> 13.43253623 | I3: =YEAR(A3) -> 2019 | J3: 2019 | K3: =AVERAGEIF($I$3:$I$386,J3,$H$3:$H$386) -> 14.03211353
A4: =Index!A4 -> 2019-02-01 | B4: =Index!C4 -> 14.62277187 | C4: =Index!B4 -> 13.86956522 | D4: 1 | E4: 13.86956522 | F4: 0.505 | G4: 2019-02-01 | H4: 14.37456522 | I4: =YEAR(A4) -> 2019 | J4: 2020 | K4: =AVERAGEIF($I$3:$I$386,J4,$H$3:$H$386) -> 14.16116546
A5: =Index!A5 -> 2019-03-01 | B5: =Index!C5 -> 14.62277187 | C5: =Index!B5 -> 13.7826087 | D5: 1 | E5: 13.7826087 | F5: 0.505 | G5: 2019-03-01 | H5: 14.2876087 | I5: 2019 | J5: 2021 | K5: 13.91432126
A6: =Index!A6 -> 2019-04-01 | B6: =Index!C6 -> 14.62277187 | C6: =Index!B6 -> 14.32608696 | D6: 1 | E6: 14.32608696 | F6: 0.505 | G6: 2019-04-01 | H6: 14.83108696 | I6: 2019 | J6: 2022 | K6: 14.16407287
A7: =Index!A7 -> 2019-05-01 | B7: =Index!C7 -> 14.62277187 | C7: =Index!B7 -> 14.28985507 | D7: 1 | E7: 14.28985507 | F7: 0.505 | G7: 2019-05-01 | H7: 14.79485507 | I7: 2019 | J7: 2023 | K7: 14.34671822
A8: =Index!A8 -> 2019-06-01 | B8: =Index!C8 -> 14.62277187 | C8: =Index!B8 -> 13.16666667 | D8: 1 | E8: 13.16666667 | F8: 0.505 | G8: 2019-06-01 | H8: 13.67166667 | I8: 2019 | J8: 2024 | K8: 14.62833619
A9: =Index!A9 -> 2019-07-01 | B9: =Index!C9 -> 14.62277187 | C9: =Index!B9 -> 13.86231884 | D9: 1 | E9: 13.86231884 | F9: 0.505 | G9: 2019-07-01 | H9: 14.36731884 | I9: 2019 | J9: 2025 | K9: 14.98660034
A10: =Index!A10 -> 2019-08-01 | B10: =Index!C10 -> 14.62277187 | C10: =Index!B10 -> 13.04347826 | D10: 1 | E10: 13.04347826 | F10: 0.505 | G10: 2019-08-01 | H10: 13.54847826 | I10: 2019 | J10: 2026 | K10: 15.55636878
A11: =Index!A11 -> 2019-09-01 | B11: =Index!C11 -> 14.62277187 | C11: =Index!B11 -> 13.57971014 | D11: 1 | E11: 13.57971014 | F11: 0.505 | G11: 2019-09-01 | H11: 14.08471014 | I11: 2019 | J11: 2027 | K11: 16.21093825
A12: =Index!A12 -> 2019-10-01 | B12: =Index!C12 -> 14.62277187 | C12: =Index!B12 -> 13.3115942 | D12: 1 | E12: 13.3115942 | F12: 0.505 | G12: 2019-10-01 | H12: 13.8165942 | I12: 2019 | J12: 2028 | K12: 16.9655729
A13: =Index!A13 -> 2019-11-01 | B13: =Index!C13 -> 14.62277187 | C13: =Index!B13 -> 13.07681159 | D13: 1 | E13: 13.07681159 | F13: 0.505 | G13: 2019-11-01 | H13: 13.58181159 | I13: 2019 | J13: 2029 | K13: 17.65629846
A14: =Index!A14 -> 2019-12-01 | B14: =Index!C14 -> 14.62277187 | C14: =Index!B14 -> 13.08913043 | D14: 1 | E14: 13.08913043 | F14: 0.505 | G14: 2019-12-01 | H14: 13.59413043 | I14: 2019 | J14: 2030 | K14: 18.09106175
A15: =Index!A15 -> 2020-01-01 | B15: =Index!C15 -> 13.65684391 | C15: =Index!B15 -> 13.8037971 | D15: 1 | E15: 13.8037971 | F15: 0.513 | G15: 2020-01-01 | H15: 14.3167971 | I15: 2020 | J15: 2031 | K15: 18.49527959
A16: =Index!A16 -> 2020-02-01 | B16: =Index!C16 -> 13.65684391 | C16: =Index!B16 -> 14.0924058 | D16: 1 | E16: 14.0924058 | F16: 0.513 | G16: 2020-02-01 | H16: 14.6054058 | I16: 2020 | J16: 2032 | K16: 18.91491424
A17: =Index!A17 -> 2020-03-01 | B17: =Index!C17 -> 13.65684391 | C17: =Index!B17 -> 14.59535507 | D17: 1 | E17: 14.59535507 | F17: 0.513 | G17: =A17 -> 2020-03-01 | H17: 15.10835507 | I17: 2020 | J17: 2033 | K17: 19.34859691
A18: =Index!A18 -> 2020-04-01 | B18: =Index!C18 -> 13.65684391 | C18: =Index!B18 -> 14.42354348 | D18: 1 | E18: 14.42354348 | F18: 0.513 | G18: 2020-04-01 | H18: 14.93654348 | I18: 2020 | J18: 2034 | K18: 19.78840309
A19: =Index!A19 -> 2020-05-01 | B19: =Index!C19 -> 13.65684391 | C19: =Index!B19 -> 13.10595652 | D19: 1 | E19: 13.10595652 | F19: 0.513 | G19: 2020-05-01 | H19: 13.61895652 | I19: 2020 | J19: 2035 | K19: 20.23951115
A20: =Index!A20 -> 2020-06-01 | B20: =Index!C20 -> 13.65684391 | C20: =Index!B20 -> 13.60171739 | D20: 1 | E20: 13.60171739 | F20: 0.513 | G20: 2020-06-01 | H20: 14.11471739 | I20: 2020 | J20: 2036 | K20: 20.69979809
A21: =Index!A21 -> 2020-07-01 | B21: =Index!C21 -> 13.65684391 | C21: =Index!B21 -> 12.98257246 | D21: 1 | E21: 12.98257246 | F21: 0.513 | G21: 2020-07-01 | H21: 13.49557246 | I21: 2020 | J21: 2037 | K21: 21.17960189
A22: =Index!A22 -> 2020-08-01 | B22: =Index!C22 -> 13.65684391 | C22: =Index!B22 -> 13.8187029 | D22: 1 | E22: 13.8187029 | F22: 0.513 | G22: 2020-08-01 | H22: 14.3317029 | I22: 2020 | J22: 2038 | K22: 21.57778499
A23: =Index!A23 -> 2020-09-01 | B23: =Index!C23 -> 13.65684391 | C23: =Index!B23 -> 13.63598551 | D23: 1 | E23: 13.63598551 | F23: 0.513 | G23: 2020-09-01 | H23: 14.14898551 | I23: 2020 | J23: 2039 | K23: 21.96466177
A24: =Index!A24 -> 2020-10-01 | B24: =Index!C24 -> 13.65684391 | C24: =Index!B24 -> 13.38081159 | D24: 1 | E24: 13.38081159 | F24: 0.513 | G24: 2020-10-01 | H24: 13.89381159 | I24: 2020 | J24: 2040 | K24: 22.11072112
A25: =Index!A25 -> 2020-11-01 | B25: =Index!C25 -> 13.65684391 | C25: =Index!B25 -> 13.15651449 | D25: 1 | E25: 13.15651449 | F25: 0.513 | G25: 2020-11-01 | H25: 13.66951449 | I25: 2020 | J25: 2041 | K25: 22.67639798
A26: =Index!A26 -> 2020-12-01 | B26: =Index!C26 -> 13.65684391 | C26: =Index!B26 -> 13.18062319 | D26: 1 | E26: 13.18062319 | F26: 0.513 | G26: 2020-12-01 | H26: 13.69362319 | I26: 2020 | J26: 2042 | K26: 23.26057125
A27: =Index!A27 -> 2021-01-01 | B27: =Index!C27 -> 13.38006175 | C27: =Index!B27 -> 13.24393478 | D27: 1 | E27: 13.24393478 | F27: 0.52 | G27: 2021-01-01 | H27: 13.76393478 | I27: 2021 | J27: 2043 | K27: 23.45876573
A28: =Index!A28 -> 2021-02-01 | B28: =Index!C28 -> 13.38006175 | C28: =Index!B28 -> 13.26150725 | D28: 1 | E28: 13.26150725 | F28: 0.52 | G28: 2021-02-01 | H28: 13.78150725 | I28: 2021 | J28: 2044 | K28: 24.06252907
A29: =Index!A29 -> 2021-03-01 | B29: =Index!C29 -> 13.38006175 | C29: =Index!B29 -> 13.27907246 | D29: 1 | E29: 13.27907246 | F29: 0.52 | G29: 2021-03-01 | H29: 13.79907246 | I29: 2021 | J29: 2045 | K29: 24.25901093
A30: =Index!A30 -> 2021-04-01 | B30: =Index!C30 -> 13.38006175 | C30: =Index!B30 -> 13.29664493 | D30: 1 | E30: 13.29664493 | F30: 0.52 | G30: 2021-04-01 | H30: 13.81664493 | I30: 2021 | J30: 2046 | K30: 24.87158204
A31: =Index!A31 -> 2021-05-01 | B31: =Index!C31 -> 13.38006175 | C31: =Index!B31 -> 13.31421739 | D31: 1 | E31: 13.31421739 | F31: 0.52 | G31: 2021-05-01 | H31: 13.83421739 | I31: 2021 | J31: 2047 | K31: 25.49312218
A32: =Index!A32 -> 2021-06-01 | B32: =Index!C32 -> 13.38006175 | C32: =Index!B32 -> 13.33178261 | D32: 1 | E32: 13.33178261 | F32: 0.52 | G32: 2021-06-01 | H32: 13.85178261 | I32: 2021 | J32: 2048 | K32: 25.68277595
A33: =Index!A33 -> 2021-07-01 | B33: =Index!C33 -> 13.38006175 | C33: =Index!B33 -> 13.33169565 | D33: 1 | E33: 13.33169565 | F33: 0.52 | G33: 2021-07-01 | H33: 13.85169565 | I33: 2021 | J33: 2049 | K33: 26.32154024
A34: =Index!A34 -> 2021-08-01 | B34: =Index!C34 -> 13.38006175 | C34: =Index!B34 -> 13.33160145 | D34: 1 | E34: 13.33160145 | F34: 0.52 | G34: 2021-08-01 | H34: 13.85160145 | I34: 2021 | J34: 2050 | K34: 26.3333544
A35: =Index!A35 -> 2021-09-01 | B35: =Index!C35 -> 13.38006175 | C35: =Index!B35 -> 13.8885 | D35: 1 | E35: 13.8885 | F35: 0.52 | G35: 2021-09-01 | H35: 14.4085 | I35: 2021
A36: =Index!A36 -> 2021-10-01 | B36: =Index!C36 -> 13.38006175 | C36: =Index!B36 -> 13.62850725 | D36: 1 | E36: 13.62850725 | F36: 0.52 | G36: 2021-10-01 | H36: =SUM(E36:F36) -> 14.14850725 | I36: 2021
A37: =Index!A37 -> 2021-11-01 | B37: =Index!C37 -> 13.38006175 | C37: =Index!B37 -> 13.39996377 | D37: 1 | E37: 13.39996377 | F37: 0.52 | G37: 2021-11-01 | H37: 13.91996377 | I37: 2021
A38: =Index!A38 -> 2021-12-01 | B38: =Index!C38 -> 13.38006175 | C38: =Index!B38 -> 13.42442754 | D38: 1 | E38: 13.42442754 | F38: 0.52 | G38: 2021-12-01 | H38: 13.94442754 | I38: 2021
A39: =Index!A39 -> 2022-01-01 | B39: =Index!C39 -> 13.44302573 | C39: =Index!B39 -> 13.57044928 | D39: 0.96 | E39: 13.56535233 | F39: 0.528 | G39: 2022-01-01 | H39: 14.09335233 | I39: 2022
A40: =Index!A40 -> 2022-02-01 | B40: =Index!C40 -> 13.44302573 | C40: =Index!B40 -> 13.58833333 | D40: 0.92 | E40: 13.57670872 | F40: 0.528 | G40: 2022-02-01 | H40: 14.10470872 | I40: 2022
A41: =Index!A41 -> 2022-03-01 | B41: =Index!C41 -> 13.44302573 | C41: =Index!B41 -> 13.60621014 | D41: 0.88 | E41: 13.58662802 | F41: 0.528 | G41: 2022-03-01 | H41: 14.11462802 | I41: 2022
A42: =Index!A42 -> 2022-04-01 | B42: =Index!C42 -> 13.44302573 | C42: =Index!B42 -> 13.6240942 | D42: 0.84 | E42: 13.59512325 | F42: 0.528 | G42: 2022-04-01 | H42: 14.12312325 | I42: 2022
A43: =Index!A43 -> 2022-05-01 | B43: =Index!C43 -> 13.44302573 | C43: =Index!B43 -> 13.64197101 | D43: 0.8 | E43: 13.60218196 | F43: 0.528 | G43: 2022-05-01 | H43: 14.13018196 | I43: 2022
A44: =Index!A44 -> 2022-06-01 | B44: =Index!C44 -> 13.44302573 | C44: =Index!B44 -> 13.65985507 | D44: 0.76 | E44: 13.60781603 | F44: 0.528 | G44: 2022-06-01 | H44: 14.13581603 | I44: 2022
A45: =Index!A45 -> 2022-07-01 | B45: =Index!C45 -> 13.44302573 | C45: =Index!B45 -> 13.65964493 | D45: 0.72 | E45: 13.59899155 | F45: 0.528 | G45: 2022-07-01 | H45: 14.12699155 | I45: 2022
A46: =Index!A46 -> 2022-08-01 | B46: =Index!C46 -> 13.44302573 | C46: =Index!B46 -> 13.65943478 | D46: 0.68 | E46: 13.59018389 | F46: 0.528 | G46: 2022-08-01 | H46: 14.11818389 | I46: 2022
A47: =Index!A47 -> 2022-09-01 | B47: =Index!C47 -> 13.44302573 | C47: =Index!B47 -> 14.2299058 | D47: 0.64 | E47: 13.94662897 | F47: 0.528 | G47: 2022-09-01 | H47: 14.47462897 | I47: 2022
A48: =Index!A48 -> 2022-10-01 | B48: =Index!C48 -> 13.44302573 | C48: =Index!B48 -> 13.96339855 | D48: 0.6 | E48: 13.75524942 | F48: 0.528 | G48: 2022-10-01 | H48: 14.28324942 | I48: 2022
A49: =Index!A49 -> 2022-11-01 | B49: =Index!C49 -> 13.44302573 | C49: =Index!B49 -> 13.72912319 | D49: 0.56 | E49: 13.60324031 | F49: 0.528 | G49: 2022-11-01 | H49: 14.13124031 | I49: 2022
A50: =Index!A50 -> 2022-12-01 | B50: =Index!C50 -> 13.44302573 | C50: =Index!B50 -> 13.75407246 | D50: 0.52 | E50: 13.60477003 | F50: 0.528 | G50: 2022-12-01 | H50: 14.13277003 | I50: 2022
A51: =Index!A51 -> 2023-01-01 | B51: =Index!C51 -> 13.74934477 | C51: =Index!B51 -> 13.90356522 | D51: 0.48 | E51: 13.82337058 | F51: 0.536 | G51: 2023-01-01 | H51: 14.35937058 | I51: 2023
A52: =Index!A52 -> 2023-02-01 | B52: =Index!C52 -> 13.74934477 | C52: =Index!B52 -> 13.92176087 | D52: 0.44 | E52: 13.82520785 | F52: 0.536 | G52: 2023-02-01 | H52: 14.36120785 | I52: 2023
A53: =Index!A53 -> 2023-03-01 | B53: =Index!C53 -> 13.74934477 | C53: =Index!B53 -> 13.93996377 | D53: 0.4 | E53: 13.82559237 | F53: 0.536 | G53: 2023-03-01 | H53: 14.36159237 | I53: 2023
A54: =Index!A54 -> 2023-04-01 | B54: =Index!C54 -> 13.74934477 | C54: =Index!B54 -> 13.95816667 | D54: 0.36 | E54: =(C54*D54+B54*(1-D54)) -> 13.82452065 | F54: 0.536 | G54: 2023-04-01 | H54: 14.36052065 | I54: 2023
A55: =Index!A55 -> 2023-05-01 | B55: =Index!C55 -> 13.74934477 | C55: =Index!B55 -> 13.97636957 | D55: 0.32 | E55: 13.8219927 | F55: 0.536 | G55: 2023-05-01 | H55: 14.3579927 | I55: 2023
A56: =Index!A56 -> 2023-06-01 | B56: =Index!C56 -> 13.74934477 | C56: =Index!B56 -> 13.99456522 | D56: 0.28 | E56: 13.81800649 | F56: 0.536 | G56: 2023-06-01 | H56: 14.35400649 | I56: 2023
A57: =Index!A57 -> 2023-07-01 | B57: =Index!C57 -> 13.74934477 | C57: =Index!B57 -> 13.93283783 | D57: 0.24 | E57: 13.7933831 | F57: 0.536 | G57: 2023-07-01 | H57: 14.3293831 | I57: 2023
A58: =Index!A58 -> 2023-08-01 | B58: =Index!C58 -> 13.74934477 | C58: =Index!B58 -> 13.93262348 | D58: 0.2 | E58: 13.78600051 | F58: 0.536 | G58: 2023-08-01 | H58: 14.32200051 | I58: 2023
A59: =Index!A59 -> 2023-09-01 | B59: =Index!C59 -> 13.74934477 | C59: =Index!B59 -> 14.51450391 | D59: 0.16 | E59: 13.87177023 | F59: 0.536 | G59: 2023-09-01 | H59: 14.40777023 | I59: 2023
A60: =Index!A60 -> 2023-10-01 | B60: =Index!C60 -> 13.74934477 | C60: =Index!B60 -> 14.24266652 | D60: 0.12 | E60: 13.80854338 | F60: 0.536 | G60: 2023-10-01 | H60: 14.34454338 | I60: 2023
A61: =Index!A61 -> 2023-11-01 | B61: =Index!C61 -> 13.74934477 | C61: =Index!B61 -> 14.00370565 | D61: 0.08 | E61: 13.76969364 | F61: 0.536 | G61: 2023-11-01 | H61: 14.30569364 | I61: 2023
A62: =Index!A62 -> 2023-12-01 | B62: =Index!C62 -> 13.74934477 | C62: =Index!B62 -> 14.02915391 | D62: 0.04 | E62: 13.76053713 | F62: 0.536 | G62: 2023-12-01 | H62: 14.29653713 | I62: 2023
A63: =Index!A63 -> 2024-01-01 | B63: =Index!C63 -> 14.08433619 | C63: =Index!B63 -> 14.18163652 | D63: 0 | E63: 14.08433619 | F63: 0.544 | G63: 2024-01-01 | H63: 14.62833619 | I63: 2024
A64: =Index!A64 -> 2024-02-01 | B64: =Index!C64 -> 14.08433619 | C64: =Index!B64 -> 14.20019609 | D64: 0 | E64: 14.08433619 | F64: 0.544 | G64: 2024-02-01 | H64: 14.62833619 | I64: 2024
A65: =Index!A65 -> 2024-03-01 | B65: =Index!C65 -> 14.08433619 | C65: =Index!B65 -> 14.21876304 | D65: 0 | E65: 14.08433619 | F65: 0.544 | G65: 2024-03-01 | H65: 14.62833619 | I65: 2024
A66: =Index!A66 -> 2024-04-01 | B66: =Index!C66 -> 14.08433619 | C66: =Index!B66 -> 14.23733 | D66: 0 | E66: 14.08433619 | F66: 0.544 | G66: 2024-04-01 | H66: 14.62833619 | I66: 2024
A67: =Index!A67 -> 2024-05-01 | B67: =Index!C67 -> 14.08433619 | C67: =Index!B67 -> 14.25589696 | D67: 0 | E67: 14.08433619 | F67: 0.544 | G67: 2024-05-01 | H67: 14.62833619 | I67: 2024
A68: =Index!A68 -> 2024-06-01 | B68: =Index!C68 -> 14.08433619 | C68: =Index!B68 -> 14.27445652 | D68: 0 | E68: 14.08433619 | F68: 0.544 | G68: 2024-06-01 | H68: 14.62833619 | I68: =YEAR(A68) -> 2024
A69: =Index!A69 -> 2024-07-01 | B69: =Index!C69 -> 14.08433619 | C69: =Index!B69 -> 14.21149458 | D69: 0 | E69: 14.08433619 | F69: 0.544 | G69: 2024-07-01 | H69: 14.62833619 | I69: 2024
A70: =Index!A70 -> 2024-08-01 | B70: =Index!C70 -> 14.08433619 | C70: =Index!B70 -> 14.21127595 | D70: 0 | E70: 14.08433619 | F70: 0.544 | G70: 2024-08-01 | H70: 14.62833619 | I70: 2024
A71: =Index!A71 -> 2024-09-01 | B71: =Index!C71 -> 14.08433619 | C71: =Index!B71 -> 14.80479399 | D71: 0 | E71: 14.08433619 | F71: 0.544 | G71: 2024-09-01 | H71: 14.62833619 | I71: 2024
A72: =Index!A72 -> 2024-10-01 | B72: =Index!C72 -> 14.08433619 | C72: =Index!B72 -> 14.52751985 | D72: 0 | E72: 14.08433619 | F72: 0.544 | G72: 2024-10-01 | H72: 14.62833619 | I72: 2024
A73: =Index!A73 -> 2024-11-01 | B73: =Index!C73 -> 14.08433619 | C73: =Index!B73 -> 14.28377977 | D73: 0 | E73: 14.08433619 | F73: 0.544 | G73: 2024-11-01 | H73: 14.62833619 | I73: 2024
A74: =Index!A74 -> 2024-12-01 | B74: =Index!C74 -> 14.08433619 | C74: =Index!B74 -> 14.30973699 | D74: 0 | E74: 14.08433619 | F74: 0.544 | G74: 2024-12-01 | H74: 14.62833619 | I74: 2024
A75: =Index!A75 -> 2025-01-01 | B75: =Index!C75 -> 14.43460034 | C75: =Index!B75 -> 14.46526925 | D75: 0 | E75: 14.43460034 | F75: 0.552 | G75: 2025-01-01 | H75: 14.98660034 | I75: 2025
A76: =Index!A76 -> 2025-02-01 | B76: =Index!C76 -> 14.43460034 | C76: =Index!B76 -> 14.48420001 | D76: 0 | E76: 14.43460034 | F76: 0.552 | G76: 2025-02-01 | H76: 14.98660034 | I76: 2025
A77: =Index!A77 -> 2025-03-01 | B77: =Index!C77 -> 14.43460034 | C77: =Index!B77 -> 14.5031383 | D77: 0 | E77: 14.43460034 | F77: 0.552 | G77: 2025-03-01 | H77: 14.98660034 | I77: 2025
A78: =Index!A78 -> 2025-04-01 | B78: =Index!C78 -> 14.43460034 | C78: =Index!B78 -> 14.5220766 | D78: 0 | E78: 14.43460034 | F78: 0.552 | G78: 2025-04-01 | H78: 14.98660034 | I78: 2025
A79: =Index!A79 -> 2025-05-01 | B79: =Index!C79 -> 14.43460034 | C79: =Index!B79 -> 14.5410149 | D79: 0 | E79: 14.43460034 | F79: 0.552 | G79: 2025-05-01 | H79: 14.98660034 | I79: 2025
A80: =Index!A80 -> 2025-06-01 | B80: =Index!C80 -> 14.43460034 | C80: =Index!B80 -> 14.55994565 | D80: 0 | E80: 14.43460034 | F80: 0.552 | G80: 2025-06-01 | H80: 14.98660034 | I80: 2025
A81: =Index!A81 -> 2025-07-01 | B81: =Index!C81 -> 14.43460034 | C81: =Index!B81 -> 14.49572447 | D81: 0 | E81: 14.43460034 | F81: 0.552 | G81: =A81 -> 2025-07-01 | H81: 14.98660034 | I81: 2025
A82: =Index!A82 -> 2025-08-01 | B82: =Index!C82 -> 14.43460034 | C82: =Index!B82 -> 14.49550147 | D82: 0 | E82: 14.43460034 | F82: 0.552 | G82: 2025-08-01 | H82: 14.98660034 | I82: 2025
A83: =Index!A83 -> 2025-09-01 | B83: =Index!C83 -> 14.43460034 | C83: =Index!B83 -> 15.10088987 | D83: 0 | E83: 14.43460034 | F83: 0.552 | G83: 2025-09-01 | H83: 14.98660034 | I83: 2025
A84: =Index!A84 -> 2025-10-01 | B84: =Index!C84 -> 14.43460034 | C84: =Index!B84 -> 14.81807025 | D84: 0 | E84: 14.43460034 | F84: 0.552 | G84: 2025-10-01 | H84: 14.98660034 | I84: 2025
A85: =Index!A85 -> 2025-11-01 | B85: =Index!C85 -> 14.43460034 | C85: =Index!B85 -> 14.56945536 | D85: 0 | E85: 14.43460034 | F85: 0.552 | G85: 2025-11-01 | H85: 14.98660034 | I85: 2025
A86: =Index!A86 -> 2025-12-01 | B86: =Index!C86 -> 14.43460034 | C86: =Index!B86 -> 14.59593173 | D86: 0 | E86: 14.43460034 | F86: 0.552 | G86: 2025-12-01 | H86: 14.98660034 | I86: 2025
A87: =Index!A87 -> 2026-01-01 | B87: =Index!C87 -> 14.99536878 | C87: =Index!B87 -> 14.75457464 | D87: 0 | E87: 14.99536878 | F87: 0.561 | G87: 2026-01-01 | H87: 15.55636878 | I87: 2026
A88: =Index!A88 -> 2026-02-01 | B88: =Index!C88 -> 14.99536878 | C88: =Index!B88 -> 14.77388401 | D88: 0 | E88: 14.99536878 | F88: 0.561 | G88: 2026-02-01 | H88: 15.55636878 | I88: 2026
A89: =Index!A89 -> 2026-03-01 | B89: =Index!C89 -> 14.99536878 | C89: =Index!B89 -> 14.79320107 | D89: 0 | E89: 14.99536878 | F89: 0.561 | G89: 2026-03-01 | H89: 15.55636878 | I89: 2026
A90: =Index!A90 -> 2026-04-01 | B90: =Index!C90 -> 14.99536878 | C90: =Index!B90 -> 14.81251813 | D90: 0 | E90: 14.99536878 | F90: 0.561 | G90: 2026-04-01 | H90: 15.55636878 | I90: 2026
A91: =Index!A91 -> 2026-05-01 | B91: =Index!C91 -> 14.99536878 | C91: =Index!B91 -> 14.83183519 | D91: 0 | E91: 14.99536878 | F91: 0.561 | G91: 2026-05-01 | H91: 15.55636878 | I91: 2026
A92: =Index!A92 -> 2026-06-01 | B92: =Index!C92 -> 14.99536878 | C92: =Index!B92 -> 14.85114457 | D92: 0 | E92: 14.99536878 | F92: 0.561 | G92: 2026-06-01 | H92: 15.55636878 | I92: 2026
A93: =Index!A93 -> 2026-07-01 | B93: =Index!C93 -> 14.99536878 | C93: =Index!B93 -> 14.78563896 | D93: 0 | E93: 14.99536878 | F93: 0.561 | G93: 2026-07-01 | H93: 15.55636878 | I93: 2026
A94: =Index!A94 -> 2026-08-01 | B94: =Index!C94 -> 14.99536878 | C94: =Index!B94 -> 14.7854115 | D94: 0 | E94: 14.99536878 | F94: 0.561 | G94: 2026-08-01 | H94: 15.55636878 | I94: 2026
A95: =Index!A95 -> 2026-09-01 | B95: =Index!C95 -> 14.99536878 | C95: =Index!B95 -> 15.40290767 | D95: 0 | E95: 14.99536878 | F95: 0.561 | G95: 2026-09-01 | H95: 15.55636878 | I95: 2026
A96: =Index!A96 -> 2026-10-01 | B96: =Index!C96 -> 14.99536878 | C96: =Index!B96 -> 15.11443165 | D96: 0 | E96: 14.99536878 | F96: 0.561 | G96: 2026-10-01 | H96: 15.55636878 | I96: 2026
A97: =Index!A97 -> 2026-11-01 | B97: =Index!C97 -> 14.99536878 | C97: =Index!B97 -> 14.86084447 | D97: 0 | E97: 14.99536878 | F97: 0.561 | G97: 2026-11-01 | H97: 15.55636878 | I97: 2026
A98: =Index!A98 -> 2026-12-01 | B98: =Index!C98 -> 14.99536878 | C98: =Index!B98 -> 14.88785037 | D98: 0 | E98: 14.99536878 | F98: 0.561 | G98: 2026-12-01 | H98: 15.55636878 | I98: 2026
A99: =Index!A99 -> 2027-01-01 | B99: =Index!C99 -> 15.64193825 | C99: =Index!B99 -> 15.04966613 | D99: 0 | E99: 15.64193825 | F99: 0.569 | G99: 2027-01-01 | H99: 16.21093825 | I99: 2027
A100: =Index!A100 -> 2027-02-01 | B100: =Index!C100 -> 15.64193825 | C100: =Index!B100 -> 15.06936169 | D100: 0 | E100: 15.64193825 | F100: 0.569 | G100: 2027-02-01 | H100: =SUM(E100:F100) -> 16.21093825 | I100: 2027
A101: =Index!A101 -> 2027-03-01 | B101: =Index!C101 -> 15.64193825 | C101: =Index!B101 -> 15.08906509 | D101: 0 | E101: 15.64193825 | F101: 0.569 | G101: 2027-03-01 | H101: 16.21093825 | I101: 2027
A102: =Index!A102 -> 2027-04-01 | B102: =Index!C102 -> 15.64193825 | C102: =Index!B102 -> 15.10876849 | D102: 0 | E102: 15.64193825 | F102: 0.569 | G102: 2027-04-01 | H102: 16.21093825 | I102: 2027
A103: =Index!A103 -> 2027-05-01 | B103: =Index!C103 -> 15.64193825 | C103: =Index!B103 -> 15.1284719 | D103: 0 | E103: 15.64193825 | F103: 0.569 | G103: 2027-05-01 | H103: 16.21093825 | I103: 2027
A104: =Index!A104 -> 2027-06-01 | B104: =Index!C104 -> 15.64193825 | C104: =Index!B104 -> 15.14816746 | D104: 0 | E104: 15.64193825 | F104: 0.569 | G104: 2027-06-01 | H104: 16.21093825 | I104: 2027
A105: =Index!A105 -> 2027-07-01 | B105: =Index!C105 -> 15.64193825 | C105: =Index!B105 -> 15.08135174 | D105: 0 | E105: 15.64193825 | F105: 0.569 | G105: 2027-07-01 | H105: 16.21093825 | I105: 2027
A106: =Index!A106 -> 2027-08-01 | B106: =Index!C106 -> 15.64193825 | C106: =Index!B106 -> 15.08111973 | D106: 0 | E106: 15.64193825 | F106: 0.569 | G106: 2027-08-01 | H106: 16.21093825 | I106: 2027
A107: =Index!A107 -> 2027-09-01 | B107: =Index!C107 -> 15.64193825 | C107: =Index!B107 -> 15.71096582 | D107: 0 | E107: 15.64193825 | F107: 0.569 | G107: 2027-09-01 | H107: 16.21093825 | I107: 2027
A108: =Index!A108 -> 2027-10-01 | B108: =Index!C108 -> 15.64193825 | C108: =Index!B108 -> 15.41672029 | D108: 0 | E108: 15.64193825 | F108: 0.569 | G108: 2027-10-01 | H108: 16.21093825 | I108: 2027
A109: =Index!A109 -> 2027-11-01 | B109: =Index!C109 -> 15.64193825 | C109: =Index!B109 -> 15.15806136 | D109: 0 | E109: 15.64193825 | F109: 0.569 | G109: 2027-11-01 | H109: 16.21093825 | I109: 2027
A110: =Index!A110 -> 2027-12-01 | B110: =Index!C110 -> 15.64193825 | C110: =Index!B110 -> 15.18560737 | D110: 0 | E110: 15.64193825 | F110: 0.569 | G110: 2027-12-01 | H110: 16.21093825 | I110: 2027
A111: =Index!A111 -> 2028-01-01 | B111: =Index!C111 -> 16.3885729 | C111: =Index!B111 -> 15.35065945 | D111: 0 | E111: 16.3885729 | F111: 0.577 | G111: 2028-01-01 | H111: 16.9655729 | I111: 2028
A112: =Index!A112 -> 2028-02-01 | B112: =Index!C112 -> 16.3885729 | C112: =Index!B112 -> 15.37074892 | D112: 0 | E112: 16.3885729 | F112: 0.577 | G112: 2028-02-01 | H112: 16.9655729 | I112: 2028
A113: =Index!A113 -> 2028-03-01 | B113: =Index!C113 -> 16.3885729 | C113: =Index!B113 -> 15.39084639 | D113: 0 | E113: 16.3885729 | F113: 0.577 | G113: 2028-03-01 | H113: 16.9655729 | I113: 2028
A114: =Index!A114 -> 2028-04-01 | B114: =Index!C114 -> 16.3885729 | C114: =Index!B114 -> 15.41094386 | D114: 0 | E114: 16.3885729 | F114: 0.577 | G114: 2028-04-01 | H114: 16.9655729 | I114: 2028
A115: =Index!A115 -> 2028-05-01 | B115: =Index!C115 -> 16.3885729 | C115: =Index!B115 -> 15.43104134 | D115: 0 | E115: 16.3885729 | F115: 0.577 | G115: 2028-05-01 | H115: 16.9655729 | I115: 2028
A116: =Index!A116 -> 2028-06-01 | B116: =Index!C116 -> 16.3885729 | C116: =Index!B116 -> 15.45113081 | D116: 0 | E116: 16.3885729 | F116: 0.577 | G116: 2028-06-01 | H116: 16.9655729 | I116: 2028
A117: =Index!A117 -> 2028-07-01 | B117: =Index!C117 -> 16.3885729 | C117: =Index!B117 -> 15.38297878 | D117: 0 | E117: 16.3885729 | F117: 0.577 | G117: 2028-07-01 | H117: 16.9655729 | I117: 2028
A118: =Index!A118 -> 2028-08-01 | B118: =Index!C118 -> 16.3885729 | C118: =Index!B118 -> 15.38274212 | D118: 0 | E118: =(C118*D118+B118*(1-D118)) -> 16.3885729 | F118: 0.577 | G118: 2028-08-01 | H118: 16.9655729 | I118: 2028
A119: =Index!A119 -> 2028-09-01 | B119: =Index!C119 -> 16.3885729 | C119: =Index!B119 -> 16.02518514 | D119: 0 | E119: 16.3885729 | F119: 0.577 | G119: 2028-09-01 | H119: 16.9655729 | I119: 2028
A120: =Index!A120 -> 2028-10-01 | B120: =Index!C120 -> 16.3885729 | C120: =Index!B120 -> 15.72505469 | D120: 0 | E120: 16.3885729 | F120: 0.577 | G120: 2028-10-01 | H120: 16.9655729 | I120: 2028
A121: =Index!A121 -> 2028-11-01 | B121: =Index!C121 -> 16.3885729 | C121: =Index!B121 -> 15.46122258 | D121: 0 | E121: 16.3885729 | F121: 0.577 | G121: 2028-11-01 | H121: 16.9655729 | I121: 2028
A122: =Index!A122 -> 2028-12-01 | B122: =Index!C122 -> 16.3885729 | C122: =Index!B122 -> 15.48931952 | D122: 0 | E122: 16.3885729 | F122: 0.577 | G122: 2028-12-01 | H122: 16.9655729 | I122: 2028
A123: =Index!A123 -> 2029-01-01 | B123: =Index!C123 -> 17.07029846 | C123: =Index!B123 -> 15.65767264 | D123: 0 | E123: 17.07029846 | F123: 0.586 | G123: 2029-01-01 | H123: 17.65629846 | I123: 2029
A124: =Index!A124 -> 2029-02-01 | B124: =Index!C124 -> 17.07029846 | C124: =Index!B124 -> 15.6781639 | D124: 0 | E124: 17.07029846 | F124: 0.586 | G124: 2029-02-01 | H124: 17.65629846 | I124: 2029
A125: =Index!A125 -> 2029-03-01 | B125: =Index!C125 -> 17.07029846 | C125: =Index!B125 -> 15.69866332 | D125: 0 | E125: 17.07029846 | F125: 0.586 | G125: 2029-03-01 | H125: 17.65629846 | I125: 2029
A126: =Index!A126 -> 2029-04-01 | B126: =Index!C126 -> 17.07029846 | C126: =Index!B126 -> 15.71916274 | D126: 0 | E126: 17.07029846 | F126: 0.586 | G126: 2029-04-01 | H126: 17.65629846 | I126: 2029
A127: =Index!A127 -> 2029-05-01 | B127: =Index!C127 -> 17.07029846 | C127: =Index!B127 -> 15.73966216 | D127: 0 | E127: 17.07029846 | F127: 0.586 | G127: 2029-05-01 | H127: 17.65629846 | I127: 2029
A128: =Index!A128 -> 2029-06-01 | B128: =Index!C128 -> 17.07029846 | C128: =Index!B128 -> 15.76015342 | D128: 0 | E128: 17.07029846 | F128: 0.586 | G128: 2029-06-01 | H128: 17.65629846 | I128: 2029
A129: =Index!A129 -> 2029-07-01 | B129: =Index!C129 -> 17.07029846 | C129: =Index!B129 -> 15.69063835 | D129: 0 | E129: 17.07029846 | F129: 0.586 | G129: 2029-07-01 | H129: 17.65629846 | I129: 2029
A130: =Index!A130 -> 2029-08-01 | B130: =Index!C130 -> 17.07029846 | C130: =Index!B130 -> 15.69039696 | D130: 0 | E130: 17.07029846 | F130: 0.586 | G130: 2029-08-01 | H130: 17.65629846 | I130: 2029
A131: =Index!A131 -> 2029-09-01 | B131: =Index!C131 -> 17.07029846 | C131: =Index!B131 -> 16.34568884 | D131: 0 | E131: 17.07029846 | F131: 0.586 | G131: 2029-09-01 | H131: 17.65629846 | I131: 2029
A132: =Index!A132 -> 2029-10-01 | B132: =Index!C132 -> 17.07029846 | C132: =Index!B132 -> 16.03955579 | D132: 0 | E132: 17.07029846 | F132: 0.586 | G132: 2029-10-01 | H132: 17.65629846 | I132: =YEAR(A132) -> 2029
A133: =Index!A133 -> 2029-11-01 | B133: =Index!C133 -> 17.07029846 | C133: =Index!B133 -> 15.77044704 | D133: 0 | E133: 17.07029846 | F133: 0.586 | G133: 2029-11-01 | H133: 17.65629846 | I133: 2029
A134: =Index!A134 -> 2029-12-01 | B134: =Index!C134 -> 17.07029846 | C134: =Index!B134 -> 15.79910591 | D134: 0 | E134: 17.07029846 | F134: 0.586 | G134: 2029-12-01 | H134: 17.65629846 | I134: 2029
A135: =Index!A135 -> 2030-01-01 | B135: =Index!C135 -> 17.49606175 | C135: =Index!B135 -> 15.97082609 | D135: 0 | E135: 17.49606175 | F135: 0.595 | G135: 2030-01-01 | H135: 18.09106175 | I135: 2030
A136: =Index!A136 -> 2030-02-01 | B136: =Index!C136 -> 17.49606175 | C136: =Index!B136 -> 15.99172718 | D136: 0 | E136: 17.49606175 | F136: 0.595 | G136: 2030-02-01 | H136: 18.09106175 | I136: 2030
A137: =Index!A137 -> 2030-03-01 | B137: =Index!C137 -> 17.49606175 | C137: =Index!B137 -> 16.01263659 | D137: 0 | E137: 17.49606175 | F137: 0.595 | G137: 2030-03-01 | H137: 18.09106175 | I137: 2030
A138: =Index!A138 -> 2030-04-01 | B138: =Index!C138 -> 17.49606175 | C138: =Index!B138 -> 16.033546 | D138: 0 | E138: 17.49606175 | F138: 0.595 | G138: 2030-04-01 | H138: 18.09106175 | I138: 2030
A139: =Index!A139 -> 2030-05-01 | B139: =Index!C139 -> 17.49606175 | C139: =Index!B139 -> 16.05445541 | D139: 0 | E139: 17.49606175 | F139: 0.595 | G139: 2030-05-01 | H139: 18.09106175 | I139: 2030
A140: =Index!A140 -> 2030-06-01 | B140: =Index!C140 -> 17.49606175 | C140: =Index!B140 -> 16.07535649 | D140: 0 | E140: 17.49606175 | F140: 0.595 | G140: 2030-06-01 | H140: 18.09106175 | I140: 2030
A141: =Index!A141 -> 2030-07-01 | B141: =Index!C141 -> 17.49606175 | C141: =Index!B141 -> 16.00445112 | D141: 0 | E141: 17.49606175 | F141: 0.595 | G141: 2030-07-01 | H141: 18.09106175 | I141: 2030
A142: =Index!A142 -> 2030-08-01 | B142: =Index!C142 -> 17.49606175 | C142: =Index!B142 -> 16.0042049 | D142: 0 | E142: 17.49606175 | F142: 0.595 | G142: 2030-08-01 | H142: 18.09106175 | I142: 2030
A143: =Index!A143 -> 2030-09-01 | B143: =Index!C143 -> 17.49606175 | C143: =Index!B143 -> 16.67260262 | D143: 0 | E143: 17.49606175 | F143: 0.595 | G143: 2030-09-01 | H143: 18.09106175 | I143: 2030
A144: =Index!A144 -> 2030-10-01 | B144: =Index!C144 -> 17.49606175 | C144: =Index!B144 -> 16.3603469 | D144: 0 | E144: 17.49606175 | F144: 0.595 | G144: 2030-10-01 | H144: 18.09106175 | I144: 2030
A145: =Index!A145 -> 2030-11-01 | B145: =Index!C145 -> 17.49606175 | C145: =Index!B145 -> 16.08585598 | D145: 0 | E145: 17.49606175 | F145: 0.595 | G145: =A145 -> 2030-11-01 | H145: 18.09106175 | I145: 2030
A146: =Index!A146 -> 2030-12-01 | B146: =Index!C146 -> 17.49606175 | C146: =Index!B146 -> 16.11508803 | D146: 0 | E146: 17.49606175 | F146: 0.595 | G146: 2030-12-01 | H146: 18.09106175 | I146: 2030
A147: =Index!A147 -> 2031-01-01 | B147: =Index!C147 -> 17.89127959 | C147: =Index!B147 -> 16.29024262 | D147: 0 | E147: 17.89127959 | F147: 0.604 | G147: 2031-01-01 | H147: 18.49527959 | I147: 2031
A148: =Index!A148 -> 2031-02-01 | B148: =Index!C148 -> 17.89127959 | C148: =Index!B148 -> 16.31156172 | D148: 0 | E148: 17.89127959 | F148: 0.604 | G148: 2031-02-01 | H148: 18.49527959 | I148: 2031
A149: =Index!A149 -> 2031-03-01 | B149: =Index!C149 -> 17.89127959 | C149: =Index!B149 -> 16.33288932 | D149: 0 | E149: 17.89127959 | F149: 0.604 | G149: 2031-03-01 | H149: 18.49527959 | I149: 2031
A150: =Index!A150 -> 2031-04-01 | B150: =Index!C150 -> 17.89127959 | C150: =Index!B150 -> 16.35421692 | D150: 0 | E150: 17.89127959 | F150: 0.604 | G150: 2031-04-01 | H150: 18.49527959 | I150: 2031
A151: =Index!A151 -> 2031-05-01 | B151: =Index!C151 -> 17.89127959 | C151: =Index!B151 -> 16.37554451 | D151: 0 | E151: 17.89127959 | F151: 0.604 | G151: 2031-05-01 | H151: 18.49527959 | I151: 2031
A152: =Index!A152 -> 2031-06-01 | B152: =Index!C152 -> 17.89127959 | C152: =Index!B152 -> 16.39686362 | D152: 0 | E152: 17.89127959 | F152: 0.604 | G152: 2031-06-01 | H152: 18.49527959 | I152: 2031
A153: =Index!A153 -> 2031-07-01 | B153: =Index!C153 -> 17.89127959 | C153: =Index!B153 -> 16.32454014 | D153: 0 | E153: 17.89127959 | F153: 0.604 | G153: 2031-07-01 | H153: 18.49527959 | I153: 2031
A154: =Index!A154 -> 2031-08-01 | B154: =Index!C154 -> 17.89127959 | C154: =Index!B154 -> 16.324289 | D154: 0 | E154: 17.89127959 | F154: 0.604 | G154: 2031-08-01 | H154: 18.49527959 | I154: 2031
A155: =Index!A155 -> 2031-09-01 | B155: =Index!C155 -> 17.89127959 | C155: =Index!B155 -> 17.00605467 | D155: 0 | E155: 17.89127959 | F155: 0.604 | G155: 2031-09-01 | H155: 18.49527959 | I155: 2031
A156: =Index!A156 -> 2031-10-01 | B156: =Index!C156 -> 17.89127959 | C156: =Index!B156 -> 16.68755384 | D156: 0 | E156: 17.89127959 | F156: 0.604 | G156: 2031-10-01 | H156: 18.49527959 | I156: 2031
A157: =Index!A157 -> 2031-11-01 | B157: =Index!C157 -> 17.89127959 | C157: =Index!B157 -> 16.4075731 | D157: 0 | E157: 17.89127959 | F157: 0.604 | G157: 2031-11-01 | H157: 18.49527959 | I157: 2031
A158: =Index!A158 -> 2031-12-01 | B158: =Index!C158 -> 17.89127959 | C158: =Index!B158 -> 16.43738979 | D158: 0 | E158: 17.89127959 | F158: 0.604 | G158: 2031-12-01 | H158: 18.49527959 | I158: 2031
A159: =Index!A159 -> 2032-01-01 | B159: =Index!C159 -> 18.30191424 | C159: =Index!B159 -> 16.61604747 | D159: 0 | E159: 18.30191424 | F159: 0.613 | G159: 2032-01-01 | H159: 18.91491424 | I159: 2032
A160: =Index!A160 -> 2032-02-01 | B160: =Index!C160 -> 18.30191424 | C160: =Index!B160 -> 16.63779296 | D160: 0 | E160: 18.30191424 | F160: 0.613 | G160: 2032-02-01 | H160: 18.91491424 | I160: 2032
A161: =Index!A161 -> 2032-03-01 | B161: =Index!C161 -> 18.30191424 | C161: =Index!B161 -> 16.65954711 | D161: 0 | E161: 18.30191424 | F161: 0.613 | G161: 2032-03-01 | H161: 18.91491424 | I161: 2032
A162: =Index!A162 -> 2032-04-01 | B162: =Index!C162 -> 18.30191424 | C162: =Index!B162 -> 16.68130125 | D162: 0 | E162: 18.30191424 | F162: 0.613 | G162: 2032-04-01 | H162: 18.91491424 | I162: 2032
A163: =Index!A163 -> 2032-05-01 | B163: =Index!C163 -> 18.30191424 | C163: =Index!B163 -> 16.7030554 | D163: 0 | E163: 18.30191424 | F163: 0.613 | G163: 2032-05-01 | H163: 18.91491424 | I163: 2032
A164: =Index!A164 -> 2032-06-01 | B164: =Index!C164 -> 18.30191424 | C164: =Index!B164 -> 16.72480089 | D164: 0 | E164: 18.30191424 | F164: 0.613 | G164: 2032-06-01 | H164: =SUM(E164:F164) -> 18.91491424 | I164: 2032
A165: =Index!A165 -> 2032-07-01 | B165: =Index!C165 -> 18.30191424 | C165: =Index!B165 -> 16.65103095 | D165: 0 | E165: 18.30191424 | F165: 0.613 | G165: 2032-07-01 | H165: 18.91491424 | I165: 2032
A166: =Index!A166 -> 2032-08-01 | B166: =Index!C166 -> 18.30191424 | C166: =Index!B166 -> 16.65077478 | D166: 0 | E166: 18.30191424 | F166: 0.613 | G166: 2032-08-01 | H166: 18.91491424 | I166: 2032
A167: =Index!A167 -> 2032-09-01 | B167: =Index!C167 -> 18.30191424 | C167: =Index!B167 -> 17.34617576 | D167: 0 | E167: 18.30191424 | F167: 0.613 | G167: 2032-09-01 | H167: 18.91491424 | I167: 2032
A168: =Index!A168 -> 2032-10-01 | B168: =Index!C168 -> 18.30191424 | C168: =Index!B168 -> 17.02130492 | D168: 0 | E168: 18.30191424 | F168: 0.613 | G168: 2032-10-01 | H168: 18.91491424 | I168: 2032
A169: =Index!A169 -> 2032-11-01 | B169: =Index!C169 -> 18.30191424 | C169: =Index!B169 -> 16.73572456 | D169: 0 | E169: 18.30191424 | F169: 0.613 | G169: 2032-11-01 | H169: 18.91491424 | I169: 2032
A170: =Index!A170 -> 2032-12-01 | B170: =Index!C170 -> 18.30191424 | C170: =Index!B170 -> 16.76613759 | D170: 0 | E170: 18.30191424 | F170: 0.613 | G170: 2032-12-01 | H170: 18.91491424 | I170: 2032
A171: =Index!A171 -> 2033-01-01 | B171: =Index!C171 -> 18.72659691 | C171: =Index!B171 -> 16.94836842 | D171: 0 | E171: 18.72659691 | F171: 0.622 | G171: 2033-01-01 | H171: 19.34859691 | I171: 2033
A172: =Index!A172 -> 2033-02-01 | B172: =Index!C172 -> 18.72659691 | C172: =Index!B172 -> 16.97054882 | D172: 0 | E172: 18.72659691 | F172: 0.622 | G172: 2033-02-01 | H172: 19.34859691 | I172: 2033
A173: =Index!A173 -> 2033-03-01 | B173: =Index!C173 -> 18.72659691 | C173: =Index!B173 -> 16.99273805 | D173: 0 | E173: 18.72659691 | F173: 0.622 | G173: 2033-03-01 | H173: 19.34859691 | I173: 2033
A174: =Index!A174 -> 2033-04-01 | B174: =Index!C174 -> 18.72659691 | C174: =Index!B174 -> 17.01492728 | D174: 0 | E174: 18.72659691 | F174: 0.622 | G174: 2033-04-01 | H174: 19.34859691 | I174: 2033
A175: =Index!A175 -> 2033-05-01 | B175: =Index!C175 -> 18.72659691 | C175: =Index!B175 -> 17.03711651 | D175: 0 | E175: 18.72659691 | F175: 0.622 | G175: 2033-05-01 | H175: 19.34859691 | I175: 2033
A176: =Index!A176 -> 2033-06-01 | B176: =Index!C176 -> 18.72659691 | C176: =Index!B176 -> 17.05929691 | D176: 0 | E176: 18.72659691 | F176: 0.622 | G176: 2033-06-01 | H176: 19.34859691 | I176: 2033
A177: =Index!A177 -> 2033-07-01 | B177: =Index!C177 -> 18.72659691 | C177: =Index!B177 -> 16.98405156 | D177: 0 | E177: 18.72659691 | F177: 0.622 | G177: 2033-07-01 | H177: 19.34859691 | I177: 2033
A178: =Index!A178 -> 2033-08-01 | B178: =Index!C178 -> 18.72659691 | C178: =Index!B178 -> 16.98379028 | D178: 0 | E178: 18.72659691 | F178: 0.622 | G178: 2033-08-01 | H178: 19.34859691 | I178: 2033
A179: =Index!A179 -> 2033-09-01 | B179: =Index!C179 -> 18.72659691 | C179: =Index!B179 -> 17.69309928 | D179: 0 | E179: 18.72659691 | F179: 0.622 | G179: 2033-09-01 | H179: 19.34859691 | I179: 2033
A180: =Index!A180 -> 2033-10-01 | B180: =Index!C180 -> 18.72659691 | C180: =Index!B180 -> 17.36173102 | D180: 0 | E180: 18.72659691 | F180: 0.622 | G180: 2033-10-01 | H180: 19.34859691 | I180: 2033
A181: =Index!A181 -> 2033-11-01 | B181: =Index!C181 -> 18.72659691 | C181: =Index!B181 -> 17.07043905 | D181: 0 | E181: 18.72659691 | F181: 0.622 | G181: 2033-11-01 | H181: 19.34859691 | I181: 2033
A182: =Index!A182 -> 2033-12-01 | B182: =Index!C182 -> 18.72659691 | C182: =Index!B182 -> 17.10146034 | D182: 0 | E182: =(C182*D182+B182*(1-D182)) -> 18.72659691 | F182: 0.622 | G182: 2033-12-01 | H182: 19.34859691 | I182: 2033
A183: =Index!A183 -> 2034-01-01 | B183: =Index!C183 -> 19.15740309 | C183: =Index!B183 -> 17.28733579 | D183: 0 | E183: 19.15740309 | F183: 0.631 | G183: 2034-01-01 | H183: 19.78840309 | I183: 2034
A184: =Index!A184 -> 2034-02-01 | B184: =Index!C184 -> 19.15740309 | C184: =Index!B184 -> 17.30995979 | D184: 0 | E184: 19.15740309 | F184: 0.631 | G184: 2034-02-01 | H184: 19.78840309 | I184: 2034
A185: =Index!A185 -> 2034-03-01 | B185: =Index!C185 -> 19.15740309 | C185: =Index!B185 -> 17.33259281 | D185: 0 | E185: 19.15740309 | F185: 0.631 | G185: 2034-03-01 | H185: 19.78840309 | I185: 2034
A186: =Index!A186 -> 2034-04-01 | B186: =Index!C186 -> 19.15740309 | C186: =Index!B186 -> 17.35522583 | D186: 0 | E186: 19.15740309 | F186: 0.631 | G186: 2034-04-01 | H186: 19.78840309 | I186: 2034
A187: =Index!A187 -> 2034-05-01 | B187: =Index!C187 -> 19.15740309 | C187: =Index!B187 -> 17.37785884 | D187: 0 | E187: 19.15740309 | F187: 0.631 | G187: 2034-05-01 | H187: 19.78840309 | I187: 2034
A188: =Index!A188 -> 2034-06-01 | B188: =Index!C188 -> 19.15740309 | C188: =Index!B188 -> 17.40048285 | D188: 0 | E188: 19.15740309 | F188: 0.631 | G188: 2034-06-01 | H188: 19.78840309 | I188: 2034
A189: =Index!A189 -> 2034-07-01 | B189: =Index!C189 -> 19.15740309 | C189: =Index!B189 -> 17.3237326 | D189: 0 | E189: 19.15740309 | F189: 0.631 | G189: 2034-07-01 | H189: 19.78840309 | I189: 2034
A190: =Index!A190 -> 2034-08-01 | B190: =Index!C190 -> 19.15740309 | C190: =Index!B190 -> 17.32346608 | D190: 0 | E190: 19.15740309 | F190: 0.631 | G190: 2034-08-01 | H190: 19.78840309 | I190: 2034
A191: =Index!A191 -> 2034-09-01 | B191: =Index!C191 -> 19.15740309 | C191: =Index!B191 -> 18.04696126 | D191: 0 | E191: 19.15740309 | F191: 0.631 | G191: 2034-09-01 | H191: 19.78840309 | I191: 2034
A192: =Index!A192 -> 2034-10-01 | B192: =Index!C192 -> 19.15740309 | C192: =Index!B192 -> 17.70896564 | D192: 0 | E192: 19.15740309 | F192: 0.631 | G192: 2034-10-01 | H192: 19.78840309 | I192: 2034
A193: =Index!A193 -> 2034-11-01 | B193: =Index!C193 -> 19.15740309 | C193: =Index!B193 -> 17.41184783 | D193: 0 | E193: 19.15740309 | F193: 0.631 | G193: 2034-11-01 | H193: 19.78840309 | I193: 2034
A194: =Index!A194 -> 2034-12-01 | B194: =Index!C194 -> 19.15740309 | C194: =Index!B194 -> 17.44348954 | D194: 0 | E194: 19.15740309 | F194: 0.631 | G194: 2034-12-01 | H194: 19.78840309 | I194: 2034
A195: =Index!A195 -> 2035-01-01 | B195: =Index!C195 -> 19.59851115 | C195: =Index!B195 -> 17.6330825 | D195: 0 | E195: 19.59851115 | F195: 0.641 | G195: 2035-01-01 | H195: 20.23951115 | I195: 2035
A196: =Index!A196 -> 2035-02-01 | B196: =Index!C196 -> 19.59851115 | C196: =Index!B196 -> 17.65615899 | D196: 0 | E196: 19.59851115 | F196: 0.641 | G196: 2035-02-01 | H196: 20.23951115 | I196: =YEAR(A196) -> 2035
A197: =Index!A197 -> 2035-03-01 | B197: =Index!C197 -> 19.59851115 | C197: =Index!B197 -> 17.67924467 | D197: 0 | E197: 19.59851115 | F197: 0.641 | G197: 2035-03-01 | H197: 20.23951115 | I197: 2035
A198: =Index!A198 -> 2035-04-01 | B198: =Index!C198 -> 19.59851115 | C198: =Index!B198 -> 17.70233034 | D198: 0 | E198: 19.59851115 | F198: 0.641 | G198: 2035-04-01 | H198: 20.23951115 | I198: 2035
A199: =Index!A199 -> 2035-05-01 | B199: =Index!C199 -> 19.59851115 | C199: =Index!B199 -> 17.72541602 | D199: 0 | E199: 19.59851115 | F199: 0.641 | G199: 2035-05-01 | H199: 20.23951115 | I199: 2035
A200: =Index!A200 -> 2035-06-01 | B200: =Index!C200 -> 19.59851115 | C200: =Index!B200 -> 17.74849251 | D200: 0 | E200: 19.59851115 | F200: 0.641 | G200: 2035-06-01 | H200: 20.23951115 | I200: 2035
... 186 more rows

Sheet Int.City
A1: Int.City | B1: PETROLEUM PRODUCT PRICE FORECAST DATA | G1: PROSYM INPUT | J1: ANNUAL AVERAGE
A2: Date | B2: Petroleum Product Price Forecast - Gulf Coast | C2: TCM | D2: Blend TCM/ Fundamental (%) | E2: Blend TCM/ Fundamental ($) | F2: Int.City Transport ($/MMBtu) | G2: Date | H2: nomianl$/MMBtu | K2: =A1 -> Int.City
A3: =Index!A3 -> 2019-01-01 | B3: =Index!C3 -> 14.62277187 | C3: =Index!B3 -> 12.92753623 | D3: 1 | E3: =(C3*D3+B3*(1-D3)) -> 12.92753623 | F3: 0.478 | G3: =A3 -> 2019-01-01 | H3: =SUM(E3:F3) -> 13.40553623 | I3: =YEAR(A3) -> 2019 | J3: 2019 | K3: =AVERAGEIF($I$3:$I$386,J3,$H$3:$H$386) -> 14.00511353
A4: =Index!A4 -> 2019-02-01 | B4: =Index!C4 -> 14.62277187 | C4: =Index!B4 -> 13.86956522 | D4: 1 | E4: 13.86956522 | F4: 0.478 | G4: 2019-02-01 | H4: 14.34756522 | I4: =YEAR(A4) -> 2019 | J4: 2020 | K4: =AVERAGEIF($I$3:$I$386,J4,$H$3:$H$386) -> 14.13316546
A5: =Index!A5 -> 2019-03-01 | B5: =Index!C5 -> 14.62277187 | C5: =Index!B5 -> 13.7826087 | D5: 1 | E5: 13.7826087 | F5: 0.478 | G5: 2019-03-01 | H5: 14.2606087 | I5: 2019 | J5: 2021 | K5: 13.88632126
A6: =Index!A6 -> 2019-04-01 | B6: =Index!C6 -> 14.62277187 | C6: =Index!B6 -> 14.32608696 | D6: 1 | E6: 14.32608696 | F6: 0.478 | G6: 2019-04-01 | H6: 14.80408696 | I6: 2019 | J6: 2022 | K6: 14.13507287
A7: =Index!A7 -> 2019-05-01 | B7: =Index!C7 -> 14.62277187 | C7: =Index!B7 -> 14.28985507 | D7: 1 | E7: 14.28985507 | F7: 0.478 | G7: 2019-05-01 | H7: 14.76785507 | I7: 2019 | J7: 2023 | K7: 14.31771822
A8: =Index!A8 -> 2019-06-01 | B8: =Index!C8 -> 14.62277187 | C8: =Index!B8 -> 13.16666667 | D8: 1 | E8: 13.16666667 | F8: 0.478 | G8: 2019-06-01 | H8: 13.64466667 | I8: 2019 | J8: 2024 | K8: 14.59833619
A9: =Index!A9 -> 2019-07-01 | B9: =Index!C9 -> 14.62277187 | C9: =Index!B9 -> 13.86231884 | D9: 1 | E9: 13.86231884 | F9: 0.478 | G9: 2019-07-01 | H9: 14.34031884 | I9: 2019 | J9: 2025 | K9: 14.95660034
A10: =Index!A10 -> 2019-08-01 | B10: =Index!C10 -> 14.62277187 | C10: =Index!B10 -> 13.04347826 | D10: 1 | E10: 13.04347826 | F10: 0.478 | G10: 2019-08-01 | H10: 13.52147826 | I10: 2019 | J10: 2026 | K10: 15.52536878
A11: =Index!A11 -> 2019-09-01 | B11: =Index!C11 -> 14.62277187 | C11: =Index!B11 -> 13.57971014 | D11: 1 | E11: 13.57971014 | F11: 0.478 | G11: 2019-09-01 | H11: 14.05771014 | I11: 2019 | J11: 2027 | K11: 16.17993825
A12: =Index!A12 -> 2019-10-01 | B12: =Index!C12 -> 14.62277187 | C12: =Index!B12 -> 13.3115942 | D12: 1 | E12: 13.3115942 | F12: 0.478 | G12: 2019-10-01 | H12: 13.7895942 | I12: 2019 | J12: 2028 | K12: 16.9345729
A13: =Index!A13 -> 2019-11-01 | B13: =Index!C13 -> 14.62277187 | C13: =Index!B13 -> 13.07681159 | D13: 1 | E13: 13.07681159 | F13: 0.478 | G13: 2019-11-01 | H13: 13.55481159 | I13: 2019 | J13: 2029 | K13: 17.62429846
A14: =Index!A14 -> 2019-12-01 | B14: =Index!C14 -> 14.62277187 | C14: =Index!B14 -> 13.08913043 | D14: 1 | E14: 13.08913043 | F14: 0.478 | G14: 2019-12-01 | H14: 13.56713043 | I14: 2019 | J14: 2030 | K14: 18.05906175
A15: =Index!A15 -> 2020-01-01 | B15: =Index!C15 -> 13.65684391 | C15: =Index!B15 -> 13.8037971 | D15: 1 | E15: 13.8037971 | F15: 0.485 | G15: 2020-01-01 | H15: 14.2887971 | I15: 2020 | J15: 2031 | K15: 18.46227959
A16: =Index!A16 -> 2020-02-01 | B16: =Index!C16 -> 13.65684391 | C16: =Index!B16 -> 14.0924058 | D16: 1 | E16: 14.0924058 | F16: 0.485 | G16: 2020-02-01 | H16: 14.5774058 | I16: 2020 | J16: 2032 | K16: 18.88191424
A17: =Index!A17 -> 2020-03-01 | B17: =Index!C17 -> 13.65684391 | C17: =Index!B17 -> 14.59535507 | D17: 1 | E17: 14.59535507 | F17: 0.485 | G17: =A17 -> 2020-03-01 | H17: 15.08035507 | I17: 2020 | J17: 2033 | K17: 19.31459691
A18: =Index!A18 -> 2020-04-01 | B18: =Index!C18 -> 13.65684391 | C18: =Index!B18 -> 14.42354348 | D18: 1 | E18: 14.42354348 | F18: 0.485 | G18: 2020-04-01 | H18: 14.90854348 | I18: 2020 | J18: 2034 | K18: 19.75440309
A19: =Index!A19 -> 2020-05-01 | B19: =Index!C19 -> 13.65684391 | C19: =Index!B19 -> 13.10595652 | D19: 1 | E19: 13.10595652 | F19: 0.485 | G19: 2020-05-01 | H19: 13.59095652 | I19: 2020 | J19: 2035 | K19: 20.20451115
A20: =Index!A20 -> 2020-06-01 | B20: =Index!C20 -> 13.65684391 | C20: =Index!B20 -> 13.60171739 | D20: 1 | E20: 13.60171739 | F20: 0.485 | G20: 2020-06-01 | H20: 14.08671739 | I20: 2020 | J20: 2036 | K20: 20.66436059
A21: =Index!A21 -> 2020-07-01 | B21: =Index!C21 -> 13.65684391 | C21: =Index!B21 -> 12.98257246 | D21: 1 | E21: 12.98257246 | F21: 0.485 | G21: 2020-07-01 | H21: 13.46757246 | I21: 2020 | J21: 2037 | K21: 21.14363283
A22: =Index!A22 -> 2020-08-01 | B22: =Index!C22 -> 13.65684391 | C22: =Index!B22 -> 13.8187029 | D22: 1 | E22: 13.8187029 | F22: 0.485 | G22: 2020-08-01 | H22: 14.3037029 | I22: 2020 | J22: 2038 | K22: 21.54127639
A23: =Index!A23 -> 2020-09-01 | B23: =Index!C23 -> 13.65684391 | C23: =Index!B23 -> 13.63598551 | D23: 1 | E23: 13.63598551 | F23: 0.485 | G23: 2020-09-01 | H23: 14.12098551 | I23: 2020 | J23: 2039 | K23: 21.92760554
A24: =Index!A24 -> 2020-10-01 | B24: =Index!C24 -> 13.65684391 | C24: =Index!B24 -> 13.38081159 | D24: 1 | E24: 13.38081159 | F24: 0.485 | G24: 2020-10-01 | H24: 13.86581159 | I24: 2020 | J24: 2040 | K24: 22.07310905
A25: =Index!A25 -> 2020-11-01 | B25: =Index!C25 -> 13.65684391 | C25: =Index!B25 -> 13.15651449 | D25: 1 | E25: 13.15651449 | F25: 0.485 | G25: 2020-11-01 | H25: 13.64151449 | I25: 2020 | J25: 2041 | K25: 22.63822173
A26: =Index!A26 -> 2020-12-01 | B26: =Index!C26 -> 13.65684391 | C26: =Index!B26 -> 13.18062319 | D26: 1 | E26: 13.18062319 | F26: 0.485 | G26: 2020-12-01 | H26: 13.66562319 | I26: 2020 | J26: 2042 | K26: 23.22182235
A27: =Index!A27 -> 2021-01-01 | B27: =Index!C27 -> 13.38006175 | C27: =Index!B27 -> 13.24393478 | D27: 1 | E27: 13.24393478 | F27: 0.492 | G27: 2021-01-01 | H27: 13.73593478 | I27: 2021 | J27: 2043 | K27: 23.4194356
A28: =Index!A28 -> 2021-02-01 | B28: =Index!C28 -> 13.38006175 | C28: =Index!B28 -> 13.26150725 | D28: 1 | E28: 13.26150725 | F28: 0.492 | G28: 2021-02-01 | H28: 13.75350725 | I28: 2021 | J28: 2044 | K28: 24.02260899
A29: =Index!A29 -> 2021-03-01 | B29: =Index!C29 -> 13.38006175 | C29: =Index!B29 -> 13.27907246 | D29: 1 | E29: 13.27907246 | F29: 0.492 | G29: 2021-03-01 | H29: 13.77107246 | I29: 2021 | J29: 2045 | K29: 24.21849205
A30: =Index!A30 -> 2021-04-01 | B30: =Index!C30 -> 13.38006175 | C30: =Index!B30 -> 13.29664493 | D30: 1 | E30: 13.29664493 | F30: 0.492 | G30: 2021-04-01 | H30: 13.78864493 | I30: 2021 | J30: 2046 | K30: 24.83045537
A31: =Index!A31 -> 2021-05-01 | B31: =Index!C31 -> 13.38006175 | C31: =Index!B31 -> 13.31421739 | D31: 1 | E31: 13.31421739 | F31: 0.492 | G31: 2021-05-01 | H31: 13.80621739 | I31: 2021 | J31: 2047 | K31: 25.45137861
A32: =Index!A32 -> 2021-06-01 | B32: =Index!C32 -> 13.38006175 | C32: =Index!B32 -> 13.33178261 | D32: 1 | E32: 13.33178261 | F32: 0.492 | G32: 2021-06-01 | H32: 13.82378261 | I32: 2021 | J32: 2048 | K32: 25.64040623
A33: =Index!A33 -> 2021-07-01 | B33: =Index!C33 -> 13.38006175 | C33: =Index!B33 -> 13.33169565 | D33: 1 | E33: 13.33169565 | F33: 0.492 | G33: 2021-07-01 | H33: 13.82369565 | I33: 2021 | J33: 2049 | K33: 26.27853498
A34: =Index!A34 -> 2021-08-01 | B34: =Index!C34 -> 13.38006175 | C34: =Index!B34 -> 13.33160145 | D34: 1 | E34: 13.33160145 | F34: 0.492 | G34: 2021-08-01 | H34: 13.82360145 | I34: 2021 | J34: 2050 | K34: 26.28970406
A35: =Index!A35 -> 2021-09-01 | B35: =Index!C35 -> 13.38006175 | C35: =Index!B35 -> 13.8885 | D35: 1 | E35: 13.8885 | F35: 0.492 | G35: 2021-09-01 | H35: 14.3805 | I35: 2021
A36: =Index!A36 -> 2021-10-01 | B36: =Index!C36 -> 13.38006175 | C36: =Index!B36 -> 13.62850725 | D36: 1 | E36: 13.62850725 | F36: 0.492 | G36: 2021-10-01 | H36: =SUM(E36:F36) -> 14.12050725 | I36: 2021
A37: =Index!A37 -> 2021-11-01 | B37: =Index!C37 -> 13.38006175 | C37: =Index!B37 -> 13.39996377 | D37: 1 | E37: 13.39996377 | F37: 0.492 | G37: 2021-11-01 | H37: 13.89196377 | I37: 2021
A38: =Index!A38 -> 2021-12-01 | B38: =Index!C38 -> 13.38006175 | C38: =Index!B38 -> 13.42442754 | D38: 1 | E38: 13.42442754 | F38: 0.492 | G38: 2021-12-01 | H38: 13.91642754 | I38: 2021
A39: =Index!A39 -> 2022-01-01 | B39: =Index!C39 -> 13.44302573 | C39: =Index!B39 -> 13.57044928 | D39: 0.96 | E39: 13.56535233 | F39: 0.499 | G39: 2022-01-01 | H39: 14.06435233 | I39: 2022
A40: =Index!A40 -> 2022-02-01 | B40: =Index!C40 -> 13.44302573 | C40: =Index!B40 -> 13.58833333 | D40: 0.92 | E40: 13.57670872 | F40: 0.499 | G40: 2022-02-01 | H40: 14.07570872 | I40: 2022
A41: =Index!A41 -> 2022-03-01 | B41: =Index!C41 -> 13.44302573 | C41: =Index!B41 -> 13.60621014 | D41: 0.88 | E41: 13.58662802 | F41: 0.499 | G41: 2022-03-01 | H41: 14.08562802 | I41: 2022
A42: =Index!A42 -> 2022-04-01 | B42: =Index!C42 -> 13.44302573 | C42: =Index!B42 -> 13.6240942 | D42: 0.84 | E42: 13.59512325 | F42: 0.499 | G42: 2022-04-01 | H42: 14.09412325 | I42: 2022
A43: =Index!A43 -> 2022-05-01 | B43: =Index!C43 -> 13.44302573 | C43: =Index!B43 -> 13.64197101 | D43: 0.8 | E43: 13.60218196 | F43: 0.499 | G43: 2022-05-01 | H43: 14.10118196 | I43: 2022
A44: =Index!A44 -> 2022-06-01 | B44: =Index!C44 -> 13.44302573 | C44: =Index!B44 -> 13.65985507 | D44: 0.76 | E44: 13.60781603 | F44: 0.499 | G44: 2022-06-01 | H44: 14.10681603 | I44: 2022
A45: =Index!A45 -> 2022-07-01 | B45: =Index!C45 -> 13.44302573 | C45: =Index!B45 -> 13.65964493 | D45: 0.72 | E45: 13.59899155 | F45: 0.499 | G45: 2022-07-01 | H45: 14.09799155 | I45: 2022
A46: =Index!A46 -> 2022-08-01 | B46: =Index!C46 -> 13.44302573 | C46: =Index!B46 -> 13.65943478 | D46: 0.68 | E46: 13.59018389 | F46: 0.499 | G46: 2022-08-01 | H46: 14.08918389 | I46: 2022
A47: =Index!A47 -> 2022-09-01 | B47: =Index!C47 -> 13.44302573 | C47: =Index!B47 -> 14.2299058 | D47: 0.64 | E47: 13.94662897 | F47: 0.499 | G47: 2022-09-01 | H47: 14.44562897 | I47: 2022
A48: =Index!A48 -> 2022-10-01 | B48: =Index!C48 -> 13.44302573 | C48: =Index!B48 -> 13.96339855 | D48: 0.6 | E48: 13.75524942 | F48: 0.499 | G48: 2022-10-01 | H48: 14.25424942 | I48: 2022
A49: =Index!A49 -> 2022-11-01 | B49: =Index!C49 -> 13.44302573 | C49: =Index!B49 -> 13.72912319 | D49: 0.56 | E49: 13.60324031 | F49: 0.499 | G49: 2022-11-01 | H49: 14.10224031 | I49: 2022
A50: =Index!A50 -> 2022-12-01 | B50: =Index!C50 -> 13.44302573 | C50: =Index!B50 -> 13.75407246 | D50: 0.52 | E50: 13.60477003 | F50: 0.499 | G50: 2022-12-01 | H50: 14.10377003 | I50: 2022
A51: =Index!A51 -> 2023-01-01 | B51: =Index!C51 -> 13.74934477 | C51: =Index!B51 -> 13.90356522 | D51: 0.48 | E51: 13.82337058 | F51: 0.507 | G51: 2023-01-01 | H51: 14.33037058 | I51: 2023
A52: =Index!A52 -> 2023-02-01 | B52: =Index!C52 -> 13.74934477 | C52: =Index!B52 -> 13.92176087 | D52: 0.44 | E52: 13.82520785 | F52: 0.507 | G52: 2023-02-01 | H52: 14.33220785 | I52: 2023
A53: =Index!A53 -> 2023-03-01 | B53: =Index!C53 -> 13.74934477 | C53: =Index!B53 -> 13.93996377 | D53: 0.4 | E53: 13.82559237 | F53: 0.507 | G53: 2023-03-01 | H53: 14.33259237 | I53: 2023
A54: =Index!A54 -> 2023-04-01 | B54: =Index!C54 -> 13.74934477 | C54: =Index!B54 -> 13.95816667 | D54: 0.36 | E54: =(C54*D54+B54*(1-D54)) -> 13.82452065 | F54: 0.507 | G54: 2023-04-01 | H54: 14.33152065 | I54: 2023
A55: =Index!A55 -> 2023-05-01 | B55: =Index!C55 -> 13.74934477 | C55: =Index!B55 -> 13.97636957 | D55: 0.32 | E55: 13.8219927 | F55: 0.507 | G55: 2023-05-01 | H55: 14.3289927 | I55: 2023
A56: =Index!A56 -> 2023-06-01 | B56: =Index!C56 -> 13.74934477 | C56: =Index!B56 -> 13.99456522 | D56: 0.28 | E56: 13.81800649 | F56: 0.507 | G56: 2023-06-01 | H56: 14.32500649 | I56: 2023
A57: =Index!A57 -> 2023-07-01 | B57: =Index!C57 -> 13.74934477 | C57: =Index!B57 -> 13.93283783 | D57: 0.24 | E57: 13.7933831 | F57: 0.507 | G57: 2023-07-01 | H57: 14.3003831 | I57: 2023
A58: =Index!A58 -> 2023-08-01 | B58: =Index!C58 -> 13.74934477 | C58: =Index!B58 -> 13.93262348 | D58: 0.2 | E58: 13.78600051 | F58: 0.507 | G58: 2023-08-01 | H58: 14.29300051 | I58: 2023
A59: =Index!A59 -> 2023-09-01 | B59: =Index!C59 -> 13.74934477 | C59: =Index!B59 -> 14.51450391 | D59: 0.16 | E59: 13.87177023 | F59: 0.507 | G59: 2023-09-01 | H59: 14.37877023 | I59: 2023
A60: =Index!A60 -> 2023-10-01 | B60: =Index!C60 -> 13.74934477 | C60: =Index!B60 -> 14.24266652 | D60: 0.12 | E60: 13.80854338 | F60: 0.507 | G60: 2023-10-01 | H60: 14.31554338 | I60: 2023
A61: =Index!A61 -> 2023-11-01 | B61: =Index!C61 -> 13.74934477 | C61: =Index!B61 -> 14.00370565 | D61: 0.08 | E61: 13.76969364 | F61: 0.507 | G61: 2023-11-01 | H61: 14.27669364 | I61: 2023
A62: =Index!A62 -> 2023-12-01 | B62: =Index!C62 -> 13.74934477 | C62: =Index!B62 -> 14.02915391 | D62: 0.04 | E62: 13.76053713 | F62: 0.507 | G62: 2023-12-01 | H62: 14.26753713 | I62: 2023
A63: =Index!A63 -> 2024-01-01 | B63: =Index!C63 -> 14.08433619 | C63: =Index!B63 -> 14.18163652 | D63: 0 | E63: 14.08433619 | F63: 0.514 | G63: 2024-01-01 | H63: 14.59833619 | I63: 2024
A64: =Index!A64 -> 2024-02-01 | B64: =Index!C64 -> 14.08433619 | C64: =Index!B64 -> 14.20019609 | D64: 0 | E64: 14.08433619 | F64: 0.514 | G64: 2024-02-01 | H64: 14.59833619 | I64: 2024
A65: =Index!A65 -> 2024-03-01 | B65: =Index!C65 -> 14.08433619 | C65: =Index!B65 -> 14.21876304 | D65: 0 | E65: 14.08433619 | F65: 0.514 | G65: 2024-03-01 | H65: 14.59833619 | I65: 2024
A66: =Index!A66 -> 2024-04-01 | B66: =Index!C66 -> 14.08433619 | C66: =Index!B66 -> 14.23733 | D66: 0 | E66: 14.08433619 | F66: 0.514 | G66: 2024-04-01 | H66: 14.59833619 | I66: 2024
A67: =Index!A67 -> 2024-05-01 | B67: =Index!C67 -> 14.08433619 | C67: =Index!B67 -> 14.25589696 | D67: 0 | E67: 14.08433619 | F67: 0.514 | G67: 2024-05-01 | H67: 14.59833619 | I67: 2024
A68: =Index!A68 -> 2024-06-01 | B68: =Index!C68 -> 14.08433619 | C68: =Index!B68 -> 14.27445652 | D68: 0 | E68: 14.08433619 | F68: 0.514 | G68: 2024-06-01 | H68: 14.59833619 | I68: =YEAR(A68) -> 2024
A69: =Index!A69 -> 2024-07-01 | B69: =Index!C69 -> 14.08433619 | C69: =Index!B69 -> 14.21149458 | D69: 0 | E69: 14.08433619 | F69: 0.514 | G69: 2024-07-01 | H69: 14.59833619 | I69: 2024
A70: =Index!A70 -> 2024-08-01 | B70: =Index!C70 -> 14.08433619 | C70: =Index!B70 -> 14.21127595 | D70: 0 | E70: 14.08433619 | F70: 0.514 | G70: 2024-08-01 | H70: 14.59833619 | I70: 2024
A71: =Index!A71 -> 2024-09-01 | B71: =Index!C71 -> 14.08433619 | C71: =Index!B71 -> 14.80479399 | D71: 0 | E71: 14.08433619 | F71: 0.514 | G71: 2024-09-01 | H71: 14.59833619 | I71: 2024
A72: =Index!A72 -> 2024-10-01 | B72: =Index!C72 -> 14.08433619 | C72: =Index!B72 -> 14.52751985 | D72: 0 | E72: 14.08433619 | F72: 0.514 | G72: 2024-10-01 | H72: 14.59833619 | I72: 2024
A73: =Index!A73 -> 2024-11-01 | B73: =Index!C73 -> 14.08433619 | C73: =Index!B73 -> 14.28377977 | D73: 0 | E73: 14.08433619 | F73: 0.514 | G73: 2024-11-01 | H73: 14.59833619 | I73: 2024
A74: =Index!A74 -> 2024-12-01 | B74: =Index!C74 -> 14.08433619 | C74: =Index!B74 -> 14.30973699 | D74: 0 | E74: 14.08433619 | F74: 0.514 | G74: 2024-12-01 | H74: 14.59833619 | I74: 2024
A75: =Index!A75 -> 2025-01-01 | B75: =Index!C75 -> 14.43460034 | C75: =Index!B75 -> 14.46526925 | D75: 0 | E75: 14.43460034 | F75: 0.522 | G75: 2025-01-01 | H75: 14.95660034 | I75: 2025
A76: =Index!A76 -> 2025-02-01 | B76: =Index!C76 -> 14.43460034 | C76: =Index!B76 -> 14.48420001 | D76: 0 | E76: 14.43460034 | F76: 0.522 | G76: 2025-02-01 | H76: 14.95660034 | I76: 2025
A77: =Index!A77 -> 2025-03-01 | B77: =Index!C77 -> 14.43460034 | C77: =Index!B77 -> 14.5031383 | D77: 0 | E77: 14.43460034 | F77: 0.522 | G77: 2025-03-01 | H77: 14.95660034 | I77: 2025
A78: =Index!A78 -> 2025-04-01 | B78: =Index!C78 -> 14.43460034 | C78: =Index!B78 -> 14.5220766 | D78: 0 | E78: 14.43460034 | F78: 0.522 | G78: 2025-04-01 | H78: 14.95660034 | I78: 2025
A79: =Index!A79 -> 2025-05-01 | B79: =Index!C79 -> 14.43460034 | C79: =Index!B79 -> 14.5410149 | D79: 0 | E79: 14.43460034 | F79: 0.522 | G79: 2025-05-01 | H79: 14.95660034 | I79: 2025
A80: =Index!A80 -> 2025-06-01 | B80: =Index!C80 -> 14.43460034 | C80: =Index!B80 -> 14.55994565 | D80: 0 | E80: 14.43460034 | F80: 0.522 | G80: 2025-06-01 | H80: 14.95660034 | I80: 2025
A81: =Index!A81 -> 2025-07-01 | B81: =Index!C81 -> 14.43460034 | C81: =Index!B81 -> 14.49572447 | D81: 0 | E81: 14.43460034 | F81: 0.522 | G81: =A81 -> 2025-07-01 | H81: 14.95660034 | I81: 2025
A82: =Index!A82 -> 2025-08-01 | B82: =Index!C82 -> 14.43460034 | C82: =Index!B82 -> 14.49550147 | D82: 0 | E82: 14.43460034 | F82: 0.522 | G82: 2025-08-01 | H82: 14.95660034 | I82: 2025
A83: =Index!A83 -> 2025-09-01 | B83: =Index!C83 -> 14.43460034 | C83: =Index!B83 -> 15.10088987 | D83: 0 | E83: 14.43460034 | F83: 0.522 | G83: 2025-09-01 | H83: 14.95660034 | I83: 2025
A84: =Index!A84 -> 2025-10-01 | B84: =Index!C84 -> 14.43460034 | C84: =Index!B84 -> 14.81807025 | D84: 0 | E84: 14.43460034 | F84: 0.522 | G84: 2025-10-01 | H84: 14.95660034 | I84: 2025
A85: =Index!A85 -> 2025-11-01 | B85: =Index!C85 -> 14.43460034 | C85: =Index!B85 -> 14.56945536 | D85: 0 | E85: 14.43460034 | F85: 0.522 | G85: 2025-11-01 | H85: 14.95660034 | I85: 2025
A86: =Index!A86 -> 2025-12-01 | B86: =Index!C86 -> 14.43460034 | C86: =Index!B86 -> 14.59593173 | D86: 0 | E86: 14.43460034 | F86: 0.522 | G86: 2025-12-01 | H86: 14.95660034 | I86: 2025
A87: =Index!A87 -> 2026-01-01 | B87: =Index!C87 -> 14.99536878 | C87: =Index!B87 -> 14.75457464 | D87: 0 | E87: 14.99536878 | F87: 0.53 | G87: 2026-01-01 | H87: 15.52536878 | I87: 2026
A88: =Index!A88 -> 2026-02-01 | B88: =Index!C88 -> 14.99536878 | C88: =Index!B88 -> 14.77388401 | D88: 0 | E88: 14.99536878 | F88: 0.53 | G88: 2026-02-01 | H88: 15.52536878 | I88: 2026
A89: =Index!A89 -> 2026-03-01 | B89: =Index!C89 -> 14.99536878 | C89: =Index!B89 -> 14.79320107 | D89: 0 | E89: 14.99536878 | F89: 0.53 | G89: 2026-03-01 | H89: 15.52536878 | I89: 2026
A90: =Index!A90 -> 2026-04-01 | B90: =Index!C90 -> 14.99536878 | C90: =Index!B90 -> 14.81251813 | D90: 0 | E90: 14.99536878 | F90: 0.53 | G90: 2026-04-01 | H90: 15.52536878 | I90: 2026
A91: =Index!A91 -> 2026-05-01 | B91: =Index!C91 -> 14.99536878 | C91: =Index!B91 -> 14.83183519 | D91: 0 | E91: 14.99536878 | F91: 0.53 | G91: 2026-05-01 | H91: 15.52536878 | I91: 2026
A92: =Index!A92 -> 2026-06-01 | B92: =Index!C92 -> 14.99536878 | C92: =Index!B92 -> 14.85114457 | D92: 0 | E92: 14.99536878 | F92: 0.53 | G92: 2026-06-01 | H92: 15.52536878 | I92: 2026
A93: =Index!A93 -> 2026-07-01 | B93: =Index!C93 -> 14.99536878 | C93: =Index!B93 -> 14.78563896 | D93: 0 | E93: 14.99536878 | F93: 0.53 | G93: 2026-07-01 | H93: 15.52536878 | I93: 2026
A94: =Index!A94 -> 2026-08-01 | B94: =Index!C94 -> 14.99536878 | C94: =Index!B94 -> 14.7854115 | D94: 0 | E94: 14.99536878 | F94: 0.53 | G94: 2026-08-01 | H94: 15.52536878 | I94: 2026
A95: =Index!A95 -> 2026-09-01 | B95: =Index!C95 -> 14.99536878 | C95: =Index!B95 -> 15.40290767 | D95: 0 | E95: 14.99536878 | F95: 0.53 | G95: 2026-09-01 | H95: 15.52536878 | I95: 2026
A96: =Index!A96 -> 2026-10-01 | B96: =Index!C96 -> 14.99536878 | C96: =Index!B96 -> 15.11443165 | D96: 0 | E96: 14.99536878 | F96: 0.53 | G96: 2026-10-01 | H96: 15.52536878 | I96: 2026
A97: =Index!A97 -> 2026-11-01 | B97: =Index!C97 -> 14.99536878 | C97: =Index!B97 -> 14.86084447 | D97: 0 | E97: 14.99536878 | F97: 0.53 | G97: 2026-11-01 | H97: 15.52536878 | I97: 2026
A98: =Index!A98 -> 2026-12-01 | B98: =Index!C98 -> 14.99536878 | C98: =Index!B98 -> 14.88785037 | D98: 0 | E98: 14.99536878 | F98: 0.53 | G98: 2026-12-01 | H98: 15.52536878 | I98: 2026
A99: =Index!A99 -> 2027-01-01 | B99: =Index!C99 -> 15.64193825 | C99: =Index!B99 -> 15.04966613 | D99: 0 | E99: 15.64193825 | F99: 0.538 | G99: 2027-01-01 | H99: 16.17993825 | I99: 2027
A100: =Index!A100 -> 2027-02-01 | B100: =Index!C100 -> 15.64193825 | C100: =Index!B100 -> 15.06936169 | D100: 0 | E100: 15.64193825 | F100: 0.538 | G100: 2027-02-01 | H100: =SUM(E100:F100) -> 16.17993825 | I100: 2027
A101: =Index!A101 -> 2027-03-01 | B101: =Index!C101 -> 15.64193825 | C101: =Index!B101 -> 15.08906509 | D101: 0 | E101: 15.64193825 | F101: 0.538 | G101: 2027-03-01 | H101: 16.17993825 | I101: 2027
A102: =Index!A102 -> 2027-04-01 | B102: =Index!C102 -> 15.64193825 | C102: =Index!B102 -> 15.10876849 | D102: 0 | E102: 15.64193825 | F102: 0.538 | G102: 2027-04-01 | H102: 16.17993825 | I102: 2027
A103: =Index!A103 -> 2027-05-01 | B103: =Index!C103 -> 15.64193825 | C103: =Index!B103 -> 15.1284719 | D103: 0 | E103: 15.64193825 | F103: 0.538 | G103: 2027-05-01 | H103: 16.17993825 | I103: 2027
A104: =Index!A104 -> 2027-06-01 | B104: =Index!C104 -> 15.64193825 | C104: =Index!B104 -> 15.14816746 | D104: 0 | E104: 15.64193825 | F104: 0.538 | G104: 2027-06-01 | H104: 16.17993825 | I104: 2027
A105: =Index!A105 -> 2027-07-01 | B105: =Index!C105 -> 15.64193825 | C105: =Index!B105 -> 15.08135174 | D105: 0 | E105: 15.64193825 | F105: 0.538 | G105: 2027-07-01 | H105: 16.17993825 | I105: 2027
A106: =Index!A106 -> 2027-08-01 | B106: =Index!C106 -> 15.64193825 | C106: =Index!B106 -> 15.08111973 | D106: 0 | E106: 15.64193825 | F106: 0.538 | G106: 2027-08-01 | H106: 16.17993825 | I106: 2027
A107: =Index!A107 -> 2027-09-01 | B107: =Index!C107 -> 15.64193825 | C107: =Index!B107 -> 15.71096582 | D107: 0 | E107: 15.64193825 | F107: 0.538 | G107: 2027-09-01 | H107: 16.17993825 | I107: 2027
A108: =Index!A108 -> 2027-10-01 | B108: =Index!C108 -> 15.64193825 | C108: =Index!B108 -> 15.41672029 | D108: 0 | E108: 15.64193825 | F108: 0.538 | G108: 2027-10-01 | H108: 16.17993825 | I108: 2027
A109: =Index!A109 -> 2027-11-01 | B109: =Index!C109 -> 15.64193825 | C109: =Index!B109 -> 15.15806136 | D109: 0 | E109: 15.64193825 | F109: 0.538 | G109: 2027-11-01 | H109: 16.17993825 | I109: 2027
A110: =Index!A110 -> 2027-12-01 | B110: =Index!C110 -> 15.64193825 | C110: =Index!B110 -> 15.18560737 | D110: 0 | E110: 15.64193825 | F110: 0.538 | G110: 2027-12-01 | H110: 16.17993825 | I110: 2027
A111: =Index!A111 -> 2028-01-01 | B111: =Index!C111 -> 16.3885729 | C111: =Index!B111 -> 15.35065945 | D111: 0 | E111: 16.3885729 | F111: 0.546 | G111: 2028-01-01 | H111: 16.9345729 | I111: 2028
A112: =Index!A112 -> 2028-02-01 | B112: =Index!C112 -> 16.3885729 | C112: =Index!B112 -> 15.37074892 | D112: 0 | E112: 16.3885729 | F112: 0.546 | G112: 2028-02-01 | H112: 16.9345729 | I112: 2028
A113: =Index!A113 -> 2028-03-01 | B113: =Index!C113 -> 16.3885729 | C113: =Index!B113 -> 15.39084639 | D113: 0 | E113: 16.3885729 | F113: 0.546 | G113: 2028-03-01 | H113: 16.9345729 | I113: 2028
A114: =Index!A114 -> 2028-04-01 | B114: =Index!C114 -> 16.3885729 | C114: =Index!B114 -> 15.41094386 | D114: 0 | E114: 16.3885729 | F114: 0.546 | G114: 2028-04-01 | H114: 16.9345729 | I114: 2028
A115: =Index!A115 -> 2028-05-01 | B115: =Index!C115 -> 16.3885729 | C115: =Index!B115 -> 15.43104134 | D115: 0 | E115: 16.3885729 | F115: 0.546 | G115: 2028-05-01 | H115: 16.9345729 | I115: 2028
A116: =Index!A116 -> 2028-06-01 | B116: =Index!C116 -> 16.3885729 | C116: =Index!B116 -> 15.45113081 | D116: 0 | E116: 16.3885729 | F116: 0.546 | G116: 2028-06-01 | H116: 16.9345729 | I116: 2028
A117: =Index!A117 -> 2028-07-01 | B117: =Index!C117 -> 16.3885729 | C117: =Index!B117 -> 15.38297878 | D117: 0 | E117: 16.3885729 | F117: 0.546 | G117: 2028-07-01 | H117: 16.9345729 | I117: 2028
A118: =Index!A118 -> 2028-08-01 | B118: =Index!C118 -> 16.3885729 | C118: =Index!B118 -> 15.38274212 | D118: 0 | E118: =(C118*D118+B118*(1-D118)) -> 16.3885729 | F118: 0.546 | G118: 2028-08-01 | H118: 16.9345729 | I118: 2028
A119: =Index!A119 -> 2028-09-01 | B119: =Index!C119 -> 16.3885729 | C119: =Index!B119 -> 16.02518514 | D119: 0 | E119: 16.3885729 | F119: 0.546 | G119: 2028-09-01 | H119: 16.9345729 | I119: 2028
A120: =Index!A120 -> 2028-10-01 | B120: =Index!C120 -> 16.3885729 | C120: =Index!B120 -> 15.72505469 | D120: 0 | E120: 16.3885729 | F120: 0.546 | G120: 2028-10-01 | H120: 16.9345729 | I120: 2028
A121: =Index!A121 -> 2028-11-01 | B121: =Index!C121 -> 16.3885729 | C121: =Index!B121 -> 15.46122258 | D121: 0 | E121: 16.3885729 | F121: 0.546 | G121: 2028-11-01 | H121: 16.9345729 | I121: 2028
A122: =Index!A122 -> 2028-12-01 | B122: =Index!C122 -> 16.3885729 | C122: =Index!B122 -> 15.48931952 | D122: 0 | E122: 16.3885729 | F122: 0.546 | G122: 2028-12-01 | H122: 16.9345729 | I122: 2028
A123: =Index!A123 -> 2029-01-01 | B123: =Index!C123 -> 17.07029846 | C123: =Index!B123 -> 15.65767264 | D123: 0 | E123: 17.07029846 | F123: 0.554 | G123: 2029-01-01 | H123: 17.62429846 | I123: 2029
A124: =Index!A124 -> 2029-02-01 | B124: =Index!C124 -> 17.07029846 | C124: =Index!B124 -> 15.6781639 | D124: 0 | E124: 17.07029846 | F124: 0.554 | G124: 2029-02-01 | H124: 17.62429846 | I124: 2029
A125: =Index!A125 -> 2029-03-01 | B125: =Index!C125 -> 17.07029846 | C125: =Index!B125 -> 15.69866332 | D125: 0 | E125: 17.07029846 | F125: 0.554 | G125: 2029-03-01 | H125: 17.62429846 | I125: 2029
A126: =Index!A126 -> 2029-04-01 | B126: =Index!C126 -> 17.07029846 | C126: =Index!B126 -> 15.71916274 | D126: 0 | E126: 17.07029846 | F126: 0.554 | G126: 2029-04-01 | H126: 17.62429846 | I126: 2029
A127: =Index!A127 -> 2029-05-01 | B127: =Index!C127 -> 17.07029846 | C127: =Index!B127 -> 15.73966216 | D127: 0 | E127: 17.07029846 | F127: 0.554 | G127: 2029-05-01 | H127: 17.62429846 | I127: 2029
A128: =Index!A128 -> 2029-06-01 | B128: =Index!C128 -> 17.07029846 | C128: =Index!B128 -> 15.76015342 | D128: 0 | E128: 17.07029846 | F128: 0.554 | G128: 2029-06-01 | H128: 17.62429846 | I128: 2029
A129: =Index!A129 -> 2029-07-01 | B129: =Index!C129 -> 17.07029846 | C129: =Index!B129 -> 15.69063835 | D129: 0 | E129: 17.07029846 | F129: 0.554 | G129: 2029-07-01 | H129: 17.62429846 | I129: 2029
A130: =Index!A130 -> 2029-08-01 | B130: =Index!C130 -> 17.07029846 | C130: =Index!B130 -> 15.69039696 | D130: 0 | E130: 17.07029846 | F130: 0.554 | G130: 2029-08-01 | H130: 17.62429846 | I130: 2029
A131: =Index!A131 -> 2029-09-01 | B131: =Index!C131 -> 17.07029846 | C131: =Index!B131 -> 16.34568884 | D131: 0 | E131: 17.07029846 | F131: 0.554 | G131: 2029-09-01 | H131: 17.62429846 | I131: 2029
A132: =Index!A132 -> 2029-10-01 | B132: =Index!C132 -> 17.07029846 | C132: =Index!B132 -> 16.03955579 | D132: 0 | E132: 17.07029846 | F132: 0.554 | G132: 2029-10-01 | H132: 17.62429846 | I132: =YEAR(A132) -> 2029
A133: =Index!A133 -> 2029-11-01 | B133: =Index!C133 -> 17.07029846 | C133: =Index!B133 -> 15.77044704 | D133: 0 | E133: 17.07029846 | F133: 0.554 | G133: 2029-11-01 | H133: 17.62429846 | I133: 2029
A134: =Index!A134 -> 2029-12-01 | B134: =Index!C134 -> 17.07029846 | C134: =Index!B134 -> 15.79910591 | D134: 0 | E134: 17.07029846 | F134: 0.554 | G134: 2029-12-01 | H134: 17.62429846 | I134: 2029
A135: =Index!A135 -> 2030-01-01 | B135: =Index!C135 -> 17.49606175 | C135: =Index!B135 -> 15.97082609 | D135: 0 | E135: 17.49606175 | F135: 0.563 | G135: 2030-01-01 | H135: 18.05906175 | I135: 2030
A136: =Index!A136 -> 2030-02-01 | B136: =Index!C136 -> 17.49606175 | C136: =Index!B136 -> 15.99172718 | D136: 0 | E136: 17.49606175 | F136: 0.563 | G136: 2030-02-01 | H136: 18.05906175 | I136: 2030
A137: =Index!A137 -> 2030-03-01 | B137: =Index!C137 -> 17.49606175 | C137: =Index!B137 -> 16.01263659 | D137: 0 | E137: 17.49606175 | F137: 0.563 | G137: 2030-03-01 | H137: 18.05906175 | I137: 2030
A138: =Index!A138 -> 2030-04-01 | B138: =Index!C138 -> 17.49606175 | C138: =Index!B138 -> 16.033546 | D138: 0 | E138: 17.49606175 | F138: 0.563 | G138: 2030-04-01 | H138: 18.05906175 | I138: 2030
A139: =Index!A139 -> 2030-05-01 | B139: =Index!C139 -> 17.49606175 | C139: =Index!B139 -> 16.05445541 | D139: 0 | E139: 17.49606175 | F139: 0.563 | G139: 2030-05-01 | H139: 18.05906175 | I139: 2030
A140: =Index!A140 -> 2030-06-01 | B140: =Index!C140 -> 17.49606175 | C140: =Index!B140 -> 16.07535649 | D140: 0 | E140: 17.49606175 | F140: 0.563 | G140: 2030-06-01 | H140: 18.05906175 | I140: 2030
A141: =Index!A141 -> 2030-07-01 | B141: =Index!C141 -> 17.49606175 | C141: =Index!B141 -> 16.00445112 | D141: 0 | E141: 17.49606175 | F141: 0.563 | G141: 2030-07-01 | H141: 18.05906175 | I141: 2030
A142: =Index!A142 -> 2030-08-01 | B142: =Index!C142 -> 17.49606175 | C142: =Index!B142 -> 16.0042049 | D142: 0 | E142: 17.49606175 | F142: 0.563 | G142: 2030-08-01 | H142: 18.05906175 | I142: 2030
A143: =Index!A143 -> 2030-09-01 | B143: =Index!C143 -> 17.49606175 | C143: =Index!B143 -> 16.67260262 | D143: 0 | E143: 17.49606175 | F143: 0.563 | G143: 2030-09-01 | H143: 18.05906175 | I143: 2030
A144: =Index!A144 -> 2030-10-01 | B144: =Index!C144 -> 17.49606175 | C144: =Index!B144 -> 16.3603469 | D144: 0 | E144: 17.49606175 | F144: 0.563 | G144: 2030-10-01 | H144: 18.05906175 | I144: 2030
A145: =Index!A145 -> 2030-11-01 | B145: =Index!C145 -> 17.49606175 | C145: =Index!B145 -> 16.08585598 | D145: 0 | E145: 17.49606175 | F145: 0.563 | G145: =A145 -> 2030-11-01 | H145: 18.05906175 | I145: 2030
A146: =Index!A146 -> 2030-12-01 | B146: =Index!C146 -> 17.49606175 | C146: =Index!B146 -> 16.11508803 | D146: 0 | E146: 17.49606175 | F146: 0.563 | G146: 2030-12-01 | H146: 18.05906175 | I146: 2030
A147: =Index!A147 -> 2031-01-01 | B147: =Index!C147 -> 17.89127959 | C147: =Index!B147 -> 16.29024262 | D147: 0 | E147: 17.89127959 | F147: 0.571 | G147: 2031-01-01 | H147: 18.46227959 | I147: 2031
A148: =Index!A148 -> 2031-02-01 | B148: =Index!C148 -> 17.89127959 | C148: =Index!B148 -> 16.31156172 | D148: 0 | E148: 17.89127959 | F148: 0.571 | G148: 2031-02-01 | H148: 18.46227959 | I148: 2031
A149: =Index!A149 -> 2031-03-01 | B149: =Index!C149 -> 17.89127959 | C149: =Index!B149 -> 16.33288932 | D149: 0 | E149: 17.89127959 | F149: 0.571 | G149: 2031-03-01 | H149: 18.46227959 | I149: 2031
A150: =Index!A150 -> 2031-04-01 | B150: =Index!C150 -> 17.89127959 | C150: =Index!B150 -> 16.35421692 | D150: 0 | E150: 17.89127959 | F150: 0.571 | G150: 2031-04-01 | H150: 18.46227959 | I150: 2031
A151: =Index!A151 -> 2031-05-01 | B151: =Index!C151 -> 17.89127959 | C151: =Index!B151 -> 16.37554451 | D151: 0 | E151: 17.89127959 | F151: 0.571 | G151: 2031-05-01 | H151: 18.46227959 | I151: 2031
A152: =Index!A152 -> 2031-06-01 | B152: =Index!C152 -> 17.89127959 | C152: =Index!B152 -> 16.39686362 | D152: 0 | E152: 17.89127959 | F152: 0.571 | G152: 2031-06-01 | H152: 18.46227959 | I152: 2031
A153: =Index!A153 -> 2031-07-01 | B153: =Index!C153 -> 17.89127959 | C153: =Index!B153 -> 16.32454014 | D153: 0 | E153: 17.89127959 | F153: 0.571 | G153: 2031-07-01 | H153: 18.46227959 | I153: 2031
A154: =Index!A154 -> 2031-08-01 | B154: =Index!C154 -> 17.89127959 | C154: =Index!B154 -> 16.324289 | D154: 0 | E154: 17.89127959 | F154: 0.571 | G154: 2031-08-01 | H154: 18.46227959 | I154: 2031
A155: =Index!A155 -> 2031-09-01 | B155: =Index!C155 -> 17.89127959 | C155: =Index!B155 -> 17.00605467 | D155: 0 | E155: 17.89127959 | F155: 0.571 | G155: 2031-09-01 | H155: 18.46227959 | I155: 2031
A156: =Index!A156 -> 2031-10-01 | B156: =Index!C156 -> 17.89127959 | C156: =Index!B156 -> 16.68755384 | D156: 0 | E156: 17.89127959 | F156: 0.571 | G156: 2031-10-01 | H156: 18.46227959 | I156: 2031
A157: =Index!A157 -> 2031-11-01 | B157: =Index!C157 -> 17.89127959 | C157: =Index!B157 -> 16.4075731 | D157: 0 | E157: 17.89127959 | F157: 0.571 | G157: 2031-11-01 | H157: 18.46227959 | I157: 2031
A158: =Index!A158 -> 2031-12-01 | B158: =Index!C158 -> 17.89127959 | C158: =Index!B158 -> 16.43738979 | D158: 0 | E158: 17.89127959 | F158: 0.571 | G158: 2031-12-01 | H158: 18.46227959 | I158: 2031
A159: =Index!A159 -> 2032-01-01 | B159: =Index!C159 -> 18.30191424 | C159: =Index!B159 -> 16.61604747 | D159: 0 | E159: 18.30191424 | F159: 0.58 | G159: 2032-01-01 | H159: 18.88191424 | I159: 2032
A160: =Index!A160 -> 2032-02-01 | B160: =Index!C160 -> 18.30191424 | C160: =Index!B160 -> 16.63779296 | D160: 0 | E160: 18.30191424 | F160: 0.58 | G160: 2032-02-01 | H160: 18.88191424 | I160: 2032
A161: =Index!A161 -> 2032-03-01 | B161: =Index!C161 -> 18.30191424 | C161: =Index!B161 -> 16.65954711 | D161: 0 | E161: 18.30191424 | F161: 0.58 | G161: 2032-03-01 | H161: 18.88191424 | I161: 2032
A162: =Index!A162 -> 2032-04-01 | B162: =Index!C162 -> 18.30191424 | C162: =Index!B162 -> 16.68130125 | D162: 0 | E162: 18.30191424 | F162: 0.58 | G162: 2032-04-01 | H162: 18.88191424 | I162: 2032
A163: =Index!A163 -> 2032-05-01 | B163: =Index!C163 -> 18.30191424 | C163: =Index!B163 -> 16.7030554 | D163: 0 | E163: 18.30191424 | F163: 0.58 | G163: 2032-05-01 | H163: 18.88191424 | I163: 2032
A164: =Index!A164 -> 2032-06-01 | B164: =Index!C164 -> 18.30191424 | C164: =Index!B164 -> 16.72480089 | D164: 0 | E164: 18.30191424 | F164: 0.58 | G164: 2032-06-01 | H164: =SUM(E164:F164) -> 18.88191424 | I164: 2032
A165: =Index!A165 -> 2032-07-01 | B165: =Index!C165 -> 18.30191424 | C165: =Index!B165 -> 16.65103095 | D165: 0 | E165: 18.30191424 | F165: 0.58 | G165: 2032-07-01 | H165: 18.88191424 | I165: 2032
A166: =Index!A166 -> 2032-08-01 | B166: =Index!C166 -> 18.30191424 | C166: =Index!B166 -> 16.65077478 | D166: 0 | E166: 18.30191424 | F166: 0.58 | G166: 2032-08-01 | H166: 18.88191424 | I166: 2032
A167: =Index!A167 -> 2032-09-01 | B167: =Index!C167 -> 18.30191424 | C167: =Index!B167 -> 17.34617576 | D167: 0 | E167: 18.30191424 | F167: 0.58 | G167: 2032-09-01 | H167: 18.88191424 | I167: 2032
A168: =Index!A168 -> 2032-10-01 | B168: =Index!C168 -> 18.30191424 | C168: =Index!B168 -> 17.02130492 | D168: 0 | E168: 18.30191424 | F168: 0.58 | G168: 2032-10-01 | H168: 18.88191424 | I168: 2032
A169: =Index!A169 -> 2032-11-01 | B169: =Index!C169 -> 18.30191424 | C169: =Index!B169 -> 16.73572456 | D169: 0 | E169: 18.30191424 | F169: 0.58 | G169: 2032-11-01 | H169: 18.88191424 | I169: 2032
A170: =Index!A170 -> 2032-12-01 | B170: =Index!C170 -> 18.30191424 | C170: =Index!B170 -> 16.76613759 | D170: 0 | E170: 18.30191424 | F170: 0.58 | G170: 2032-12-01 | H170: 18.88191424 | I170: 2032
A171: =Index!A171 -> 2033-01-01 | B171: =Index!C171 -> 18.72659691 | C171: =Index!B171 -> 16.94836842 | D171: 0 | E171: 18.72659691 | F171: 0.588 | G171: 2033-01-01 | H171: 19.31459691 | I171: 2033
A172: =Index!A172 -> 2033-02-01 | B172: =Index!C172 -> 18.72659691 | C172: =Index!B172 -> 16.97054882 | D172: 0 | E172: 18.72659691 | F172: 0.588 | G172: 2033-02-01 | H172: 19.31459691 | I172: 2033
A173: =Index!A173 -> 2033-03-01 | B173: =Index!C173 -> 18.72659691 | C173: =Index!B173 -> 16.99273805 | D173: 0 | E173: 18.72659691 | F173: 0.588 | G173: 2033-03-01 | H173: 19.31459691 | I173: 2033
A174: =Index!A174 -> 2033-04-01 | B174: =Index!C174 -> 18.72659691 | C174: =Index!B174 -> 17.01492728 | D174: 0 | E174: 18.72659691 | F174: 0.588 | G174: 2033-04-01 | H174: 19.31459691 | I174: 2033
A175: =Index!A175 -> 2033-05-01 | B175: =Index!C175 -> 18.72659691 | C175: =Index!B175 -> 17.03711651 | D175: 0 | E175: 18.72659691 | F175: 0.588 | G175: 2033-05-01 | H175: 19.31459691 | I175: 2033
A176: =Index!A176 -> 2033-06-01 | B176: =Index!C176 -> 18.72659691 | C176: =Index!B176 -> 17.05929691 | D176: 0 | E176: 18.72659691 | F176: 0.588 | G176: 2033-06-01 | H176: 19.31459691 | I176: 2033
A177: =Index!A177 -> 2033-07-01 | B177: =Index!C177 -> 18.72659691 | C177: =Index!B177 -> 16.98405156 | D177: 0 | E177: 18.72659691 | F177: 0.588 | G177: 2033-07-01 | H177: 19.31459691 | I177: 2033
A178: =Index!A178 -> 2033-08-01 | B178: =Index!C178 -> 18.72659691 | C178: =Index!B178 -> 16.98379028 | D178: 0 | E178: 18.72659691 | F178: 0.588 | G178: 2033-08-01 | H178: 19.31459691 | I178: 2033
A179: =Index!A179 -> 2033-09-01 | B179: =Index!C179 -> 18.72659691 | C179: =Index!B179 -> 17.69309928 | D179: 0 | E179: 18.72659691 | F179: 0.588 | G179: 2033-09-01 | H179: 19.31459691 | I179: 2033
A180: =Index!A180 -> 2033-10-01 | B180: =Index!C180 -> 18.72659691 | C180: =Index!B180 -> 17.36173102 | D180: 0 | E180: 18.72659691 | F180: 0.588 | G180: 2033-10-01 | H180: 19.31459691 | I180: 2033
A181: =Index!A181 -> 2033-11-01 | B181: =Index!C181 -> 18.72659691 | C181: =Index!B181 -> 17.07043905 | D181: 0 | E181: 18.72659691 | F181: 0.588 | G181: 2033-11-01 | H181: 19.31459691 | I181: 2033
A182: =Index!A182 -> 2033-12-01 | B182: =Index!C182 -> 18.72659691 | C182: =Index!B182 -> 17.10146034 | D182: 0 | E182: =(C182*D182+B182*(1-D182)) -> 18.72659691 | F182: 0.588 | G182: 2033-12-01 | H182: 19.31459691 | I182: 2033
A183: =Index!A183 -> 2034-01-01 | B183: =Index!C183 -> 19.15740309 | C183: =Index!B183 -> 17.28733579 | D183: 0 | E183: 19.15740309 | F183: 0.597 | G183: 2034-01-01 | H183: 19.75440309 | I183: 2034
A184: =Index!A184 -> 2034-02-01 | B184: =Index!C184 -> 19.15740309 | C184: =Index!B184 -> 17.30995979 | D184: 0 | E184: 19.15740309 | F184: 0.597 | G184: 2034-02-01 | H184: 19.75440309 | I184: 2034
A185: =Index!A185 -> 2034-03-01 | B185: =Index!C185 -> 19.15740309 | C185: =Index!B185 -> 17.33259281 | D185: 0 | E185: 19.15740309 | F185: 0.597 | G185: 2034-03-01 | H185: 19.75440309 | I185: 2034
A186: =Index!A186 -> 2034-04-01 | B186: =Index!C186 -> 19.15740309 | C186: =Index!B186 -> 17.35522583 | D186: 0 | E186: 19.15740309 | F186: 0.597 | G186: 2034-04-01 | H186: 19.75440309 | I186: 2034
A187: =Index!A187 -> 2034-05-01 | B187: =Index!C187 -> 19.15740309 | C187: =Index!B187 -> 17.37785884 | D187: 0 | E187: 19.15740309 | F187: 0.597 | G187: 2034-05-01 | H187: 19.75440309 | I187: 2034
A188: =Index!A188 -> 2034-06-01 | B188: =Index!C188 -> 19.15740309 | C188: =Index!B188 -> 17.40048285 | D188: 0 | E188: 19.15740309 | F188: 0.597 | G188: 2034-06-01 | H188: 19.75440309 | I188: 2034
A189: =Index!A189 -> 2034-07-01 | B189: =Index!C189 -> 19.15740309 | C189: =Index!B189 -> 17.3237326 | D189: 0 | E189: 19.15740309 | F189: 0.597 | G189: 2034-07-01 | H189: 19.75440309 | I189: 2034
A190: =Index!A190 -> 2034-08-01 | B190: =Index!C190 -> 19.15740309 | C190: =Index!B190 -> 17.32346608 | D190: 0 | E190: 19.15740309 | F190: 0.597 | G190: 2034-08-01 | H190: 19.75440309 | I190: 2034
A191: =Index!A191 -> 2034-09-01 | B191: =Index!C191 -> 19.15740309 | C191: =Index!B191 -> 18.04696126 | D191: 0 | E191: 19.15740309 | F191: 0.597 | G191: 2034-09-01 | H191: 19.75440309 | I191: 2034
A192: =Index!A192 -> 2034-10-01 | B192: =Index!C192 -> 19.15740309 | C192: =Index!B192 -> 17.70896564 | D192: 0 | E192: 19.15740309 | F192: 0.597 | G192: 2034-10-01 | H192: 19.75440309 | I192: 2034
A193: =Index!A193 -> 2034-11-01 | B193: =Index!C193 -> 19.15740309 | C193: =Index!B193 -> 17.41184783 | D193: 0 | E193: 19.15740309 | F193: 0.597 | G193: 2034-11-01 | H193: 19.75440309 | I193: 2034
A194: =Index!A194 -> 2034-12-01 | B194: =Index!C194 -> 19.15740309 | C194: =Index!B194 -> 17.44348954 | D194: 0 | E194: 19.15740309 | F194: 0.597 | G194: 2034-12-01 | H194: 19.75440309 | I194: 2034
A195: =Index!A195 -> 2035-01-01 | B195: =Index!C195 -> 19.59851115 | C195: =Index!B195 -> 17.6330825 | D195: 0 | E195: 19.59851115 | F195: 0.606 | G195: 2035-01-01 | H195: 20.20451115 | I195: 2035
A196: =Index!A196 -> 2035-02-01 | B196: =Index!C196 -> 19.59851115 | C196: =Index!B196 -> 17.65615899 | D196: 0 | E196: 19.59851115 | F196: 0.606 | G196: 2035-02-01 | H196: 20.20451115 | I196: =YEAR(A196) -> 2035
A197: =Index!A197 -> 2035-03-01 | B197: =Index!C197 -> 19.59851115 | C197: =Index!B197 -> 17.67924467 | D197: 0 | E197: 19.59851115 | F197: 0.606 | G197: 2035-03-01 | H197: 20.20451115 | I197: 2035
A198: =Index!A198 -> 2035-04-01 | B198: =Index!C198 -> 19.59851115 | C198: =Index!B198 -> 17.70233034 | D198: 0 | E198: 19.59851115 | F198: 0.606 | G198: 2035-04-01 | H198: 20.20451115 | I198: 2035
A199: =Index!A199 -> 2035-05-01 | B199: =Index!C199 -> 19.59851115 | C199: =Index!B199 -> 17.72541602 | D199: 0 | E199: 19.59851115 | F199: 0.606 | G199: 2035-05-01 | H199: 20.20451115 | I199: 2035
A200: =Index!A200 -> 2035-06-01 | B200: =Index!C200 -> 19.59851115 | C200: =Index!B200 -> 17.74849251 | D200: 0 | E200: 19.59851115 | F200: 0.606 | G200: 2035-06-01 | H200: 20.20451115 | I200: 2035
... 186 more rows

Sheet Shady Hills
A1: Shady Hills | B1: PETROLEUM PRODUCT PRICE FORECAST DATA | G1: PROSYM INPUT | J1: ANNUAL AVERAGE
A2: Date | B2: Petroleum Product Price Forecast - Gulf Coast | C2: TCM | D2: Blend TCM/ Fundamental (%) | E2: Blend TCM/ Fundamental ($) | F2: Shady Hills Transport ($/MMBtu) | G2: Date | H2: nomianl$/MMBtu | K2: =A1 -> Shady Hills
A3: =Index!A3 -> 2019-01-01 | B3: =Index!C3 -> 14.62277187 | C3: =Index!B3 -> 12.92753623 | D3: 1 | E3: =(C3*D3+B3*(1-D3)) -> 12.92753623 | F3: 0.551 | G3: =A3 -> 2019-01-01 | H3: =SUM(E3:F3) -> 13.47853623 | I3: =YEAR(A3) -> 2019 | J3: 2019 | K3: =AVERAGEIF($I$3:$I$386,J3,$H$3:$H$386) -> 14.07811353
A4: =Index!A4 -> 2019-02-01 | B4: =Index!C4 -> 14.62277187 | C4: =Index!B4 -> 13.86956522 | D4: 1 | E4: 13.86956522 | F4: 0.551 | G4: 2019-02-01 | H4: 14.42056522 | I4: =YEAR(A4) -> 2019 | J4: 2020 | K4: =AVERAGEIF($I$3:$I$386,J4,$H$3:$H$386) -> 14.20716546
